Workbook

Sheet TitlePage
A1: Title page
C6: Spike 20P, Ground Broadcast Soil :Tebuthiuron
E17: WorksheetMaker Version | F17: 6.00.15
A51: 2016-09-08

Sheet Disclaimer
A1: DISCLAIMER

Sheet General Notes
A1: General Notes
B2: Prepared by: | C2: Patrick R. Durkin
B3: Program Version: | C3: 6.00.15
B4: Database Used: | C4: FS WsMkr V06-00-01.mdb
B5: Template Workbook: | C5: FS WsMkr V06-00-01.mdb
B6: Base Workbook: | C6: FS WSMkr Blank V06-00-01.xlsm
A8: Color Codes in WorksheetMaker
A13: Color Codes used in Workbook for Front Matter, Data and Calculation Worksheets
B14: Green shading | C14: This is a default value or a user specified a value. You can change these values as you see fit but you should have a reason for doing so.
B15: Yellow shading | C15: This is a source for a link in other parts of the workbook. If you have good reason to change the value, you should note the change (with your reason) in the “Revisions” page.
B16: Blue shading | C16: This cell is linked to another cell in the workbook. Do not change this value. If you change any of these values, the workbook may not update correctly.
B17: Blue shading blue border | C17: This cell is linked to a Program parameter in Worksheet A01. Do not change this value. If you want the value to change, go to Worksheet A01 and change the value in that worksheet.
B18: Purple Shading | C18: Indicates (for information only) that the typical of order of Lower and Upper values is intentionally reversed. This is only used in the second (label) column.
B19: Italics, no shading | C19: The value in this cell is generated by a formula (the number that you see is the result of an equation). This cell is linked only to other cells in the worksheet. Do not change this value.
A25: Color Codes used in Workbook for Risk Characterization Worksheets
B26: HQ ≥ 2 | C26: For hazard quotient greater than 2, the number is in bold font with a red background and rounded to the nearest integer.
B27: HQ > 1 but < 2 | C27: For hazard quotient greater than 1 but less than two, the number is in bold font with a white background and rounded to one significant place after the decimal.
B28: HQ ≥ 0.1 but <1 | C28: For hazard quotient greater than 0.1 but less than one, the number is in regular font with a white background and rounded to one significant place after the decimal.
B29: HQ < 0.1 | C29: For hazard quotient less than 0.1, the number is in regular font with a white background. The number is expressed in scientific notation and rounded to one significant place -- e.g., 2E-02 rather than 0.02.
B55: Prepared by: | C55: Patrick R. Durkin
B56: Program Version: | C56: 6.00.15
B57: Database Used: | C57: FS WsMkr V06-00-01.mdb
B58: Template Workbook: | C58: FS WsMkr V06-00-01.mdb
B59: Base Workbook: | C59: FS WSMkr Blank V06-00-01.xlsm

Sheet Chemical Notes
A1: Chemical specific notes
A2: Risk Assessment: | D2: SERA TR-056-14-03b
A3: Report Date: | D3: September 2016
A6: The area below is an embedded MS Word Document. Add chemical-specific notes as appropriate.

Sheet Revisions
A1: Revision Histroy
A8: The area below is an embedded MS Word Document. Add revision notes as appropriate.

Sheet Contents
A1: Table of Contents | C1: Toc
A2: Work-sheet No. | B2: Worksheet Title
A3: TitlePage | B3: Title page
A4: Disclaimer | B4: DISCLAIMER
A5: General Notes | B5: General Notes
A6: Chemical Notes | B6: Chemical specific notes
A7: Revisions | B7: Revision Histroy
A8: Contents | B8: Table of Contents
A9: A01 | B9: Program Data: Application rates, application volumes, and concentrations in field solutions
A10: A02a | B10: General reference values and exposure factors used in worksheets.
A11: A02b | B11: General reference values and exposure factors used in worksheets.
A12: A02c | B12: General reference values and exposure factors used in worksheets.
A13: A02d | B13: General reference values and exposure factors used in worksheets.
A14: A03 | B14: Food items for terrestrial animals
A15: B01 | B15: Chemical and Physical Properties for Tebuthiuron
A16: B02 | B16: Toxicity values for Tebuthiuron
A17: B03a | B17: Calculation of Zero-Order Dermal Permeability Rate (Kp) in cm/hour
A18: B03b | B18: Calculation of First-Order Dermal Absorption Rate
A19: B04Rt | B19: Estimates of Water Contamination Rates -- i.e., the concentration in ambient water per pound applied per acre
A20: B04a | B20: Expected Concentrations in Surface Water
A21: B04b | B21: Pond: Concentration of pesticide (granular formulation) in pond water after an accidental spill
A22: B05a | B22: Concentration of Pesticide in Contaminated Fruit
A23: B05b | B23: Concentration of Pesticide in Contaminated Broadleaf Vegetation
A24: B05c | B24: Concentration of Pesticide in Contaminated Short Grass
A25: B05d | B25: Concentration of Pesticide in Contaminated Tall Grass
A26: C01 | B26: Exposure estimates for Ground Granular Broadcast Worker based on the amount of material handled per day
A27: C02a | B27: Accidental Dermal Exposure Assessment Using Zero-Order Absorption, Worker, Surface Area, Hands, for 1 minute(s)
A28: C02b | B28: Accidental Dermal Exposure Assessment Using Zero-Order Absorption, Worker, Surface Area, Hands, for 60 minute(s)
A29: D03a | B29: Consumption of Fruit by a Adult Female, Acute exposure.
A30: D03b | B30: Consumption of Vegetation by a Adult Female, Acute exposure.
A31: D04a | B31: Consumption of Fruit by a Adult Female, Chronic exposure.
A32: D04b | B32: Consumption of Vegetation by a Adult Female, Chronic exposure.
A33: D05 | B33: Consumption of contaminated water by Child, Accidental Spill
A34: D06 | B34: Consumption of contaminated water by Child, Peak Conentrations
A35: D07 | B35: Consumption of contaminated water by Adult Male, Longer-term Conentrations
A36: D08a | B36: Consumption of Contaminated Fish (Accidental Spill), Adult Male, acute exposure
A37: D08b | B37: Consumption of Contaminated Fish (Accidental Spill), Subsistence Populations, acute exposure
A38: D09a | B38: Consumption of Contaminated Fish (Longer-term), Adult Male, chronic exposure
A39: D09b | B39: Consumption of Contaminated Fish (Longer-term), Subsistence Populations, chronic exposure
A40: D09c | B40: Consumption of Contaminated Fish (Peak Exposure), Adult Male, acute exposure
A41: D09d | B41: Consumption of Contaminated Fish (Peak Exposure), Subsistence Populations, acute exposure
A42: D10 | B42: Swimming Exposure Assessment Using Zero-Order Absorption, Adult Female, Surface Area, Whole body, for 60 minute(s)
A43: E01 | B43: Summary of Worker Exposure Assessments
A44: E02 | B44: Summary of Worker Hazard Quotients (Toxicity)
A45: E03 | B45: Summary of Exposure Assessments for the General Public
A46: E04 | B46: Summary of Hazard Quotients (Toxicity) for the General Public
A47: F02a | B47: Consumption of contaminated water by Mammal, small, Accidental Spill
A48: F02b | B48: Consumption of contaminated water by Mammal, 400 g, Accidental Spill
A49: F02c | B49: Consumption of contaminated water by Mammal, carnivorous, Accidental Spill
A50: F02d | B50: Consumption of contaminated water by Mammal, large, Accidental Spill
A51: F02e | B51: Consumption of contaminated water by Bird, small, Accidental Spill
A52: F02f | B52: Consumption of contaminated water by Bird, large, Accidental Spill
A53: F03a | B53: Acute scenario for the consumption of Contaminated Fish (Accidental Spill) by Mammal, large carnivorous
A54: F03b | B54: Acute scenario for the consumption of Contaminated Fish (Accidental Spill) by Mammal, carnivorous
A55: F03c | B55: Acute scenario for the consumption of Contaminated Fish (Accidental Spill) by Bird, piscivorous
A56: F04a | B56: Consumption of Fruit by a Mammal, small after Acute exposure.
A57: F04b | B57: Consumption of Fruit by a Mammal, 400 g after Acute exposure.
A58: F04c | B58: Consumption of Fruit by a Mammal, large after Acute exposure.
A59: F04d | B59: Consumption of Fruit by a Bird, small after Acute exposure.
A60: F04e | B60: Consumption of Fruit by a Bird, large after Acute exposure.
A61: F05a | B61: Consumption of Broadleaf Vegetation by a Mammal, small after Acute exposure.
A62: F05b | B62: Consumption of Broadleaf Vegetation by a Mammal, 400 g after Acute exposure.
A63: F05c | B63: Consumption of Broadleaf Vegetation by a Mammal, large after Acute exposure.
A64: F05d | B64: Consumption of Broadleaf Vegetation by a Bird, small after Acute exposure.
A65: F05e | B65: Consumption of Broadleaf Vegetation by a Bird, large after Acute exposure.
A66: F06a | B66: Consumption of Tall grass by a Mammal, small after Acute exposure.
A67: F06b | B67: Consumption of Tall grass by a Mammal, 400 g after Acute exposure.
A68: F06c | B68: Consumption of Tall grass by a Mammal, large after Acute exposure.
A69: F06d | B69: Consumption of Tall grass by a Bird, small after Acute exposure.
A70: F06e | B70: Consumption of Tall grass by a Bird, large after Acute exposure.
A71: F07a | B71: Consumption of Short grass by a Mammal, small after Acute exposure.
A72: F07b | B72: Consumption of Short grass by a Mammal, 400 g after Acute exposure.
A73: F07c | B73: Consumption of Short grass by a Mammal, large after Acute exposure.
A74: F07d | B74: Consumption of Short grass by a Bird, small after Acute exposure.
A75: F07e | B75: Consumption of Short grass by a Bird, large after Acute exposure.
A76: F08a | B76: Consumption of contaminated water by Mammal, small, Peak Concentrations
A77: F08b | B77: Consumption of contaminated water by Mammal, 400 g, Peak Concentrations
A78: F08c | B78: Consumption of contaminated water by Mammal, carnivorous, Peak Concentrations
A79: F08d | B79: Consumption of contaminated water by Mammal, large, Peak Concentrations
A80: F08e | B80: Consumption of contaminated water by Bird, small, Peak Concentrations
A81: F08f | B81: Consumption of contaminated water by Bird, large, Peak Concentrations
A82: F09a | B82: Consumption of Small Insects by a Mammal, small after Acute exposure.
A83: F09b | B83: Consumption of Small Insects by a Mammal, 400 g after Acute exposure.
A84: F09c | B84: Consumption of Small Insects by a Bird, small after Acute exposure.
A85: F10a | B85: Consumption of Small Mammal by Mammal, carnivorous, acute exposure scenario
A86: F10b | B86: Consumption of Small Mammal by Bird, carnivorous, acute exposure scenario
A87: F11a | B87: Acute scenario for the consumption of Contaminated Fish (Peak) by Mammal, large carnivorous
A88: F11b | B88: Acute scenario for the consumption of Contaminated Fish (Peak) by Mammal, carnivorous
A89: F11c | B89: Acute scenario for the consumption of Contaminated Fish (Peak) by Bird, piscivorous
A90: F12a | B90: Consumption of Fruit by a Mammal, small after Chronic exposure.
A91: F12b | B91: Consumption of Fruit by a Mammal, 400 g after Chronic exposure.
A92: F12c | B92: Consumption of Fruit by a Mammal, large after Chronic exposure.
A93: F12d | B93: Consumption of Fruit by a Bird, small after Chronic exposure.
A94: F12e | B94: Consumption of Fruit by a Bird, large after Chronic exposure.
A95: F13a | B95: Consumption of Broadleaf Vegetation by a Mammal, small after Chronic exposure.
A96: F13b | B96: Consumption of Broadleaf Vegetation by a Mammal, 400 g after Chronic exposure.
A97: F13c | B97: Consumption of Broadleaf Vegetation by a Mammal, large after Chronic exposure.
A98: F13d | B98: Consumption of Broadleaf Vegetation by a Bird, small after Chronic exposure.
A99: F13e | B99: Consumption of Broadleaf Vegetation by a Bird, large after Chronic exposure.
A100: F14a | B100: Consumption of Tall grass by a Mammal, small after Chronic exposure.
A101: F14b | B101: Consumption of Tall grass by a Mammal, 400 g after Chronic exposure.
A102: F14c | B102: Consumption of Tall grass by a Mammal, large after Chronic exposure.
A103: F14d | B103: Consumption of Tall grass by a Bird, small after Chronic exposure.
A104: F14e | B104: Consumption of Tall grass by a Bird, large after Chronic exposure.
A105: F15a | B105: Consumption of Short grass by a Mammal, small after Chronic exposure.
A106: F15b | B106: Consumption of Short grass by a Mammal, 400 g after Chronic exposure.
A107: F15c | B107: Consumption of Short grass by a Mammal, large after Chronic exposure.
A108: F15d | B108: Consumption of Short grass by a Bird, small after Chronic exposure.
A109: F15e | B109: Consumption of Short grass by a Bird, large after Chronic exposure.
A110: F16a | B110: Consumption of contaminated water by Mammal, small, Longer-term Concentrations
A111: F16b | B111: Consumption of contaminated water by Mammal, 400 g, Longer-term Concentrations
A112: F16c | B112: Consumption of contaminated water by Mammal, carnivorous, Longer-term Concentrations
A113: F16d | B113: Consumption of contaminated water by Mammal, large, Longer-term Concentrations
A114: F16e | B114: Consumption of contaminated water by Bird, small, Longer-term Concentrations
A115: F16f | B115: Consumption of contaminated water by Bird, large, Longer-term Concentrations
A116: F17a | B116: Chronic scenario for the consumption of Contaminated Fish (Longer-term) by Mammal, large carnivorous
A117: F17b | B117: Chronic scenario for the consumption of Contaminated Fish (Longer-term) by Mammal, carnivorous
A118: F17c | B118: Chronic scenario for the consumption of Contaminated Fish (Longer-term) by Bird, piscivorous
A119: G01a | B119: Summary of Exposure Assessments for the Mammals
A120: G01b | B120: Summary of Exposure Assessments for the Birds
A121: G02a | B121: Summary of Hazard Quotients (Toxicity) for the Mammals
A122: G02b | B122: Summary of Hazard Quotients (Toxicity) for the Birds
A123: G03 | B123: Worksheet G03: Summary of Hazard Quotients for Aquatic Species
A124: G04 | B124: Summary of Exposure Assessment and Risk Characterization for Terrestrial Plants from Runoff
A125: G06a | B125: Potential exposure of non-target plants through the use of contaminated irrigation water based on estimates concentrations in ambient water.
A126: G06b | B126: Summary of Exposure Assessment and Risk Characterization for Sensitive and Tolerant Terrestrial Plants from Wind Erosion at the Specified Application Rate.
A127: G09 | B127: Exposures and HQs for a Terrestrial Insect (Honeybee) Associated with Direct Spray or Drift Following Terrestrial Applications
A128: References | B128: References cited in workbook

Sheet A01
A1: Program Data: Application rates, application volumes, and concentrations in field solutions
A2: Parameter/Assumption | B2: Code/ Range | C2: Equation/ Value | D2: Units | E2: Reference/Equation
A3: Application Rate | B3: ApRt | C3: 0.6 | D3: lb/acre | E3: Program Input
A4: Standard Values/Options for Scenarios
A5: Surface area of pond for spill | B5: PondSA_M | C5: 1000 | D5: Sq. Meters | E5: Risk assessment.
A6: Pond depth | B6: PondDepthM | C6: 1 | D6: Meters | E6: Risk assessment.
A7: Stream flow rate for drift scenario | B7: StreamFlowLD | C7: 710000 | D7: Liters/day | E7: Risk assessment.
A8: Stream length for drift scenario | B8: StreamLengthFt | C8: 1038 | D8: Feet | E8: Risk assessment.
A9: Stream width for drift scenario | B9: StreamWidthFt | C9: 6 | D9: Feet | E9: Risk assessment.
A10: Duration for longer-term exposures | B10: SubChDays | C10: 90 | D10: Days | E10: Risk assessment.
A11: Duration for swimming scenarios | B11: SwimMin | C11: 60 | D11: Minutes | E11: Risk assessment.
A12: Protection factor for workers based on PPE. | B12: WrkProtectFact
B13: Central | C13: 0 | E13: Risk assessment.
B14: Lower | C14: 0
B15: Upper | C15: 0
A16: Toxic Equivalency Factor for formulation | B16: TEF
B17: Central | C17: 1 | E17: Risk assessment.
B18: Lower | C18: 1
B19: Upper | C19: 1
A20: Drift used in food commody worksheets | B20: DriftToFood
B21: Central | C21: 1 | E21: Risk assessment.
B22: Lower | C22: 1
B23: Upper | C23: 1
A24: Amount spilled into ponds | B24: PondSpillAmntLbs
B25: Central | C25: 40 | D25: Lbs | E25: Risk assessment.
B26: Lower | C26: 16
B27: Upper | C27: 80
A28: Residue rates for broadleaf/forage plants and small insects | B28: VegRRBLT
B29: Central | C29: 1.8 | D29: ppm per lb/ac | E29: Risk assessment.
B30: Lower | C30: 0.6
B31: Upper | C31: 5.4
A32: Residue rates for short grass | B32: VegRRSGT
B33: Central | C33: 3.4 | D33: ppm per lb/ac | E33: Risk assessment.
B34: Lower | C34: 1.2
B35: Upper | C35: 9.6
A36: Residue rates for long grass | B36: VegRRTGT
B37: Central | C37: 1.44 | D37: ppm per lb/ac | E37: Risk assessment.
B38: Lower | C38: 0.48
B39: Upper | C39: 4.4
A40: Residue rates for fruit | B40: VegRRFRT
B41: Central | C41: 0.28 | D41: ppm per lb/ac | E41: Risk assessment.
B42: Lower | C42: 0.13
B43: Upper | C43: 0.6
A44: Worker Exposure Rate | B44: WrkExpRate
B45: Central | C45: 0.0006 | D45: Mg/kg bw per lb | E45: Risk assessment.
B46: Lower | C46: 0.0002
B47: Upper | C47: 0.001
A48: Number of acres that the worker will treat per hour. | B48: WrkAcPerHr
B49: Central | C49: 16 | D49: Acres/hr | E49: Risk assessment.
B50: Lower | C50: 11
B51: Upper | C51: 21
A52: Number of hours of worker exposure per day. | B52: WrkHsPerDy
B53: Central | C53: 7 | D53: Hrs/day | E53: Risk assessment.
B54: Lower | C54: 6
B55: Upper | C55: 8

Sheet A02a
A1: General reference values and exposure factors used in worksheets.
A3: Receptor | B3: Factor | C3: Value | D3: Units | E3: Reference | F3: Reference Note
A4: Adult Female | B4: Body weight | C4: 64 | D4: kg | E4: U.S. EPA/ORD 1985 | F4: page 5, Table 2-2
A5: Adult Female | B5: Surface Area, Feet and lower Legs | C5: 2915 | D5: cm2 | E5: U.S. EPA/ORD 1992 | F5: p. 8-11, Table 8-3, total for feet and lower legs
A6: Adult Female | B6: Surface Area, Wearing shorts and T-shirt | C6: 5300 | D6: cm2 | E6: U.S. EPA/ORD 1992 | F6: p. 8-11, Table 8-3, total for arms, hands, lower legs, and feet.
A7: Adult Female | B7: Surface Area, Whole body | C7: 16900 | D7: cm2 | E7: U.S. EPA/ORD 1997 | F7: p. 6-13, Table 6-3, whole body, 50th percentile
A8: Adult Male | B8: Body weight | C8: 70 | D8: kg | E8: ICRP 1975 | F8: p. 13.
A9: Subsistence Populations | B9: Body weight | C9: 70 | D9: kg | E9: ICRP 1975 | F9: p. 13
A10: Worker, Aerial Spray | B10: Absorbed dose rate, central estimate | C10: 3e-05 | D10: (mg/kg bw)/(lbs handled per day) | E10: SERA 2007 | F10: Acres treated per hour
A11: Worker, Aerial Spray | B11: Absorbed dose rate, lower range | C11: 1e-06 | D11: (mg/kg bw)/(lbs handled per day) | E11: SERA 2007 | F11: Acres treated per hour
A12: Worker, Aerial Spray | B12: Absorbed dose rate, upper range | C12: 0.0001 | D12: (mg/kg bw)/(lbs handled per day) | E12: SERA 2007 | F12: Acres treated per hour
A13: Worker, Aerial Spray | B13: Hours of application per day, central estimate | C13: 7 | D13: Hours per day | E13: USDA 1989a | F13: N/A
A14: Worker, Aerial Spray | B14: Hours of application per day, lower range | C14: 6 | D14: Hours per day | E14: USDA 1989a | F14: N/A
A15: Worker, Aerial Spray | B15: Hours of application per day, upper range | C15: 8 | D15: Hours per day | E15: USDA 1989a | F15: N/A
A16: Worker, Aerial Spray | B16: Acres treated per hour, central estimate | C16: 70 | D16: acres/hour | E16: USDA 1989a | F16: Acres treated per hour
A17: Worker, Aerial Spray | B17: Acres treated per hour, lower range | C17: 40 | D17: acres/hour | E17: USDA 1989a | F17: Acres treated per hour
A18: Worker, Aerial Spray | B18: Acres treated per hour, upper range | C18: 100 | D18: acres/hour | E18: USDA 1989a | F18: Acres treated per hour
A19: Worker, Backpack | B19: Absorbed dose rate, central estimate | C19: 0.003 | D19: (mg/kg bw)/(lbs handled per day) | E19: SERA 2007 | F19: Acres treated per hour
A20: Worker, Backpack | B20: Absorbed dose rate, lower range | C20: 0.0003 | D20: (mg/kg bw)/(lbs handled per day) | E20: SERA 2007 | F20: Acres treated per hour
A21: Worker, Backpack | B21: Absorbed dose rate, upper range | C21: 0.01 | D21: (mg/kg bw)/(lbs handled per day) | E21: SERA 2007 | F21: Acres treated per hour
A22: Worker, Backpack | B22: Hours of application per day, central estimate | C22: 7 | D22: Hours per day | E22: USDA 1989a | F22: N/A
A23: Worker, Backpack | B23: Hours of application per day, lower range | C23: 6 | D23: Hours per day | E23: USDA 1989a | F23: N/A
A24: Worker, Backpack | B24: Hours of application per day, upper range | C24: 8 | D24: Hours per day | E24: USDA 1989a | F24: N/A
A25: Worker, Backpack | B25: Acres treated per hour, central estimate | C25: 0.625 | D25: acres/hour | E25: USDA 1989a | F25: Acres treated per hour
A26: Worker, Backpack | B26: Acres treated per hour, lower range | C26: 0.25 | D26: acres/hour | E26: USDA 1989a | F26: Acres treated per hour
A27: Worker, Backpack | B27: Acres treated per hour, upper range | C27: 1 | D27: acres/hour | E27: USDA 1989a | F27: Acres treated per hour
A28: Child | B28: Body weight | C28: 13.3 | D28: kg | E28: U.S. EPA/ORD 1996 | F28: p. 7-1, Table 7-2
A29: Child | B29: Surface Area, Whole body | C29: 6030 | D29: cm2 | E29: U.S. EPA/ORD 1996 | F29: p. 6-15, Table 6-6, 50th percentile.
A30: Worker, Ground Spray | B30: Absorbed dose rate, central estimate | C30: 0.0002 | D30: (mg/kg bw)/(lbs handled per day) | E30: SERA 2007 | F30: Acres treated per hour
A31: Worker, Ground Spray | B31: Absorbed dose rate, lower range | C31: 1e-05 | D31: (mg/kg bw)/(lbs handled per day) | E31: SERA 2007 | F31: Acres treated per hour
A32: Worker, Ground Spray | B32: Absorbed dose rate, upper range | C32: 0.0009 | D32: (mg/kg bw)/(lbs handled per day) | E32: SERA 2007 | F32: Acres treated per hour
A33: Worker, Ground Spray | B33: Hours of application per day, central estimate | C33: 7 | D33: Hours per day | E33: USDA 1989a | F33: N/A
A34: Worker, Ground Spray | B34: Hours of application per day, lower range | C34: 6 | D34: Hours per day | E34: USDA 1989a | F34: N/A
A35: Worker, Ground Spray | B35: Hours of application per day, upper range | C35: 8 | D35: Hours per day | E35: USDA 1989a | F35: N/A
A36: Worker, Ground Spray | B36: Acres treated per hour, central estimate | C36: 16 | D36: acres/hour | E36: USDA 1989a | F36: Acres treated per hour
A37: Worker, Ground Spray | B37: Acres treated per hour, lower range | C37: 11 | D37: acres/hour | E37: USDA 1989a | F37: Acres treated per hour
A38: Worker, Ground Spray | B38: Acres treated per hour, upper range | C38: 21 | D38: acres/hour | E38: USDA 1989a | F38: Acres treated per hour
A39: Worker | B39: Body weight | C39: 70 | D39: kg | E39: ICRP 1975 | F39: p. 13
A40: Worker | B40: Surface Area, Hands | C40: 840 | D40: cm2 | E40: U.S. EPA/ORD 1992 | F40: p. 8-11
A41: Worker | B41: Surface Area, Lower legs | C41: 2070 | D41: cm2 | E41: U.S. EPA/ORD 1992 | F41: p. 8-11

Sheet A02b
A1: General reference values and exposure factors used in worksheets.
A3: Receptor | B3: Factor | C3: Value | D3: Units | E3: Reference | F3: Reference Note
A4: Amphibian | B4: Kilocalories, alpha parameter for allometric equation | C4: 0.054 | D4: BW(g),Kcal (kcal/day) | E4: U.S. EPA/ORD 1993 | F4: p. 3-7, equation 3-14
A5: Amphibian | B5: Kilocalories, beta parameter for allometric equation | C5: 0.799 | D5: BW(g),Kcal (kcal/day) | E5: U.S. EPA/ORD 1993 | F5: p. 3-7, equation 3-14
A6: Amphibian, bull frog | B6: Food consumption, alpha parameter for allometric equation | C6: 1.09 | D6: BW(g),FC(g) | E6: SERA 2010 | F6: Figure 15
A7: Amphibian, bull frog | B7: Food consumption, beta parameter for allometric equation | C7: 0.1723 | D7: BW(g),FC(g) | E7: SERA 2010 | F7: Figure 15
A8: Bird, NOS | B8: Food consumption, alpha parameter for allometric equation | C8: 0.648 | D8: BW(g),FC(g) | E8: U.S. EPA/ORD 1993 | F8: Eq. 3-3, p. 3-4, all birds
A9: Bird, NOS | B9: Food consumption, beta parameter for allometric equation | C9: 0.651 | D9: BW(g),FC(g) | E9: U.S. EPA/ORD 1993 | F9: Eq. 3-3, p. 3-4, all birds
A10: Bird, carnivorous | B10: Body weight | C10: 0.64 | D10: kg | E10: Dunning 1993 | F10: p. 97. Female Spotted Owl (Strix occidentalis). Range of 548 to 760 g.
A11: Bird, carnivorous | B11: Kilocalories, alpha parameter for allometric equation | C11: 1.146 | D11: BW(g),KCal(kcal/day) | E11: U.S. EPA/ORD 1993 | F11: Eq. 3-37, nonpasserines
A12: Bird, carnivorous | B12: Kilocalories, beta parameter for allometric equation | C12: 0.749 | D12: BW(g),KCal(kcal/day) | E12: U.S. EPA/ORD 1993 | F12: Eq. 3-37, nonpasserines
A13: Bird, carnivorous | B13: Water consumption, alpha parameter for allometric equation | C13: 0.059 | D13: BW(kg), WC(L) | E13: U.S. EPA/ORD 1993 | F13: Eq. 3-15, p. 3-8
A14: Bird, carnivorous | B14: Water consumption, beta parameter for allometric equation | C14: 0.67 | D14: BW(kg), WC(L) | E14: U.S. EPA/ORD 1993 | F14: Eq. 3-15, p. 3-8
A15: Bird, large | B15: Body weight | C15: 4 | D15: kg | E15: Default | F15: Canada goose
A16: Bird, large | B16: Kilocalories, alpha parameter for allometric equation | C16: 1.146 | D16: BW(g),KCal(kcal/day) | E16: U.S. EPA/ORD 1993 | F16: Eq. 3-37, non-passerines
A17: Bird, large | B17: Kilocalories, beta parameter for allometric equation | C17: 0.749 | D17: BW(g),KCal(kcal/day) | E17: U.S. EPA/ORD 1993 | F17: Eq. 3-37, non-passerines
A18: Bird, large | B18: Water consumption, alpha parameter for allometric equation | C18: 0.059 | D18: BW(kg), WC(L) | E18: U.S. EPA/ORD 1993 | F18: Eq. 3-15, p. 3-8
A19: Bird, large | B19: Water consumption, beta parameter for allometric equation | C19: 0.67 | D19: BW(kg), WC(L) | E19: U.S. EPA/ORD 1993 | F19: Eq. 3-15, p. 3-8
A20: Bird, non-Passerine | B20: Food consumption, alpha parameter for allometric equation | C20: 0.301 | D20: BW(g),FC(g) | E20: U.S. EPA/ORD 1993 | F20: Eq. 3-5, p. 3-5, non-passerines
A21: Bird, non-Passerine | B21: Food consumption, beta parameter for allometric equation | C21: 0.751 | D21: BW(g),FC(g) | E21: U.S. EPA/ORD 1993 | F21: Eq. 3-5, p. 3-5, non-passerines
A22: Bird, Passerine | B22: Food consumption, alpha parameter for allometric equation | C22: 0.398 | D22: BW(g),FC(g) | E22: U.S. EPA/ORD 1993 | F22: Eq. 3-4, p. 3-4, passerines
A23: Bird, Passerine | B23: Food consumption, beta parameter for allometric equation | C23: 0.85 | D23: BW(g),FC(g) | E23: U.S. EPA/ORD 1993 | F23: Eq. 3-4, p. 3-4, passerines
A24: Bird, piscivorous | B24: Body weight | C24: 2.4 | D24: kg | E24: Sibley 2000 | F24: p. 60. Great Blue Heron
A25: Bird, piscivorous | B25: Food consumption, alpha parameter for allometric equation | C25: 0.495 | D25: BW(g), FC(g) | E25: U.S. EPA/ORD 1993 | F25: Eq. 3-6, p. 3-5, seabird
A26: Bird, piscivorous | B26: Food consumption, beta parameter for allometric equation | C26: 0.704 | D26: BW(g), FC(g) | E26: U.S. EPA/ORD 1993 | F26: Eq. 3-6, p. 3-5, seabird
A27: Bird, piscivorous | B27: Kilocalories, alpha parameter for allometric equation | C27: 1.916 | D27: BW(g),KCal(kcal/day) | E27: U.S. EPA/ORD 1993 | F27: Eq. 3-38, p. 3-23, seabird
A28: Bird, piscivorous | B28: Kilocalories, beta parameter for allometric equation | C28: 0.704 | D28: BW(g),KCal(kcal/day) | E28: U.S. EPA/ORD 1993 | F28: Eq. 3-38, p. 3-23, seabird
A29: Bird, piscivorous | B29: Water consumption, alpha parameter for allometric equation | C29: 0.059 | D29: BW(kg), WC(L) | E29: U.S. EPA/ORD 1993 | F29: Eq. 3-15, p. 3-8
A30: Bird, piscivorous | B30: Water consumption, beta parameter for allometric equation | C30: 0.67 | D30: BW(kg), WC(L) | E30: U.S. EPA/ORD 1993 | F30: Eq. 3-15, p. 3-8
A31: Bird, small | B31: Body weight | C31: 0.01 | D31: kg | E31: Default | F31: N/A
A32: Bird, small | B32: Kilocalories, alpha parameter for allometric equation | C32: 3.12 | D32: BW(g),KCal(kcal/day) | E32: U.S. EPA/ORD 1993 | F32: Equation 3-36, passerines
A33: Bird, small | B33: Kilocalories, beta parameter for allometric equation | C33: 0.605 | D33: BW(g),KCal(kcal/day) | E33: U.S. EPA/ORD 1993 | F33: Equation 3-36, passerines
A34: Bird, small | B34: Water consumption, alpha parameter for allometric equation | C34: 0.059 | D34: BW(kg), WC(L) | E34: U.S. EPA/ORD 1993 | F34: Eq. 3-15, p. 3-8
A35: Bird, small | B35: Water consumption, beta parameter for allometric equation | C35: 0.67 | D35: BW(kg), WC(L) | E35: U.S. EPA/ORD 1993 | F35: Eq. 3-15, p. 3-8
A36: Honeybee | B36: Body weight | C36: 0.000116 | D36: kg | E36: Winston 1987 | F36: p. 54. Arithmetic average of range: 81 to 151 mg/bee.
A37: Honeybee | B37: Surface Area, Whole body | C37: 1.42 | D37: cm2 | E37: Humphery and Dykes 2008 | F37: Based on a bee with a body length of 1.44 cm.
A38: Mammal, Nos | B38: Food consumption, alpha parameter for allometric equation | C38: 0.235 | D38: BW(g),FC(g) | E38: U.S. EPA/ORD 1993 | F38: Eq. 3-7 ,p. 3-6, all mammals
A39: Mammal, Nos | B39: Food consumption, beta parameter for allometric equation | C39: 0.822 | D39: BW(g),FC(g) | E39: U.S. EPA/ORD 1993 | F39: Eq. 3-7 ,p. 3-6, all mammals
A40: Mammal, 400 g | B40: Body weight | C40: 0.4 | D40: kg | E40: Default | F40: N/A
A41: Mammal, 400 g | B41: Food consumption, alpha parameter for allometric equation | C41: 0.621 | D41: BW(g),FC(g) | E41: U.S. EPA/ORD 1993 | F41: Eq. 3-8, p. 3-6, equation for rodents
A42: Mammal, 400 g | B42: Food consumption, beta parameter for allometric equation | C42: 0.564 | D42: BW(g),FC(g) | E42: U.S. EPA/ORD 1993 | F42: Eq. 3-8, p. 3-6, equation for rodents
A43: Mammal, 400 g | B43: Kilocalories, alpha parameter for allometric equation | C43: 2.514 | D43: BW(g),KCal(kcal/day) | E43: U.S. EPA/ORD 1993 | F43: Equation 3-48, rodent
A44: Mammal, 400 g | B44: Kilocalories, beta parameter for allometric equation | C44: 0.507 | D44: BW(g),KCal(kcal/day) | E44: U.S. EPA/ORD 1993 | F44: Equation 3-48, rodent
A45: Mammal, 400 g | B45: Water consumption, alpha parameter for allometric equation | C45: 0.099 | D45: BW(kg),WC(L) | E45: U.S. EPA/ORD 1993 | F45: Eq. 3-17, p. 3-10, all mammals
A46: Mammal, 400 g | B46: Water consumption, beta parameter for allometric equation | C46: 0.9 | D46: BW(kg),WC(L) | E46: U.S. EPA/ORD 1993 | F46: Eq. 3-17, p. 3-10, all mammals
A47: Mammal, carnivorous | B47: Body weight | C47: 5 | D47: kg | E47: U.S. EPA/ORD 1993 | F47: p. 2-221. Central value for red fox with a range of 3 to 7 kg.
A48: Mammal, carnivorous | B48: Kilocalories, alpha parameter for allometric equation | C48: 0.6167 | D48: BW(g),KCal(kcal/day) | E48: U.S. EPA/ORD 1993 | F48: Equation 3-47, non-herbivore
A49: Mammal, carnivorous | B49: Kilocalories, beta parameter for allometric equation | C49: 0.862 | D49: BW(g),KCal(kcal/day) | E49: U.S. EPA/ORD 1993 | F49: Equation 3-47, non-herbivore
A50: Mammal, carnivorous | B50: Water consumption, alpha parameter for allometric equation | C50: 0.099 | D50: BW(kg),WC(L) | E50: U.S. EPA/ORD 1993 | F50: Eq. 3-17, p. 3-10, all mammals
A51: Mammal, carnivorous | B51: Water consumption, beta parameter for allometric equation | C51: 0.9 | D51: BW(kg), WC(L) | E51: U.S. EPA/ORD 1993 | F51: Eq. 3-17, p. 3-10, all mammals
A52: Mammal, large carnivorous | B52: Body weight | C52: 70 | D52: kg | E52: Reid 2006 | F52: pp. 451-453. Black bear or small grizzly.
A53: Mammal, large carnivorous | B53: Kilocalories, alpha parameter for allometric equation | C53: 0.6167 | D53: BW(g),KCal(kcal/day) | E53: U.S. EPA/ORD 1993 | F53: Equation 3-47, non-herbivore
A54: Mammal, large carnivorous | B54: Kilocalories, beta parameter for allometric equation | C54: 0.862 | D54: BW(g),KCal(kcal/day) | E54: U.S. EPA/ORD 1993 | F54: Equation 3-47, non-herbivore
A55: Mammal, large carnivorous | B55: Water consumption, alpha parameter for allometric equation | C55: 0.099 | D55: BW(kg),WC(L) | E55: U.S. EPA/ORD 1993 | F55: Eq. 3-17, p. 3-10, all mammals
A56: Mammal, large carnivorous | B56: Water consumption, beta parameter for allometric equation | C56: 0.9 | D56: BW(kg), WC(L) | E56: U.S. EPA/ORD 1993 | F56: Eq. 3-17, p. 3-10, all mammals
A57: Mammal, herbivorous | B57: Food consumption, alpha parameter for allometric equation | C57: 0.577 | D57: BW(g),FC(g) | E57: U.S. EPA/ORD 1993 | F57: Eq. 3-9, p. 3-6, equation for herbivores
A58: Mammal, herbivorous | B58: Food consumption, beta parameter for allometric equation | C58: 0.727 | D58: BW(g),FC(g) | E58: U.S. EPA/ORD 1993 | F58: Eq. 3-9, p. 3-6, equation for herbivores
A59: Mammal, herbivorous | B59: Kilocalories, alpha parameter for allometric equation | C59: 1.518 | D59: BW(g),KCal(kcal/day) | E59: U.S. EPA/ORD 1993 | F59: Equation 3-46, herbivores
A60: Mammal, herbivorous | B60: Kilocalories, beta parameter for allometric equation | C60: 0.73 | D60: BW(g),KCal(kcal/day) | E60: U.S. EPA/ORD 1993 | F60: Equation 3-46, herbivores
A61: Mammal, large | B61: Body weight | C61: 70 | D61: kg | E61: Default | F61: N/A
A62: Mammal, large | B62: Kilocalories, alpha parameter for allometric equation | C62: 1.518 | D62: BW(g),KCal(kcal/day) | E62: U.S. EPA/ORD 1993 | F62: p. 3-6, Eq. 3-10, herbivores
A63: Mammal, large | B63: Kilocalories, beta parameter for allometric equation | C63: 0.73 | D63: BW(g),KCal(kcal/day) | E63: U.S. EPA/ORD 1993 | F63: p. 3-6, Eq. 3-10, herbivores
A64: Mammal, large | B64: Water consumption, alpha parameter for allometric equation | C64: 0.099 | D64: BW(kg),WC(L) | E64: U.S. EPA/ORD 1993 | F64: Eq. 3-17, p. 3-10, all mammals
A65: Mammal, large | B65: Water consumption, beta parameter for allometric equation | C65: 0.9 | D65: BW(kg), WC(L) | E65: U.S. EPA/ORD 1993 | F65: Eq. 3-17, p. 3-10, all mammals
A66: Mammal, rabbit | B66: Body weight | C66: 1.3 | D66: kg | E66: Default | F66: N/A
A67: Mammal, rabbit | B67: Surface Area, alpha parameter for allometric equation | C67: 0.11 | D67: BW(kg),SA(m2) | E67: U.S. EPA/ORD 1993 | F67: p. 3-14, Eq. 3-22, for all mammals
A68: Mammal, rabbit | B68: Surface Area, beta parameter for allometric equation | C68: 0.65 | D68: BW(kg),SA(m2) | E68: U.S. EPA/ORD 1993 | F68: p. 3-14, Eq. 3-22, for all mammals
A69: Mammal, rodent | B69: Food consumption, alpha parameter for allometric equation | C69: 0.621 | D69: BW(g),FC(g) | E69: U.S. EPA/ORD 1993 | F69: Eq. 3-8, p. 3-6, equation for rodents
A70: Mammal, rodent | B70: Food consumption, beta parameter for allometric equation | C70: 0.584 | D70: BW(g),FC(g) | E70: U.S. EPA/ORD 1993 | F70: Eq. 3-8,p. 3-6, equation for rodents
A71: Mammal, small | B71: Body weight | C71: 0.02 | D71: kg | E71: Default | F71: N/A
A72: Mammal, small | B72: Caloric content (wet weight) | C72: 1.7 | D72: kcal/g (wet weight) | E72: U.S. EPA/ORD 1993 | F72: Table 4-1, p. 4-13. Value for small mammals. Wet weight.
A73: Mammal, small | B73: Food consumption, alpha parameter for allometric equation | C73: 0.621 | D73: BW(g),FC(g) | E73: U.S. EPA/ORD 1993 | F73: Eq. 3-8, p. 3-6, equation for rodents
A74: Mammal, small | B74: Food consumption, beta parameter for allometric equation | C74: 0.564 | D74: BW(g),FC(g) | E74: U.S. EPA/ORD 1993 | F74: Eq. 3-8, p. 3-6, equation for rodents
A75: Mammal, small | B75: Kilocalories, alpha parameter for allometric equation | C75: 2.514 | D75: BW(g),KCal(kcal/day) | E75: U.S. EPA/ORD 1993 | F75: Equation 3-48, rodent
A76: Mammal, small | B76: Kilocalories, beta parameter for allometric equation | C76: 0.507 | D76: BW(g),KCal(kcal/day) | E76: U.S. EPA/ORD 1993 | F76: Equation 3-48, rodent
A77: Mammal, small | B77: Surface Area, alpha parameter for allometric equation | C77: 0.11 | D77: BW(kg),SA(m2) | E77: U.S. EPA/ORD 1993 | F77: p. 3-14, Eq. 3-22, for all mammals
A78: Mammal, small | B78: Surface Area, beta parameter for allometric equation | C78: 0.65 | D78: BW(kg),SA(m2) | E78: U.S. EPA/ORD 1993 | F78: p. 3-14, Eq. 3-22, for all mammals
A79: Mammal, small | B79: Water consumption, alpha parameter for allometric equation | C79: 0.099 | D79: BW(kg),WC(L) | E79: U.S. EPA/ORD 1993 | F79: Eq. 3-17, p. 3-10, all mammals
A80: Mammal, small | B80: Water consumption, beta parameter for allometric equation | C80: 0.9 | D80: BW(kg),WC(L) | E80: U.S. EPA/ORD 1993 | F80: Eq. 3-17, p. 3-10, all mammals

Sheet A02c
A1: General reference values and exposure factors used in worksheets.
A3: Receptor | B3: Factor | C3: Value | D3: Units | E3: Reference | F3: Reference Note
A4: Small Insects | B4: Caloric content (wet weight) | C4: 1.5 | D4: kcal/g (wet weight) | E4: U.S. EPA/ORD 1993 | F4: Table 4-1, p. 4-13. Value for beetles. Wet weight
A5: Fish | B5: Caloric content (wet weight) | C5: 1.2 | D5: kcal/g (wet weight) | E5: U.S. EPA/ORD 1993 | F5: Table 4-1, p. 4-13. Value for bony fish. Wet weight
A6: Vegetation | B6: Caloric content (dry weight) | C6: 2.26 | D6: kcal/g | E6: U.S. EPA/ORD 1993 | F6: p. 3-5, Table 3-1
A7: Vegetation | B7: Water content (proportion) | C7: 0.85 | D7: unitless | E7: U.S. EPA/ORD 1993 | F7: p. 4-14
A8: VegRR | B8: Broadleaf/forage plants and small insects, central estimate | C8: 45 | D8: mg chem/kg veg | E8: Fletcher et al. 1994 | F8: Broadleaf/forage plants and small insects
A9: VegRR | B9: Broadleaf/forage plants and small insects, upper range | C9: 135 | D9: mg chem/kg veg | E9: Fletcher et al. 1994 | F9: Broadleaf/forage plants and small insects
A10: VegRR | B10: Fruits, pods, seeds, and large insects, central estimate | C10: 7 | D10: mg chem/kg veg | E10: Fletcher et al. 1994 | F10: Fruits, pods, seeds, and large insects
A11: VegRR | B11: Fruits, pods, seeds, and large insects, upper range | C11: 15 | D11: mg chem/kg veg | E11: Fletcher et al. 1994 | F11: Fruits, pods, seeds, and large insects
A12: VegRR | B12: Broadleaf plants and small insects, granular applications, central estimate | C12: 1.8 | D12: mg chem/kg veg | E12: SERA 2005 | F12: Broadleaf forage plants and contaminated insects after granular application
A13: VegRR | B13: Broadleaf plants and small insects, granular applications, upper range | C13: 5.4 | D13: mg chem/kg veg | E13: SERA 2005 | F13: Broadleaf forage plants and contaminated insects after granular application
A14: VegRR | B14: Fruits, granular applications, central estimate | C14: 0.28 | D14: mg chem/kg veg | E14: SERA 2005 | F14: Fruit after granular application
A15: VegRR | B15: Fruits, granular applications, upper range | C15: 0.6 | D15: mg chem/kg veg | E15: SERA 2005 | F15: Fruit after granular application
A16: VegRR | B16: Short grass, granular applications, lower range | C16: 1.2 | D16: mg chem/kg veg | E16: SERA 2005 | F16: Short grass after granular application
A17: VegRR | B17: Short grass, granular applications, upper range | C17: 9.6 | D17: mg chem/kg veg | E17: SERA 2005 | F17: Short grass after granular application
A18: VegRR | B18: Tall grass, granular applications, central estimate | C18: 1.44 | D18: mg chem/kg veg | E18: SERA 2005 | F18: Tall grass after granular application
A19: VegRR | B19: Tall grass, granular applications, upper range | C19: 4.4 | D19: mg chem/kg veg | E19: SERA 2005 | F19: Tall grass after granular application
A20: VegRR | B20: Short grass, central estimate | C20: 85 | D20: mg chem/kg veg | E20: Fletcher et al. 1994 | F20: Short grass
A21: VegRR | B21: Short grass, lower range | C21: 30 | D21: mg chem/kg veg | E21: SERA 2007 | F21: Short grass
A22: VegRR | B22: Short grass, upper range | C22: 240 | D22: mg chem/kg veg | E22: Fletcher et al. 1994 | F22: Short grass
A23: VegRR | B23: Tall grass, central estimate | C23: 36 | D23: mg chem/kg veg | E23: Fletcher et al. 1994 | F23: Tall grass
A24: VegRR | B24: Tall grass, upper range | C24: 110 | D24: mg chem/kg veg | E24: Fletcher et al. 1994 | F24: Tall grass

Sheet A02d
A1: General reference values and exposure factors used in worksheets.
A3: Receptor | B3: Factor | C3: Value | D3: Units | E3: Reference | F3: Reference Note
A4: Conversion Factors | B4: acrefoot2gal | C4: 325900 | D4: gal/acre-foot | E4: Budavari 1989 | F4: N/A
A5: Conversion Factors | B5: liters per gal | C5: 3.785 | D5: L/gal | E5: Budavari 1989 | F5: N/A
A6: Conversion Factors | B6: pound per milligram | C6: 453600 | D6: mg/lb | E6: Budavari 1989 | F6: N/A
A7: Conversion Factors | B7: lbac2mgcm2 | C7: 0.01121 | D7: mg/cm2 per lb/acre | E7: Budavari 1989 | F7: N/A
A8: Conversion Factors | B8: lbac2ugcm2 | C8: 11.21 | D8: ug/cm2 per lb/acre | E8: Budavari 1989 | F8: N/A
A9: Conversion Factors | B9: conversion for milligrams to pounds | C9: 2.204e-06 | D9: lb/mg | E9: Budavari 1989 | F9: N/A
A10: Conversion Factors | B10: conversion for milliliters to gallons | C10: 3785 | D10: ml/gal | E10: Budavari 1989 | F10: N/A
A11: Misc | B11: Liquid adhering to skin | C11: 0.008 | D11: mL/cm2 | E11: Mason and Johnson 1987 | F11: Weight of liquid adhering to surface of skin after a spill
A12: Misc | B12: Dislodgeable residue as proportion | C12: 0.1 | D12: none | E12: Harris and Solomon 1992 | F12: Estimate of dislodgeable residue as a proportion of application rate shortly after application based on 2,4-D.
A13: Standard Pond | B13: Depth | C13: 1 | D13: m | E13: Default | F13: Depth of pond
A14: Standard Pond | B14: Surface Area | C14: 1000 | D14: m^2 | E14: Default | F14: Surface Area
A15: Standard Pond | B15: Volume of Spill | C15: 200 | D15: gallons | E15: Default | F15: Volume of spill
A16: VegRR | B16: Broadleaf/forage plants and small insects, lower range | C16: 15 | D16: mg chem/kg veg | E16: SERA 2007 | F16: Broadleaf/forage plants and small insects
A17: VegRR | B17: Fruits, pods, seeds, and large insects, lower range | C17: 3.2 | D17: mg chem/kg veg | E17: SERA 2007 | F17: Fruits, pods, seeds, and large insects
A18: VegRR | B18: Broadleaf plants and small insects, granular applications, lower range | C18: 0.6 | D18: mg chem/kg veg | E18: SERA 2007 | F18: Broadleaf/forage plants after granular application
A19: VegRR | B19: Fruits, granular applications, lower range | C19: 0.13 | D19: mg chem/kg veg | E19: SERA 2007 | F19: Fruit after granular application
A20: VegRR | B20: Short grass, granular applications, central estimate | C20: 3.4 | D20: mg chem/kg veg | E20: SERA 2005 | F20: Short grass after granular application
A21: VegRR | B21: Short grass, granular applications, lower range | C21: 1.2 | D21: mg chem/kg veg | E21: SERA 2007 | F21: Short grass after granular application
A22: VegRR | B22: Tall grass, granular applications, lower range | C22: 0.48 | D22: mg chem/kg veg | E22: SERA 2007 | F22: Tall grass after granular application
A23: VegRR | B23: Short grass, lower range | C23: 30 | D23: mg chem/kg veg | E23: Fletcher et al. 1994 | F23: Short grass
A24: VegRR | B24: Tall grass, lower range | C24: 12 | D24: mg chem/kg veg | E24: SERA 2007 | F24: Tall grass

Sheet A03
A1: Food items for terrestrial animals
A3: Receptor | B3: Consumer | C3: Qualifier | D3: Modifier | E3: Value | F3: Units | G3: Reference | H3: Reference Note
A4: Adult Female | B4: Fish | C4: Amount | D4: central estimate | E4: 0.01 | F4: kg/day | G4: U.S. EPA/ORD 1996 | H4: p. 10-51, average of means from four studies rounded to one significant place.
A5: Adult Female | B5: Fish | C5: Amount | D5: upper range | E5: 0.158 | F5: kg/day | G5: Ruffle et al. 1994 | H5: N/A
A6: Adult Female | B6: Fruit | C6: Proportion of body weight | D6: central estimate | E6: 0.00168 | F6: kg fruit/kg bw/day | G6: U.S. EPA/ORD 1996 | H6: Table 9-3, p. 9-11, mean value.
A7: Adult Female | B7: Fruit | C7: Proportion of body weight | D7: lower range | E7: 0.00168 | F7: kg fruit/kg bw/day | G7: U.S. EPA/ORD 1996 | H7: Table 9-3, p. 9-11. The 5th percentile is given as zero. For these worksheets, the central estimate is used for the lower bound.
A8: Adult Female | B8: Fruit | C8: Proportion of body weight | D8: upper range | E8: 0.01244 | F8: kg fruit/kg bw/day | G8: U.S. EPA/ORD 1996 | H8: Table 9-3, p. 9-11, 95th percentile value.
A9: Adult Female | B9: Vegetation, home grown | C9: Proportion of body weight | D9: central estimate | E9: 0.00076 | F9: kg veg/kg bw/day | G9: U.S. EPA/ORD 1996 | H9: Table 12-15, p. 9-14, mean for individuals between 20 and 39 years old.
A10: Adult Female | B10: Vegetation, home grown | C10: Proportion of body weight | D10: lower range | E10: 8e-05 | F10: kg veg/kg bw/day | G10: U.S. EPA/ORD 1996 | H10: Table 12-15, p. 9-14, 5th percentile for individuals between 20 and 39 years old.
A11: Adult Female | B11: Vegetation, home grown | C11: Proportion of body weight | D11: upper range | E11: 0.00492 | F11: kg veg/kg bw/day | G11: U.S. EPA/ORD 1996 | H11: Table 12-15, p. 9-14, 95th percentile for individuals between 20 and 39 years old.
A12: Adult Female | B12: Vegetation | C12: Amount | D12: Extreme | E12: 0.454 | F12: kg food | G12: U.S. EPA/ORD 1996 | H12: 1 lb. The approximate mid range of the above typical and upper limits based on the 64 kg body weight.
A13: Adult Female | B13: Vegetation | C13: Proportion of body weight | D13: central estimate | E13: 0.0036 | F13: kg veg/kg bw/day | G13: U.S. EPA/ORD 1996 | H13: Table 9-12, p. 9-12, mean.
A14: Adult Female | B14: Vegetation | C14: Proportion of body weight | D14: lower range | E14: 0.00075 | F14: kg veg/kg bw/day | G14: U.S. EPA/ORD 1996 | H14: Table 9-12, p. 9-12, 5th percentile.
A15: Adult Female | B15: Vegetation | C15: Proportion of body weight | D15: upper range | E15: 0.01 | F15: kg veg/kg bw/day | G15: U.S. EPA/ORD 1996 | H15: Table 9-12, p. 9-12, 95th percentile.
A16: Adult Female | B16: Water | C16: Amount | D16: central estimate | E16: 2 | F16: L/day | G16: U.S. EPA/ORD 1996 | H16: p. 3-28, Table 3-30, midpoint of mean (1.4 L/day) and 90th percentile (2.4 L/day) rounded to one significant place.
A17: Adult Female | B17: Water | C17: Amount | D17: lower range | E17: 1.4 | F17: L/day | G17: U.S. EPA/ORD 1996 | H17: p. 3-28, Table 3-30, mean
A18: Adult Female | B18: Water | C18: Amount | D18: upper range | E18: 2.4 | F18: L/day | G18: U.S. EPA/ORD 1996 | H18: p. 3-28, Table 3-30, 90th percentile
A19: Adult Male | B19: Fish | C19: Amount | D19: central estimate | E19: 0.01 | F19: kg/day | G19: U.S. EPA/ORD 1996 | H19: p. 10-51, average of means from four studies rounded to one significant place.
A20: Adult Male | B20: Fish | C20: Amount | D20: upper range | E20: 0.158 | F20: kg/day | G20: Ruffle et al. 1994 | H20: N/A
A21: Adult Male | B21: Fruit | C21: Proportion of body weight | D21: central estimate | E21: 0.00168 | F21: unitless | G21: U.S. EPA/ORD 1996 | H21: Table 9-3, p. 9-11, mean value.
A22: Adult Male | B22: Fruit | C22: Proportion of body weight | D22: lower range | E22: 0.00168 | F22: unitless | G22: U.S. EPA/ORD 1996 | H22: Table 9-3, p. 9-11. The 5th percentile is given as zero. For these worksheets, the central estimate is used for the lower bound.
A23: Adult Male | B23: Fruit | C23: Proportion of body weight | D23: upper range | E23: 0.01244 | F23: unitless | G23: U.S. EPA/ORD 1996 | H23: Table 9-3, p. 9-11, 95th percentile value.
A24: Adult Male | B24: Vegetation, home grown | C24: Proportion of body weight | D24: central estimate | E24: 0.00076 | F24: unitless | G24: U.S. EPA/ORD 1996 | H24: Table 12-15, p. 9-14, mean for individuals between 20 and 39 years old.
A25: Adult Male | B25: Vegetation, home grown | C25: Proportion of body weight | D25: lower range | E25: 8e-05 | F25: unitless | G25: U.S. EPA/ORD 1996 | H25: Table 12-15, p. 9-14, 5th percentile for individuals between 20 and 39 years old.
A26: Adult Male | B26: Vegetation, home grown | C26: Proportion of body weight | D26: upper range | E26: 0.00492 | F26: unitless | G26: U.S. EPA/ORD 1996 | H26: Table 12-15, p. 9-14, 95th percentile for individuals between 20 and 39 years old.
A27: Adult Male | B27: Vegetation | C27: Amount | D27: Extreme | E27: 0.454 | F27: kg/day | G27: U.S. EPA/ORD 1996 | H27: 1 lb. The approximate mid range of the above typical and upper limits based on the 64 kg body weight.
A28: Adult Male | B28: Vegetation | C28: Proportion of body weight | D28: central estimate | E28: 0.0036 | F28: unitless | G28: U.S. EPA/ORD 1996 | H28: Table 9-12, p. 9-12, mean.
A29: Adult Male | B29: Vegetation | C29: Proportion of body weight | D29: lower range | E29: 0.00075 | F29: unitless | G29: U.S. EPA/ORD 1996 | H29: Table 9-12, p. 9-12, 5th percentile.
A30: Adult Male | B30: Vegetation | C30: Proportion of body weight | D30: upper range | E30: 0.01 | F30: unitless | G30: U.S. EPA/ORD 1996 | H30: Table 9-12, p. 9-12, 95th percentile.
A31: Adult Male | B31: Water | C31: Amount | D31: central estimate | E31: 2 | F31: L/day | G31: U.S. EPA/ORD 1996 | H31: p. 3-28, Table 3-30, midpoint of mean (1.4 L/day) and 90th percentile (2.4 L/day) rounded to one significant place.
A32: Adult Male | B32: Water | C32: Amount | D32: lower range | E32: 1.4 | F32: L/day | G32: U.S. EPA/ORD 1996 | H32: p. 3-28, Table 3-30, mean
A33: Adult Male | B33: Water | C33: Amount | D33: upper range | E33: 2.4 | F33: L/day | G33: U.S. EPA/ORD 1996 | H33: p. 3-28, Table 3-30, 90th percentile
A34: Subsistence Populations | B34: Fish | C34: Amount | D34: central estimate | E34: 0.081 | F34: kg/day | G34: U.S. EPA/ORD 1996 | H34: p. 10-51, median value of 94 individuals
A35: Subsistence Populations | B35: Fish | C35: Amount | D35: upper range | E35: 0.77 | F35: kg/day | G35: U.S. EPA/ORD 1993 | H35: p. 10-51, highest value of 94 individuals
A36: Bird, NOS | B36: Fish | C36: Kilocalories | D36: FoodVal | E36: 3.87 | F36: Kcal/gram (dw) | G36: U.S. EPA/ORD 1993 | H36: Table 3-1, p. 3-5
A37: Bird, NOS | B37: Fish | C37: Wat | D37: FoodVal | E37: 0.7 | F37: Unitless | G37: Ali et al. 2005 | H37: N/A
A38: Bird, NOS | B38: Fruit | C38: Kilocalories | D38: FoodVal | E38: 1.1 | F38: Kcal/gram (dw) | G38: U.S. EPA/ORD 1993 | H38: Gross caloric value of 2.2 kcal/g dw (U.S. EPA/ORD 1993, Table 4-2) with assim fact of 0.51
A39: Bird, NOS | B39: Fruit | C39: Wat | D39: FoodVal | E39: 0.77 | F39: Unitless | G39: U.S. EPA/ORD 1993 | H39: Table 4-2, p. 4-14
A40: Bird, NOS | B40: Insect | C40: Kilocalories | D40: FoodVal | E40: 4.3 | F40: Kcal/gram (dw) | G40: U.S. EPA/ORD 1993 | H40: Table 4-2, p. 4-14
A41: Bird, NOS | B41: Insect | C41: Wat | D41: FoodVal | E41: 0.7 | F41: Unitless | G41: Chapman 1998 | H41: Typrical range 60-80%
A42: Bird, NOS | B42: Vegetation | C42: Kilocalories | D42: FoodVal | E42: 2 | F42: Kcal/gram (dw) | G42: U.S. EPA/ORD 1993 | H42: gross caloric value of 4.2 kcal/g dw for dicot leaves (U.S. EPA/ORD 1993, Table 4-2) with assim fact of 0.47
A43: Bird, NOS | B43: Vegetation | C43: Wat | D43: FoodVal | E43: 0.85 | F43: Unitless | G43: U.S. EPA/ORD 1993 | H43: Table 4-2, p. 4-14
A44: Child | B44: Water | C44: Amount | D44: central estimate | E44: 1 | F44: L/day | G44: U.S. EPA/ORD 1996 | H44: p. 3-28, Table 3-30, midpoint of mean (0.61L/day) and 90th percentile (1.5 L/day) rounded to one significant place.
A45: Child | B45: Water | C45: Amount | D45: lower range | E45: 0.61 | F45: L/day | G45: U.S. EPA/ORD 1996 | H45: p. 3-28, Table 3-30, mean
A46: Child | B46: Water | C46: Amount | D46: upper range | E46: 1.5 | F46: L/day | G46: U.S. EPA/ORD 1996 | H46: p. 3-28, Table 3-30, 90th percentile
A47: Herbivorous Insect | B47: Broadleaf/Small Insects | C47: Proportion of body weight | D47: central estimate | E47: 1.3 | F47: kg food/kg bw/day | G47: Waldbauer 1968 | H47: N/A
A48: Herbivorous Insect | B48: Broadleaf/Small Insects | C48: Proportion of body weight | D48: lower range | E48: 0.6 | F48: kg food/kg bw/day | G48: Reichle et al. 1973 | H48: N/A
A49: Herbivorous Insect | B49: Broadleaf/Small Insects | C49: Proportion of body weight | D49: upper range | E49: 2.2 | F49: kg food/kg bw/day | G49: Waldbauer 1968 | H49: N/A
A50: Herbivorous Insect | B50: Fruit | C50: Proportion of body weight | D50: central estimate | E50: 1.3 | F50: kg food/kg bw/day | G50: Waldbauer 1968 | H50: N/A
A51: Herbivorous Insect | B51: Fruit | C51: Proportion of body weight | D51: lower range | E51: 0.6 | F51: kg food/kg bw/day | G51: Reichle et al. 1973 | H51: N/A
A52: Herbivorous Insect | B52: Fruit | C52: Proportion of body weight | D52: upper range | E52: 2.2 | F52: kg food/kg bw/day | G52: Waldbauer 1968 | H52: N/A
A53: Herbivorous Insect | B53: Short grass | C53: Proportion of body weight | D53: central estimate | E53: 1.3 | F53: kg food/kg bw/day | G53: Waldbauer 1968 | H53: N/A
A54: Herbivorous Insect | B54: Short grass | C54: Proportion of body weight | D54: lower range | E54: 0.6 | F54: kg food/kg bw/day | G54: Reichle et al. 1973 | H54: N/A
A55: Herbivorous Insect | B55: Short grass | C55: Proportion of body weight | D55: upper range | E55: 2.2 | F55: kg food/kg bw/day | G55: Waldbauer 1968 | H55: N/A
A56: Herbivorous Insect | B56: Tall Grass | C56: Proportion of body weight | D56: central estimate | E56: 1.3 | F56: kg food/kg bw/day | G56: Waldbauer 1968 | H56: N/A
A57: Herbivorous Insect | B57: Tall Grass | C57: Proportion of body weight | D57: lower range | E57: 0.6 | F57: kg food/kg bw/day | G57: Reichle et al. 1973 | H57: N/A
A58: Herbivorous Insect | B58: Tall Grass | C58: Proportion of body weight | D58: upper range | E58: 2.2 | F58: kg food/kg bw/day | G58: Waldbauer 1968 | H58: N/A
A59: Mammal, Nos | B59: Fish | C59: Kilocalories | D59: FoodVal | E59: 4.47 | F59: Kcal/gram (dw) | G59: U.S. EPA/ORD 1993 | H59: Table 3-1, p. 3-5
A60: Mammal, Nos | B60: Fish | C60: Wat | D60: FoodVal | E60: 0.7 | F60: Unitless | G60: Ali et al. 2005 | H60: N/A
A61: Mammal, Nos | B61: Fruit | C61: Kilocalories | D61: FoodVal | E61: 1.1 | F61: Kcal/gram (dw) | G61: U.S. EPA/ORD 1993 | H61: Gross caloric value of 2.2 kcal/g dw (U.S. EPA/ORD 1993, Table 4-2) with assim fact of 0.51
A62: Mammal, Nos | B62: Fruit | C62: Wat | D62: FoodVal | E62: 0.77 | F62: Unitless | G62: U.S. EPA/ORD 1993 | H62: Table 4-2, p. 4-14
A63: Mammal, Nos | B63: Insect | C63: Kilocalories | D63: FoodVal | E63: 4.47 | F63: Kcal/gram (dw) | G63: U.S. EPA/ORD 1993 | H63: Table 4-2, p. 4-14
A64: Mammal, Nos | B64: Insect | C64: Wat | D64: FoodVal | E64: 0.7 | F64: Unitless | G64: Chapman 1998 | H64: Typrical range 60-80%
A65: Mammal, Nos | B65: Vegetation | C65: Kilocalories | D65: FoodVal | E65: 2.26 | F65: Kcal/gram (dw) | G65: U.S. EPA/ORD 1993 | H65: Table 3-1, p. 3-5
A66: Mammal, Nos | B66: Vegetation | C66: Wat | D66: FoodVal | E66: 0.85 | F66: Unitless | G66: U.S. EPA/ORD 1993 | H66: Table 4-2, p. 4-14

Sheet B01
A1: Chemical and Physical Properties for Tebuthiuron
A3: Property | B3: Receptor | C3: Value | D3: Units | E3: Document Reference
A4: Bioconcentration Factor (BCF), edible, acute | B4: N/A | C4: 1.98 | D4: L/kg fish | E4: N/A
A5: Bioconcentration Factor (BCF), edible, chronic | B5: N/A | C5: 1.98 | D5: L/kg fish | E5: N/A
A6: Bioconcentration Factor (BCF), whole fish, acute | B6: N/A | C6: 2.63 | D6: L/kg fish | E6: N/A
A7: Bioconcentration Factor (BCF), whole fish, chronic | B7: N/A | C7: 2.63 | D7: L/kg fish | E7: N/A
A8: Kow (Octanol-water partition coefficient) | B8: N/A | C8: 63.1 | D8: unitless | E8: N/A
A9: Molecular weight | B9: N/A | C9: 228.3 | D9: grams/mole | E9: N/A
A10: Water Solubility | B10: N/A | C10: 2500 | D10: mg/L | E10: N/A
A11: First order dermal absorption rate (ka), central estimate | B11: N/A | C11: 0.004 | D11: per hour | E11: N/A
A12: First order dermal absorption rate (ka), lower range | B12: N/A | C12: 0.002 | D12: per hour | E12: N/A
A13: First order dermal absorption rate (ka), upper range | B13: N/A | C13: 0.009 | D13: per hour | E13: N/A
A14: Dermal permeability (Kp), central estimate | B14: N/A | C14: 0.0014 | D14: cm/hour | E14: N/A
A15: Dermal permeability (Kp), lower range | B15: N/A | C15: 0.00096 | D15: cm/hour | E15: N/A
A16: Dermal permeability (Kp), upper range | B16: N/A | C16: 0.002 | D16: cm/hour | E16: N/A
A17: Halftime, central estimate | B17: Fruit | C17: 30 | D17: days | E17: N/A
A18: Halftime, lower range | B18: Fruit | C18: 30 | D18: days | E18: N/A
A19: Halftime, upper range | B19: Fruit | C19: 30 | D19: days | E19: N/A
A20: Halftime, central estimate | B20: Vegetation | C20: 30 | D20: days | E20: N/A
A21: Halftime, lower range | B21: Vegetation | C21: 30 | D21: days | E21: N/A
A22: Halftime, upper range | B22: Vegetation | C22: 30 | D22: days | E22: N/A

Sheet B02
A1: Toxicity values for Tebuthiuron
A3: Receptor | B3: Receptor | C3: Qualifier | D3: Endpoint | E3: Value | F3: Units | G3: Document Reference
A4: Human | B4: acute | C4: N/A | D4: Reference Dose (RfD) | E4: 0.14 | F4: mg/kg bw | G4: N/A
A5: Human | B5: chronic | C5: N/A | D5: Reference Dose (RfD) | E5: 0.14 | F5: mg/kg bw/day | G5: N/A
A6: Adult Female | B6: acute | C6: N/A | D6: Reference Dose (RfD) | E6: 0.1 | F6: mg/kg bw/day | G6: N/A
A7: Adult Female | B7: chronic | C7: N/A | D7: Reference Dose (RfD) | E7: 0.1 | F7: mg/kg bw | G7: N/A
A8: Mammal, Nos | B8: acute | C8: N/A | D8: NOAEL | E8: 10 | F8: mg/kg bw | G8: N/A
A9: Mammal, Nos | B9: chronic | C9: N/A | D9: NOAEL | E9: 10 | F9: mg/kg bw/day | G9: N/A
A10: Bird, NOS | B10: acute | C10: N/A | D10: NOAEL | E10: 180 | F10: mg/kg bw | G10: N/A
A11: Bird, NOS | B11: chronic | C11: N/A | D11: NOAEL | E11: 7 | F11: mg/kg bw/day | G11: N/A
A12: Honeybee | B12: acute | C12: N/A | D12: NOAEL | E12: 860 | F12: mg/kg bw | G12: N/A
A13: Terrestrial plant | B13: Vegetative vigor | C13: sensitive species | D13: NOAEL | E13: 0.062 | F13: lb/acre | G13: N/A
A14: Terrestrial plant | B14: Vegetative vigor | C14: tolerant species | D14: NOAEL | E14: 2 | F14: lb/acre | G14: N/A
A15: Terrestrial plant | B15: Seedling Emergence | C15: sensitive species | D15: NOAEL | E15: 0.018 | F15: lb/acre | G15: N/A
A16: Terrestrial plant | B16: Seedling Emergence | C16: tolerant species | D16: NOAEL | E16: 2 | F16: lb/acre | G16: N/A
A17: Aquatic invertebrate | B17: acute | C17: sensitive species | D17: NOAEC* | E17: 4.56 | F17: mg/L | G17: N/A
A18: Aquatic invertebrate | B18: acute | C18: tolerant species | D18: NOAEC* | E18: 21.8 | F18: mg/L | G18: N/A
A19: Aquatic invertebrate | B19: chronic | C19: tolerant species | D19: NOAEC | E19: 21.8 | F19: mg/L | G19: N/A
A20: Fish | B20: acute | C20: sensitive species | D20: NOAEC | E20: 9.3 | F20: mg/L | G20: N/A
A21: Fish | B21: acute | C21: tolerant species | D21: NOAEC | E21: 50 | F21: mg/L | G21: N/A
A22: Fish | B22: chronic | C22: sensitive species | D22: NOAEC | E22: 9.3 | F22: mg/L | G22: N/A
A23: Fish | B23: chronic | C23: tolerant species | D23: NOAEC | E23: 26 | F23: mg/L | G23: N/A
A24: Algae | B24: N/A | C24: sensitive species | D24: NOAEC | E24: 0.013 | F24: mg/L | G24: N/A
A25: Algae | B25: N/A | C25: tolerant species | D25: NOAEC | E25: 0.056 | F25: mg/L | G25: N/A
A26: Macrophyte, aquatic | B26: N/A | C26: tolerant species | D26: NOAEC | E26: 0.05 | F26: mg/L | G26: N/A
A27: Aquatic invertebrate | B27: chronic | C27: sensitive species | D27: NOAEC* | E27: 4.56 | F27: mg/L | G27: N/A

Sheet B03a
A1: Calculation of Zero-Order Dermal Permeability Rate (Kp) in cm/hour
A2: Short Title | B2: Calculation of Kp | E2: ChemDrmKp
A3: Parameter/Assumption | B3: Code / Range | C3: Equation/ Value | D3: Units | E3: Reference/Designation
A4: Molecular weight | B4: MW | C4: ='B01'!$C$9 -> 228.3 | D4: g/mole
A5: Ko/w | B5: Kow | C5: ='B01'!$C$8 -> 63.1 | D5: unitless
A6: Vector a[] | B6: a[1] | C6: 1
B7: a[2] | C7: =C4 -> 228.3
B8: a[3] | C8: =LOG10(C5) -> 1.800029359
A9: Transpose of a[] (a') | B9: =$C$6 -> 1 | C9: =$C$7 -> 228.3 | D9: =$C$8 -> 1.800029359
A10: X'X Cross Product Matrix | B10: X'X
B11: 0.055931 | C11: -9.41546e-05 | D11: -0.0103443
B12: -9.41546e-05 | C12: 5.978e-07 | D12: -2.22508e-05
B13: -0.0103443 | C13: -2.22508e-05 | D13: 0.00740677
A14: a'X'X a | B14: a'X'X a | C14: =MMULT(B9:D9,MMULT(B11:D13, C6:C8)) -> 0.01256872215
A15: Coefficients for model
A16: Intercept | B16: K0 | C16: -2.72576
A17: Coeff for MW | B17: K1 | C17: -0.006151
A18: Coeff for Log10(Kow) | B18: K2 | C18: 0.706648
A19: Standard deviation of model | B19: s | C19: 0.727129
A20: Critical value at 0.025 with 87 d.f. | B20: t0.025 | C20: 1.96
A21: Log10 of Estimated dermal permeability rate (Kp) | B21: Log(Kp) = | C21: K0 + K1 MW + K2 Log10(Kow)
B22: Central | C22: =$C$16 + ($C$17*$C$4) + ($C$18*LOG10($C$5)) -> -2.858046153 | E22: Eq
B23: Lower 95% CI | C23: =$C$22 - ($C$20 * $C$19 * ($C$14^0.5)) -> -3.017822726 | E23: Eq
B24: Upper 95% CI | C24: =$C$22 + ($C$20 * $C$19 * ($C$14^0.5)) -> -2.698269581 | E24: Eq
A25: Estimated dermal permeability rate (Kp) | B25: Kp = | C25: 10Log(Kp)
B26: Central | C26: =10^C22 -> 0.001386608463 | D26: cm/hour | E26: Eq
B27: Lower 95% CI | C27: =10^C23 -> 0.0009597923285 | E27: Eq
B28: Upper 95% CI | C28: =10^C24 -> 0.002003228171 | E28: Eq

Sheet B03b
A1: Calculation of First-Order Dermal Absorption Rate
A2: Short Title | B2: Calculation of ka | E2: ChemDrmKa
A3: Parameter/Assumption | B3: Code / Range | C3: Equation/ Value | D3: Units | E3: Reference/Designation
A4: Molecular weight | B4: MW | C4: ='B01'!$C$9 -> 228.3 | D4: g/mole
A5: Ko/w | B5: Kow | C5: ='B01'!$C$8 -> 63.1 | D5: unitless
A6: Vector a[] | B6: a[1] | C6: 1
B7: a[2] | C7: =C4 -> 228.3
B8: a[3] | C8: =LOG10(C5) -> 1.800029359
A9: Transpose of a[] (a') | B9: =$C$6 -> 1 | C9: =$C$7 -> 228.3 | D9: =$C$8 -> 1.800029359
A10: X'X Cross Product Matrix | B10: X'X
B11: 0.307537 | C11: -0.00103089 | D11: 0.00822769
B12: -0.00103089 | C12: 4.377e-06 | D12: -9.44359e-05
B13: 0.00822769 | C13: -9.44359e-05 | D13: 0.0085286
A14: a'X'X a | B14: a'X'X a | C14: =MMULT(B9:D9,MMULT(B11:D13, C6:C8)) -> 0.04460325062
A15: Coefficients for model
A16: Intercept | B16: K0 | C16: -1.49615
A17: Coeff for MW | B17: K1 | C17: -0.005657
A18: Coeff for Log10(Kow) | B18: K2 | C18: 0.233255
A19: Standard deviation of model | B19: s | C19: 0.787218
A20: Critical value at 0.025 with 26 d.f. | B20: t0.025 | C20: 2.056
A21: Log10 of Estimated first-order absorption rate | B21: Log(ka) = | C21: K0 + K1 MW + K2 Log10(Kow)
B22: Central | C22: =$C$16 + ($C$17*$C$4) + ($C$18*LOG10($C$5)) -> -2.367777252 | E22: Eq
B23: Lower 95% CI | C23: =$C$22 - ($C$20 * $C$19 * ($C$14^0.5)) -> -2.709600331 | E23: Eq
B24: Upper 95% CI | C24: =$C$22 + ($C$20 * $C$19 * ($C$14^0.5)) -> -2.025954173 | E24: Eq
A25: Estimated first-order absorption rate | B25: ka = | C25: 10Log(ka)
B26: Central | C26: =10^C22 -> 0.004287683779 | D26: hour-1 | E26: Eq
B27: Lower 95% CI | C27: =10^C23 -> 0.001951639815 | E27: Eq
B28: Upper 95% CI | C28: =10^C24 -> 0.009419889904 | E28: Eq

Sheet B04Rt
A1: Estimates of Water Contamination Rates -- i.e., the concentration in ambient water per pound applied per acre
A2: Parameter/Assumption | B2: Code / Range | C2: Equation/ Value | D2: Units | E2: WCRV6
A3: Short-term peak concentrations | B3: Peak | E3: WCRV6
B4: Central | C4: 0.19 | D4: mg/L | E4: Section 3.2.2.4.6
B5: Lower | C5: 0.011 | E5: Section 3.2.2.4.6
B6: Upper | C6: 1 | E6: Section 3.2.2.4.6
A7: Longer-term average concentrations | B7: Average
B8: Central | C8: 0.091 | D8: mg/L | E8: Section 3.2.2.4.6
B9: Lower | C9: 0.0064 | E9: Section 3.2.2.4.6
B10: Upper | C10: 0.64 | E10: Section 3.2.2.4.6
A11: User Specified Gleams-Driver File: | B11: None

Sheet B04a
A1: Expected Concentrations in Surface Water | E1: EECRtV6
A2: Parameter/Assumption | B2: Code / Range | C2: Equation/ Value | D2: Units | E2: EECRtV6
A3: Application Rate | B3: ApRt | C3: ='A01'!ApRt_C -> 0.6 | D3: lb/acre | E3: Worksheet A01
A4: Water Contamination Rates
A5: Short-term peak water contamination rates (WCR) | B5: Peak
B6: Central | C6: =B04Rt!$C$4 -> 0.19 | D6: mg/L | E6: Section 3.2.2.4.6
B7: Lower | C7: =B04Rt!$C$5 -> 0.011 | E7: Section 3.2.2.4.6
B8: Upper | C8: =B04Rt!$C$6 -> 1 | E8: Section 3.2.2.4.6
A9: Longer-term average water contamination rates (WCR) | B9: Average
B10: Central | C10: =B04Rt!$C$8 -> 0.091 | D10: mg/L | E10: Section 3.2.2.4.6
B11: Lower | C11: =B04Rt!$C$9 -> 0.0064 | E11: Section 3.2.2.4.6
B12: Upper | C12: =B04Rt!$C$10 -> 0.64 | E12: Section 3.2.2.4.6
A13: EECs in Surface Water
A14: Short-term peak concentrations | B14: Peak
B15: Central | C15: =$C$3*C6 -> 0.114 | D15: mg/L | E15: Eq
B16: Lower | C16: =$C$3*C7 -> 0.0066 | E16: Eq
B17: Upper | C17: 0.6 | E17: Eq
A18: Longer-term average concentrations | B18: Average
B19: Central | C19: =$C$3*C10 -> 0.0546 | D19: mg/L | E19: Eq
B20: Lower | C20: =$C$3*C11 -> 0.00384 | E20: Eq
B21: Upper | C21: 0.384 | E21: Eq

Sheet B04b
A1: Pond: Concentration of pesticide (granular formulation) in pond water after an accidental spill
A2: Short Title | B2: Pond Spill | E2: PondSpillGranV6
A3: Receptor | B3: Pond
A4: Duration | B4: Acute
A5: Parameter/Assumption | B5: Code / Range | C5: Equation/ Value | D5: Units | E5: Reference/Designation
A6: Surface Area of Pond | B6: SA | C6: ='A01'!C$5 -> 1000 | D6: m2 | E6: Worksheet A01
A7: Depth of Pond | B7: Depth | C7: ='A01'!C$6 -> 1 | D7: meter | E7: Worksheet A01
A8: Volume of Pond | B8: VPM | C8: =C6*C7 -> 1000 | D8: m3 | E8: Eq
B9: VPL | C9: =1000*C8 -> 1000000 | D9: liters | E9: Eq
A10: Pounds of compound spilled into water | B10: Lbs
B11: Central | C11: ='A01'!C$25 -> 40 | D11: lbs a.i. or a.e | E11: Worksheet A01
B12: Lower | C12: ='A01'!C$26 -> 16 | E12: Worksheet A01
B13: Upper | C13: ='A01'!C$27 -> 80 | E13: Worksheet A01
A14: mg per lb | B14: MgLbs | C14: 453600 | D14: mg/lbs
A15: Toxic Equivalency Factor for formulation: (See risk assessment if this has a value other than 1.) | B15: TEF
B16: Central | C16: ='A01'!C$17 -> 1 | D16: unitless | E16: Worksheet A01
B17: Lower | C17: ='A01'!C$18 -> 1 | E17: Worksheet A01
B18: Upper | C18: ='A01'!C$19 -> 1 | E18: Worksheet A01
A19: Concentration in pond water | B19: ConcWat | C19: Lbs × TEF x MgLbs ÷ VPL
B20: Central | C20: =C11*C16*C$14/C$9 -> 18.144 | D20: mg/L | E20: Eq
B21: Lower | C21: =C12*C17*C$14/C$9 -> 7.2576 | E21: Eq
B22: Upper | C22: =C13*C18*C$14/C$9 -> 36.288 | E22: Eq

Sheet B05a
A1: Concentration of Pesticide in Contaminated Fruit
A2: Short Title | B2: Concentration in food item | E2: FoodConcV6
A3: Material consumed | C3: Fruit | E3: Scenario parameter
A4: Parameter/Assumption | B4: Code / Range | C4: Equation/ Value | D4: Units | E4: Reference/Designation
A5: Application Information
A6: Application Rate (lbs/acre) | B6: ApRt | C6: ='A01'!ApRt_C -> 0.6 | D6: lb/acre | E6: Worksheet A01
A7: Number of applications | B7: n | C7: 1 | D7: unitless | E7: Worksheet A01
A8: Interval between applications | B8: intv | C8: 1 | D8: days | E8: Worksheet A01
A9: Special Adjustments (See Note 1)
A10: Metabolite Adjustment Factor : (See risk assessment if this has a value other than 1.) | B10: MetFact
B11: Central | C11: 1 | D11: unitless | E11: Default
B12: Lower | C12: 1 | E12: Default
B13: Upper | C13: 1 | E13: Default
A14: Toxic Equivalency Factor for formulation: (See risk assessment if this has a value other than 1.) | B14: TEF
B15: Central | C15: ='A01'!C$17 -> 1 | D15: Unitless | E15: Worksheet A01
B16: Lower | C16: ='A01'!C$18 -> 1 | E16: Worksheet A01
B17: Upper | C17: ='A01'!C$19 -> 1 | E17: Worksheet A01
A18: Acute Concentrations
A19: Residue Rates | B19: rr
B20: Central | C20: ='A01'!C$41 -> 0.28 | D20: mg/kg food per lb/acre | E20: Worksheet A01
B21: Lower | C21: ='A01'!C$42 -> 0.13 | E21: Worksheet A01
B22: Upper | C22: ='A01'!C$43 -> 0.6 | E22: Worksheet A01
A23: Drift | B23: Drift
B24: Central | C24: ='A01'!C$21 -> 1 | D24: proportion | E24: Worksheet A01
B25: Lower | C25: ='A01'!C$22 -> 1 | E25: Worksheet A01
B26: Upper | C26: ='A01'!C$23 -> 1 | E26: Worksheet A01
A27: Concentration on commodity immediately after first application. | B27: C0 | C27: ApR × rr × Drift × MetFact × TEF
B28: Central | C28: =C$6*C20*$C$24*C11*C15 -> 0.168 | E28: Eq
B29: Lower | C29: =C$6*C21*$C$24*C12*C16 -> 0.078 | E29: Eq
B30: Upper | C30: =C$6*C22*$C$24*C13*C17 -> 0.36 | E30: Eq
A31: Half-life on commodity | B31: Halflife
B32: Central | C32: ='B01'!$C$17 -> 30 | D32: Days
B33: Lower | C33: ='B01'!$C$18 -> 30
B34: Upper | C34: ='B01'!$C$19 -> 30
A35: Decay Coefficient | B35: k | C35: Ln(2)/Halflife
B36: Central | C36: =LN(2)/C32 -> 0.02310490602 | D36: Days-1 | E36: Eq
B37: Upper | C37: =LN(2)/C33 -> 0.02310490602 | D37: Note 2 | E37: Eq
B38: Lower | C38: =LN(2)/C34 -> 0.02310490602 | D38: Note 2 | E38: Eq
A39: Proportion remaining at end of each application interval | B39: p | C39: exp( -k × intv)
B40: Central | C40: =EXP(-C36*C$8) -> 0.9771599684 | D40: proportion | E40: Eq
B41: Lower | C41: =EXP(-C37*C$8) -> 0.9771599684 | E41: Eq
B42: Upper | C42: =EXP(-C38*C$8) -> 0.9771599684 | E42: Eq
A43: Concentration on commodity immediately after last application. | B43: Cn | C43: Cn = C0 × (1- pn) ÷ (1- p)
B44: Central | C44: =C28 * (1-C40^C$7)/(1-C40) -> 0.168 | D44: mg/kg food item | E44: Eq
B45: Lower | C45: =C29 * (1-C41^C$7)/(1-C41) -> 0.078 | E45: Eq
B46: Upper | C46: =C30 * (1-C42^C$7)/(1-C42) -> 0.36 | E46: Eq
A47: Longer-term Concentrations
A48: Duration for time-weighted average exposure | B48: T | C48: ='A01'!C$10 -> 90 | D48: Days | E48: Worksheet A01
A49: Time-weighted average concentration on commodity over time, T, after the last application. | B49: ConcTWA | C49: Cn × (1-e-kT) ÷ (k T)
B50: Central | C50: =C44*(1-EXP(-C36*$C$48))/(C36*$C$48) -> 0.070692057 | D50: mg/kg food item | E50: Eq
B51: Lower | C51: =C45*(1-EXP(-C37*$C$48))/(C37*$C$48) -> 0.03282131218 | E51: Eq
B52: Upper | C52: 0.1514829793 | E52: Eq
A53: Maximum Time-weighted average concentration on commodity over time, T. | B53: ConcTWA | C53: See Documentation
B54: Central | C54: =IF($C$7=1, C50, MaxTWAWsFn(C28, $C$7, $C$8, $C$48, C36)) -> 0.070692057 | D54: mg/kg food item | E54: Eq
B55: Lower | C55: =IF($C$7=1, C51, MaxTWAWsFn(C29, $C$7, $C$8, $C$48, C37)) -> 0.03282131218 | E55: Eq
B56: Upper | C56: =IF($C$7=1, C52, MaxTWAWsFn(C30, $C$7, $C$8, $C$48, C38)) -> 0.1514829793 | E56: Eq

Sheet B05b
A1: Concentration of Pesticide in Contaminated Broadleaf Vegetation
A2: Short Title | B2: Concentration in food item | E2: FoodConcV6
A3: Material consumed | C3: Broadleaf Vegetation | E3: Scenario parameter
A4: Parameter/Assumption | B4: Code / Range | C4: Equation/ Value | D4: Units | E4: Reference/Designation
A5: Application Information
A6: Application Rate (lbs/acre) | B6: ApRt | C6: ='A01'!ApRt_C -> 0.6 | D6: lb/acre | E6: Worksheet A01
A7: Number of applications | B7: n | C7: =B05a!C$7 -> 1 | D7: unitless | E7: Worksheet A01
A8: Interval between applications | B8: intv | C8: =B05a!C$8 -> 1 | D8: days | E8: Worksheet A01
A9: Special Adjustments (See Note 1)
A10: Metabolite Adjustment Factor : (See risk assessment if this has a value other than 1.) | B10: MetFact
B11: Central | C11: 1 | D11: unitless | E11: Default
B12: Lower | C12: 1 | E12: Default
B13: Upper | C13: 1 | E13: Default
A14: Toxic Equivalency Factor for formulation: (See risk assessment if this has a value other than 1.) | B14: TEF
B15: Central | C15: ='A01'!C$17 -> 1 | D15: Unitless | E15: Worksheet A01
B16: Lower | C16: ='A01'!C$18 -> 1 | E16: Worksheet A01
B17: Upper | C17: ='A01'!C$19 -> 1 | E17: Worksheet A01
A18: Acute Concentrations
A19: Residue Rates | B19: rr
B20: Central | C20: ='A01'!C$29 -> 1.8 | D20: mg/kg food per lb/acre | E20: Worksheet A01
B21: Lower | C21: ='A01'!C$30 -> 0.6 | E21: Worksheet A01
B22: Upper | C22: ='A01'!C$31 -> 5.4 | E22: Worksheet A01
A23: Drift | B23: Drift
B24: Central | C24: ='A01'!C$21 -> 1 | D24: proportion | E24: Worksheet A01
B25: Lower | C25: ='A01'!C$22 -> 1 | E25: Worksheet A01
B26: Upper | C26: ='A01'!C$23 -> 1 | E26: Worksheet A01
A27: Concentration on commodity immediately after first application. | B27: C0 | C27: ApR × rr × Drift × MetFact × TEF
B28: Central | C28: =C$6*C20*$C$24*C11*C15 -> 1.08 | E28: Eq
B29: Lower | C29: =C$6*C21*$C$24*C12*C16 -> 0.36 | E29: Eq
B30: Upper | C30: =C$6*C22*$C$24*C13*C17 -> 3.24 | E30: Eq
A31: Half-life on commodity | B31: Halflife
B32: Central | C32: ='B01'!$C$20 -> 30 | D32: Days
B33: Lower | C33: ='B01'!$C$21 -> 30
B34: Upper | C34: ='B01'!$C$22 -> 30
A35: Decay Coefficient | B35: k | C35: Ln(2)/Halflife
B36: Central | C36: =LN(2)/C32 -> 0.02310490602 | D36: Days-1 | E36: Eq
B37: Upper | C37: =LN(2)/C33 -> 0.02310490602 | D37: Note 2 | E37: Eq
B38: Lower | C38: =LN(2)/C34 -> 0.02310490602 | D38: Note 2 | E38: Eq
A39: Proportion remaining at end of each application interval | B39: p | C39: exp( -k × intv)
B40: Central | C40: =EXP(-C36*C$8) -> 0.9771599684 | D40: proportion | E40: Eq
B41: Lower | C41: =EXP(-C37*C$8) -> 0.9771599684 | E41: Eq
B42: Upper | C42: =EXP(-C38*C$8) -> 0.9771599684 | E42: Eq
A43: Concentration on commodity immediately after last application. | B43: Cn | C43: Cn = C0 × (1- pn) ÷ (1- p)
B44: Central | C44: =C28 * (1-C40^C$7)/(1-C40) -> 1.08 | D44: mg/kg food item | E44: Eq
B45: Lower | C45: =C29 * (1-C41^C$7)/(1-C41) -> 0.36 | E45: Eq
B46: Upper | C46: =C30 * (1-C42^C$7)/(1-C42) -> 3.24 | E46: Eq
A47: Longer-term Concentrations
A48: Duration for time-weighted average exposure | B48: T | C48: ='A01'!C$10 -> 90 | D48: Days | E48: Worksheet A01
A49: Time-weighted average concentration on commodity over time, T, after the last application. | B49: ConcTWA | C49: Cn × (1-e-kT) ÷ (k T)
B50: Central | C50: =C44*(1-EXP(-C36*$C$48))/(C36*$C$48) -> 0.4544489379 | D50: mg/kg food item | E50: Eq
B51: Lower | C51: =C45*(1-EXP(-C37*$C$48))/(C37*$C$48) -> 0.1514829793 | E51: Eq
B52: Upper | C52: 1.363346814 | E52: Eq
A53: Maximum Time-weighted average concentration on commodity over time, T. | B53: ConcTWA | C53: See Documentation
B54: Central | C54: =IF($C$7=1, C50, MaxTWAWsFn(C28, $C$7, $C$8, $C$48, C36)) -> 0.4544489379 | D54: mg/kg food item | E54: Eq
B55: Lower | C55: =IF($C$7=1, C51, MaxTWAWsFn(C29, $C$7, $C$8, $C$48, C37)) -> 0.1514829793 | E55: Eq
B56: Upper | C56: =IF($C$7=1, C52, MaxTWAWsFn(C30, $C$7, $C$8, $C$48, C38)) -> 1.363346814 | E56: Eq

Sheet B05c
A1: Concentration of Pesticide in Contaminated Short Grass
A2: Short Title | B2: Concentration in food item | E2: FoodConcV6
A3: Material consumed | C3: Short Grass | E3: Scenario parameter
A4: Parameter/Assumption | B4: Code / Range | C4: Equation/ Value | D4: Units | E4: Reference/Designation
A5: Application Information
A6: Application Rate (lbs/acre) | B6: ApRt | C6: ='A01'!ApRt_C -> 0.6 | D6: lb/acre | E6: Worksheet A01
A7: Number of applications | B7: n | C7: =B05a!C$7 -> 1 | D7: unitless | E7: Worksheet A01
A8: Interval between applications | B8: intv | C8: =B05a!C$8 -> 1 | D8: days | E8: Worksheet A01
A9: Special Adjustments (See Note 1)
A10: Metabolite Adjustment Factor : (See risk assessment if this has a value other than 1.) | B10: MetFact
B11: Central | C11: 1 | D11: unitless | E11: Default
B12: Lower | C12: 1 | E12: Default
B13: Upper | C13: 1 | E13: Default
A14: Toxic Equivalency Factor for formulation: (See risk assessment if this has a value other than 1.) | B14: TEF
B15: Central | C15: ='A01'!C$17 -> 1 | D15: Unitless | E15: Worksheet A01
B16: Lower | C16: ='A01'!C$18 -> 1 | E16: Worksheet A01
B17: Upper | C17: ='A01'!C$19 -> 1 | E17: Worksheet A01
A18: Acute Concentrations
A19: Residue Rates | B19: rr
B20: Central | C20: ='A01'!C$33 -> 3.4 | D20: mg/kg food per lb/acre | E20: Worksheet A01
B21: Lower | C21: ='A01'!C$34 -> 1.2 | E21: Worksheet A01
B22: Upper | C22: ='A01'!C$35 -> 9.6 | E22: Worksheet A01
A23: Drift | B23: Drift
B24: Central | C24: ='A01'!C$21 -> 1 | D24: proportion | E24: Worksheet A01
B25: Lower | C25: ='A01'!C$22 -> 1 | E25: Worksheet A01
B26: Upper | C26: ='A01'!C$23 -> 1 | E26: Worksheet A01
A27: Concentration on commodity immediately after first application. | B27: C0 | C27: ApR × rr × Drift × MetFact × TEF
B28: Central | C28: =C$6*C20*$C$24*C11*C15 -> 2.04 | E28: Eq
B29: Lower | C29: =C$6*C21*$C$24*C12*C16 -> 0.72 | E29: Eq
B30: Upper | C30: =C$6*C22*$C$24*C13*C17 -> 5.76 | E30: Eq
A31: Half-life on commodity | B31: Halflife
B32: Central | C32: ='B01'!$C$20 -> 30 | D32: Days
B33: Lower | C33: ='B01'!$C$21 -> 30
B34: Upper | C34: ='B01'!$C$22 -> 30
A35: Decay Coefficient | B35: k | C35: Ln(2)/Halflife
B36: Central | C36: =LN(2)/C32 -> 0.02310490602 | D36: Days-1 | E36: Eq
B37: Upper | C37: =LN(2)/C33 -> 0.02310490602 | D37: Note 2 | E37: Eq
B38: Lower | C38: =LN(2)/C34 -> 0.02310490602 | D38: Note 2 | E38: Eq
A39: Proportion remaining at end of each application interval | B39: p | C39: exp( -k × intv)
B40: Central | C40: =EXP(-C36*C$8) -> 0.9771599684 | D40: proportion | E40: Eq
B41: Lower | C41: =EXP(-C37*C$8) -> 0.9771599684 | E41: Eq
B42: Upper | C42: =EXP(-C38*C$8) -> 0.9771599684 | E42: Eq
A43: Concentration on commodity immediately after last application. | B43: Cn | C43: Cn = C0 × (1- pn) ÷ (1- p)
B44: Central | C44: =C28 * (1-C40^C$7)/(1-C40) -> 2.04 | D44: mg/kg food item | E44: Eq
B45: Lower | C45: =C29 * (1-C41^C$7)/(1-C41) -> 0.72 | E45: Eq
B46: Upper | C46: =C30 * (1-C42^C$7)/(1-C42) -> 5.76 | E46: Eq
A47: Longer-term Concentrations
A48: Duration for time-weighted average exposure | B48: T | C48: ='A01'!C$10 -> 90 | D48: Days | E48: Worksheet A01
A49: Time-weighted average concentration on commodity over time, T, after the last application. | B49: ConcTWA | C49: Cn × (1-e-kT) ÷ (k T)
B50: Central | C50: =C44*(1-EXP(-C36*$C$48))/(C36*$C$48) -> 0.8584035493 | D50: mg/kg food item | E50: Eq
B51: Lower | C51: =C45*(1-EXP(-C37*$C$48))/(C37*$C$48) -> 0.3029659586 | E51: Eq
B52: Upper | C52: 2.423727669 | E52: Eq
A53: Maximum Time-weighted average concentration on commodity over time, T. | B53: ConcTWA | C53: See Documentation
B54: Central | C54: =IF($C$7=1, C50, MaxTWAWsFn(C28, $C$7, $C$8, $C$48, C36)) -> 0.8584035493 | D54: mg/kg food item | E54: Eq
B55: Lower | C55: =IF($C$7=1, C51, MaxTWAWsFn(C29, $C$7, $C$8, $C$48, C37)) -> 0.3029659586 | E55: Eq
B56: Upper | C56: =IF($C$7=1, C52, MaxTWAWsFn(C30, $C$7, $C$8, $C$48, C38)) -> 2.423727669 | E56: Eq

Sheet B05d
A1: Concentration of Pesticide in Contaminated Tall Grass
A2: Short Title | B2: Concentration in food item | E2: FoodConcV6
A3: Material consumed | C3: Tall Grass | E3: Scenario parameter
A4: Parameter/Assumption | B4: Code / Range | C4: Equation/ Value | D4: Units | E4: Reference/Designation
A5: Application Information
A6: Application Rate (lbs/acre) | B6: ApRt | C6: ='A01'!ApRt_C -> 0.6 | D6: lb/acre | E6: Worksheet A01
A7: Number of applications | B7: n | C7: =B05a!C$7 -> 1 | D7: unitless | E7: Worksheet A01
A8: Interval between applications | B8: intv | C8: =B05a!C$8 -> 1 | D8: days | E8: Worksheet A01
A9: Special Adjustments (See Note 1)
A10: Metabolite Adjustment Factor : (See risk assessment if this has a value other than 1.) | B10: MetFact
B11: Central | C11: 1 | D11: unitless | E11: Default
B12: Lower | C12: 1 | E12: Default
B13: Upper | C13: 1 | E13: Default
A14: Toxic Equivalency Factor for formulation: (See risk assessment if this has a value other than 1.) | B14: TEF
B15: Central | C15: ='A01'!C$17 -> 1 | D15: Unitless | E15: Worksheet A01
B16: Lower | C16: ='A01'!C$18 -> 1 | E16: Worksheet A01
B17: Upper | C17: ='A01'!C$19 -> 1 | E17: Worksheet A01
A18: Acute Concentrations
A19: Residue Rates | B19: rr
B20: Central | C20: ='A01'!C$37 -> 1.44 | D20: mg/kg food per lb/acre | E20: Worksheet A01
B21: Lower | C21: ='A01'!C$38 -> 0.48 | E21: Worksheet A01
B22: Upper | C22: ='A01'!C$39 -> 4.4 | E22: Worksheet A01
A23: Drift | B23: Drift
B24: Central | C24: ='A01'!C$21 -> 1 | D24: proportion | E24: Worksheet A01
B25: Lower | C25: ='A01'!C$22 -> 1 | E25: Worksheet A01
B26: Upper | C26: ='A01'!C$23 -> 1 | E26: Worksheet A01
A27: Concentration on commodity immediately after first application. | B27: C0 | C27: ApR × rr × Drift × MetFact × TEF
B28: Central | C28: =C$6*C20*$C$24*C11*C15 -> 0.864 | E28: Eq
B29: Lower | C29: =C$6*C21*$C$24*C12*C16 -> 0.288 | E29: Eq
B30: Upper | C30: =C$6*C22*$C$24*C13*C17 -> 2.64 | E30: Eq
A31: Half-life on commodity | B31: Halflife
B32: Central | C32: ='B01'!$C$20 -> 30 | D32: Days
B33: Lower | C33: ='B01'!$C$21 -> 30
B34: Upper | C34: ='B01'!$C$22 -> 30
A35: Decay Coefficient | B35: k | C35: Ln(2)/Halflife
B36: Central | C36: =LN(2)/C32 -> 0.02310490602 | D36: Days-1 | E36: Eq
B37: Upper | C37: =LN(2)/C33 -> 0.02310490602 | D37: Note 2 | E37: Eq
B38: Lower | C38: =LN(2)/C34 -> 0.02310490602 | D38: Note 2 | E38: Eq
A39: Proportion remaining at end of each application interval | B39: p | C39: exp( -k × intv)
B40: Central | C40: =EXP(-C36*C$8) -> 0.9771599684 | D40: proportion | E40: Eq
B41: Lower | C41: =EXP(-C37*C$8) -> 0.9771599684 | E41: Eq
B42: Upper | C42: =EXP(-C38*C$8) -> 0.9771599684 | E42: Eq
A43: Concentration on commodity immediately after last application. | B43: Cn | C43: Cn = C0 × (1- pn) ÷ (1- p)
B44: Central | C44: =C28 * (1-C40^C$7)/(1-C40) -> 0.864 | D44: mg/kg food item | E44: Eq
B45: Lower | C45: =C29 * (1-C41^C$7)/(1-C41) -> 0.288 | E45: Eq
B46: Upper | C46: =C30 * (1-C42^C$7)/(1-C42) -> 2.64 | E46: Eq
A47: Longer-term Concentrations
A48: Duration for time-weighted average exposure | B48: T | C48: ='A01'!C$10 -> 90 | D48: Days | E48: Worksheet A01
A49: Time-weighted average concentration on commodity over time, T, after the last application. | B49: ConcTWA | C49: Cn × (1-e-kT) ÷ (k T)
B50: Central | C50: =C44*(1-EXP(-C36*$C$48))/(C36*$C$48) -> 0.3635591503 | D50: mg/kg food item | E50: Eq
B51: Lower | C51: =C45*(1-EXP(-C37*$C$48))/(C37*$C$48) -> 0.1211863834 | E51: Eq
B52: Upper | C52: 1.110875181 | E52: Eq
A53: Maximum Time-weighted average concentration on commodity over time, T. | B53: ConcTWA | C53: See Documentation
B54: Central | C54: =IF($C$7=1, C50, MaxTWAWsFn(C28, $C$7, $C$8, $C$48, C36)) -> 0.3635591503 | D54: mg/kg food item | E54: Eq
B55: Lower | C55: =IF($C$7=1, C51, MaxTWAWsFn(C29, $C$7, $C$8, $C$48, C37)) -> 0.1211863834 | E55: Eq
B56: Upper | C56: =IF($C$7=1, C52, MaxTWAWsFn(C30, $C$7, $C$8, $C$48, C38)) -> 1.110875181 | E56: Eq

Sheet C01
A1: Exposure estimates for Ground Granular Broadcast Worker based on the amount of material handled per day
A2: Short Title | B2: General exposure | E2: WkGenExp
A3: Receptor | B3: Ground Granular Broadcast Worker | E3: Worksheet A01
A4: Duration | B4: Chronic
A5: Parameter/Assumption | B5: Code / Range | C5: Equation/ Value | D5: Units | E5: Reference/Equation
A6: Application rates | B6: ApRt | C6: ='A01'!ApRt_C -> 0.6 | D6: lb/acre | E6: Worksheet A01
A7: Hours of application per day | B7: Hrs
B8: Central | C8: ='A01'!C$53 -> 7 | D8: hours | E8: Worksheet A01
B9: Lower | C9: ='A01'!C$54 -> 6 | E9: Worksheet A01
B10: Upper | C10: ='A01'!C$55 -> 8 | E10: Worksheet A01
A11: Acres treated per hour | B11: APH
B12: Central | C12: ='A01'!C$49 -> 16 | D12: acres/hour | E12: Worksheet A01
B13: Lower | C13: ='A01'!C$50 -> 11 | E13: Worksheet A01
B14: Upper | C14: ='A01'!C$51 -> 21 | E14: Worksheet A01
A15: Acres treated per day: | B15: ATD | C15: Hrs × APH
B16: Central | C16: =C8*C12 -> 112 | D16: acres/day | E16: Eq
B17: Lower | C17: =C9*C13 -> 66 | E17: Eq
B18: Upper | C18: =C10*C14 -> 168 | E18: Eq
A19: Toxic Equivalency Factor for formulation: (See risk assessment if this has a value other than 1.) | B19: TEF
B20: Central | C20: ='A01'!C$17 -> 1 | D20: unitless | E20: Worksheet A01
B21: Lower | C21: ='A01'!C$18 -> 1 | E21: Worksheet A01
B22: Upper | C22: ='A01'!C$19 -> 1 | E22: Worksheet A01
A23: Amount handled per day: | B23: Amnt | C23: ApRt × ATD × TEF
B24: Central | C24: =C$6*C16 *C20 -> 67.2 | D24: lb/day | E24: Eq
B25: Lower | C25: =C$6*C17 *C21 -> 39.6 | E25: Eq
B26: Upper | C26: =C$6*C18 *C22 -> 100.8 | E26: Eq
A27: Absorbed dose rate: | B27: ADR
B28: Central | C28: ='A01'!C$45 -> 0.0006 | D28: (mg agent/kg bw) ÷ (lbs agent handled per day) | E28: Worksheet A01
B29: Lower | C29: ='A01'!C$46 -> 0.0002 | E29: Worksheet A01
B30: Upper | C30: ='A01'!C$47 -> 0.001 | E30: Worksheet A01
A31: Clothing Protection Factor | B31: Prot
B32: Central | C32: ='A01'!C$13 -> 0 | D32: Unitless (value between 0 [no protection] and 1 [complete protection]) | E32: Worksheet A01
B33: Upper | C33: ='A01'!C$15 -> 0 | E33: Worksheet A01
B34: Lower | C34: ='A01'!C$14 -> 0 | E34: Worksheet A01
A35: Absorbed dose | B35: Dose | C35: Amnt × ADR × (1-Prot)
B36: Central | C36: =C24*C28*(1-C32) -> 0.04032 | D36: mg/kg bw/day | E36: Eq
B37: Lower | C37: =C25*C29*(1-C33) -> 0.00792 | E37: Eq
B38: Upper | C38: =C26*C30*(1-C34) -> 0.1008 | E38: Eq

Sheet C02a
A1: Accidental Dermal Exposure Assessment Using Zero-Order Absorption, Worker, Surface Area, Hands, for 1 minute(s)
A2: Short Title | B2: Contaminated Gloves, 1 minute | E2: DrmZr
A3: Receptor | B3: Worker
A4: Duration | B4: Acute
A5: Surface Contaminated | B5: Surface Area, Hands
A6: Parameter/Assumption | B6: Code / Range | C6: Equation/ Value | D6: Units | E6: Reference/Designation
A7: Surface Area | B7: SA | C7: =A02a!$C$40 -> 840 | D7: cm2 | E7: U.S. EPA/ORD 1992
A8: Duration of Exposure | B8: T_min | C8: 1 | D8: minutes | E8: Scenario parameter
B9: T_hr | C9: =C8/60 -> 0.01666666667 | D9: hours | E9: Eq
A10: Body weight | B10: BW | C10: =A02a!$C$39 -> 70 | D10: kg | E10: ICRP 1975
A11: Concentration in solution (mg/mL) | B11: Conc
B12: Central | C12: ='B01'!$C$10/1000 -> 2.5 | D12: mg/mL
B13: Lower | C13: ='B01'!$C$10/1000 -> 2.5
B14: Upper | C14: ='B01'!$C$10/1000 -> 2.5
A15: Toxic Equivalency Factor for formulation: (See risk assessment if this has a value other than 1.) | B15: TEF
B16: Central | C16: ='A01'!C$17 -> 1 | D16: Unitless | E16: Worksheet A01
B17: Lower | C17: ='A01'!C$18 -> 1 | E17: Worksheet A01
B18: Upper | C18: ='A01'!C$19 -> 1 | E18: Worksheet A01
A19: Dermal permeability | B19: Kp
B20: Central | C20: ='B01'!$C$14 -> 0.0014 | D20: cm/hour
B21: Lower | C21: ='B01'!$C$15 -> 0.00096
B22: Upper | C22: ='B01'!$C$16 -> 0.002
A23: Absorbed Dose | B23: Dose | C23: Kp × Conc × T_hr × SA x TEF ÷ BW
B24: Central | C24: =C20*C12*C$9*C$7*C16/C$10 -> 0.0007 | D24: mg/kg | E24: Eq
B25: Lower | C25: =C21*C13*C$9*C$7*C17/C$10 -> 0.00048 | D25: mg/kg | E25: Eq
B26: Upper | C26: =C22*C14*C$9*C$7*C18/C$10 -> 0.001 | D26: mg/kg | E26: Eq

Sheet C02b
A1: Accidental Dermal Exposure Assessment Using Zero-Order Absorption, Worker, Surface Area, Hands, for 60 minute(s)
A2: Short Title | B2: Contaminated Gloves, 1 Hour | E2: DrmZr
A3: Receptor | B3: Worker
A4: Duration | B4: Acute
A5: Surface Contaminated | B5: Surface Area, Hands
A6: Parameter/Assumption | B6: Code / Range | C6: Equation/ Value | D6: Units | E6: Reference/Designation
A7: Surface Area | B7: SA | C7: =A02a!$C$40 -> 840 | D7: cm2 | E7: U.S. EPA/ORD 1992
A8: Duration of Exposure | B8: T_min | C8: 60 | D8: minutes | E8: Scenario parameter
B9: T_hr | C9: =C8/60 -> 1 | D9: hours | E9: Eq
A10: Body weight | B10: BW | C10: =A02a!$C$39 -> 70 | D10: kg | E10: ICRP 1975
A11: Concentration in solution (mg/mL) | B11: Conc
B12: Central | C12: ='B01'!$C$10/1000 -> 2.5 | D12: mg/mL
B13: Lower | C13: ='B01'!$C$10/1000 -> 2.5
B14: Upper | C14: ='B01'!$C$10/1000 -> 2.5
A15: Toxic Equivalency Factor for formulation: (See risk assessment if this has a value other than 1.) | B15: TEF
B16: Central | C16: ='A01'!C$17 -> 1 | D16: Unitless | E16: Worksheet A01
B17: Lower | C17: ='A01'!C$18 -> 1 | E17: Worksheet A01
B18: Upper | C18: ='A01'!C$19 -> 1 | E18: Worksheet A01
A19: Dermal permeability | B19: Kp
B20: Central | C20: ='B01'!$C$14 -> 0.0014 | D20: cm/hour
B21: Lower | C21: ='B01'!$C$15 -> 0.00096
B22: Upper | C22: ='B01'!$C$16 -> 0.002
A23: Absorbed Dose | B23: Dose | C23: Kp × Conc × T_hr × SA x TEF ÷ BW
B24: Central | C24: =C20*C12*C$9*C$7*C16/C$10 -> 0.042 | D24: mg/kg | E24: Eq
B25: Lower | C25: =C21*C13*C$9*C$7*C17/C$10 -> 0.0288 | D25: mg/kg | E25: Eq
B26: Upper | C26: =C22*C14*C$9*C$7*C18/C$10 -> 0.06 | D26: mg/kg | E26: Eq

Sheet D03a
A1: Consumption of Fruit by a Adult Female, Acute exposure.
A2: Short Title | B2: Contaminated Fruit | E2: FdPropBwV6
A3: Receptor | B3: Adult Female
A4: Duration | B4: Acute | E4: Scenario parameter
A5: Material consumed | B5: Fruit
A6: Parameter/Assumption | B6: Code / Range | C6: Equation/ Value | D6: Units | E6: Reference/Designation
A7: Commodity
A8: Concentration on vegetation | B8: Conc
B9: Central | C9: =B05a!Acute_C -> 0.168 | D9: mg/kg food | E9: ='B05a'!Acute_C
B10: Lower | C10: =B05a!Acute_L -> 0.078 | E10: ='B05a'!Acute_L
B11: Upper | C11: =B05a!Acute_U -> 0.36 | E11: ='B05a'!Acute_U
A12: Receptor
A13: Amount consumed per day per unit body weight | B13: Amnt
B14: Central | C14: ='A03'!$E$6 -> 0.00168 | D14: kg food/kg BW per day | E14: U.S. EPA/ORD 1996
B15: Lower | C15: ='A03'!$E$7 -> 0.00168 | E15: U.S. EPA/ORD 1996
B16: Upper | C16: ='A03'!$E$8 -> 0.01244 | E16: U.S. EPA/ORD 1996
A17: Estimate
A18: Dose | B18: Dose | C18: Conc × Amnt
B19: Central | C19: =C14*C9 -> 0.00028224 | D19: mg/kg bw | E19: Eq
B20: Lower | C20: =C15*C10 -> 0.00013104 | E20: Eq
B21: Upper | C21: =C16*C11 -> 0.0044784 | E21: Eq

Sheet D03b
A1: Consumption of Vegetation by a Adult Female, Acute exposure.
A2: Short Title | B2: Contaminated Vegetation | E2: FdPropBwV6
A3: Receptor | B3: Adult Female
A4: Duration | B4: Acute | E4: Scenario parameter
A5: Material consumed | B5: Vegetation
A6: Parameter/Assumption | B6: Code / Range | C6: Equation/ Value | D6: Units | E6: Reference/Designation
A7: Commodity
A8: Concentration on vegetation | B8: Conc
B9: Central | C9: =B05b!Acute_C -> 1.08 | D9: mg/kg food | E9: ='B05b'!Acute_C
B10: Lower | C10: =B05b!Acute_L -> 0.36 | E10: ='B05b'!Acute_L
B11: Upper | C11: =B05b!Acute_U -> 3.24 | E11: ='B05b'!Acute_U
A12: Receptor
A13: Amount consumed per day per unit body weight | B13: Amnt
B14: Central | C14: ='A03'!$E$13 -> 0.0036 | D14: kg food/kg BW per day | E14: U.S. EPA/ORD 1996
B15: Lower | C15: ='A03'!$E$14 -> 0.00075 | E15: U.S. EPA/ORD 1996
B16: Upper | C16: ='A03'!$E$15 -> 0.01 | E16: U.S. EPA/ORD 1996
A17: Estimate
A18: Dose | B18: Dose | C18: Conc × Amnt
B19: Central | C19: =C14*C9 -> 0.003888 | D19: mg/kg bw | E19: Eq
B20: Lower | C20: =C15*C10 -> 0.00027 | E20: Eq
B21: Upper | C21: =C16*C11 -> 0.0324 | E21: Eq

Sheet D04a
A1: Consumption of Fruit by a Adult Female, Chronic exposure.
A2: Short Title | B2: Contaminated Fruit | E2: FdPropBwV6
A3: Receptor | B3: Adult Female
A4: Duration | B4: Chronic | E4: Scenario parameter
A5: Material consumed | B5: Fruit
A6: Parameter/Assumption | B6: Code / Range | C6: Equation/ Value | D6: Units | E6: Reference/Designation
A7: Commodity
A8: Concentration on vegetation | B8: Conc
B9: Central | C9: =B05a!Chronic_C -> 0.070692057 | D9: mg/kg food | E9: ='B05a'!Chronic_C
B10: Lower | C10: =B05a!Chronic_L -> 0.03282131218 | E10: ='B05a'!Chronic_L
B11: Upper | C11: =B05a!Chronic_U -> 0.1514829793 | E11: ='B05a'!Chronic_U
A12: Receptor
A13: Amount consumed per day per unit body weight | B13: Amnt
B14: Central | C14: ='A03'!$E$6 -> 0.00168 | D14: kg food/kg BW per day | E14: U.S. EPA/ORD 1996
B15: Lower | C15: ='A03'!$E$7 -> 0.00168 | E15: U.S. EPA/ORD 1996
B16: Upper | C16: ='A03'!$E$8 -> 0.01244 | E16: U.S. EPA/ORD 1996
A17: Estimate
A18: Dose | B18: Dose | C18: Conc × Amnt
B19: Central | C19: =C14*C9 -> 0.0001187626558 | D19: mg/kg bw | E19: Eq
B20: Lower | C20: =C15*C10 -> 5.513980446e-05 | E20: Eq
B21: Upper | C21: =C16*C11 -> 0.001884448262 | E21: Eq

Sheet D04b
A1: Consumption of Vegetation by a Adult Female, Chronic exposure.
A2: Short Title | B2: Contaminated Vegetation | E2: FdPropBwV6
A3: Receptor | B3: Adult Female
A4: Duration | B4: Chronic | E4: Scenario parameter
A5: Material consumed | B5: Vegetation
A6: Parameter/Assumption | B6: Code / Range | C6: Equation/ Value | D6: Units | E6: Reference/Designation
A7: Commodity
A8: Concentration on vegetation | B8: Conc
B9: Central | C9: =B05b!Chronic_C -> 0.4544489379 | D9: mg/kg food | E9: ='B05b'!Chronic_C
B10: Lower | C10: =B05b!Chronic_L -> 0.1514829793 | E10: ='B05b'!Chronic_L
B11: Upper | C11: =B05b!Chronic_U -> 1.363346814 | E11: ='B05b'!Chronic_U
A12: Receptor
A13: Amount consumed per day per unit body weight | B13: Amnt
B14: Central | C14: ='A03'!$E$13 -> 0.0036 | D14: kg food/kg BW per day | E14: U.S. EPA/ORD 1996
B15: Lower | C15: ='A03'!$E$14 -> 0.00075 | E15: U.S. EPA/ORD 1996
B16: Upper | C16: ='A03'!$E$15 -> 0.01 | E16: U.S. EPA/ORD 1996
A17: Estimate
A18: Dose | B18: Dose | C18: Conc × Amnt
B19: Central | C19: =C14*C9 -> 0.001636016176 | D19: mg/kg bw | E19: Eq
B20: Lower | C20: =C15*C10 -> 0.0001136122345 | E20: Eq
B21: Upper | C21: =C16*C11 -> 0.01363346814 | E21: Eq

Sheet D05
A1: Consumption of contaminated water by Child, Accidental Spill
A2: Short Title | B2: Accidental Spill | E2: WatAmntV6
A3: Receptor | B3: Child
A4: Duration | B4: Acute | E4: Scenario parameter
A5: Parameter/Assumption | B5: Code / Range | C5: Equation/ Value | D5: Units | E5: Reference/Designation
A6: Concentration in water | B6: ConcWat
B7: Central | C7: =B04b!Acute_C -> 18.144 | D7: mg/L | E7: ='B04b'!Acute_C
B8: Lower | C8: =B04b!Acute_L -> 7.2576 | E8: ='B04b'!Acute_L
B9: Upper | C9: =B04b!Acute_U -> 36.288 | E9: ='B04b'!Acute_U
A10: Receptor
A11: Amount of water consumed in one day | B11: Amnt
B12: Central | C12: ='A03'!$E$44 -> 1 | D12: liters/day | E12: U.S. EPA/ORD 1996
B13: Lower | C13: ='A03'!$E$45 -> 0.61 | E13: U.S. EPA/ORD 1996
B14: Upper | C14: ='A03'!$E$46 -> 1.5 | E14: U.S. EPA/ORD 1996
A15: Body weight | B15: BW | C15: =A02a!$C$28 -> 13.3 | D15: kg | E15: U.S. EPA/ORD 1996
A16: Dose | B16: Dose | C16: ConcWat × Amnt ÷ BW
B17: Central | C17: =C7*C12/C$15 -> 1.364210526 | D17: mg/kg | E17: Eq
B18: Lower | C18: =C8*C13/C$15 -> 0.3328673684 | D18: mg/kg | E18: Eq
B19: Upper | C19: =C9*C14/C$15 -> 4.092631579 | D19: mg/kg | E19: Eq

Sheet D06
A1: Consumption of contaminated water by Child, Peak Conentrations
A2: Short Title | B2: Peak Conentrations | E2: WatAmntV6
A3: Receptor | B3: Child
A4: Duration | B4: Acute | E4: Scenario parameter
A5: Parameter/Assumption | B5: Code / Range | C5: Equation/ Value | D5: Units | E5: Reference/Designation
A6: Concentration in water | B6: ConcWat
B7: Central | C7: =B04a!Acute_C -> 0.114 | D7: mg/L | E7: ='B04a'!Acute_C
B8: Lower | C8: =B04a!Acute_L -> 0.0066 | E8: ='B04a'!Acute_L
B9: Upper | C9: =B04a!Acute_U -> 0.6 | E9: ='B04a'!Acute_U
A10: Receptor
A11: Amount of water consumed in one day | B11: Amnt
B12: Central | C12: ='A03'!$E$44 -> 1 | D12: liters/day | E12: U.S. EPA/ORD 1996
B13: Lower | C13: ='A03'!$E$45 -> 0.61 | E13: U.S. EPA/ORD 1996
B14: Upper | C14: ='A03'!$E$46 -> 1.5 | E14: U.S. EPA/ORD 1996
A15: Body weight | B15: BW | C15: =A02a!$C$28 -> 13.3 | D15: kg | E15: U.S. EPA/ORD 1996
A16: Dose | B16: Dose | C16: ConcWat × Amnt ÷ BW
B17: Central | C17: =C7*C12/C$15 -> 0.008571428571 | D17: mg/kg | E17: Eq
B18: Lower | C18: =C8*C13/C$15 -> 0.0003027067669 | D18: mg/kg | E18: Eq
B19: Upper | C19: =C9*C14/C$15 -> 0.06766917293 | D19: mg/kg | E19: Eq

Sheet D07
A1: Consumption of contaminated water by Adult Male, Longer-term Conentrations
A2: Short Title | B2: Longer-term Conentrations | E2: WatAmntV6
A3: Receptor | B3: Adult Male
A4: Duration | B4: Chronic | E4: Scenario parameter
A5: Parameter/Assumption | B5: Code / Range | C5: Equation/ Value | D5: Units | E5: Reference/Designation
A6: Concentration in water | B6: ConcWat
B7: Central | C7: =B04a!Chronic_C -> 0.0546 | D7: mg/L | E7: ='B04a'!Chronic_C
B8: Lower | C8: =B04a!Chronic_L -> 0.00384 | E8: ='B04a'!Chronic_L
B9: Upper | C9: =B04a!Chronic_U -> 0.384 | E9: ='B04a'!Chronic_U
A10: Receptor
A11: Amount of water consumed in one day | B11: Amnt
B12: Central | C12: ='A03'!$E$31 -> 2 | D12: liters/day | E12: U.S. EPA/ORD 1996
B13: Lower | C13: ='A03'!$E$32 -> 1.4 | E13: U.S. EPA/ORD 1996
B14: Upper | C14: ='A03'!$E$33 -> 2.4 | E14: U.S. EPA/ORD 1996
A15: Body weight | B15: BW | C15: =A02a!$C$8 -> 70 | D15: kg | E15: ICRP 1975
A16: Dose | B16: Dose | C16: ConcWat × Amnt ÷ BW
B17: Central | C17: =C7*C12/C$15 -> 0.00156 | D17: mg/kg | E17: Eq
B18: Lower | C18: =C8*C13/C$15 -> 7.68e-05 | D18: mg/kg | E18: Eq
B19: Upper | C19: =C9*C14/C$15 -> 0.01316571429 | D19: mg/kg | E19: Eq

Sheet D08a
A1: Consumption of Contaminated Fish (Accidental Spill), Adult Male, acute exposure
A2: Short Title | B2: Fish consumption | E2: FishAmntV6
A3: Receptor | B3: Adult Male
A4: Duration | B4: acute
A5: Parameter/Assumption | B5: Code / Range | C5: Equation/ Value | D5: Units | E5: Reference/Designation
A6: Water
A7: Concentration in water | B7: ConcWat | C7: ApR × WCR
B8: Central | C8: =B04b!Acute_C -> 18.144 | D8: mg/L | E8: ='B04b'!Acute_C
B9: Lower | C9: =B04b!Acute_L -> 7.2576 | E9: ='B04b'!Acute_L
B10: Upper | C10: =B04b!Acute_U -> 36.288 | E10: ='B04b'!Acute_U
A11: Fish
A12: Bioconcentration factor | B12: BCF
B13: Central | C13: ='B01'!$C$4 -> 1.98 | D13: L/kg
B14: Lower | C14: ='B01'!$C$4 -> 1.98
B15: Upper | C15: ='B01'!$C$4 -> 1.98
A16: Concentration in fish | B16: ConcFish | C16: ConcWat × BCF
B17: Central | C17: =C8*C13 -> 35.92512 | D17: mg/kg | E17: Eq
B18: Lower | C18: =C9*C14 -> 14.370048 | E18: Eq
B19: Upper | C19: =C10*C15 -> 71.85024 | E19: Eq
A20: Receptor
A21: Amount of fish consumed | B21: Amnt
B22: Central | C22: ='A03'!$E$20 -> 0.158 | D22: kg/day | E22: Ruffle et al. 1994
B23: Lower | C23: ='A03'!$E$20 -> 0.158 | E23: Ruffle et al. 1994
B24: Upper | C24: ='A03'!$E$20 -> 0.158 | E24: Ruffle et al. 1994
A25: Toxic Equivalency Factor for formulation: (See risk assessment if this has a value other than 1.) | B25: TEF
B26: Central | C26: ='A01'!C$17 -> 1 | D26: Unitless | E26: Worksheet A01
B27: Lower | C27: ='A01'!C$18 -> 1 | E27: Worksheet A01
B28: Upper | C28: ='A01'!C$19 -> 1 | E28: Worksheet A01
A29: Body weight | B29: BW | C29: =A02a!$C$8 -> 70 | D29: kg | E29: ICRP 1975
A30: Dose | B30: Dose | C30: ConcFish× Amnt x TEF ÷ BW
B31: Central | C31: =C17*C22*C26/C$29 -> 0.081088128 | D31: mg/kg | E31: Eq
B32: Lower | C32: =C18*C23*C27/C$29 -> 0.0324352512 | D32: mg/kg | E32: Eq
B33: Upper | C33: =C19*C24*C28/C$29 -> 0.162176256 | D33: mg/kg | E33: Eq
E34: FishAmntV6

Sheet D08b
A1: Consumption of Contaminated Fish (Accidental Spill), Subsistence Populations, acute exposure
A2: Short Title | B2: Fish consumption | E2: FishAmntV6
A3: Receptor | B3: Subsistence Populations
A4: Duration | B4: acute
A5: Parameter/Assumption | B5: Code / Range | C5: Equation/ Value | D5: Units | E5: Reference/Designation
A6: Water
A7: Concentration in water | B7: ConcWat | C7: ApR × WCR
B8: Central | C8: =B04b!Acute_C -> 18.144 | D8: mg/L | E8: ='B04b'!Acute_C
B9: Lower | C9: =B04b!Acute_L -> 7.2576 | E9: ='B04b'!Acute_L
B10: Upper | C10: =B04b!Acute_U -> 36.288 | E10: ='B04b'!Acute_U
A11: Fish
A12: Bioconcentration factor | B12: BCF
B13: Central | C13: ='B01'!$C$4 -> 1.98 | D13: L/kg
B14: Lower | C14: ='B01'!$C$4 -> 1.98
B15: Upper | C15: ='B01'!$C$4 -> 1.98
A16: Concentration in fish | B16: ConcFish | C16: ConcWat × BCF
B17: Central | C17: =C8*C13 -> 35.92512 | D17: mg/kg | E17: Eq
B18: Lower | C18: =C9*C14 -> 14.370048 | E18: Eq
B19: Upper | C19: =C10*C15 -> 71.85024 | E19: Eq
A20: Receptor
A21: Amount of fish consumed | B21: Amnt
B22: Central | C22: ='A03'!$E$35 -> 0.77 | D22: kg/day | E22: U.S. EPA/ORD 1993
B23: Lower | C23: ='A03'!$E$35 -> 0.77 | E23: U.S. EPA/ORD 1993
B24: Upper | C24: ='A03'!$E$35 -> 0.77 | E24: U.S. EPA/ORD 1993
A25: Toxic Equivalency Factor for formulation: (See risk assessment if this has a value other than 1.) | B25: TEF
B26: Central | C26: ='A01'!C$17 -> 1 | D26: Unitless | E26: Worksheet A01
B27: Lower | C27: ='A01'!C$18 -> 1 | E27: Worksheet A01
B28: Upper | C28: ='A01'!C$19 -> 1 | E28: Worksheet A01
A29: Body weight | B29: BW | C29: =A02a!$C$9 -> 70 | D29: kg | E29: ICRP 1975
A30: Dose | B30: Dose | C30: ConcFish× Amnt x TEF ÷ BW
B31: Central | C31: =C17*C22*C26/C$29 -> 0.39517632 | D31: mg/kg | E31: Eq
B32: Lower | C32: =C18*C23*C27/C$29 -> 0.158070528 | D32: mg/kg | E32: Eq
B33: Upper | C33: =C19*C24*C28/C$29 -> 0.79035264 | D33: mg/kg | E33: Eq
E34: FishAmntV6

Sheet D09a
A1: Consumption of Contaminated Fish (Longer-term), Adult Male, chronic exposure
A2: Short Title | B2: Fish consumption | E2: FishAmntV6
A3: Receptor | B3: Adult Male
A4: Duration | B4: chronic
A5: Parameter/Assumption | B5: Code / Range | C5: Equation/ Value | D5: Units | E5: Reference/Designation
A6: Water
A7: Concentration in water | B7: ConcWat | C7: ApR × WCR
B8: Central | C8: =B04a!Chronic_C -> 0.0546 | D8: mg/L | E8: ='B04a'!Chronic_C
B9: Lower | C9: =B04a!Chronic_L -> 0.00384 | E9: ='B04a'!Chronic_L
B10: Upper | C10: =B04a!Chronic_U -> 0.384 | E10: ='B04a'!Chronic_U
A11: Fish
A12: Bioconcentration factor | B12: BCF
B13: Central | C13: ='B01'!$C$5 -> 1.98 | D13: L/kg
B14: Lower | C14: ='B01'!$C$5 -> 1.98
B15: Upper | C15: ='B01'!$C$5 -> 1.98
A16: Concentration in fish | B16: ConcFish | C16: ConcWat × BCF
B17: Central | C17: =C8*C13 -> 0.108108 | D17: mg/kg | E17: Eq
B18: Lower | C18: =C9*C14 -> 0.0076032 | E18: Eq
B19: Upper | C19: =C10*C15 -> 0.76032 | E19: Eq
A20: Receptor
A21: Amount of fish consumed | B21: Amnt
B22: Central | C22: ='A03'!$E$19 -> 0.01 | D22: kg/day | E22: U.S. EPA/ORD 1996
B23: Lower | C23: ='A03'!$E$19 -> 0.01 | E23: U.S. EPA/ORD 1996
B24: Upper | C24: ='A03'!$E$19 -> 0.01 | E24: U.S. EPA/ORD 1996
A25: Toxic Equivalency Factor for formulation: (See risk assessment if this has a value other than 1.) | B25: TEF
B26: Central | C26: ='A01'!C$17 -> 1 | D26: Unitless | E26: Worksheet A01
B27: Lower | C27: ='A01'!C$18 -> 1 | E27: Worksheet A01
B28: Upper | C28: ='A01'!C$19 -> 1 | E28: Worksheet A01
A29: Body weight | B29: BW | C29: =A02a!$C$8 -> 70 | D29: kg | E29: ICRP 1975
A30: Dose | B30: Dose | C30: ConcFish× Amnt x TEF ÷ BW
B31: Central | C31: =C17*C22*C26/C$29 -> 1.5444e-05 | D31: mg/kg | E31: Eq
B32: Lower | C32: =C18*C23*C27/C$29 -> 1.086171429e-06 | D32: mg/kg | E32: Eq
B33: Upper | C33: =C19*C24*C28/C$29 -> 0.0001086171429 | D33: mg/kg | E33: Eq
E34: FishAmntV6

Sheet D09b
A1: Consumption of Contaminated Fish (Longer-term), Subsistence Populations, chronic exposure
A2: Short Title | B2: Fish consumption | E2: FishAmntV6
A3: Receptor | B3: Subsistence Populations
A4: Duration | B4: chronic
A5: Parameter/Assumption | B5: Code / Range | C5: Equation/ Value | D5: Units | E5: Reference/Designation
A6: Water
A7: Concentration in water | B7: ConcWat | C7: ApR × WCR
B8: Central | C8: =B04a!Chronic_C -> 0.0546 | D8: mg/L | E8: ='B04a'!Chronic_C
B9: Lower | C9: =B04a!Chronic_L -> 0.00384 | E9: ='B04a'!Chronic_L
B10: Upper | C10: =B04a!Chronic_U -> 0.384 | E10: ='B04a'!Chronic_U
A11: Fish
A12: Bioconcentration factor | B12: BCF
B13: Central | C13: ='B01'!$C$5 -> 1.98 | D13: L/kg
B14: Lower | C14: ='B01'!$C$5 -> 1.98
B15: Upper | C15: ='B01'!$C$5 -> 1.98
A16: Concentration in fish | B16: ConcFish | C16: ConcWat × BCF
B17: Central | C17: =C8*C13 -> 0.108108 | D17: mg/kg | E17: Eq
B18: Lower | C18: =C9*C14 -> 0.0076032 | E18: Eq
B19: Upper | C19: =C10*C15 -> 0.76032 | E19: Eq
A20: Receptor
A21: Amount of fish consumed | B21: Amnt
B22: Central | C22: ='A03'!$E$34 -> 0.081 | D22: kg/day | E22: U.S. EPA/ORD 1996
B23: Lower | C23: ='A03'!$E$34 -> 0.081 | E23: U.S. EPA/ORD 1996
B24: Upper | C24: ='A03'!$E$34 -> 0.081 | E24: U.S. EPA/ORD 1996
A25: Toxic Equivalency Factor for formulation: (See risk assessment if this has a value other than 1.) | B25: TEF
B26: Central | C26: ='A01'!C$17 -> 1 | D26: Unitless | E26: Worksheet A01
B27: Lower | C27: ='A01'!C$18 -> 1 | E27: Worksheet A01
B28: Upper | C28: ='A01'!C$19 -> 1 | E28: Worksheet A01
A29: Body weight | B29: BW | C29: =A02a!$C$9 -> 70 | D29: kg | E29: ICRP 1975
A30: Dose | B30: Dose | C30: ConcFish× Amnt x TEF ÷ BW
B31: Central | C31: =C17*C22*C26/C$29 -> 0.0001250964 | D31: mg/kg | E31: Eq
B32: Lower | C32: =C18*C23*C27/C$29 -> 8.797988571e-06 | D32: mg/kg | E32: Eq
B33: Upper | C33: =C19*C24*C28/C$29 -> 0.0008797988571 | D33: mg/kg | E33: Eq
E34: FishAmntV6

Sheet D09c
A1: Consumption of Contaminated Fish (Peak Exposure), Adult Male, acute exposure
A2: Short Title | B2: Fish consumption | E2: FishAmntV6
A3: Receptor | B3: Adult Male
A4: Duration | B4: acute
A5: Parameter/Assumption | B5: Code / Range | C5: Equation/ Value | D5: Units | E5: Reference/Designation
A6: Water
A7: Concentration in water | B7: ConcWat | C7: ApR × WCR
B8: Central | C8: =B04a!Acute_C -> 0.114 | D8: mg/L | E8: ='B04a'!Acute_C
B9: Lower | C9: =B04a!Acute_L -> 0.0066 | E9: ='B04a'!Acute_L
B10: Upper | C10: =B04a!Acute_U -> 0.6 | E10: ='B04a'!Acute_U
A11: Fish
A12: Bioconcentration factor | B12: BCF
B13: Central | C13: ='B01'!$C$4 -> 1.98 | D13: L/kg
B14: Lower | C14: ='B01'!$C$4 -> 1.98
B15: Upper | C15: ='B01'!$C$4 -> 1.98
A16: Concentration in fish | B16: ConcFish | C16: ConcWat × BCF
B17: Central | C17: =C8*C13 -> 0.22572 | D17: mg/kg | E17: Eq
B18: Lower | C18: =C9*C14 -> 0.013068 | E18: Eq
B19: Upper | C19: =C10*C15 -> 1.188 | E19: Eq
A20: Receptor
A21: Amount of fish consumed | B21: Amnt
B22: Central | C22: ='A03'!$E$20 -> 0.158 | D22: kg/day | E22: Ruffle et al. 1994
B23: Lower | C23: ='A03'!$E$20 -> 0.158 | E23: Ruffle et al. 1994
B24: Upper | C24: ='A03'!$E$20 -> 0.158 | E24: Ruffle et al. 1994
A25: Toxic Equivalency Factor for formulation: (See risk assessment if this has a value other than 1.) | B25: TEF
B26: Central | C26: ='A01'!C$17 -> 1 | D26: Unitless | E26: Worksheet A01
B27: Lower | C27: ='A01'!C$18 -> 1 | E27: Worksheet A01
B28: Upper | C28: ='A01'!C$19 -> 1 | E28: Worksheet A01
A29: Body weight | B29: BW | C29: =A02a!$C$8 -> 70 | D29: kg | E29: ICRP 1975
A30: Dose | B30: Dose | C30: ConcFish× Amnt x TEF ÷ BW
B31: Central | C31: =C17*C22*C26/C$29 -> 0.0005094822857 | D31: mg/kg | E31: Eq
B32: Lower | C32: =C18*C23*C27/C$29 -> 2.949634286e-05 | D32: mg/kg | E32: Eq
B33: Upper | C33: =C19*C24*C28/C$29 -> 0.002681485714 | D33: mg/kg | E33: Eq
E34: FishAmntV6

Sheet D09d
A1: Consumption of Contaminated Fish (Peak Exposure), Subsistence Populations, acute exposure
A2: Short Title | B2: Fish consumption | E2: FishAmntV6
A3: Receptor | B3: Subsistence Populations
A4: Duration | B4: acute
A5: Parameter/Assumption | B5: Code / Range | C5: Equation/ Value | D5: Units | E5: Reference/Designation
A6: Water
A7: Concentration in water | B7: ConcWat | C7: ApR × WCR
B8: Central | C8: =B04a!Acute_C -> 0.114 | D8: mg/L | E8: ='B04a'!Acute_C
B9: Lower | C9: =B04a!Acute_L -> 0.0066 | E9: ='B04a'!Acute_L
B10: Upper | C10: =B04a!Acute_U -> 0.6 | E10: ='B04a'!Acute_U
A11: Fish
A12: Bioconcentration factor | B12: BCF
B13: Central | C13: ='B01'!$C$4 -> 1.98 | D13: L/kg
B14: Lower | C14: ='B01'!$C$4 -> 1.98
B15: Upper | C15: ='B01'!$C$4 -> 1.98
A16: Concentration in fish | B16: ConcFish | C16: ConcWat × BCF
B17: Central | C17: =C8*C13 -> 0.22572 | D17: mg/kg | E17: Eq
B18: Lower | C18: =C9*C14 -> 0.013068 | E18: Eq
B19: Upper | C19: =C10*C15 -> 1.188 | E19: Eq
A20: Receptor
A21: Amount of fish consumed | B21: Amnt
B22: Central | C22: ='A03'!$E$35 -> 0.77 | D22: kg/day | E22: U.S. EPA/ORD 1993
B23: Lower | C23: ='A03'!$E$35 -> 0.77 | E23: U.S. EPA/ORD 1993
B24: Upper | C24: ='A03'!$E$35 -> 0.77 | E24: U.S. EPA/ORD 1993
A25: Toxic Equivalency Factor for formulation: (See risk assessment if this has a value other than 1.) | B25: TEF
B26: Central | C26: ='A01'!C$17 -> 1 | D26: Unitless | E26: Worksheet A01
B27: Lower | C27: ='A01'!C$18 -> 1 | E27: Worksheet A01
B28: Upper | C28: ='A01'!C$19 -> 1 | E28: Worksheet A01
A29: Body weight | B29: BW | C29: =A02a!$C$9 -> 70 | D29: kg | E29: ICRP 1975
A30: Dose | B30: Dose | C30: ConcFish× Amnt x TEF ÷ BW
B31: Central | C31: =C17*C22*C26/C$29 -> 0.00248292 | D31: mg/kg | E31: Eq
B32: Lower | C32: =C18*C23*C27/C$29 -> 0.000143748 | D32: mg/kg | E32: Eq
B33: Upper | C33: =C19*C24*C28/C$29 -> 0.013068 | D33: mg/kg | E33: Eq
E34: FishAmntV6

Sheet D10
A1: Swimming Exposure Assessment Using Zero-Order Absorption, Adult Female, Surface Area, Whole body, for 60 minute(s)
A2: Short Title | B2: Swimming | E2: DrmZrSwm
A3: Receptor | B3: Adult Female
A4: Duration | B4: Acute
A5: Surface Contaminated | B5: Surface Area, Whole body
A6: Parameter/Assumption | B6: Code / Range | C6: Equation/ Value | D6: Units | E6: Reference/Designation
A7: Application Rate | B7: ApRt | C7: ='A01'!ApRt_C -> 0.6 | D7: lb/acre | E7: Worksheet A01
A8: Surface Area | B8: SA | C8: =A02a!$C$7 -> 16900 | D8: cm2 | E8: U.S. EPA/ORD 1997
A9: Duration of Exposure | B9: T_min | C9: ='A01'!C$11 -> 60 | D9: minutes | E9: Worksheet A01
B10: T_hr | C10: =C9/60 -> 1 | D10: hours | E10: Eq
A11: Body weight | B11: BW | C11: =A02a!$C$4 -> 64 | D11: kg | E11: U.S. EPA/ORD 1985
A12: Water contamination rate | B12: WCR
B13: Central | C13: =B04Rt!$C$4 -> 0.19 | D13: mg/L per lb/acre | E13: Section 3.2.2.4.6
B14: Lower | C14: =B04Rt!$C$5 -> 0.011 | E14: Section 3.2.2.4.6
B15: Upper | C15: =B04Rt!$C$6 -> 1 | E15: Section 3.2.2.4.6
A16: Concentration in water in mg/mL | B16: ConcWat | C16: ApR × WCR / 1000
B17: Central | C17: =C$7*C13/1000 -> 0.000114 | D17: mg/mL | E17: Eq
B18: Lower | C18: =C$7*C14/1000 -> 6.6e-06 | E18: Eq
B19: Upper | C19: =C$7*C15/1000 -> 0.0006 | E19: Eq
A20: Toxic Equivalency Factor for formulation: (See risk assessment if this has a value other than 1.) | B20: TEF
B21: Central | C21: ='A01'!C$17 -> 1 | D21: Unitless | E21: Worksheet A01
B22: Lower | C22: ='A01'!C$18 -> 1 | E22: Worksheet A01
B23: Upper | C23: ='A01'!C$19 -> 1 | E23: Worksheet A01
A24: Dermal permeability | B24: Kp
B25: Central | C25: ='B01'!$C$14 -> 0.0014 | D25: cm/hour
B26: Lower | C26: ='B01'!$C$15 -> 0.00096
B27: Upper | C27: ='B01'!$C$16 -> 0.002
A28: Absorbed Dose | B28: Dose | C28: Kp × Conc × T_hr × SA × TEF ÷ BW
B29: Central | C29: =C25*C17*C$10*C$8*C21/C$11 -> 4.2144375e-05 | D29: mg/kg
B30: Lower | C30: =C26*C18*C$10*C$8*C22/C$11 -> 1.6731e-06 | D30: mg/kg
B31: Upper | C31: =C27*C19*C$10*C$8*C23/C$11 -> 0.000316875 | D31: mg/kg

Sheet E01
A1: Summary of Worker Exposure Assessments
A2: Application Rate: | B2: ='A01'!ApRt_C -> 0.6 | C2: lb a.i./acre | F2: E01aV5-1Wrkr
A3: Scenario | B3: Receptor | C3: mg/kg/day or mg/kg/event | F3: Detail Worksheet
C4: Central | D4: Lower | E4: Upper
A5: Accidental/Incidental Exposures
A6: Contaminated Gloves, 1 min. | B6: Worker | C6: ='C02a'!Dose_C -> 0.0007 | D6: ='C02a'!Dose_L -> 0.00048 | E6: ='C02a'!Dose_U -> 0.001 | F6: C02a
A7: Contaminated Gloves, 1 hour | B7: Worker | C7: ='C02b'!Dose_C -> 0.042 | D7: ='C02b'!Dose_L -> 0.0288 | E7: ='C02b'!Dose_U -> 0.06 | F7: C02b
A8: Spill on Hands, 1 hour | B8: Worker | C8: No Exposure Assessment
A9: Spill on lower legs, 1 hour | B9: Worker | C9: No Exposure Assessment
A10: General Exposures
B11: Worker | C11: ='C01'!Dose_C -> 0.04032 | D11: ='C01'!Dose_L -> 0.00792 | E11: ='C01'!Dose_U -> 0.1008 | F11: C01

Sheet E02
A1: Summary of Worker Hazard Quotients (Toxicity)
A2: Application Rate: | B2: ='A01'!ApRt_C -> 0.6 | C2: lb a.i./acre | F2: E01aV5-1Wrkr
A3: Scenario | B3: Receptor | C3: Hazard Quotients | F3: Toxicity Value
C4: Central | D4: Lower | E4: Upper
A5: Accidental/Incidental Exposures
A6: Contaminated Gloves, 1 min. | B6: Worker | C6: ='C02a'!$C$24/$F$6 -> 0.005 | D6: ='C02a'!$C$25/$F$6 -> 0.003428571429 | E6: ='C02a'!$C$26/$F$6 -> 0.007142857143 | F6: ='B02'!$E$4 -> 0.14
A7: Contaminated Gloves, 1 hour | B7: Worker | C7: ='C02b'!$C$24/$F$7 -> 0.3 | D7: ='C02b'!$C$25/$F$7 -> 0.2057142857 | E7: ='C02b'!$C$26/$F$7 -> 0.4285714286 | F7: ='B02'!$E$4 -> 0.14
A8: Spill on Hands, 1 hour | B8: Worker | C8: No exposure assessment.
A9: Spill on lower legs, 1 hour | B9: Worker | C9: No exposure assessment.
A10: General Exposures
B11: Worker | C11: ='C01'!$C$36/$F$11 -> 0.288 | D11: ='C01'!$C$37/$F$11 -> 0.05657142857 | E11: ='C01'!$C$38/$F$11 -> 0.72 | F11: ='B02'!$E$5 -> 0.14

Sheet E03
A1: Summary of Exposure Assessments for the General Public
A2: Application Rate: | B2: ='A01'!ApRt_C -> 0.6 | C2: lb a.i./acre | F2: E03aV6
A3: Scenario | B3: Receptor | C3: mg/kg/day or mg/kg/event | F3: Detail Worksheet
C4: Central | D4: Lower | E4: Upper | K4: Lower | L4: Central | M4: Upper | N4: Check
A5: Accidental Acute Exposures (dose in mg/kg/event)
A6: Direct Spray of Child, whole body | B6: Child | C6: No Exposure Assessment | J6: Spray: Child | K6: =IF(D6>0, D6, "") ->  | L6: =IF(ISERROR(C6-K6), "", C6-K6) ->  | M6: =IF(ISERROR(E6-C6), "", E6-C6) ->  | N6: =E6-SUM(K6:M6) -> 0
A7: Direct Spray of Woman, feet and lower legs | B7: Adult Female | C7: No Exposure Assessment | J7: Spray: Woman | K7: =IF(D7>0, D7, "") ->  | L7: =IF(ISERROR(C7-K7), "", C7-K7) ->  | M7: =IF(ISERROR(E7-C7), "", E7-C7) ->  | N7: =E7-SUM(K7:M7) -> 0
A8: Water consumption (spill) | B8: Child | C8: ='D05'!Dose_C -> 1.364210526 | D8: ='D05'!Dose_L -> 0.3328673684 | E8: ='D05'!Dose_U -> 4.092631579 | F8: D05 | J8: Water: Child | K8: 0.3328673684 | L8: 1.031343158 | M8: 2.728421053 | N8: 0
A9: Fish consumption (spill) | B9: Adult Male | C9: =D08a!Dose_C -> 0.081088128 | D9: =D08a!Dose_L -> 0.0324352512 | E9: =D08a!Dose_U -> 0.162176256 | F9: D08a | J9: Fish: General | K9: 0.0324352512 | L9: 0.0486528768 | M9: 0.081088128 | N9: 0
A10: Fish consumption (spill) | B10: Subsistence Populations | C10: =D08b!Dose_C -> 0.39517632 | D10: =D08b!Dose_L -> 0.158070528 | E10: =D08b!Dose_U -> 0.79035264 | F10: D08b | J10: Fish: Subsist | K10: 0.158070528 | L10: 0.237105792 | M10: 0.39517632 | N10: 0
A11: Non-Accidental Acute Exposures (dose in mg/kg/event)
A12: Vegetation Contact, shorts and T-shirt | B12: Adult Female | C12: No Exposure Assessment | J12: Contact: Female | K12: =IF(D12>0, D12, "") ->  | L12: =IF(ISERROR(C12-K12), "", C12-K12) ->  | M12: =IF(ISERROR(E12-C12), "", E12-C12) ->  | N12: =E12-SUM(K12:M12) -> 0
A13: Contaminated Fruit | B13: Adult Female | C13: =D03a!Dose_C -> 0.00028224 | D13: =D03a!Dose_L -> 0.00013104 | E13: =D03a!Dose_U -> 0.0044784 | F13: D03a | J13: Fruit: Female | K13: 0.00013104 | L13: 0.0001512 | M13: 0.00419616 | N13: 0
A14: Contaminated Vegetation | B14: Adult Female | C14: =D03b!Dose_C -> 0.003888 | D14: =D03b!Dose_L -> 0.00027 | E14: =D03b!Dose_U -> 0.0324 | F14: D03b | J14: Veg: Female | K14: 0.00027 | L14: 0.003618 | M14: 0.028512 | N14: 0
A15: Swimming, one hour | B15: Adult Female | C15: ='D10'!Dose_C -> 4.2144375e-05 | D15: ='D10'!Dose_L -> 1.6731e-06 | E15: ='D10'!Dose_U -> 0.000316875 | F15: D10 | J15: Swim: Female | K15: 1.6731e-06 | L15: 4.0471275e-05 | M15: 0.000274730625 | N15: 0
A16: Water consumption | B16: Child | C16: ='D06'!Dose_C -> 0.008571428571 | D16: ='D06'!Dose_L -> 0.0003027067669 | E16: ='D06'!Dose_U -> 0.06766917293 | F16: D06 | J16: Water: Child | K16: 0.0003027067669 | L16: 0.008268721805 | M16: 0.05909774436 | N16: 0
A17: Fish consumption | B17: Adult Male | C17: =D09c!Dose_C -> 0.0005094822857 | D17: =D09c!Dose_L -> 2.949634286e-05 | E17: =D09c!Dose_U -> 0.002681485714 | F17: D09c | J17: Fish: Male | K17: 2.949634286e-05 | L17: 0.0004799859429 | M17: 0.002172003429 | N17: 0
A18: Fish consumption | B18: Subsistence Populations | C18: =D09d!Dose_C -> 0.00248292 | D18: =D09d!Dose_L -> 0.000143748 | E18: =D09d!Dose_U -> 0.013068 | F18: D09d | J18: Fish: Subsist | K18: 0.000143748 | L18: 0.002339172 | M18: 0.01058508 | N18: 0
A19: Chronic/Longer Term Exposures (dose in mg/kg/day)
A20: Contaminated Fruit | B20: Adult Female | C20: =D04a!Dose_C -> 0.0001187626558 | D20: =D04a!Dose_L -> 5.513980446e-05 | E20: =D04a!Dose_U -> 0.001884448262 | F20: D04a | J20: Fruit: Female | K20: =IF(D20>0, D20, "") -> 5.513980446e-05 | L20: =IF(ISERROR(C20-K20), "", C20-K20) -> 6.36228513e-05 | M20: =IF(ISERROR(E20-C20), "", E20-C20) -> 0.001765685607 | N20: =E20-SUM(K20:M20) -> 0
A21: Contaminated Vegetation | B21: Adult Female | C21: =D04b!Dose_C -> 0.001636016176 | D21: =D04b!Dose_L -> 0.0001136122345 | E21: =D04b!Dose_U -> 0.01363346814 | F21: D04b | J21: Veg: Female | K21: 0.0001136122345 | L21: 0.001522403942 | M21: 0.01199745196 | N21: 0
A22: Water consumption | B22: Adult Male | C22: ='D07'!Dose_C -> 0.00156 | D22: ='D07'!Dose_L -> 7.68e-05 | E22: ='D07'!Dose_U -> 0.01316571429 | F22: D07 | J22: Water: Male | K22: 7.68e-05 | L22: 0.0014832 | M22: 0.01160571429 | N22: 0
A23: Fish consumption | B23: Adult Male | C23: =D09a!Dose_C -> 1.5444e-05 | D23: =D09a!Dose_L -> 1.086171429e-06 | E23: =D09a!Dose_U -> 0.0001086171429 | F23: D09a | J23: Fish: Male | K23: 1.086171429e-06 | L23: 1.435782857e-05 | M23: 9.317314286e-05 | N23: 0
A24: Fish consumption | B24: Subsistence Populations | C24: =D09b!Dose_C -> 0.0001250964 | D24: =D09b!Dose_L -> 8.797988571e-06 | E24: =D09b!Dose_U -> 0.0008797988571 | F24: D09b | J24: Fish: Subsist | K24: 8.797988571e-06 | L24: 0.0001162984114 | M24: 0.0007547024571 | N24: 0

Sheet E04
A1: Summary of Hazard Quotients (Toxicity) for the General Public
A2: Application Rate: | B2: ='A01'!ApRt_C -> 0.6 | C2: lb a.i./acre | F2: E03aV6
A3: Scenario | B3: Receptor | C3: Hazard Quotients | F3: Toxicity Value
C4: Central | D4: Lower | E4: Upper | K4: Lower | L4: Central | M4: Upper | N4: Check
A5: Accidental Acute Exposures (dose in mg/kg/event)
A6: Direct Spray of Child, whole body | B6: Child | C6: No exposure assessment. | D6: 0.0001 | E6: 0.04 | J6: Spray: Child | K6: =IF(D6>0, D6, "") -> 0.0001 | L6: =IF(ISERROR(C6-K6), "", C6-K6) ->  | M6: =IF(ISERROR(E6-C6), "", E6-C6) ->  | N6: =E6-SUM(K6:M6) -> 0.0399
A7: Direct Spray of Woman, feet and lower legs | B7: Adult Female | C7: No exposure assessment. | D7: 1e-05 | E7: 0.004 | J7: Spray: Woman | K7: =IF(D7>0, D7, "") -> 1e-05 | L7: =IF(ISERROR(C7-K7), "", C7-K7) ->  | M7: =IF(ISERROR(E7-C7), "", E7-C7) ->  | N7: =E7-SUM(K7:M7) -> 0.00399
A8: Water consumption (spill) | B8: Child | C8: ='D05'!$C$17/$F$8 -> 9.744360902 | D8: ='D05'!$C$18/$F$8 -> 2.37762406 | E8: ='D05'!$C$19/$F$8 -> 29.23308271 | F8: ='B02'!$E$4 -> 0.14 | J8: Water: Child | K8: 2.37762406 | L8: 7.366736842 | M8: 19.4887218 | N8: 0
A9: Fish consumption (spill) | B9: Adult Male | C9: =D08a!$C$31/$F$9 -> 0.5792009143 | D9: =D08a!$C$32/$F$9 -> 0.2316803657 | E9: =D08a!$C$33/$F$9 -> 1.158401829 | F9: ='B02'!$E$4 -> 0.14 | J9: Fish: General | K9: 0.2316803657 | L9: 0.3475205486 | M9: 0.5792009143 | N9: 0
A10: Fish consumption (spill) | B10: Subsistence Populations | C10: =D08b!$C$31/$F$10 -> 2.822688 | D10: =D08b!$C$32/$F$10 -> 1.1290752 | E10: =D08b!$C$33/$F$10 -> 5.645376 | F10: ='B02'!$E$4 -> 0.14 | J10: Fish: Subsist | K10: 1.1290752 | L10: 1.6936128 | M10: 2.822688 | N10: 0
A11: Non-Accidental Acute Exposures (dose in mg/kg/event)
A12: Vegetation Contact, shorts and T-shirt | B12: Adult Female | C12: No exposure assessment. | D12: 1e-05 | E12: 0.0004 | J12: Contact: Female | K12: =IF(D12>0, D12, "") -> 1e-05 | L12: =IF(ISERROR(C12-K12), "", C12-K12) ->  | M12: =IF(ISERROR(E12-C12), "", E12-C12) ->  | N12: =E12-SUM(K12:M12) -> 0.00039
A13: Contaminated Fruit | B13: Adult Female | C13: =D03a!$C$19/$F$13 -> 0.0028224 | D13: =D03a!$C$20/$F$13 -> 0.0013104 | E13: =D03a!$C$21/$F$13 -> 0.044784 | F13: ='B02'!$E$6 -> 0.1 | J13: Fruit: Female | K13: 0.0013104 | L13: 0.001512 | M13: 0.0419616 | N13: 0
A14: Contaminated Vegetation | B14: Adult Female | C14: =D03b!$C$19/$F$14 -> 0.03888 | D14: =D03b!$C$20/$F$14 -> 0.0027 | E14: =D03b!$C$21/$F$14 -> 0.324 | F14: ='B02'!$E$6 -> 0.1 | J14: Veg: Female | K14: 0.0027 | L14: 0.03618 | M14: 0.28512 | N14: 0
A15: Swimming, one hour | B15: Adult Female | C15: ='D10'!$C$29/$F$15 -> 0.00042144375 | D15: ='D10'!$C$30/$F$15 -> 1.6731e-05 | E15: ='D10'!$C$31/$F$15 -> 0.00316875 | F15: ='B02'!$E$6 -> 0.1 | J15: Swim: Female | K15: 1.6731e-05 | L15: 0.00040471275 | M15: 0.00274730625 | N15: 0
A16: Water consumption | B16: Child | C16: ='D06'!$C$17/$F$16 -> 0.0612244898 | D16: ='D06'!$C$18/$F$16 -> 0.002162191192 | E16: ='D06'!$C$19/$F$16 -> 0.4833512352 | F16: ='B02'!$E$4 -> 0.14 | J16: Water: Child | K16: 0.002162191192 | L16: 0.0590622986 | M16: 0.4221267454 | N16: 0
A17: Fish consumption | B17: Adult Male | C17: =D09c!$C$31/$F$17 -> 0.003639159184 | D17: =D09c!$C$32/$F$17 -> 0.0002106881633 | E17: =D09c!$C$33/$F$17 -> 0.01915346939 | F17: ='B02'!$E$4 -> 0.14 | J17: Fish: Male | K17: 0.0002106881633 | L17: 0.00342847102 | M17: 0.0155143102 | N17: 0
A18: Fish consumption | B18: Subsistence Populations | C18: =D09d!$C$31/$F$18 -> 0.01773514286 | D18: =D09d!$C$32/$F$18 -> 0.001026771429 | E18: =D09d!$C$33/$F$18 -> 0.09334285714 | F18: ='B02'!$E$4 -> 0.14 | J18: Fish: Subsist | K18: 0.001026771429 | L18: 0.01670837143 | M18: 0.07560771429 | N18: 0
A19: Chronic/Longer Term Exposures (dose in mg/kg/day)
A20: Contaminated Fruit | B20: Adult Female | C20: =D04a!$C$19/$F$20 -> 0.001187626558 | D20: =D04a!$C$20/$F$20 -> 0.0005513980446 | E20: =D04a!$C$21/$F$20 -> 0.01884448262 | F20: ='B02'!$E$7 -> 0.1 | J20: Fruit: Female | K20: =IF(D20>0, D20, "") -> 0.0005513980446 | L20: =IF(ISERROR(C20-K20), "", C20-K20) -> 0.000636228513 | M20: =IF(ISERROR(E20-C20), "", E20-C20) -> 0.01765685607 | N20: =E20-SUM(K20:M20) -> 0
A21: Contaminated Vegetation | B21: Adult Female | C21: =D04b!$C$19/$F$21 -> 0.01636016176 | D21: =D04b!$C$20/$F$21 -> 0.001136122345 | E21: =D04b!$C$21/$F$21 -> 0.1363346814 | F21: ='B02'!$E$7 -> 0.1 | J21: Veg: Female | K21: 0.001136122345 | L21: 0.01522403942 | M21: 0.1199745196 | N21: 0
A22: Water consumption | B22: Adult Male | C22: ='D07'!$C$17/$F$22 -> 0.01114285714 | D22: ='D07'!$C$18/$F$22 -> 0.0005485714286 | E22: ='D07'!$C$19/$F$22 -> 0.09404081633 | F22: ='B02'!$E$5 -> 0.14 | J22: Water: Male | K22: 0.0005485714286 | L22: 0.01059428571 | M22: 0.08289795918 | N22: 0
A23: Fish consumption | B23: Adult Male | C23: =D09a!$C$31/$F$23 -> 0.0001103142857 | D23: =D09a!$C$32/$F$23 -> 7.758367347e-06 | E23: =D09a!$C$33/$F$23 -> 0.0007758367347 | F23: ='B02'!$E$5 -> 0.14 | J23: Fish: Male | K23: 7.758367347e-06 | L23: 0.0001025559184 | M23: 0.000665522449 | N23: 0
A24: Fish consumption | B24: Subsistence Populations | C24: =D09b!$C$31/$F$24 -> 0.0008935457143 | D24: =D09b!$C$32/$F$24 -> 6.284277551e-05 | E24: =D09b!$C$33/$F$24 -> 0.006284277551 | F24: ='B02'!$E$5 -> 0.14 | J24: Fish: Subsist | K24: 6.284277551e-05 | L24: 0.0008307029388 | M24: 0.005390731837 | N24: 0

Sheet F02a
A1: Consumption of contaminated water by Mammal, small, Accidental Spill
A2: Short Title | B2: Accidental Spill | E2: WatAlloV6
A3: Receptor | B3: Mammal, small
A4: Duration | B4: Acute | E4: Scenario parameter
A5: Parameter/Assumption | B5: Code / Range | C5: Equation/ Value | D5: Units | E5: Reference/Designation
A6: Concentration in water | B6: ConcWat
B7: Central | C7: =B04b!Acute_C -> 18.144 | D7: mg/L | E7: ='B04b'!Acute_C
B8: Lower | C8: =B04b!Acute_L -> 7.2576 | E8: ='B04b'!Acute_L
B9: Upper | C9: =B04b!Acute_U -> 36.288 | E9: ='B04b'!Acute_U
A10: Receptor
A11: Body weight | B11: BW | C11: =A02b!$C$71 -> 0.02 | D11: kg | E11: Default
A12: Allometric coefficients forwater consumption per day in liters and BW in kilograms
B13: alpha | C13: =A02b!$C$79 -> 0.099 | E13: U.S. EPA/ORD 1993
B14: beta | C14: =A02b!$C$80 -> 0.9 | E14: U.S. EPA/ORD 1993
A15: Amount of water consumed per day | C15: Amnt = alpha BW beta
B16: Amnt | C16: =C13*(C11^C14) -> 0.002927940121 | D16: liters | E16: Eq
A17: Absorbed Dose | B17: Dose | C17: ConcWat × Amnt ÷ BW
B18: Central | C18: =C7*C$16/C$11 -> 2.656227277 | D18: mg/kg | E18: Eq
B19: Lower | C19: =C8*C$16/C$11 -> 1.062490911 | D19: mg/kg | E19: Eq
B20: Upper | C20: =C9*C$16/C$11 -> 5.312454555 | D20: mg/kg | E20: Eq

Sheet F02b
A1: Consumption of contaminated water by Mammal, 400 g, Accidental Spill
A2: Short Title | B2: Accidental Spill | E2: WatAlloV6
A3: Receptor | B3: Mammal, 400 g
A4: Duration | B4: Acute | E4: Scenario parameter
A5: Parameter/Assumption | B5: Code / Range | C5: Equation/ Value | D5: Units | E5: Reference/Designation
A6: Concentration in water | B6: ConcWat
B7: Central | C7: =B04b!Acute_C -> 18.144 | D7: mg/L | E7: ='B04b'!Acute_C
B8: Lower | C8: =B04b!Acute_L -> 7.2576 | E8: ='B04b'!Acute_L
B9: Upper | C9: =B04b!Acute_U -> 36.288 | E9: ='B04b'!Acute_U
A10: Receptor
A11: Body weight | B11: BW | C11: =A02b!$C$40 -> 0.4 | D11: kg | E11: Default
A12: Allometric coefficients forwater consumption per day in liters and BW in kilograms
B13: alpha | C13: =A02b!$C$45 -> 0.099 | E13: U.S. EPA/ORD 1993
B14: beta | C14: =A02b!$C$46 -> 0.9 | E14: U.S. EPA/ORD 1993
A15: Amount of water consumed per day | C15: Amnt = alpha BW beta
B16: Amnt | C16: =C13*(C11^C14) -> 0.04339994576 | D16: liters | E16: Eq
A17: Absorbed Dose | B17: Dose | C17: ConcWat × Amnt ÷ BW
B18: Central | C18: =C7*C$16/C$11 -> 1.96862154 | D18: mg/kg | E18: Eq
B19: Lower | C19: =C8*C$16/C$11 -> 0.787448616 | D19: mg/kg | E19: Eq
B20: Upper | C20: =C9*C$16/C$11 -> 3.93724308 | D20: mg/kg | E20: Eq

Sheet F02c
A1: Consumption of contaminated water by Mammal, carnivorous, Accidental Spill
A2: Short Title | B2: Accidental Spill | E2: WatAlloV6
A3: Receptor | B3: Mammal, carnivorous
A4: Duration | B4: Acute | E4: Scenario parameter
A5: Parameter/Assumption | B5: Code / Range | C5: Equation/ Value | D5: Units | E5: Reference/Designation
A6: Concentration in water | B6: ConcWat
B7: Central | C7: =B04b!Acute_C -> 18.144 | D7: mg/L | E7: ='B04b'!Acute_C
B8: Lower | C8: =B04b!Acute_L -> 7.2576 | E8: ='B04b'!Acute_L
B9: Upper | C9: =B04b!Acute_U -> 36.288 | E9: ='B04b'!Acute_U
A10: Receptor
A11: Body weight | B11: BW | C11: =A02b!$C$47 -> 5 | D11: kg | E11: U.S. EPA/ORD 1993
A12: Allometric coefficients forwater consumption per day in liters and BW in kilograms
B13: alpha | C13: =A02b!$C$50 -> 0.099 | E13: U.S. EPA/ORD 1993
B14: beta | C14: =A02b!$C$51 -> 0.9 | E14: U.S. EPA/ORD 1993
A15: Amount of water consumed per day | C15: Amnt = alpha BW beta
B16: Amnt | C16: =C13*(C11^C14) -> 0.4214132616 | D16: liters | E16: Eq
A17: Absorbed Dose | B17: Dose | C17: ConcWat × Amnt ÷ BW
B18: Central | C18: =C7*C$16/C$11 -> 1.529224444 | D18: mg/kg | E18: Eq
B19: Lower | C19: =C8*C$16/C$11 -> 0.6116897775 | D19: mg/kg | E19: Eq
B20: Upper | C20: =C9*C$16/C$11 -> 3.058448888 | D20: mg/kg | E20: Eq

Sheet F02d
A1: Consumption of contaminated water by Mammal, large, Accidental Spill
A2: Short Title | B2: Accidental Spill | E2: WatAlloV6
A3: Receptor | B3: Mammal, large
A4: Duration | B4: Acute | E4: Scenario parameter
A5: Parameter/Assumption | B5: Code / Range | C5: Equation/ Value | D5: Units | E5: Reference/Designation
A6: Concentration in water | B6: ConcWat
B7: Central | C7: =B04b!Acute_C -> 18.144 | D7: mg/L | E7: ='B04b'!Acute_C
B8: Lower | C8: =B04b!Acute_L -> 7.2576 | E8: ='B04b'!Acute_L
B9: Upper | C9: =B04b!Acute_U -> 36.288 | E9: ='B04b'!Acute_U
A10: Receptor
A11: Body weight | B11: BW | C11: =A02b!$C$61 -> 70 | D11: kg | E11: Default
A12: Allometric coefficients forwater consumption per day in liters and BW in kilograms
B13: alpha | C13: =A02b!$C$64 -> 0.099 | E13: U.S. EPA/ORD 1993
B14: beta | C14: =A02b!$C$65 -> 0.9 | E14: U.S. EPA/ORD 1993
A15: Amount of water consumed per day | C15: Amnt = alpha BW beta
B16: Amnt | C16: =C13*(C11^C14) -> 4.531306412 | D16: liters | E16: Eq
A17: Absorbed Dose | B17: Dose | C17: ConcWat × Amnt ÷ BW
B18: Central | C18: =C7*C$16/C$11 -> 1.174514622 | D18: mg/kg | E18: Eq
B19: Lower | C19: =C8*C$16/C$11 -> 0.4698058488 | D19: mg/kg | E19: Eq
B20: Upper | C20: =C9*C$16/C$11 -> 2.349029244 | D20: mg/kg | E20: Eq

Sheet F02e
A1: Consumption of contaminated water by Bird, small, Accidental Spill
A2: Short Title | B2: Accidental Spill | E2: WatAlloV6
A3: Receptor | B3: Bird, small
A4: Duration | B4: Acute | E4: Scenario parameter
A5: Parameter/Assumption | B5: Code / Range | C5: Equation/ Value | D5: Units | E5: Reference/Designation
A6: Concentration in water | B6: ConcWat
B7: Central | C7: =B04b!Acute_C -> 18.144 | D7: mg/L | E7: ='B04b'!Acute_C
B8: Lower | C8: =B04b!Acute_L -> 7.2576 | E8: ='B04b'!Acute_L
B9: Upper | C9: =B04b!Acute_U -> 36.288 | E9: ='B04b'!Acute_U
A10: Receptor
A11: Body weight | B11: BW | C11: =A02b!$C$31 -> 0.01 | D11: kg | E11: Default
A12: Allometric coefficients forwater consumption per day in liters and BW in kilograms
B13: alpha | C13: =A02b!$C$34 -> 0.059 | E13: U.S. EPA/ORD 1993
B14: beta | C14: =A02b!$C$35 -> 0.67 | E14: U.S. EPA/ORD 1993
A15: Amount of water consumed per day | C15: Amnt = alpha BW beta
B16: Amnt | C16: =C13*(C11^C14) -> 0.002696820319 | D16: liters | E16: Eq
A17: Absorbed Dose | B17: Dose | C17: ConcWat × Amnt ÷ BW
B18: Central | C18: =C7*C$16/C$11 -> 4.893110786 | D18: mg/kg | E18: Eq
B19: Lower | C19: =C8*C$16/C$11 -> 1.957244315 | D19: mg/kg | E19: Eq
B20: Upper | C20: =C9*C$16/C$11 -> 9.786221573 | D20: mg/kg | E20: Eq

Sheet F02f
A1: Consumption of contaminated water by Bird, large, Accidental Spill
A2: Short Title | B2: Accidental Spill | E2: WatAlloV6
A3: Receptor | B3: Bird, large
A4: Duration | B4: Acute | E4: Scenario parameter
A5: Parameter/Assumption | B5: Code / Range | C5: Equation/ Value | D5: Units | E5: Reference/Designation
A6: Concentration in water | B6: ConcWat
B7: Central | C7: =B04b!Acute_C -> 18.144 | D7: mg/L | E7: ='B04b'!Acute_C
B8: Lower | C8: =B04b!Acute_L -> 7.2576 | E8: ='B04b'!Acute_L
B9: Upper | C9: =B04b!Acute_U -> 36.288 | E9: ='B04b'!Acute_U
A10: Receptor
A11: Body weight | B11: BW | C11: =A02b!$C$15 -> 4 | D11: kg | E11: Default
A12: Allometric coefficients forwater consumption per day in liters and BW in kilograms
B13: alpha | C13: =A02b!$C$18 -> 0.059 | E13: U.S. EPA/ORD 1993
B14: beta | C14: =A02b!$C$19 -> 0.67 | E14: U.S. EPA/ORD 1993
A15: Amount of water consumed per day | C15: Amnt = alpha BW beta
B16: Amnt | C16: =C13*(C11^C14) -> 0.1493592781 | D16: liters | E16: Eq
A17: Absorbed Dose | B17: Dose | C17: ConcWat × Amnt ÷ BW
B18: Central | C18: =C7*C$16/C$11 -> 0.6774936854 | D18: mg/kg | E18: Eq
B19: Lower | C19: =C8*C$16/C$11 -> 0.2709974742 | D19: mg/kg | E19: Eq
B20: Upper | C20: =C9*C$16/C$11 -> 1.354987371 | D20: mg/kg | E20: Eq

Sheet F03a
A1: Acute scenario for the consumption of Contaminated Fish (Accidental Spill) by Mammal, large carnivorous
A2: Short Title | B2: Fish consumption, accidental spill | E2: FishKcalV6
A3: Predator | B3: Mammal, large carnivorous
A4: Food Item (Prey) | B4: Fish
A5: Duration | B5: Acute | E5: Scenario parameter
A6: Parameter/Assumption | B6: Code / Range | C6: Equation/ Value | D6: Units | E6: Reference/Designation
A7: Water
A8: Concentration in water | B8: ConcWat
B9: Central | C9: =B04b!Acute_C -> 18.144 | D9: mg/L | E9: ='B04b'!Acute_C
B10: Lower | C10: =B04b!Acute_L -> 7.2576 | E10: ='B04b'!Acute_L
B11: Upper | C11: =B04b!Acute_U -> 36.288 | E11: ='B04b'!Acute_U
A12: Fish
A13: Bioconcentration factor | B13: BCF
B14: Central | C14: ='B01'!$C$6 -> 2.63 | D14: L/kg
B15: Lower | C15: ='B01'!$C$6 -> 2.63
B16: Upper | C16: ='B01'!$C$6 -> 2.63
A17: Concentration in fish | B17: ConcFish | C17: ConcWat × BCF
B18: Central | C18: =C9*C14 -> 47.71872 | D18: mg/kg | E18: Eq
B19: Lower | C19: =C10*C15 -> 19.087488 | E19: Eq
B20: Upper | C20: =C11*C16 -> 95.43744 | E20: Eq
A21: Receptor
A22: Body weight | B22: BW | C22: =A02b!$C$52 -> 70 | D22: kg | E22: Reid 2006
A23: Allometric coefficients for caloric requirement per day in kilocalories and BW in grams
B24: alpha | C24: =A02b!$C$53 -> 0.6167 | E24: U.S. EPA/ORD 1993
B25: beta | C25: =A02b!$C$54 -> 0.862 | E25: U.S. EPA/ORD 1993
A26: Caloric requirement per day | B26: KR | C26: =C24*(C22*1000)^C25 -> 9258.666883 | D26: kcal/day | E26: Eq
A27: Caloric content of commodity (dry weight) | B27: KCD | C27: ='A03'!$E$59 -> 4.47 | D27: kcal/gdw [Note 1] | E27: U.S. EPA/ORD 1993
A28: Food consumed per day (dry weight) | B28: AmntDry | C28: = KR ÷ KCD
C29: =C26/C27 -> 2071.29013 | D29: gdry/day | E29: Eq
A30: Water content of vegetation as a proportion | B30: PropWater | C30: ='A03'!$E$60 -> 0.7 | D30: gwater/gfood | E30: Ali et al. 2005
A31: Dry weight content of vegetation as a proportion | B31: PropDry | C31: = 1-PropWater
C32: =1-C30 -> 0.3 | D32: gdry/gfood | E32: Eq
A33: Amount of fish consumed per day, wet weight | B33: AmntFish | C33: = (AmntDry ÷ PropDry) ÷ (1000g/kg)
B34: Central | C34: =(C29/C32)/1000 -> 6.904300435 | D34: kgfood/day | E34: Eq
B35: Lower | C35: =C34*0.3 -> 2.07129013 | D35: Note 1 | E35: Eq
B36: Upper | C36: =C34*1.7 -> 11.73731074 | D36: Note 1 | E36: Eq
A37: Proportion of diet that is contaminated | B37: Prop
B38: Central | C38: 0.3 | D38: Unitless | E38: Scenario parameter
B39: Lower | C39: 0.1 | E39: Scenario parameter
B40: Upper | C40: 1 | E40: Scenario parameter
A41: Dose
A42: Toxic Equivalency Factor for formulation: (See risk assessment if this has a value other than 1.) | B42: TEF
B43: Central | C43: ='A01'!C$17 -> 1 | D43: Unitless | E43: Worksheet A01
B44: Lower | C44: ='A01'!C$18 -> 1 | D44: Note 2 | E44: Worksheet A01
B45: Upper | C45: ='A01'!C$19 -> 1 | D45: Note 2 | E45: Worksheet A01
A46: Dose | B46: Dose | C46: = ConcFish × AmntFish × Prop ÷ BW
B47: Central | C47: =C18*C34*C38/C$22 -> 1.411990197 | D47: mg/kg | E47: Eq
B48: Lower | C48: =C19*C35*C39/C$22 -> 0.05647960787 | D48: mg/kg | E48: Eq
B49: Upper | C49: 16.00255556 | D49: mg/kg | E49: Eq
E50: FishKcalV6

Sheet F03b
A1: Acute scenario for the consumption of Contaminated Fish (Accidental Spill) by Mammal, carnivorous
A2: Short Title | B2: Fish consumption, accidental spill | E2: FishKcalV6
A3: Predator | B3: Mammal, carnivorous
A4: Food Item (Prey) | B4: Fish
A5: Duration | B5: Acute | E5: Scenario parameter
A6: Parameter/Assumption | B6: Code / Range | C6: Equation/ Value | D6: Units | E6: Reference/Designation
A7: Water
A8: Concentration in water | B8: ConcWat
B9: Central | C9: =B04b!Acute_C -> 18.144 | D9: mg/L | E9: ='B04b'!Acute_C
B10: Lower | C10: =B04b!Acute_L -> 7.2576 | E10: ='B04b'!Acute_L
B11: Upper | C11: =B04b!Acute_U -> 36.288 | E11: ='B04b'!Acute_U
A12: Fish
A13: Bioconcentration factor | B13: BCF
B14: Central | C14: ='B01'!$C$6 -> 2.63 | D14: L/kg
B15: Lower | C15: ='B01'!$C$6 -> 2.63
B16: Upper | C16: ='B01'!$C$6 -> 2.63
A17: Concentration in fish | B17: ConcFish | C17: ConcWat × BCF
B18: Central | C18: =C9*C14 -> 47.71872 | D18: mg/kg | E18: Eq
B19: Lower | C19: =C10*C15 -> 19.087488 | E19: Eq
B20: Upper | C20: =C11*C16 -> 95.43744 | E20: Eq
A21: Receptor
A22: Body weight | B22: BW | C22: =A02b!$C$47 -> 5 | D22: kg | E22: U.S. EPA/ORD 1993
A23: Allometric coefficients for caloric requirement per day in kilocalories and BW in grams
B24: alpha | C24: =A02b!$C$48 -> 0.6167 | E24: U.S. EPA/ORD 1993
B25: beta | C25: =A02b!$C$49 -> 0.862 | E25: U.S. EPA/ORD 1993
A26: Caloric requirement per day | B26: KR | C26: =C24*(C22*1000)^C25 -> 951.8885266 | D26: kcal/day | E26: Eq
A27: Caloric content of commodity (dry weight) | B27: KCD | C27: ='A03'!$E$59 -> 4.47 | D27: kcal/gdw [Note 1] | E27: U.S. EPA/ORD 1993
A28: Food consumed per day (dry weight) | B28: AmntDry | C28: = KR ÷ KCD
C29: =C26/C27 -> 212.9504534 | D29: gdry/day | E29: Eq
A30: Water content of vegetation as a proportion | B30: PropWater | C30: ='A03'!$E$60 -> 0.7 | D30: gwater/gfood | E30: Ali et al. 2005
A31: Dry weight content of vegetation as a proportion | B31: PropDry | C31: = 1-PropWater
C32: =1-C30 -> 0.3 | D32: gdry/gfood | E32: Eq
A33: Amount of fish consumed per day, wet weight | B33: AmntFish | C33: = (AmntDry ÷ PropDry) ÷ (1000g/kg)
B34: Central | C34: =(C29/C32)/1000 -> 0.7098348446 | D34: kgfood/day | E34: Eq
B35: Lower | C35: =C34*0.3 -> 0.2129504534 | D35: Note 1 | E35: Eq
B36: Upper | C36: =C34*1.7 -> 1.206719236 | D36: Note 1 | E36: Eq
A37: Proportion of diet that is contaminated | B37: Prop
B38: Central | C38: 0.3 | D38: Unitless | E38: Scenario parameter
B39: Lower | C39: 0.1 | E39: Scenario parameter
B40: Upper | C40: 1 | E40: Scenario parameter
A41: Dose
A42: Toxic Equivalency Factor for formulation: (See risk assessment if this has a value other than 1.) | B42: TEF
B43: Central | C43: ='A01'!C$17 -> 1 | D43: Unitless | E43: Worksheet A01
B44: Lower | C44: ='A01'!C$18 -> 1 | D44: Note 2 | E44: Worksheet A01
B45: Upper | C45: ='A01'!C$19 -> 1 | D45: Note 2 | E45: Worksheet A01
A46: Dose | B46: Dose | C46: = ConcFish × AmntFish × Prop ÷ BW
B47: Central | C47: =C18*C34*C38/C$22 -> 2.032344612 | D47: mg/kg | E47: Eq
B48: Lower | C48: =C19*C35*C39/C$22 -> 0.08129378447 | D48: mg/kg | E48: Eq
B49: Upper | C49: 23.03323893 | D49: mg/kg | E49: Eq
E50: FishKcalV6

Sheet F03c
A1: Acute scenario for the consumption of Contaminated Fish (Accidental Spill) by Bird, piscivorous
A2: Short Title | B2: Fish consumption, accidental spill | E2: FishKcalV6
A3: Predator | B3: Bird, piscivorous
A4: Food Item (Prey) | B4: Fish
A5: Duration | B5: Acute | E5: Scenario parameter
A6: Parameter/Assumption | B6: Code / Range | C6: Equation/ Value | D6: Units | E6: Reference/Designation
A7: Water
A8: Concentration in water | B8: ConcWat
B9: Central | C9: =B04b!Acute_C -> 18.144 | D9: mg/L | E9: ='B04b'!Acute_C
B10: Lower | C10: =B04b!Acute_L -> 7.2576 | E10: ='B04b'!Acute_L
B11: Upper | C11: =B04b!Acute_U -> 36.288 | E11: ='B04b'!Acute_U
A12: Fish
A13: Bioconcentration factor | B13: BCF
B14: Central | C14: ='B01'!$C$6 -> 2.63 | D14: L/kg
B15: Lower | C15: ='B01'!$C$6 -> 2.63
B16: Upper | C16: ='B01'!$C$6 -> 2.63
A17: Concentration in fish | B17: ConcFish | C17: ConcWat × BCF
B18: Central | C18: =C9*C14 -> 47.71872 | D18: mg/kg | E18: Eq
B19: Lower | C19: =C10*C15 -> 19.087488 | E19: Eq
B20: Upper | C20: =C11*C16 -> 95.43744 | E20: Eq
A21: Receptor
A22: Body weight | B22: BW | C22: =A02b!$C$24 -> 2.4 | D22: kg | E22: Sibley 2000
A23: Allometric coefficients for caloric requirement per day in kilocalories and BW in grams
B24: alpha | C24: =A02b!$C$27 -> 1.916 | E24: U.S. EPA/ORD 1993
B25: beta | C25: =A02b!$C$28 -> 0.704 | E25: U.S. EPA/ORD 1993
A26: Caloric requirement per day | B26: KR | C26: =C24*(C22*1000)^C25 -> 459.2659192 | D26: kcal/day | E26: Eq
A27: Caloric content of commodity (dry weight) | B27: KCD | C27: ='A03'!$E$36 -> 3.87 | D27: kcal/gdw [Note 1] | E27: U.S. EPA/ORD 1993
A28: Food consumed per day (dry weight) | B28: AmntDry | C28: = KR ÷ KCD
C29: =C26/C27 -> 118.6733641 | D29: gdry/day | E29: Eq
A30: Water content of vegetation as a proportion | B30: PropWater | C30: ='A03'!$E$37 -> 0.7 | D30: gwater/gfood | E30: Ali et al. 2005
A31: Dry weight content of vegetation as a proportion | B31: PropDry | C31: = 1-PropWater
C32: =1-C30 -> 0.3 | D32: gdry/gfood | E32: Eq
A33: Amount of fish consumed per day, wet weight | B33: AmntFish | C33: = (AmntDry ÷ PropDry) ÷ (1000g/kg)
B34: Central | C34: =(C29/C32)/1000 -> 0.3955778805 | D34: kgfood/day | E34: Eq
B35: Lower | C35: =C34*0.3 -> 0.1186733641 | D35: Note 1 | E35: Eq
B36: Upper | C36: =C34*1.7 -> 0.6724823968 | D36: Note 1 | E36: Eq
A37: Proportion of diet that is contaminated | B37: Prop
B38: Central | C38: 0.3 | D38: Unitless | E38: Scenario parameter
B39: Lower | C39: 0.1 | E39: Scenario parameter
B40: Upper | C40: 1 | E40: Scenario parameter
A41: Dose
A42: Toxic Equivalency Factor for formulation: (See risk assessment if this has a value other than 1.) | B42: TEF
B43: Central | C43: ='A01'!C$17 -> 1 | D43: Unitless | E43: Worksheet A01
B44: Lower | C44: ='A01'!C$18 -> 1 | D44: Note 2 | E44: Worksheet A01
B45: Upper | C45: ='A01'!C$19 -> 1 | D45: Note 2 | E45: Worksheet A01
A46: Dose | B46: Dose | C46: = ConcFish × AmntFish × Prop ÷ BW
B47: Central | C47: =C18*C34*C38/C$22 -> 2.359558765 | D47: mg/kg | E47: Eq
B48: Lower | C48: =C19*C35*C39/C$22 -> 0.09438235058 | D48: mg/kg | E48: Eq
B49: Upper | C49: 26.741666 | D49: mg/kg | E49: Eq
E50: FishKcalV6

Sheet F04a
A1: Consumption of Fruit by a Mammal, small after Acute exposure.
A2: Short Title | B2: Fruit | E2: FdKcalV6
A3: Receptor | B3: Mammal, small
A4: Duration | B4: Acute | E4: Scenario parameter
A5: Material consumed | B5: Fruit
A6: Parameter/Assumption | B6: Code / Range | C6: Equation/ Value | D6: Units | E6: Reference/Designation
A7: Commodity
A8: Concentration on consumed commodity | B8: Conc
B9: Central | C9: =B05a!Acute_C -> 0.168 | D9: mg/kg food wet weight | E9: ='B05a'!Acute_C
B10: Lower | C10: =B05a!Acute_L -> 0.078 | E10: ='B05a'!Acute_L
B11: Upper | C11: =B05a!Acute_U -> 0.36 | E11: ='B05a'!Acute_U
A12: Receptor
A13: Body weight | B13: BW | C13: =A02b!$C$71 -> 0.02 | D13: kg | E13: Default
A14: Allometric coefficients for caloric requirement per day in kilocalories and BW in grams
B15: alpha | C15: =A02b!$C$75 -> 2.514 | E15: U.S. EPA/ORD 1993
B16: beta | C16: =A02b!$C$76 -> 0.507 | E16: U.S. EPA/ORD 1993
A17: Caloric requirement per day | B17: KR | C17: = alpha x (BW x 1kg/1000g)beta
C18: =C15*((C13*1000)^C16) -> 11.48120526 | D18: kcal/day | E18: Eq
A19: Caloric content of commodity (dry weight) | B19: KCD | C19: ='A03'!$E$61 -> 1.1 | D19: kcal/gdw [Note 1] | E19: U.S. EPA/ORD 1993
A20: Food consumed per day (dry weight) | B20: AmntDry | C20: = KR ÷ KCD
C21: =C18/C19 -> 10.43745932 | D21: gdry/day | E21: Eq
A22: Water content of food item as a proportion | B22: PropWater | C22: ='A03'!$E$62 -> 0.77 | D22: gwater/gfood | E22: U.S. EPA/ORD 1993
A23: Dry weight content of food item as a proportion | B23: PropDry | C23: = 1-PropWater
C24: =1-C22 -> 0.23 | D24: gdry/gfood | E24: Eq
A25: Variability in caloric requirements not accounted for by allometric equation | B25: Error
B26: Central | C26: 1 | D26: Note 2
B27: Lower | C27: 0.3
B28: Upper | C28: 1.7
A29: Amount of food consumed per day, wet weight | B29: AmntFood | C29: = Error x (AmntDry ÷ PropDry) ÷ (1000g/kg)
B30: Central | C30: =C26*(C$21/C$24)/1000 -> 0.04538025793 | D30: kgfood/day | E30: Eq
B31: Lower | C31: =C27*(C$21/C$24)/1000 -> 0.01361407738 | E31: Eq
B32: Upper | C32: 0.07714643848 | E32: Eq
A33: Estimate
A34: Dose | B34: Dose | C34: = AmntFood × Conc / BW
B35: Central | C35: =$C30 * C9/C$13 -> 0.3811941666 | D35: mg/kg bw/day | E35: Eq
B36: Lower | C36: =$C31 * C10/C$13 -> 0.05309490178 | E36: Eq
B37: Upper | C37: =$C32 * C11/C$13 -> 1.388635893 | E37: Eq

Sheet F04b
A1: Consumption of Fruit by a Mammal, 400 g after Acute exposure.
A2: Short Title | B2: Fruit | E2: FdKcalV6
A3: Receptor | B3: Mammal, 400 g
A4: Duration | B4: Acute | E4: Scenario parameter
A5: Material consumed | B5: Fruit
A6: Parameter/Assumption | B6: Code / Range | C6: Equation/ Value | D6: Units | E6: Reference/Designation
A7: Commodity
A8: Concentration on consumed commodity | B8: Conc
B9: Central | C9: =B05a!Acute_C -> 0.168 | D9: mg/kg food wet weight | E9: ='B05a'!Acute_C
B10: Lower | C10: =B05a!Acute_L -> 0.078 | E10: ='B05a'!Acute_L
B11: Upper | C11: =B05a!Acute_U -> 0.36 | E11: ='B05a'!Acute_U
A12: Receptor
A13: Body weight | B13: BW | C13: =A02b!$C$40 -> 0.4 | D13: kg | E13: Default
A14: Allometric coefficients for caloric requirement per day in kilocalories and BW in grams
B15: alpha | C15: =A02b!$C$43 -> 2.514 | E15: U.S. EPA/ORD 1993
B16: beta | C16: =A02b!$C$44 -> 0.507 | E16: U.S. EPA/ORD 1993
A17: Caloric requirement per day | B17: KR | C17: = alpha x (BW x 1kg/1000g)beta
C18: =C15*((C13*1000)^C16) -> 52.43360149 | D18: kcal/day | E18: Eq
A19: Caloric content of commodity (dry weight) | B19: KCD | C19: ='A03'!$E$61 -> 1.1 | D19: kcal/gdw [Note 1] | E19: U.S. EPA/ORD 1993
A20: Food consumed per day (dry weight) | B20: AmntDry | C20: = KR ÷ KCD
C21: =C18/C19 -> 47.66691044 | D21: gdry/day | E21: Eq
A22: Water content of food item as a proportion | B22: PropWater | C22: ='A03'!$E$62 -> 0.77 | D22: gwater/gfood | E22: U.S. EPA/ORD 1993
A23: Dry weight content of food item as a proportion | B23: PropDry | C23: = 1-PropWater
C24: =1-C22 -> 0.23 | D24: gdry/gfood | E24: Eq
A25: Variability in caloric requirements not accounted for by allometric equation | B25: Error
B26: Central | C26: 1 | D26: Note 2
B27: Lower | C27: 0.3
B28: Upper | C28: 1.7
A29: Amount of food consumed per day, wet weight | B29: AmntFood | C29: = Error x (AmntDry ÷ PropDry) ÷ (1000g/kg)
B30: Central | C30: =C26*(C$21/C$24)/1000 -> 0.2072474367 | D30: kgfood/day | E30: Eq
B31: Lower | C31: =C27*(C$21/C$24)/1000 -> 0.06217423101 | E31: Eq
B32: Upper | C32: 0.3523206424 | E32: Eq
A33: Estimate
A34: Dose | B34: Dose | C34: = AmntFood × Conc / BW
B35: Central | C35: =$C30 * C9/C$13 -> 0.08704392342 | D35: mg/kg bw/day | E35: Eq
B36: Lower | C36: =$C31 * C10/C$13 -> 0.01212397505 | E36: Eq
B37: Upper | C37: =$C32 * C11/C$13 -> 0.3170885782 | E37: Eq

Sheet F04c
A1: Consumption of Fruit by a Mammal, large after Acute exposure.
A2: Short Title | B2: Fruit | E2: FdKcalV6
A3: Receptor | B3: Mammal, large
A4: Duration | B4: Acute | E4: Scenario parameter
A5: Material consumed | B5: Fruit
A6: Parameter/Assumption | B6: Code / Range | C6: Equation/ Value | D6: Units | E6: Reference/Designation
A7: Commodity
A8: Concentration on consumed commodity | B8: Conc
B9: Central | C9: =B05a!Acute_C -> 0.168 | D9: mg/kg food wet weight | E9: ='B05a'!Acute_C
B10: Lower | C10: =B05a!Acute_L -> 0.078 | E10: ='B05a'!Acute_L
B11: Upper | C11: =B05a!Acute_U -> 0.36 | E11: ='B05a'!Acute_U
A12: Receptor
A13: Body weight | B13: BW | C13: =A02b!$C$61 -> 70 | D13: kg | E13: Default
A14: Allometric coefficients for caloric requirement per day in kilocalories and BW in grams
B15: alpha | C15: =A02b!$C$62 -> 1.518 | E15: U.S. EPA/ORD 1993
B16: beta | C16: =A02b!$C$63 -> 0.73 | E16: U.S. EPA/ORD 1993
A17: Caloric requirement per day | B17: KR | C17: = alpha x (BW x 1kg/1000g)beta
C18: =C15*((C13*1000)^C16) -> 5226.28803 | D18: kcal/day | E18: Eq
A19: Caloric content of commodity (dry weight) | B19: KCD | C19: ='A03'!$E$61 -> 1.1 | D19: kcal/gdw [Note 1] | E19: U.S. EPA/ORD 1993
A20: Food consumed per day (dry weight) | B20: AmntDry | C20: = KR ÷ KCD
C21: =C18/C19 -> 4751.170936 | D21: gdry/day | E21: Eq
A22: Water content of food item as a proportion | B22: PropWater | C22: ='A03'!$E$62 -> 0.77 | D22: gwater/gfood | E22: U.S. EPA/ORD 1993
A23: Dry weight content of food item as a proportion | B23: PropDry | C23: = 1-PropWater
C24: =1-C22 -> 0.23 | D24: gdry/gfood | E24: Eq
A25: Variability in caloric requirements not accounted for by allometric equation | B25: Error
B26: Central | C26: 1 | D26: Note 2
B27: Lower | C27: 0.3
B28: Upper | C28: 1.7
A29: Amount of food consumed per day, wet weight | B29: AmntFood | C29: = Error x (AmntDry ÷ PropDry) ÷ (1000g/kg)
B30: Central | C30: =C26*(C$21/C$24)/1000 -> 20.65726494 | D30: kgfood/day | E30: Eq
B31: Lower | C31: =C27*(C$21/C$24)/1000 -> 6.197179482 | E31: Eq
B32: Upper | C32: 35.1173504 | E32: Eq
A33: Estimate
A34: Dose | B34: Dose | C34: = AmntFood × Conc / BW
B35: Central | C35: =$C30 * C9/C$13 -> 0.04957743586 | D35: mg/kg bw/day | E35: Eq
B36: Lower | C36: =$C31 * C10/C$13 -> 0.006905428566 | E36: Eq
B37: Upper | C37: =$C32 * C11/C$13 -> 0.1806035163 | E37: Eq

Sheet F04d
A1: Consumption of Fruit by a Bird, small after Acute exposure.
A2: Short Title | B2: Fruit | E2: FdKcalV6
A3: Receptor | B3: Bird, small
A4: Duration | B4: Acute | E4: Scenario parameter
A5: Material consumed | B5: Fruit
A6: Parameter/Assumption | B6: Code / Range | C6: Equation/ Value | D6: Units | E6: Reference/Designation
A7: Commodity
A8: Concentration on consumed commodity | B8: Conc
B9: Central | C9: =B05a!Acute_C -> 0.168 | D9: mg/kg food wet weight | E9: ='B05a'!Acute_C
B10: Lower | C10: =B05a!Acute_L -> 0.078 | E10: ='B05a'!Acute_L
B11: Upper | C11: =B05a!Acute_U -> 0.36 | E11: ='B05a'!Acute_U
A12: Receptor
A13: Body weight | B13: BW | C13: =A02b!$C$31 -> 0.01 | D13: kg | E13: Default
A14: Allometric coefficients for caloric requirement per day in kilocalories and BW in grams
B15: alpha | C15: =A02b!$C$32 -> 3.12 | E15: U.S. EPA/ORD 1993
B16: beta | C16: =A02b!$C$33 -> 0.605 | E16: U.S. EPA/ORD 1993
A17: Caloric requirement per day | B17: KR | C17: = alpha x (BW x 1kg/1000g)beta
C18: =C15*((C13*1000)^C16) -> 12.56477147 | D18: kcal/day | E18: Eq
A19: Caloric content of commodity (dry weight) | B19: KCD | C19: ='A03'!$E$38 -> 1.1 | D19: kcal/gdw [Note 1] | E19: U.S. EPA/ORD 1993
A20: Food consumed per day (dry weight) | B20: AmntDry | C20: = KR ÷ KCD
C21: =C18/C19 -> 11.42251952 | D21: gdry/day | E21: Eq
A22: Water content of food item as a proportion | B22: PropWater | C22: ='A03'!$E$39 -> 0.77 | D22: gwater/gfood | E22: U.S. EPA/ORD 1993
A23: Dry weight content of food item as a proportion | B23: PropDry | C23: = 1-PropWater
C24: =1-C22 -> 0.23 | D24: gdry/gfood | E24: Eq
A25: Variability in caloric requirements not accounted for by allometric equation | B25: Error
B26: Central | C26: 1 | D26: Note 2
B27: Lower | C27: 0.3
B28: Upper | C28: 1.7
A29: Amount of food consumed per day, wet weight | B29: AmntFood | C29: = Error x (AmntDry ÷ PropDry) ÷ (1000g/kg)
B30: Central | C30: =C26*(C$21/C$24)/1000 -> 0.04966312834 | D30: kgfood/day | E30: Eq
B31: Lower | C31: =C27*(C$21/C$24)/1000 -> 0.0148989385 | E31: Eq
B32: Upper | C32: 0.08442731818 | E32: Eq
A33: Estimate
A34: Dose | B34: Dose | C34: = AmntFood × Conc / BW
B35: Central | C35: =$C30 * C9/C$13 -> 0.8343405562 | D35: mg/kg bw/day | E35: Eq
B36: Lower | C36: =$C31 * C10/C$13 -> 0.1162117203 | E36: Eq
B37: Upper | C37: =$C32 * C11/C$13 -> 3.039383455 | E37: Eq

Sheet F04e
A1: Consumption of Fruit by a Bird, large after Acute exposure.
A2: Short Title | B2: Fruit | E2: FdKcalV6
A3: Receptor | B3: Bird, large
A4: Duration | B4: Acute | E4: Scenario parameter
A5: Material consumed | B5: Fruit
A6: Parameter/Assumption | B6: Code / Range | C6: Equation/ Value | D6: Units | E6: Reference/Designation
A7: Commodity
A8: Concentration on consumed commodity | B8: Conc
B9: Central | C9: =B05a!Acute_C -> 0.168 | D9: mg/kg food wet weight | E9: ='B05a'!Acute_C
B10: Lower | C10: =B05a!Acute_L -> 0.078 | E10: ='B05a'!Acute_L
B11: Upper | C11: =B05a!Acute_U -> 0.36 | E11: ='B05a'!Acute_U
A12: Receptor
A13: Body weight | B13: BW | C13: =A02b!$C$15 -> 4 | D13: kg | E13: Default
A14: Allometric coefficients for caloric requirement per day in kilocalories and BW in grams
B15: alpha | C15: =A02b!$C$16 -> 1.146 | E15: U.S. EPA/ORD 1993
B16: beta | C16: =A02b!$C$17 -> 0.749 | E16: U.S. EPA/ORD 1993
A17: Caloric requirement per day | B17: KR | C17: = alpha x (BW x 1kg/1000g)beta
C18: =C15*((C13*1000)^C16) -> 571.6465031 | D18: kcal/day | E18: Eq
A19: Caloric content of commodity (dry weight) | B19: KCD | C19: ='A03'!$E$38 -> 1.1 | D19: kcal/gdw [Note 1] | E19: U.S. EPA/ORD 1993
A20: Food consumed per day (dry weight) | B20: AmntDry | C20: = KR ÷ KCD
C21: =C18/C19 -> 519.6786392 | D21: gdry/day | E21: Eq
A22: Water content of food item as a proportion | B22: PropWater | C22: ='A03'!$E$39 -> 0.77 | D22: gwater/gfood | E22: U.S. EPA/ORD 1993
A23: Dry weight content of food item as a proportion | B23: PropDry | C23: = 1-PropWater
C24: =1-C22 -> 0.23 | D24: gdry/gfood | E24: Eq
A25: Variability in caloric requirements not accounted for by allometric equation | B25: Error
B26: Central | C26: 1 | D26: Note 2
B27: Lower | C27: 0.3
B28: Upper | C28: 1.7
A29: Amount of food consumed per day, wet weight | B29: AmntFood | C29: = Error x (AmntDry ÷ PropDry) ÷ (1000g/kg)
B30: Central | C30: =C26*(C$21/C$24)/1000 -> 2.259472344 | D30: kgfood/day | E30: Eq
B31: Lower | C31: =C27*(C$21/C$24)/1000 -> 0.6778417033 | E31: Eq
B32: Upper | C32: 3.841102985 | E32: Eq
A33: Estimate
A34: Dose | B34: Dose | C34: = AmntFood × Conc / BW
B35: Central | C35: =$C30 * C9/C$13 -> 0.09489783846 | D35: mg/kg bw/day | E35: Eq
B36: Lower | C36: =$C31 * C10/C$13 -> 0.01321791321 | E36: Eq
B37: Upper | C37: =$C32 * C11/C$13 -> 0.3456992687 | E37: Eq

Sheet F05a
A1: Consumption of Broadleaf Vegetation by a Mammal, small after Acute exposure.
A2: Short Title | B2: Broadleaf | E2: FdKcalV6
A3: Receptor | B3: Mammal, small
A4: Duration | B4: Acute | E4: Scenario parameter
A5: Material consumed | B5: Broadleaf Vegetation
A6: Parameter/Assumption | B6: Code / Range | C6: Equation/ Value | D6: Units | E6: Reference/Designation
A7: Commodity
A8: Concentration on consumed commodity | B8: Conc
B9: Central | C9: =B05b!Acute_C -> 1.08 | D9: mg/kg food wet weight | E9: ='B05b'!Acute_C
B10: Lower | C10: =B05b!Acute_L -> 0.36 | E10: ='B05b'!Acute_L
B11: Upper | C11: =B05b!Acute_U -> 3.24 | E11: ='B05b'!Acute_U
A12: Receptor
A13: Body weight | B13: BW | C13: =A02b!$C$71 -> 0.02 | D13: kg | E13: Default
A14: Allometric coefficients for caloric requirement per day in kilocalories and BW in grams
B15: alpha | C15: =A02b!$C$75 -> 2.514 | E15: U.S. EPA/ORD 1993
B16: beta | C16: =A02b!$C$76 -> 0.507 | E16: U.S. EPA/ORD 1993
A17: Caloric requirement per day | B17: KR | C17: = alpha x (BW x 1kg/1000g)beta
C18: =C15*((C13*1000)^C16) -> 11.48120526 | D18: kcal/day | E18: Eq
A19: Caloric content of commodity (dry weight) | B19: KCD | C19: ='A03'!$E$65 -> 2.26 | D19: kcal/gdw [Note 1] | E19: U.S. EPA/ORD 1993
A20: Food consumed per day (dry weight) | B20: AmntDry | C20: = KR ÷ KCD
C21: =C18/C19 -> 5.080179317 | D21: gdry/day | E21: Eq
A22: Water content of food item as a proportion | B22: PropWater | C22: ='A03'!$E$66 -> 0.85 | D22: gwater/gfood | E22: U.S. EPA/ORD 1993
A23: Dry weight content of food item as a proportion | B23: PropDry | C23: = 1-PropWater
C24: =1-C22 -> 0.15 | D24: gdry/gfood | E24: Eq
A25: Variability in caloric requirements not accounted for by allometric equation | B25: Error
B26: Central | C26: 1 | D26: Note 2
B27: Lower | C27: 0.3
B28: Upper | C28: 1.7
A29: Amount of food consumed per day, wet weight | B29: AmntFood | C29: = Error x (AmntDry ÷ PropDry) ÷ (1000g/kg)
B30: Central | C30: =C26*(C$21/C$24)/1000 -> 0.03386786211 | D30: kgfood/day | E30: Eq
B31: Lower | C31: =C27*(C$21/C$24)/1000 -> 0.01016035863 | E31: Eq
B32: Upper | C32: 0.05757536559 | E32: Eq
A33: Estimate
A34: Dose | B34: Dose | C34: = AmntFood × Conc / BW
B35: Central | C35: =$C30 * C9/C$13 -> 1.828864554 | D35: mg/kg bw/day | E35: Eq
B36: Lower | C36: =$C31 * C10/C$13 -> 0.1828864554 | E36: Eq
B37: Upper | C37: =$C32 * C11/C$13 -> 9.327209226 | E37: Eq

Sheet F05b
A1: Consumption of Broadleaf Vegetation by a Mammal, 400 g after Acute exposure.
A2: Short Title | B2: Broadleaf | E2: FdKcalV6
A3: Receptor | B3: Mammal, 400 g
A4: Duration | B4: Acute | E4: Scenario parameter
A5: Material consumed | B5: Broadleaf Vegetation
A6: Parameter/Assumption | B6: Code / Range | C6: Equation/ Value | D6: Units | E6: Reference/Designation
A7: Commodity
A8: Concentration on consumed commodity | B8: Conc
B9: Central | C9: =B05b!Acute_C -> 1.08 | D9: mg/kg food wet weight | E9: ='B05b'!Acute_C
B10: Lower | C10: =B05b!Acute_L -> 0.36 | E10: ='B05b'!Acute_L
B11: Upper | C11: =B05b!Acute_U -> 3.24 | E11: ='B05b'!Acute_U
A12: Receptor
A13: Body weight | B13: BW | C13: =A02b!$C$40 -> 0.4 | D13: kg | E13: Default
A14: Allometric coefficients for caloric requirement per day in kilocalories and BW in grams
B15: alpha | C15: =A02b!$C$43 -> 2.514 | E15: U.S. EPA/ORD 1993
B16: beta | C16: =A02b!$C$44 -> 0.507 | E16: U.S. EPA/ORD 1993
A17: Caloric requirement per day | B17: KR | C17: = alpha x (BW x 1kg/1000g)beta
C18: =C15*((C13*1000)^C16) -> 52.43360149 | D18: kcal/day | E18: Eq
A19: Caloric content of commodity (dry weight) | B19: KCD | C19: ='A03'!$E$65 -> 2.26 | D19: kcal/gdw [Note 1] | E19: U.S. EPA/ORD 1993
A20: Food consumed per day (dry weight) | B20: AmntDry | C20: = KR ÷ KCD
C21: =C18/C19 -> 23.20070862 | D21: gdry/day | E21: Eq
A22: Water content of food item as a proportion | B22: PropWater | C22: ='A03'!$E$66 -> 0.85 | D22: gwater/gfood | E22: U.S. EPA/ORD 1993
A23: Dry weight content of food item as a proportion | B23: PropDry | C23: = 1-PropWater
C24: =1-C22 -> 0.15 | D24: gdry/gfood | E24: Eq
A25: Variability in caloric requirements not accounted for by allometric equation | B25: Error
B26: Central | C26: 1 | D26: Note 2
B27: Lower | C27: 0.3
B28: Upper | C28: 1.7
A29: Amount of food consumed per day, wet weight | B29: AmntFood | C29: = Error x (AmntDry ÷ PropDry) ÷ (1000g/kg)
B30: Central | C30: =C26*(C$21/C$24)/1000 -> 0.1546713908 | D30: kgfood/day | E30: Eq
B31: Lower | C31: =C27*(C$21/C$24)/1000 -> 0.04640141724 | E31: Eq
B32: Upper | C32: 0.2629413644 | E32: Eq
A33: Estimate
A34: Dose | B34: Dose | C34: = AmntFood × Conc / BW
B35: Central | C35: =$C30 * C9/C$13 -> 0.4176127552 | D35: mg/kg bw/day | E35: Eq
B36: Lower | C36: =$C31 * C10/C$13 -> 0.04176127552 | E36: Eq
B37: Upper | C37: =$C32 * C11/C$13 -> 2.129825052 | E37: Eq

Sheet F05c
A1: Consumption of Broadleaf Vegetation by a Mammal, large after Acute exposure.
A2: Short Title | B2: Broadleaf | E2: FdKcalV6
A3: Receptor | B3: Mammal, large
A4: Duration | B4: Acute | E4: Scenario parameter
A5: Material consumed | B5: Broadleaf Vegetation
A6: Parameter/Assumption | B6: Code / Range | C6: Equation/ Value | D6: Units | E6: Reference/Designation
A7: Commodity
A8: Concentration on consumed commodity | B8: Conc
B9: Central | C9: =B05b!Acute_C -> 1.08 | D9: mg/kg food wet weight | E9: ='B05b'!Acute_C
B10: Lower | C10: =B05b!Acute_L -> 0.36 | E10: ='B05b'!Acute_L
B11: Upper | C11: =B05b!Acute_U -> 3.24 | E11: ='B05b'!Acute_U
A12: Receptor
A13: Body weight | B13: BW | C13: =A02b!$C$61 -> 70 | D13: kg | E13: Default
A14: Allometric coefficients for caloric requirement per day in kilocalories and BW in grams
B15: alpha | C15: =A02b!$C$62 -> 1.518 | E15: U.S. EPA/ORD 1993
B16: beta | C16: =A02b!$C$63 -> 0.73 | E16: U.S. EPA/ORD 1993
A17: Caloric requirement per day | B17: KR | C17: = alpha x (BW x 1kg/1000g)beta
C18: =C15*((C13*1000)^C16) -> 5226.28803 | D18: kcal/day | E18: Eq
A19: Caloric content of commodity (dry weight) | B19: KCD | C19: ='A03'!$E$65 -> 2.26 | D19: kcal/gdw [Note 1] | E19: U.S. EPA/ORD 1993
A20: Food consumed per day (dry weight) | B20: AmntDry | C20: = KR ÷ KCD
C21: =C18/C19 -> 2312.516827 | D21: gdry/day | E21: Eq
A22: Water content of food item as a proportion | B22: PropWater | C22: ='A03'!$E$66 -> 0.85 | D22: gwater/gfood | E22: U.S. EPA/ORD 1993
A23: Dry weight content of food item as a proportion | B23: PropDry | C23: = 1-PropWater
C24: =1-C22 -> 0.15 | D24: gdry/gfood | E24: Eq
A25: Variability in caloric requirements not accounted for by allometric equation | B25: Error
B26: Central | C26: 1 | D26: Note 2
B27: Lower | C27: 0.3
B28: Upper | C28: 1.7
A29: Amount of food consumed per day, wet weight | B29: AmntFood | C29: = Error x (AmntDry ÷ PropDry) ÷ (1000g/kg)
B30: Central | C30: =C26*(C$21/C$24)/1000 -> 15.41677885 | D30: kgfood/day | E30: Eq
B31: Lower | C31: =C27*(C$21/C$24)/1000 -> 4.625033655 | E31: Eq
B32: Upper | C32: 26.20852404 | E32: Eq
A33: Estimate
A34: Dose | B34: Dose | C34: = AmntFood × Conc / BW
B35: Central | C35: =$C30 * C9/C$13 -> 0.2378588737 | D35: mg/kg bw/day | E35: Eq
B36: Lower | C36: =$C31 * C10/C$13 -> 0.02378588737 | E36: Eq
B37: Upper | C37: =$C32 * C11/C$13 -> 1.213080256 | E37: Eq

Sheet F05d
A1: Consumption of Broadleaf Vegetation by a Bird, small after Acute exposure.
A2: Short Title | B2: Broadleaf | E2: FdKcalV6
A3: Receptor | B3: Bird, small
A4: Duration | B4: Acute | E4: Scenario parameter
A5: Material consumed | B5: Broadleaf Vegetation
A6: Parameter/Assumption | B6: Code / Range | C6: Equation/ Value | D6: Units | E6: Reference/Designation
A7: Commodity
A8: Concentration on consumed commodity | B8: Conc
B9: Central | C9: =B05b!Acute_C -> 1.08 | D9: mg/kg food wet weight | E9: ='B05b'!Acute_C
B10: Lower | C10: =B05b!Acute_L -> 0.36 | E10: ='B05b'!Acute_L
B11: Upper | C11: =B05b!Acute_U -> 3.24 | E11: ='B05b'!Acute_U
A12: Receptor
A13: Body weight | B13: BW | C13: =A02b!$C$31 -> 0.01 | D13: kg | E13: Default
A14: Allometric coefficients for caloric requirement per day in kilocalories and BW in grams
B15: alpha | C15: =A02b!$C$32 -> 3.12 | E15: U.S. EPA/ORD 1993
B16: beta | C16: =A02b!$C$33 -> 0.605 | E16: U.S. EPA/ORD 1993
A17: Caloric requirement per day | B17: KR | C17: = alpha x (BW x 1kg/1000g)beta
C18: =C15*((C13*1000)^C16) -> 12.56477147 | D18: kcal/day | E18: Eq
A19: Caloric content of commodity (dry weight) | B19: KCD | C19: ='A03'!$E$42 -> 2 | D19: kcal/gdw [Note 1] | E19: U.S. EPA/ORD 1993
A20: Food consumed per day (dry weight) | B20: AmntDry | C20: = KR ÷ KCD
C21: =C18/C19 -> 6.282385735 | D21: gdry/day | E21: Eq
A22: Water content of food item as a proportion | B22: PropWater | C22: ='A03'!$E$43 -> 0.85 | D22: gwater/gfood | E22: U.S. EPA/ORD 1993
A23: Dry weight content of food item as a proportion | B23: PropDry | C23: = 1-PropWater
C24: =1-C22 -> 0.15 | D24: gdry/gfood | E24: Eq
A25: Variability in caloric requirements not accounted for by allometric equation | B25: Error
B26: Central | C26: 1 | D26: Note 2
B27: Lower | C27: 0.3
B28: Upper | C28: 1.7
A29: Amount of food consumed per day, wet weight | B29: AmntFood | C29: = Error x (AmntDry ÷ PropDry) ÷ (1000g/kg)
B30: Central | C30: =C26*(C$21/C$24)/1000 -> 0.04188257157 | D30: kgfood/day | E30: Eq
B31: Lower | C31: =C27*(C$21/C$24)/1000 -> 0.01256477147 | E31: Eq
B32: Upper | C32: 0.07120037167 | E32: Eq
A33: Estimate
A34: Dose | B34: Dose | C34: = AmntFood × Conc / BW
B35: Central | C35: =$C30 * C9/C$13 -> 4.52331773 | D35: mg/kg bw/day | E35: Eq
B36: Lower | C36: =$C31 * C10/C$13 -> 0.452331773 | E36: Eq
B37: Upper | C37: =$C32 * C11/C$13 -> 23.06892042 | E37: Eq

Sheet F05e
A1: Consumption of Broadleaf Vegetation by a Bird, large after Acute exposure.
A2: Short Title | B2: Broadleaf | E2: FdKcalV6
A3: Receptor | B3: Bird, large
A4: Duration | B4: Acute | E4: Scenario parameter
A5: Material consumed | B5: Broadleaf Vegetation
A6: Parameter/Assumption | B6: Code / Range | C6: Equation/ Value | D6: Units | E6: Reference/Designation
A7: Commodity
A8: Concentration on consumed commodity | B8: Conc
B9: Central | C9: =B05b!Acute_C -> 1.08 | D9: mg/kg food wet weight | E9: ='B05b'!Acute_C
B10: Lower | C10: =B05b!Acute_L -> 0.36 | E10: ='B05b'!Acute_L
B11: Upper | C11: =B05b!Acute_U -> 3.24 | E11: ='B05b'!Acute_U
A12: Receptor
A13: Body weight | B13: BW | C13: =A02b!$C$15 -> 4 | D13: kg | E13: Default
A14: Allometric coefficients for caloric requirement per day in kilocalories and BW in grams
B15: alpha | C15: =A02b!$C$16 -> 1.146 | E15: U.S. EPA/ORD 1993
B16: beta | C16: =A02b!$C$17 -> 0.749 | E16: U.S. EPA/ORD 1993
A17: Caloric requirement per day | B17: KR | C17: = alpha x (BW x 1kg/1000g)beta
C18: =C15*((C13*1000)^C16) -> 571.6465031 | D18: kcal/day | E18: Eq
A19: Caloric content of commodity (dry weight) | B19: KCD | C19: ='A03'!$E$42 -> 2 | D19: kcal/gdw [Note 1] | E19: U.S. EPA/ORD 1993
A20: Food consumed per day (dry weight) | B20: AmntDry | C20: = KR ÷ KCD
C21: =C18/C19 -> 285.8232515 | D21: gdry/day | E21: Eq
A22: Water content of food item as a proportion | B22: PropWater | C22: ='A03'!$E$43 -> 0.85 | D22: gwater/gfood | E22: U.S. EPA/ORD 1993
A23: Dry weight content of food item as a proportion | B23: PropDry | C23: = 1-PropWater
C24: =1-C22 -> 0.15 | D24: gdry/gfood | E24: Eq
A25: Variability in caloric requirements not accounted for by allometric equation | B25: Error
B26: Central | C26: 1 | D26: Note 2
B27: Lower | C27: 0.3
B28: Upper | C28: 1.7
A29: Amount of food consumed per day, wet weight | B29: AmntFood | C29: = Error x (AmntDry ÷ PropDry) ÷ (1000g/kg)
B30: Central | C30: =C26*(C$21/C$24)/1000 -> 1.905488344 | D30: kgfood/day | E30: Eq
B31: Lower | C31: =C27*(C$21/C$24)/1000 -> 0.5716465031 | E31: Eq
B32: Upper | C32: 3.239330184 | E32: Eq
A33: Estimate
A34: Dose | B34: Dose | C34: = AmntFood × Conc / BW
B35: Central | C35: =$C30 * C9/C$13 -> 0.5144818528 | D35: mg/kg bw/day | E35: Eq
B36: Lower | C36: =$C31 * C10/C$13 -> 0.05144818528 | E36: Eq
B37: Upper | C37: =$C32 * C11/C$13 -> 2.623857449 | E37: Eq

Sheet F06a
A1: Consumption of Tall grass by a Mammal, small after Acute exposure.
A2: Short Title | B2: Tall Grass | E2: FdKcalV6
A3: Receptor | B3: Mammal, small
A4: Duration | B4: Acute | E4: Scenario parameter
A5: Material consumed | B5: Tall grass
A6: Parameter/Assumption | B6: Code / Range | C6: Equation/ Value | D6: Units | E6: Reference/Designation
A7: Commodity
A8: Concentration on consumed commodity | B8: Conc
B9: Central | C9: =B05d!Acute_C -> 0.864 | D9: mg/kg food wet weight | E9: ='B05d'!Acute_C
B10: Lower | C10: =B05d!Acute_L -> 0.288 | E10: ='B05d'!Acute_L
B11: Upper | C11: =B05d!Acute_U -> 2.64 | E11: ='B05d'!Acute_U
A12: Receptor
A13: Body weight | B13: BW | C13: =A02b!$C$71 -> 0.02 | D13: kg | E13: Default
A14: Allometric coefficients for caloric requirement per day in kilocalories and BW in grams
B15: alpha | C15: =A02b!$C$75 -> 2.514 | E15: U.S. EPA/ORD 1993
B16: beta | C16: =A02b!$C$76 -> 0.507 | E16: U.S. EPA/ORD 1993
A17: Caloric requirement per day | B17: KR | C17: = alpha x (BW x 1kg/1000g)beta
C18: =C15*((C13*1000)^C16) -> 11.48120526 | D18: kcal/day | E18: Eq
A19: Caloric content of commodity (dry weight) | B19: KCD | C19: ='A03'!$E$65 -> 2.26 | D19: kcal/gdw [Note 1] | E19: U.S. EPA/ORD 1993
A20: Food consumed per day (dry weight) | B20: AmntDry | C20: = KR ÷ KCD
C21: =C18/C19 -> 5.080179317 | D21: gdry/day | E21: Eq
A22: Water content of food item as a proportion | B22: PropWater | C22: ='A03'!$E$66 -> 0.85 | D22: gwater/gfood | E22: U.S. EPA/ORD 1993
A23: Dry weight content of food item as a proportion | B23: PropDry | C23: = 1-PropWater
C24: =1-C22 -> 0.15 | D24: gdry/gfood | E24: Eq
A25: Variability in caloric requirements not accounted for by allometric equation | B25: Error
B26: Central | C26: 1 | D26: Note 2
B27: Lower | C27: 0.3
B28: Upper | C28: 1.7
A29: Amount of food consumed per day, wet weight | B29: AmntFood | C29: = Error x (AmntDry ÷ PropDry) ÷ (1000g/kg)
B30: Central | C30: =C26*(C$21/C$24)/1000 -> 0.03386786211 | D30: kgfood/day | E30: Eq
B31: Lower | C31: =C27*(C$21/C$24)/1000 -> 0.01016035863 | E31: Eq
B32: Upper | C32: 0.05757536559 | E32: Eq
A33: Estimate
A34: Dose | B34: Dose | C34: = AmntFood × Conc / BW
B35: Central | C35: =$C30 * C9/C$13 -> 1.463091643 | D35: mg/kg bw/day | E35: Eq
B36: Lower | C36: =$C31 * C10/C$13 -> 0.1463091643 | E36: Eq
B37: Upper | C37: =$C32 * C11/C$13 -> 7.599948258 | E37: Eq

Sheet F06b
A1: Consumption of Tall grass by a Mammal, 400 g after Acute exposure.
A2: Short Title | B2: Tall Grass | E2: FdKcalV6
A3: Receptor | B3: Mammal, 400 g
A4: Duration | B4: Acute | E4: Scenario parameter
A5: Material consumed | B5: Tall grass
A6: Parameter/Assumption | B6: Code / Range | C6: Equation/ Value | D6: Units | E6: Reference/Designation
A7: Commodity
A8: Concentration on consumed commodity | B8: Conc
B9: Central | C9: =B05d!Acute_C -> 0.864 | D9: mg/kg food wet weight | E9: ='B05d'!Acute_C
B10: Lower | C10: =B05d!Acute_L -> 0.288 | E10: ='B05d'!Acute_L
B11: Upper | C11: =B05d!Acute_U -> 2.64 | E11: ='B05d'!Acute_U
A12: Receptor
A13: Body weight | B13: BW | C13: =A02b!$C$40 -> 0.4 | D13: kg | E13: Default
A14: Allometric coefficients for caloric requirement per day in kilocalories and BW in grams
B15: alpha | C15: =A02b!$C$43 -> 2.514 | E15: U.S. EPA/ORD 1993
B16: beta | C16: =A02b!$C$44 -> 0.507 | E16: U.S. EPA/ORD 1993
A17: Caloric requirement per day | B17: KR | C17: = alpha x (BW x 1kg/1000g)beta
C18: =C15*((C13*1000)^C16) -> 52.43360149 | D18: kcal/day | E18: Eq
A19: Caloric content of commodity (dry weight) | B19: KCD | C19: ='A03'!$E$65 -> 2.26 | D19: kcal/gdw [Note 1] | E19: U.S. EPA/ORD 1993
A20: Food consumed per day (dry weight) | B20: AmntDry | C20: = KR ÷ KCD
C21: =C18/C19 -> 23.20070862 | D21: gdry/day | E21: Eq
A22: Water content of food item as a proportion | B22: PropWater | C22: ='A03'!$E$66 -> 0.85 | D22: gwater/gfood | E22: U.S. EPA/ORD 1993
A23: Dry weight content of food item as a proportion | B23: PropDry | C23: = 1-PropWater
C24: =1-C22 -> 0.15 | D24: gdry/gfood | E24: Eq
A25: Variability in caloric requirements not accounted for by allometric equation | B25: Error
B26: Central | C26: 1 | D26: Note 2
B27: Lower | C27: 0.3
B28: Upper | C28: 1.7
A29: Amount of food consumed per day, wet weight | B29: AmntFood | C29: = Error x (AmntDry ÷ PropDry) ÷ (1000g/kg)
B30: Central | C30: =C26*(C$21/C$24)/1000 -> 0.1546713908 | D30: kgfood/day | E30: Eq
B31: Lower | C31: =C27*(C$21/C$24)/1000 -> 0.04640141724 | E31: Eq
B32: Upper | C32: 0.2629413644 | E32: Eq
A33: Estimate
A34: Dose | B34: Dose | C34: = AmntFood × Conc / BW
B35: Central | C35: =$C30 * C9/C$13 -> 0.3340902042 | D35: mg/kg bw/day | E35: Eq
B36: Lower | C36: =$C31 * C10/C$13 -> 0.03340902042 | E36: Eq
B37: Upper | C37: =$C32 * C11/C$13 -> 1.735413005 | E37: Eq

Sheet F06c
A1: Consumption of Tall grass by a Mammal, large after Acute exposure.
A2: Short Title | B2: Tall Grass | E2: FdKcalV6
A3: Receptor | B3: Mammal, large
A4: Duration | B4: Acute | E4: Scenario parameter
A5: Material consumed | B5: Tall grass
A6: Parameter/Assumption | B6: Code / Range | C6: Equation/ Value | D6: Units | E6: Reference/Designation
A7: Commodity
A8: Concentration on consumed commodity | B8: Conc
B9: Central | C9: =B05d!Acute_C -> 0.864 | D9: mg/kg food wet weight | E9: ='B05d'!Acute_C
B10: Lower | C10: =B05d!Acute_L -> 0.288 | E10: ='B05d'!Acute_L
B11: Upper | C11: =B05d!Acute_U -> 2.64 | E11: ='B05d'!Acute_U
A12: Receptor
A13: Body weight | B13: BW | C13: =A02b!$C$61 -> 70 | D13: kg | E13: Default
A14: Allometric coefficients for caloric requirement per day in kilocalories and BW in grams
B15: alpha | C15: =A02b!$C$62 -> 1.518 | E15: U.S. EPA/ORD 1993
B16: beta | C16: =A02b!$C$63 -> 0.73 | E16: U.S. EPA/ORD 1993
A17: Caloric requirement per day | B17: KR | C17: = alpha x (BW x 1kg/1000g)beta
C18: =C15*((C13*1000)^C16) -> 5226.28803 | D18: kcal/day | E18: Eq
A19: Caloric content of commodity (dry weight) | B19: KCD | C19: ='A03'!$E$65 -> 2.26 | D19: kcal/gdw [Note 1] | E19: U.S. EPA/ORD 1993
A20: Food consumed per day (dry weight) | B20: AmntDry | C20: = KR ÷ KCD
C21: =C18/C19 -> 2312.516827 | D21: gdry/day | E21: Eq
A22: Water content of food item as a proportion | B22: PropWater | C22: ='A03'!$E$66 -> 0.85 | D22: gwater/gfood | E22: U.S. EPA/ORD 1993
A23: Dry weight content of food item as a proportion | B23: PropDry | C23: = 1-PropWater
C24: =1-C22 -> 0.15 | D24: gdry/gfood | E24: Eq
A25: Variability in caloric requirements not accounted for by allometric equation | B25: Error
B26: Central | C26: 1 | D26: Note 2
B27: Lower | C27: 0.3
B28: Upper | C28: 1.7
A29: Amount of food consumed per day, wet weight | B29: AmntFood | C29: = Error x (AmntDry ÷ PropDry) ÷ (1000g/kg)
B30: Central | C30: =C26*(C$21/C$24)/1000 -> 15.41677885 | D30: kgfood/day | E30: Eq
B31: Lower | C31: =C27*(C$21/C$24)/1000 -> 4.625033655 | E31: Eq
B32: Upper | C32: 26.20852404 | E32: Eq
A33: Estimate
A34: Dose | B34: Dose | C34: = AmntFood × Conc / BW
B35: Central | C35: =$C30 * C9/C$13 -> 0.1902870989 | D35: mg/kg bw/day | E35: Eq
B36: Lower | C36: =$C31 * C10/C$13 -> 0.01902870989 | E36: Eq
B37: Upper | C37: =$C32 * C11/C$13 -> 0.9884357639 | E37: Eq

Sheet F06d
A1: Consumption of Tall grass by a Bird, small after Acute exposure.
A2: Short Title | B2: Tall Grass | E2: FdKcalV6
A3: Receptor | B3: Bird, small
A4: Duration | B4: Acute | E4: Scenario parameter
A5: Material consumed | B5: Tall grass
A6: Parameter/Assumption | B6: Code / Range | C6: Equation/ Value | D6: Units | E6: Reference/Designation
A7: Commodity
A8: Concentration on consumed commodity | B8: Conc
B9: Central | C9: =B05d!Acute_C -> 0.864 | D9: mg/kg food wet weight | E9: ='B05d'!Acute_C
B10: Lower | C10: =B05d!Acute_L -> 0.288 | E10: ='B05d'!Acute_L
B11: Upper | C11: =B05d!Acute_U -> 2.64 | E11: ='B05d'!Acute_U
A12: Receptor
A13: Body weight | B13: BW | C13: =A02b!$C$31 -> 0.01 | D13: kg | E13: Default
A14: Allometric coefficients for caloric requirement per day in kilocalories and BW in grams
B15: alpha | C15: =A02b!$C$32 -> 3.12 | E15: U.S. EPA/ORD 1993
B16: beta | C16: =A02b!$C$33 -> 0.605 | E16: U.S. EPA/ORD 1993
A17: Caloric requirement per day | B17: KR | C17: = alpha x (BW x 1kg/1000g)beta
C18: =C15*((C13*1000)^C16) -> 12.56477147 | D18: kcal/day | E18: Eq
A19: Caloric content of commodity (dry weight) | B19: KCD | C19: ='A03'!$E$42 -> 2 | D19: kcal/gdw [Note 1] | E19: U.S. EPA/ORD 1993
A20: Food consumed per day (dry weight) | B20: AmntDry | C20: = KR ÷ KCD
C21: =C18/C19 -> 6.282385735 | D21: gdry/day | E21: Eq
A22: Water content of food item as a proportion | B22: PropWater | C22: ='A03'!$E$43 -> 0.85 | D22: gwater/gfood | E22: U.S. EPA/ORD 1993
A23: Dry weight content of food item as a proportion | B23: PropDry | C23: = 1-PropWater
C24: =1-C22 -> 0.15 | D24: gdry/gfood | E24: Eq
A25: Variability in caloric requirements not accounted for by allometric equation | B25: Error
B26: Central | C26: 1 | D26: Note 2
B27: Lower | C27: 0.3
B28: Upper | C28: 1.7
A29: Amount of food consumed per day, wet weight | B29: AmntFood | C29: = Error x (AmntDry ÷ PropDry) ÷ (1000g/kg)
B30: Central | C30: =C26*(C$21/C$24)/1000 -> 0.04188257157 | D30: kgfood/day | E30: Eq
B31: Lower | C31: =C27*(C$21/C$24)/1000 -> 0.01256477147 | E31: Eq
B32: Upper | C32: 0.07120037167 | E32: Eq
A33: Estimate
A34: Dose | B34: Dose | C34: = AmntFood × Conc / BW
B35: Central | C35: =$C30 * C9/C$13 -> 3.618654184 | D35: mg/kg bw/day | E35: Eq
B36: Lower | C36: =$C31 * C10/C$13 -> 0.3618654184 | E36: Eq
B37: Upper | C37: =$C32 * C11/C$13 -> 18.79689812 | E37: Eq

Sheet F06e
A1: Consumption of Tall grass by a Bird, large after Acute exposure.
A2: Short Title | B2: Tall Grass | E2: FdKcalV6
A3: Receptor | B3: Bird, large
A4: Duration | B4: Acute | E4: Scenario parameter
A5: Material consumed | B5: Tall grass
A6: Parameter/Assumption | B6: Code / Range | C6: Equation/ Value | D6: Units | E6: Reference/Designation
A7: Commodity
A8: Concentration on consumed commodity | B8: Conc
B9: Central | C9: =B05d!Acute_C -> 0.864 | D9: mg/kg food wet weight | E9: ='B05d'!Acute_C
B10: Lower | C10: =B05d!Acute_L -> 0.288 | E10: ='B05d'!Acute_L
B11: Upper | C11: =B05d!Acute_U -> 2.64 | E11: ='B05d'!Acute_U
A12: Receptor
A13: Body weight | B13: BW | C13: =A02b!$C$15 -> 4 | D13: kg | E13: Default
A14: Allometric coefficients for caloric requirement per day in kilocalories and BW in grams
B15: alpha | C15: =A02b!$C$16 -> 1.146 | E15: U.S. EPA/ORD 1993
B16: beta | C16: =A02b!$C$17 -> 0.749 | E16: U.S. EPA/ORD 1993
A17: Caloric requirement per day | B17: KR | C17: = alpha x (BW x 1kg/1000g)beta
C18: =C15*((C13*1000)^C16) -> 571.6465031 | D18: kcal/day | E18: Eq
A19: Caloric content of commodity (dry weight) | B19: KCD | C19: ='A03'!$E$42 -> 2 | D19: kcal/gdw [Note 1] | E19: U.S. EPA/ORD 1993
A20: Food consumed per day (dry weight) | B20: AmntDry | C20: = KR ÷ KCD
C21: =C18/C19 -> 285.8232515 | D21: gdry/day | E21: Eq
A22: Water content of food item as a proportion | B22: PropWater | C22: ='A03'!$E$43 -> 0.85 | D22: gwater/gfood | E22: U.S. EPA/ORD 1993
A23: Dry weight content of food item as a proportion | B23: PropDry | C23: = 1-PropWater
C24: =1-C22 -> 0.15 | D24: gdry/gfood | E24: Eq
A25: Variability in caloric requirements not accounted for by allometric equation | B25: Error
B26: Central | C26: 1 | D26: Note 2
B27: Lower | C27: 0.3
B28: Upper | C28: 1.7
A29: Amount of food consumed per day, wet weight | B29: AmntFood | C29: = Error x (AmntDry ÷ PropDry) ÷ (1000g/kg)
B30: Central | C30: =C26*(C$21/C$24)/1000 -> 1.905488344 | D30: kgfood/day | E30: Eq
B31: Lower | C31: =C27*(C$21/C$24)/1000 -> 0.5716465031 | E31: Eq
B32: Upper | C32: 3.239330184 | E32: Eq
A33: Estimate
A34: Dose | B34: Dose | C34: = AmntFood × Conc / BW
B35: Central | C35: =$C30 * C9/C$13 -> 0.4115854822 | D35: mg/kg bw/day | E35: Eq
B36: Lower | C36: =$C31 * C10/C$13 -> 0.04115854822 | E36: Eq
B37: Upper | C37: =$C32 * C11/C$13 -> 2.137957922 | E37: Eq

Sheet F07a
A1: Consumption of Short grass by a Mammal, small after Acute exposure.
A2: Short Title | B2: Short grass | E2: FdKcalV6
A3: Receptor | B3: Mammal, small
A4: Duration | B4: Acute | E4: Scenario parameter
A5: Material consumed | B5: Short grass
A6: Parameter/Assumption | B6: Code / Range | C6: Equation/ Value | D6: Units | E6: Reference/Designation
A7: Commodity
A8: Concentration on consumed commodity | B8: Conc
B9: Central | C9: =B05c!Acute_C -> 2.04 | D9: mg/kg food wet weight | E9: ='B05c'!Acute_C
B10: Lower | C10: =B05c!Acute_L -> 0.72 | E10: ='B05c'!Acute_L
B11: Upper | C11: =B05c!Acute_U -> 5.76 | E11: ='B05c'!Acute_U
A12: Receptor
A13: Body weight | B13: BW | C13: =A02b!$C$71 -> 0.02 | D13: kg | E13: Default
A14: Allometric coefficients for caloric requirement per day in kilocalories and BW in grams
B15: alpha | C15: =A02b!$C$75 -> 2.514 | E15: U.S. EPA/ORD 1993
B16: beta | C16: =A02b!$C$76 -> 0.507 | E16: U.S. EPA/ORD 1993
A17: Caloric requirement per day | B17: KR | C17: = alpha x (BW x 1kg/1000g)beta
C18: =C15*((C13*1000)^C16) -> 11.48120526 | D18: kcal/day | E18: Eq
A19: Caloric content of commodity (dry weight) | B19: KCD | C19: ='A03'!$E$65 -> 2.26 | D19: kcal/gdw [Note 1] | E19: U.S. EPA/ORD 1993
A20: Food consumed per day (dry weight) | B20: AmntDry | C20: = KR ÷ KCD
C21: =C18/C19 -> 5.080179317 | D21: gdry/day | E21: Eq
A22: Water content of food item as a proportion | B22: PropWater | C22: ='A03'!$E$66 -> 0.85 | D22: gwater/gfood | E22: U.S. EPA/ORD 1993
A23: Dry weight content of food item as a proportion | B23: PropDry | C23: = 1-PropWater
C24: =1-C22 -> 0.15 | D24: gdry/gfood | E24: Eq
A25: Variability in caloric requirements not accounted for by allometric equation | B25: Error
B26: Central | C26: 1 | D26: Note 2
B27: Lower | C27: 0.3
B28: Upper | C28: 1.7
A29: Amount of food consumed per day, wet weight | B29: AmntFood | C29: = Error x (AmntDry ÷ PropDry) ÷ (1000g/kg)
B30: Central | C30: =C26*(C$21/C$24)/1000 -> 0.03386786211 | D30: kgfood/day | E30: Eq
B31: Lower | C31: =C27*(C$21/C$24)/1000 -> 0.01016035863 | E31: Eq
B32: Upper | C32: 0.05757536559 | E32: Eq
A33: Estimate
A34: Dose | B34: Dose | C34: = AmntFood × Conc / BW
B35: Central | C35: =$C30 * C9/C$13 -> 3.454521936 | D35: mg/kg bw/day | E35: Eq
B36: Lower | C36: =$C31 * C10/C$13 -> 0.3657729108 | E36: Eq
B37: Upper | C37: =$C32 * C11/C$13 -> 16.58170529 | E37: Eq

Sheet F07b
A1: Consumption of Short grass by a Mammal, 400 g after Acute exposure.
A2: Short Title | B2: Short grass | E2: FdKcalV6
A3: Receptor | B3: Mammal, 400 g
A4: Duration | B4: Acute | E4: Scenario parameter
A5: Material consumed | B5: Short grass
A6: Parameter/Assumption | B6: Code / Range | C6: Equation/ Value | D6: Units | E6: Reference/Designation
A7: Commodity
A8: Concentration on consumed commodity | B8: Conc
B9: Central | C9: =B05c!Acute_C -> 2.04 | D9: mg/kg food wet weight | E9: ='B05c'!Acute_C
B10: Lower | C10: =B05c!Acute_L -> 0.72 | E10: ='B05c'!Acute_L
B11: Upper | C11: =B05c!Acute_U -> 5.76 | E11: ='B05c'!Acute_U
A12: Receptor
A13: Body weight | B13: BW | C13: =A02b!$C$40 -> 0.4 | D13: kg | E13: Default
A14: Allometric coefficients for caloric requirement per day in kilocalories and BW in grams
B15: alpha | C15: =A02b!$C$43 -> 2.514 | E15: U.S. EPA/ORD 1993
B16: beta | C16: =A02b!$C$44 -> 0.507 | E16: U.S. EPA/ORD 1993
A17: Caloric requirement per day | B17: KR | C17: = alpha x (BW x 1kg/1000g)beta
C18: =C15*((C13*1000)^C16) -> 52.43360149 | D18: kcal/day | E18: Eq
A19: Caloric content of commodity (dry weight) | B19: KCD | C19: ='A03'!$E$65 -> 2.26 | D19: kcal/gdw [Note 1] | E19: U.S. EPA/ORD 1993
A20: Food consumed per day (dry weight) | B20: AmntDry | C20: = KR ÷ KCD
C21: =C18/C19 -> 23.20070862 | D21: gdry/day | E21: Eq
A22: Water content of food item as a proportion | B22: PropWater | C22: ='A03'!$E$66 -> 0.85 | D22: gwater/gfood | E22: U.S. EPA/ORD 1993
A23: Dry weight content of food item as a proportion | B23: PropDry | C23: = 1-PropWater
C24: =1-C22 -> 0.15 | D24: gdry/gfood | E24: Eq
A25: Variability in caloric requirements not accounted for by allometric equation | B25: Error
B26: Central | C26: 1 | D26: Note 2
B27: Lower | C27: 0.3
B28: Upper | C28: 1.7
A29: Amount of food consumed per day, wet weight | B29: AmntFood | C29: = Error x (AmntDry ÷ PropDry) ÷ (1000g/kg)
B30: Central | C30: =C26*(C$21/C$24)/1000 -> 0.1546713908 | D30: kgfood/day | E30: Eq
B31: Lower | C31: =C27*(C$21/C$24)/1000 -> 0.04640141724 | E31: Eq
B32: Upper | C32: 0.2629413644 | E32: Eq
A33: Estimate
A34: Dose | B34: Dose | C34: = AmntFood × Conc / BW
B35: Central | C35: =$C30 * C9/C$13 -> 0.7888240932 | D35: mg/kg bw/day | E35: Eq
B36: Lower | C36: =$C31 * C10/C$13 -> 0.08352255104 | E36: Eq
B37: Upper | C37: =$C32 * C11/C$13 -> 3.786355647 | E37: Eq

Sheet F07c
A1: Consumption of Short grass by a Mammal, large after Acute exposure.
A2: Short Title | B2: Short grass | E2: FdKcalV6
A3: Receptor | B3: Mammal, large
A4: Duration | B4: Acute | E4: Scenario parameter
A5: Material consumed | B5: Short grass
A6: Parameter/Assumption | B6: Code / Range | C6: Equation/ Value | D6: Units | E6: Reference/Designation
A7: Commodity
A8: Concentration on consumed commodity | B8: Conc
B9: Central | C9: =B05c!Acute_C -> 2.04 | D9: mg/kg food wet weight | E9: ='B05c'!Acute_C
B10: Lower | C10: =B05c!Acute_L -> 0.72 | E10: ='B05c'!Acute_L
B11: Upper | C11: =B05c!Acute_U -> 5.76 | E11: ='B05c'!Acute_U
A12: Receptor
A13: Body weight | B13: BW | C13: =A02b!$C$61 -> 70 | D13: kg | E13: Default
A14: Allometric coefficients for caloric requirement per day in kilocalories and BW in grams
B15: alpha | C15: =A02b!$C$62 -> 1.518 | E15: U.S. EPA/ORD 1993
B16: beta | C16: =A02b!$C$63 -> 0.73 | E16: U.S. EPA/ORD 1993
A17: Caloric requirement per day | B17: KR | C17: = alpha x (BW x 1kg/1000g)beta
C18: =C15*((C13*1000)^C16) -> 5226.28803 | D18: kcal/day | E18: Eq
A19: Caloric content of commodity (dry weight) | B19: KCD | C19: ='A03'!$E$65 -> 2.26 | D19: kcal/gdw [Note 1] | E19: U.S. EPA/ORD 1993
A20: Food consumed per day (dry weight) | B20: AmntDry | C20: = KR ÷ KCD
C21: =C18/C19 -> 2312.516827 | D21: gdry/day | E21: Eq
A22: Water content of food item as a proportion | B22: PropWater | C22: ='A03'!$E$66 -> 0.85 | D22: gwater/gfood | E22: U.S. EPA/ORD 1993
A23: Dry weight content of food item as a proportion | B23: PropDry | C23: = 1-PropWater
C24: =1-C22 -> 0.15 | D24: gdry/gfood | E24: Eq
A25: Variability in caloric requirements not accounted for by allometric equation | B25: Error
B26: Central | C26: 1 | D26: Note 2
B27: Lower | C27: 0.3
B28: Upper | C28: 1.7
A29: Amount of food consumed per day, wet weight | B29: AmntFood | C29: = Error x (AmntDry ÷ PropDry) ÷ (1000g/kg)
B30: Central | C30: =C26*(C$21/C$24)/1000 -> 15.41677885 | D30: kgfood/day | E30: Eq
B31: Lower | C31: =C27*(C$21/C$24)/1000 -> 4.625033655 | E31: Eq
B32: Upper | C32: 26.20852404 | E32: Eq
A33: Estimate
A34: Dose | B34: Dose | C34: = AmntFood × Conc / BW
B35: Central | C35: =$C30 * C9/C$13 -> 0.4492889836 | D35: mg/kg bw/day | E35: Eq
B36: Lower | C36: =$C31 * C10/C$13 -> 0.04757177473 | E36: Eq
B37: Upper | C37: =$C32 * C11/C$13 -> 2.156587121 | E37: Eq

Sheet F07d
A1: Consumption of Short grass by a Bird, small after Acute exposure.
A2: Short Title | B2: Short grass | E2: FdKcalV6
A3: Receptor | B3: Bird, small
A4: Duration | B4: Acute | E4: Scenario parameter
A5: Material consumed | B5: Short grass
A6: Parameter/Assumption | B6: Code / Range | C6: Equation/ Value | D6: Units | E6: Reference/Designation
A7: Commodity
A8: Concentration on consumed commodity | B8: Conc
B9: Central | C9: =B05c!Acute_C -> 2.04 | D9: mg/kg food wet weight | E9: ='B05c'!Acute_C
B10: Lower | C10: =B05c!Acute_L -> 0.72 | E10: ='B05c'!Acute_L
B11: Upper | C11: =B05c!Acute_U -> 5.76 | E11: ='B05c'!Acute_U
A12: Receptor
A13: Body weight | B13: BW | C13: =A02b!$C$31 -> 0.01 | D13: kg | E13: Default
A14: Allometric coefficients for caloric requirement per day in kilocalories and BW in grams
B15: alpha | C15: =A02b!$C$32 -> 3.12 | E15: U.S. EPA/ORD 1993
B16: beta | C16: =A02b!$C$33 -> 0.605 | E16: U.S. EPA/ORD 1993
A17: Caloric requirement per day | B17: KR | C17: = alpha x (BW x 1kg/1000g)beta
C18: =C15*((C13*1000)^C16) -> 12.56477147 | D18: kcal/day | E18: Eq
A19: Caloric content of commodity (dry weight) | B19: KCD | C19: ='A03'!$E$42 -> 2 | D19: kcal/gdw [Note 1] | E19: U.S. EPA/ORD 1993
A20: Food consumed per day (dry weight) | B20: AmntDry | C20: = KR ÷ KCD
C21: =C18/C19 -> 6.282385735 | D21: gdry/day | E21: Eq
A22: Water content of food item as a proportion | B22: PropWater | C22: ='A03'!$E$43 -> 0.85 | D22: gwater/gfood | E22: U.S. EPA/ORD 1993
A23: Dry weight content of food item as a proportion | B23: PropDry | C23: = 1-PropWater
C24: =1-C22 -> 0.15 | D24: gdry/gfood | E24: Eq
A25: Variability in caloric requirements not accounted for by allometric equation | B25: Error
B26: Central | C26: 1 | D26: Note 2
B27: Lower | C27: 0.3
B28: Upper | C28: 1.7
A29: Amount of food consumed per day, wet weight | B29: AmntFood | C29: = Error x (AmntDry ÷ PropDry) ÷ (1000g/kg)
B30: Central | C30: =C26*(C$21/C$24)/1000 -> 0.04188257157 | D30: kgfood/day | E30: Eq
B31: Lower | C31: =C27*(C$21/C$24)/1000 -> 0.01256477147 | E31: Eq
B32: Upper | C32: 0.07120037167 | E32: Eq
A33: Estimate
A34: Dose | B34: Dose | C34: = AmntFood × Conc / BW
B35: Central | C35: =$C30 * C9/C$13 -> 8.5440446 | D35: mg/kg bw/day | E35: Eq
B36: Lower | C36: =$C31 * C10/C$13 -> 0.9046635459 | E36: Eq
B37: Upper | C37: =$C32 * C11/C$13 -> 41.01141408 | E37: Eq

Sheet F07e
A1: Consumption of Short grass by a Bird, large after Acute exposure.
A2: Short Title | B2: Short grass | E2: FdKcalV6
A3: Receptor | B3: Bird, large
A4: Duration | B4: Acute | E4: Scenario parameter
A5: Material consumed | B5: Short grass
A6: Parameter/Assumption | B6: Code / Range | C6: Equation/ Value | D6: Units | E6: Reference/Designation
A7: Commodity
A8: Concentration on consumed commodity | B8: Conc
B9: Central | C9: =B05c!Acute_C -> 2.04 | D9: mg/kg food wet weight | E9: ='B05c'!Acute_C
B10: Lower | C10: =B05c!Acute_L -> 0.72 | E10: ='B05c'!Acute_L
B11: Upper | C11: =B05c!Acute_U -> 5.76 | E11: ='B05c'!Acute_U
A12: Receptor
A13: Body weight | B13: BW | C13: =A02b!$C$15 -> 4 | D13: kg | E13: Default
A14: Allometric coefficients for caloric requirement per day in kilocalories and BW in grams
B15: alpha | C15: =A02b!$C$16 -> 1.146 | E15: U.S. EPA/ORD 1993
B16: beta | C16: =A02b!$C$17 -> 0.749 | E16: U.S. EPA/ORD 1993
A17: Caloric requirement per day | B17: KR | C17: = alpha x (BW x 1kg/1000g)beta
C18: =C15*((C13*1000)^C16) -> 571.6465031 | D18: kcal/day | E18: Eq
A19: Caloric content of commodity (dry weight) | B19: KCD | C19: ='A03'!$E$42 -> 2 | D19: kcal/gdw [Note 1] | E19: U.S. EPA/ORD 1993
A20: Food consumed per day (dry weight) | B20: AmntDry | C20: = KR ÷ KCD
C21: =C18/C19 -> 285.8232515 | D21: gdry/day | E21: Eq
A22: Water content of food item as a proportion | B22: PropWater | C22: ='A03'!$E$43 -> 0.85 | D22: gwater/gfood | E22: U.S. EPA/ORD 1993
A23: Dry weight content of food item as a proportion | B23: PropDry | C23: = 1-PropWater
C24: =1-C22 -> 0.15 | D24: gdry/gfood | E24: Eq
A25: Variability in caloric requirements not accounted for by allometric equation | B25: Error
B26: Central | C26: 1 | D26: Note 2
B27: Lower | C27: 0.3
B28: Upper | C28: 1.7
A29: Amount of food consumed per day, wet weight | B29: AmntFood | C29: = Error x (AmntDry ÷ PropDry) ÷ (1000g/kg)
B30: Central | C30: =C26*(C$21/C$24)/1000 -> 1.905488344 | D30: kgfood/day | E30: Eq
B31: Lower | C31: =C27*(C$21/C$24)/1000 -> 0.5716465031 | E31: Eq
B32: Upper | C32: 3.239330184 | E32: Eq
A33: Estimate
A34: Dose | B34: Dose | C34: = AmntFood × Conc / BW
B35: Central | C35: =$C30 * C9/C$13 -> 0.9717990552 | D35: mg/kg bw/day | E35: Eq
B36: Lower | C36: =$C31 * C10/C$13 -> 0.1028963706 | E36: Eq
B37: Upper | C37: =$C32 * C11/C$13 -> 4.664635465 | E37: Eq

Sheet F08a
A1: Consumption of contaminated water by Mammal, small, Peak Concentrations
A2: Short Title | B2: Peak Concentrations | E2: WatAlloV6
A3: Receptor | B3: Mammal, small
A4: Duration | B4: Acute | E4: Scenario parameter
A5: Parameter/Assumption | B5: Code / Range | C5: Equation/ Value | D5: Units | E5: Reference/Designation
A6: Concentration in water | B6: ConcWat
B7: Central | C7: =B04a!Acute_C -> 0.114 | D7: mg/L | E7: ='B04a'!Acute_C
B8: Lower | C8: =B04a!Acute_L -> 0.0066 | E8: ='B04a'!Acute_L
B9: Upper | C9: =B04a!Acute_U -> 0.6 | E9: ='B04a'!Acute_U
A10: Receptor
A11: Body weight | B11: BW | C11: =A02b!$C$71 -> 0.02 | D11: kg | E11: Default
A12: Allometric coefficients forwater consumption per day in liters and BW in kilograms
B13: alpha | C13: =A02b!$C$79 -> 0.099 | E13: U.S. EPA/ORD 1993
B14: beta | C14: =A02b!$C$80 -> 0.9 | E14: U.S. EPA/ORD 1993
A15: Amount of water consumed per day | C15: Amnt = alpha BW beta
B16: Amnt | C16: =C13*(C11^C14) -> 0.002927940121 | D16: liters | E16: Eq
A17: Absorbed Dose | B17: Dose | C17: ConcWat × Amnt ÷ BW
B18: Central | C18: =C7*C$16/C$11 -> 0.01668925869 | D18: mg/kg | E18: Eq
B19: Lower | C19: =C8*C$16/C$11 -> 0.0009662202398 | D19: mg/kg | E19: Eq
B20: Upper | C20: =C9*C$16/C$11 -> 0.08783820362 | D20: mg/kg | E20: Eq

Sheet F08b
A1: Consumption of contaminated water by Mammal, 400 g, Peak Concentrations
A2: Short Title | B2: Peak Concentrations | E2: WatAlloV6
A3: Receptor | B3: Mammal, 400 g
A4: Duration | B4: Acute | E4: Scenario parameter
A5: Parameter/Assumption | B5: Code / Range | C5: Equation/ Value | D5: Units | E5: Reference/Designation
A6: Concentration in water | B6: ConcWat
B7: Central | C7: =B04a!Acute_C -> 0.114 | D7: mg/L | E7: ='B04a'!Acute_C
B8: Lower | C8: =B04a!Acute_L -> 0.0066 | E8: ='B04a'!Acute_L
B9: Upper | C9: =B04a!Acute_U -> 0.6 | E9: ='B04a'!Acute_U
A10: Receptor
A11: Body weight | B11: BW | C11: =A02b!$C$40 -> 0.4 | D11: kg | E11: Default
A12: Allometric coefficients forwater consumption per day in liters and BW in kilograms
B13: alpha | C13: =A02b!$C$45 -> 0.099 | E13: U.S. EPA/ORD 1993
B14: beta | C14: =A02b!$C$46 -> 0.9 | E14: U.S. EPA/ORD 1993
A15: Amount of water consumed per day | C15: Amnt = alpha BW beta
B16: Amnt | C16: =C13*(C11^C14) -> 0.04339994576 | D16: liters | E16: Eq
A17: Absorbed Dose | B17: Dose | C17: ConcWat × Amnt ÷ BW
B18: Central | C18: =C7*C$16/C$11 -> 0.01236898454 | D18: mg/kg | E18: Eq
B19: Lower | C19: =C8*C$16/C$11 -> 0.0007160991051 | D19: mg/kg | E19: Eq
B20: Upper | C20: =C9*C$16/C$11 -> 0.06509991865 | D20: mg/kg | E20: Eq

Sheet F08c
A1: Consumption of contaminated water by Mammal, carnivorous, Peak Concentrations
A2: Short Title | B2: Peak Concentrations | E2: WatAlloV6
A3: Receptor | B3: Mammal, carnivorous
A4: Duration | B4: Acute | E4: Scenario parameter
A5: Parameter/Assumption | B5: Code / Range | C5: Equation/ Value | D5: Units | E5: Reference/Designation
A6: Concentration in water | B6: ConcWat
B7: Central | C7: =B04a!Acute_C -> 0.114 | D7: mg/L | E7: ='B04a'!Acute_C
B8: Lower | C8: =B04a!Acute_L -> 0.0066 | E8: ='B04a'!Acute_L
B9: Upper | C9: =B04a!Acute_U -> 0.6 | E9: ='B04a'!Acute_U
A10: Receptor
A11: Body weight | B11: BW | C11: =A02b!$C$47 -> 5 | D11: kg | E11: U.S. EPA/ORD 1993
A12: Allometric coefficients forwater consumption per day in liters and BW in kilograms
B13: alpha | C13: =A02b!$C$50 -> 0.099 | E13: U.S. EPA/ORD 1993
B14: beta | C14: =A02b!$C$51 -> 0.9 | E14: U.S. EPA/ORD 1993
A15: Amount of water consumed per day | C15: Amnt = alpha BW beta
B16: Amnt | C16: =C13*(C11^C14) -> 0.4214132616 | D16: liters | E16: Eq
A17: Absorbed Dose | B17: Dose | C17: ConcWat × Amnt ÷ BW
B18: Central | C18: =C7*C$16/C$11 -> 0.009608222366 | D18: mg/kg | E18: Eq
B19: Lower | C19: =C8*C$16/C$11 -> 0.0005562655054 | D19: mg/kg | E19: Eq
B20: Upper | C20: =C9*C$16/C$11 -> 0.0505695914 | D20: mg/kg | E20: Eq

Sheet F08d
A1: Consumption of contaminated water by Mammal, large, Peak Concentrations
A2: Short Title | B2: Peak Concentrations | E2: WatAlloV6
A3: Receptor | B3: Mammal, large
A4: Duration | B4: Acute | E4: Scenario parameter
A5: Parameter/Assumption | B5: Code / Range | C5: Equation/ Value | D5: Units | E5: Reference/Designation
A6: Concentration in water | B6: ConcWat
B7: Central | C7: =B04a!Acute_C -> 0.114 | D7: mg/L | E7: ='B04a'!Acute_C
B8: Lower | C8: =B04a!Acute_L -> 0.0066 | E8: ='B04a'!Acute_L
B9: Upper | C9: =B04a!Acute_U -> 0.6 | E9: ='B04a'!Acute_U
A10: Receptor
A11: Body weight | B11: BW | C11: =A02b!$C$61 -> 70 | D11: kg | E11: Default
A12: Allometric coefficients forwater consumption per day in liters and BW in kilograms
B13: alpha | C13: =A02b!$C$64 -> 0.099 | E13: U.S. EPA/ORD 1993
B14: beta | C14: =A02b!$C$65 -> 0.9 | E14: U.S. EPA/ORD 1993
A15: Amount of water consumed per day | C15: Amnt = alpha BW beta
B16: Amnt | C16: =C13*(C11^C14) -> 4.531306412 | D16: liters | E16: Eq
A17: Absorbed Dose | B17: Dose | C17: ConcWat × Amnt ÷ BW
B18: Central | C18: =C7*C$16/C$11 -> 0.007379556156 | D18: mg/kg | E18: Eq
B19: Lower | C19: =C8*C$16/C$11 -> 0.0004272374617 | D19: mg/kg | E19: Eq
B20: Upper | C20: =C9*C$16/C$11 -> 0.03883976924 | D20: mg/kg | E20: Eq

Sheet F08e
A1: Consumption of contaminated water by Bird, small, Peak Concentrations
A2: Short Title | B2: Peak Concentrations | E2: WatAlloV6
A3: Receptor | B3: Bird, small
A4: Duration | B4: Acute | E4: Scenario parameter
A5: Parameter/Assumption | B5: Code / Range | C5: Equation/ Value | D5: Units | E5: Reference/Designation
A6: Concentration in water | B6: ConcWat
B7: Central | C7: =B04a!Acute_C -> 0.114 | D7: mg/L | E7: ='B04a'!Acute_C
B8: Lower | C8: =B04a!Acute_L -> 0.0066 | E8: ='B04a'!Acute_L
B9: Upper | C9: =B04a!Acute_U -> 0.6 | E9: ='B04a'!Acute_U
A10: Receptor
A11: Body weight | B11: BW | C11: =A02b!$C$31 -> 0.01 | D11: kg | E11: Default
A12: Allometric coefficients forwater consumption per day in liters and BW in kilograms
B13: alpha | C13: =A02b!$C$34 -> 0.059 | E13: U.S. EPA/ORD 1993
B14: beta | C14: =A02b!$C$35 -> 0.67 | E14: U.S. EPA/ORD 1993
A15: Amount of water consumed per day | C15: Amnt = alpha BW beta
B16: Amnt | C16: =C13*(C11^C14) -> 0.002696820319 | D16: liters | E16: Eq
A17: Absorbed Dose | B17: Dose | C17: ConcWat × Amnt ÷ BW
B18: Central | C18: =C7*C$16/C$11 -> 0.03074375163 | D18: mg/kg | E18: Eq
B19: Lower | C19: =C8*C$16/C$11 -> 0.00177990141 | D19: mg/kg | E19: Eq
B20: Upper | C20: =C9*C$16/C$11 -> 0.1618092191 | D20: mg/kg | E20: Eq

Sheet F08f
A1: Consumption of contaminated water by Bird, large, Peak Concentrations
A2: Short Title | B2: Peak Concentrations | E2: WatAlloV6
A3: Receptor | B3: Bird, large
A4: Duration | B4: Acute | E4: Scenario parameter
A5: Parameter/Assumption | B5: Code / Range | C5: Equation/ Value | D5: Units | E5: Reference/Designation
A6: Concentration in water | B6: ConcWat
B7: Central | C7: =B04a!Acute_C -> 0.114 | D7: mg/L | E7: ='B04a'!Acute_C
B8: Lower | C8: =B04a!Acute_L -> 0.0066 | E8: ='B04a'!Acute_L
B9: Upper | C9: =B04a!Acute_U -> 0.6 | E9: ='B04a'!Acute_U
A10: Receptor
A11: Body weight | B11: BW | C11: =A02b!$C$15 -> 4 | D11: kg | E11: Default
A12: Allometric coefficients forwater consumption per day in liters and BW in kilograms
B13: alpha | C13: =A02b!$C$18 -> 0.059 | E13: U.S. EPA/ORD 1993
B14: beta | C14: =A02b!$C$19 -> 0.67 | E14: U.S. EPA/ORD 1993
A15: Amount of water consumed per day | C15: Amnt = alpha BW beta
B16: Amnt | C16: =C13*(C11^C14) -> 0.1493592781 | D16: liters | E16: Eq
A17: Absorbed Dose | B17: Dose | C17: ConcWat × Amnt ÷ BW
B18: Central | C18: =C7*C$16/C$11 -> 0.004256739426 | D18: mg/kg | E18: Eq
B19: Lower | C19: =C8*C$16/C$11 -> 0.0002464428088 | D19: mg/kg | E19: Eq
B20: Upper | C20: =C9*C$16/C$11 -> 0.02240389171 | D20: mg/kg | E20: Eq

Sheet F09a
A1: Consumption of Small Insects by a Mammal, small after Acute exposure.
A2: Short Title | B2: Small Insects | E2: FdKcalV6
A3: Receptor | B3: Mammal, small
A4: Duration | B4: Acute | E4: Scenario parameter
A5: Material consumed | B5: Small Insects
A6: Parameter/Assumption | B6: Code / Range | C6: Equation/ Value | D6: Units | E6: Reference/Designation
A7: Commodity
A8: Concentration on consumed commodity | B8: Conc
B9: Central | C9: =B05b!Acute_C -> 1.08 | D9: mg/kg food wet weight | E9: ='B05b'!Acute_C
B10: Lower | C10: =B05b!Acute_L -> 0.36 | E10: ='B05b'!Acute_L
B11: Upper | C11: =B05b!Acute_U -> 3.24 | E11: ='B05b'!Acute_U
A12: Receptor
A13: Body weight | B13: BW | C13: =A02b!$C$71 -> 0.02 | D13: kg | E13: Default
A14: Allometric coefficients for caloric requirement per day in kilocalories and BW in grams
B15: alpha | C15: =A02b!$C$75 -> 2.514 | E15: U.S. EPA/ORD 1993
B16: beta | C16: =A02b!$C$76 -> 0.507 | E16: U.S. EPA/ORD 1993
A17: Caloric requirement per day | B17: KR | C17: = alpha x (BW x 1kg/1000g)beta
C18: =C15*((C13*1000)^C16) -> 11.48120526 | D18: kcal/day | E18: Eq
A19: Caloric content of commodity (dry weight) | B19: KCD | C19: ='A03'!$E$63 -> 4.47 | D19: kcal/gdw [Note 1] | E19: U.S. EPA/ORD 1993
A20: Food consumed per day (dry weight) | B20: AmntDry | C20: = KR ÷ KCD
C21: =C18/C19 -> 2.568502294 | D21: gdry/day | E21: Eq
A22: Water content of food item as a proportion | B22: PropWater | C22: ='A03'!$E$64 -> 0.7 | D22: gwater/gfood | E22: Chapman 1998
A23: Dry weight content of food item as a proportion | B23: PropDry | C23: = 1-PropWater
C24: =1-C22 -> 0.3 | D24: gdry/gfood | E24: Eq
A25: Variability in caloric requirements not accounted for by allometric equation | B25: Error
B26: Central | C26: 1 | D26: Note 2
B27: Lower | C27: 0.3
B28: Upper | C28: 1.7
A29: Amount of food consumed per day, wet weight | B29: AmntFood | C29: = Error x (AmntDry ÷ PropDry) ÷ (1000g/kg)
B30: Central | C30: =C26*(C$21/C$24)/1000 -> 0.008561674315 | D30: kgfood/day | E30: Eq
B31: Lower | C31: =C27*(C$21/C$24)/1000 -> 0.002568502294 | E31: Eq
B32: Upper | C32: 0.01455484634 | E32: Eq
A33: Estimate
A34: Dose | B34: Dose | C34: = AmntFood × Conc / BW
B35: Central | C35: =$C30 * C9/C$13 -> 0.462330413 | D35: mg/kg bw/day | E35: Eq
B36: Lower | C36: =$C31 * C10/C$13 -> 0.0462330413 | E36: Eq
B37: Upper | C37: =$C32 * C11/C$13 -> 2.357885106 | E37: Eq

Sheet F09b
A1: Consumption of Small Insects by a Mammal, 400 g after Acute exposure.
A2: Short Title | B2: Small Insects | E2: FdKcalV6
A3: Receptor | B3: Mammal, 400 g
A4: Duration | B4: Acute | E4: Scenario parameter
A5: Material consumed | B5: Small Insects
A6: Parameter/Assumption | B6: Code / Range | C6: Equation/ Value | D6: Units | E6: Reference/Designation
A7: Commodity
A8: Concentration on consumed commodity | B8: Conc
B9: Central | C9: =B05b!Acute_C -> 1.08 | D9: mg/kg food wet weight | E9: ='B05b'!Acute_C
B10: Lower | C10: =B05b!Acute_L -> 0.36 | E10: ='B05b'!Acute_L
B11: Upper | C11: =B05b!Acute_U -> 3.24 | E11: ='B05b'!Acute_U
A12: Receptor
A13: Body weight | B13: BW | C13: =A02b!$C$40 -> 0.4 | D13: kg | E13: Default
A14: Allometric coefficients for caloric requirement per day in kilocalories and BW in grams
B15: alpha | C15: =A02b!$C$43 -> 2.514 | E15: U.S. EPA/ORD 1993
B16: beta | C16: =A02b!$C$44 -> 0.507 | E16: U.S. EPA/ORD 1993
A17: Caloric requirement per day | B17: KR | C17: = alpha x (BW x 1kg/1000g)beta
C18: =C15*((C13*1000)^C16) -> 52.43360149 | D18: kcal/day | E18: Eq
A19: Caloric content of commodity (dry weight) | B19: KCD | C19: ='A03'!$E$63 -> 4.47 | D19: kcal/gdw [Note 1] | E19: U.S. EPA/ORD 1993
A20: Food consumed per day (dry weight) | B20: AmntDry | C20: = KR ÷ KCD
C21: =C18/C19 -> 11.73011219 | D21: gdry/day | E21: Eq
A22: Water content of food item as a proportion | B22: PropWater | C22: ='A03'!$E$64 -> 0.7 | D22: gwater/gfood | E22: Chapman 1998
A23: Dry weight content of food item as a proportion | B23: PropDry | C23: = 1-PropWater
C24: =1-C22 -> 0.3 | D24: gdry/gfood | E24: Eq
A25: Variability in caloric requirements not accounted for by allometric equation | B25: Error
B26: Central | C26: 1 | D26: Note 2
B27: Lower | C27: 0.3
B28: Upper | C28: 1.7
A29: Amount of food consumed per day, wet weight | B29: AmntFood | C29: = Error x (AmntDry ÷ PropDry) ÷ (1000g/kg)
B30: Central | C30: =C26*(C$21/C$24)/1000 -> 0.03910037396 | D30: kgfood/day | E30: Eq
B31: Lower | C31: =C27*(C$21/C$24)/1000 -> 0.01173011219 | E31: Eq
B32: Upper | C32: 0.06647063574 | E32: Eq
A33: Estimate
A34: Dose | B34: Dose | C34: = AmntFood × Conc / BW
B35: Central | C35: =$C30 * C9/C$13 -> 0.1055710097 | D35: mg/kg bw/day | E35: Eq
B36: Lower | C36: =$C31 * C10/C$13 -> 0.01055710097 | E36: Eq
B37: Upper | C37: =$C32 * C11/C$13 -> 0.5384121495 | E37: Eq

Sheet F09c
A1: Consumption of Small Insects by a Bird, small after Acute exposure.
A2: Short Title | B2: Small Insects | E2: FdKcalV6
A3: Receptor | B3: Bird, small
A4: Duration | B4: Acute | E4: Scenario parameter
A5: Material consumed | B5: Small Insects
A6: Parameter/Assumption | B6: Code / Range | C6: Equation/ Value | D6: Units | E6: Reference/Designation
A7: Commodity
A8: Concentration on consumed commodity | B8: Conc
B9: Central | C9: =B05b!Acute_C -> 1.08 | D9: mg/kg food wet weight | E9: ='B05b'!Acute_C
B10: Lower | C10: =B05b!Acute_L -> 0.36 | E10: ='B05b'!Acute_L
B11: Upper | C11: =B05b!Acute_U -> 3.24 | E11: ='B05b'!Acute_U
A12: Receptor
A13: Body weight | B13: BW | C13: =A02b!$C$31 -> 0.01 | D13: kg | E13: Default
A14: Allometric coefficients for caloric requirement per day in kilocalories and BW in grams
B15: alpha | C15: =A02b!$C$32 -> 3.12 | E15: U.S. EPA/ORD 1993
B16: beta | C16: =A02b!$C$33 -> 0.605 | E16: U.S. EPA/ORD 1993
A17: Caloric requirement per day | B17: KR | C17: = alpha x (BW x 1kg/1000g)beta
C18: =C15*((C13*1000)^C16) -> 12.56477147 | D18: kcal/day | E18: Eq
A19: Caloric content of commodity (dry weight) | B19: KCD | C19: ='A03'!$E$40 -> 4.3 | D19: kcal/gdw [Note 1] | E19: U.S. EPA/ORD 1993
A20: Food consumed per day (dry weight) | B20: AmntDry | C20: = KR ÷ KCD
C21: =C18/C19 -> 2.922039877 | D21: gdry/day | E21: Eq
A22: Water content of food item as a proportion | B22: PropWater | C22: ='A03'!$E$41 -> 0.7 | D22: gwater/gfood | E22: Chapman 1998
A23: Dry weight content of food item as a proportion | B23: PropDry | C23: = 1-PropWater
C24: =1-C22 -> 0.3 | D24: gdry/gfood | E24: Eq
A25: Variability in caloric requirements not accounted for by allometric equation | B25: Error
B26: Central | C26: 1 | D26: Note 2
B27: Lower | C27: 0.3
B28: Upper | C28: 1.7
A29: Amount of food consumed per day, wet weight | B29: AmntFood | C29: = Error x (AmntDry ÷ PropDry) ÷ (1000g/kg)
B30: Central | C30: =C26*(C$21/C$24)/1000 -> 0.009740132923 | D30: kgfood/day | E30: Eq
B31: Lower | C31: =C27*(C$21/C$24)/1000 -> 0.002922039877 | E31: Eq
B32: Upper | C32: 0.01655822597 | E32: Eq
A33: Estimate
A34: Dose | B34: Dose | C34: = AmntFood × Conc / BW
B35: Central | C35: =$C30 * C9/C$13 -> 1.051934356 | D35: mg/kg bw/day | E35: Eq
B36: Lower | C36: =$C31 * C10/C$13 -> 0.1051934356 | E36: Eq
B37: Upper | C37: =$C32 * C11/C$13 -> 5.364865214 | E37: Eq

Sheet F10a
A1: Consumption of Small Mammal by Mammal, carnivorous, acute exposure scenario
A2: Short Title | B2: Consumption of Abrev(Prey) | E2: SmMKcalInd_Ac
A3: Predator | B3: Mammal, carnivorous
A4: Duration | B4: Acute
A5: Prey | B5: Mammal, small
A6: Parameter/Assumption | B6: Code / Range | C6: Equation/ Value | D6: Units | E6: Reference/Designation
A7: Application rate, lb/acre | B7: ApRlb/ac | C7: ='A01'!ApRt_C -> 0.6 | D7: lb/acre | E7: Worksheet A01
A8: Conversion Factor for lbs/acre to mg/cm2 | B8: CnvF | C8: 0.01121 | D8: mg/cm2/lb/acre
A9: Application rate, mg/cm2 | B9: ApRmgcm | C9: ApRlb/a × CnvF
C10: =C7*C$8 -> 0.006726 | D10: lb/acre | E10: Eq
A11: Prey
A12: Body weight | B12: BWPrey | C12: =A02b!$C$71 -> 0.02 | D12: kg | E12: Default
A13: Allometric coefficients for surface area
B14: alpha | C14: =A02b!$C$77 -> 0.11 | E14: U.S. EPA/ORD 1993
B15: beta | C15: =A02b!$C$78 -> 0.65 | E15: U.S. EPA/ORD 1993
A16: Surface Area of Prey Species (m2) | B16: SAPreyM | C16: alpha x Bwbeta
C17: =C14 * C12^C15 -> 0.008650917739 | D17: meters
A18: Surface Area of Prey Species (cm2) | B18: SAPrey | C18: SAPreyM x 10,000 cm/m2
C19: =C17*10000 -> 86.50917739 | D19: cm2 | E19: Eq
A20: Proportion of body surface sprayed | B20: PrpSA | C20: 0.5 | D20: unitless | E20: Scenario parameter
A21: Amount Deposited on Skin | B21: AmntPrey | C21: ApRmgcm × SA × PrpSA
B22: Central | C22: =C$10*C$19*C$20 -> 0.2909303635 | D22: mg | E22: Eq
A23: Toxic Equivalency Factor for formulation: (See risk assessment if this has a value other than 1.) | B23: TEF
B24: Central | C24: ='A01'!C$17 -> 1 | D24: unitless | E24: Worksheet A01
B25: Lower | C25: ='A01'!C$18 -> 1 | E25: Worksheet A01
B26: Upper | C26: ='A01'!C$19 -> 1 | E26: Worksheet A01
A27: Concentration on prey item after direct spray | B27: DosePrey | C27: NPrey x Amnt x TEF ÷ BW
B28: Central | C28: =C$22*C24/C$12 -> 14.54651818 | D28: mg/kg bw | E28: Eq
B29: Lower | C29: =C$22*C25/C$12 -> 14.54651818 | E29: Eq
B30: Upper | C30: =C$22*C26/C$12 -> 14.54651818 | E30: Eq
A31: Predator
A32: Body weight | B32: BW | C32: =A02b!$C$47 -> 5 | D32: kg | E32: U.S. EPA/ORD 1993
A33: Allometric coefficients for caloric requirement per day in kilocalories and BW in grams
B34: alpha | C34: =A02b!$C$48 -> 0.6167 | E34: U.S. EPA/ORD 1993
B35: beta | C35: =A02b!$C$49 -> 0.862 | E35: U.S. EPA/ORD 1993
A36: Caloric requirement per day | B36: KR | C36: =C34*((C32*1000)^C35) -> 951.8885266 | D36: kcal/day | E36: Eq
A37: Caloric content of prey (wet weight) | B37: KCW | C37: =A02b!$C$72 -> 1.7 | D37: kcal/g | E37: U.S. EPA/ORD 1993
A38: Variability in caloric requirements not accounted for by allometric equation | B38: Error
B39: Central | C39: 1 | D39: Note 1
B40: Lower | C40: 0.3
B41: Upper | C41: 1.7
A42: Amount of food consumed per day, wet weight | B42: Amnt | C42: (KR ÷ KCW)/1000 g/kg
C43: =(C36/C37)/1000 -> 0.5599344274 | D43: kg | E43: Eq
A44: Dose | B44: Dose | C44: Error × Amnt × DosePrey / BW
B45: Central | C45: =C39* C$43 * C28/C$32 -> 1.629019265 | D45: mg/kg bw | E45: Eq
B46: Lower | C46: =C40* C$43 * C29/C$32 -> 0.4887057796 | E46: Eq
B47: Upper | C47: 2.769332751 | E47: Eq

Sheet F10b
A1: Consumption of Small Mammal by Bird, carnivorous, acute exposure scenario
A2: Short Title | B2: Consumption of Abrev(Prey) | E2: SmMKcalInd_Ac
A3: Predator | B3: Bird, carnivorous
A4: Duration | B4: Acute
A5: Prey | B5: Mammal, small
A6: Parameter/Assumption | B6: Code / Range | C6: Equation/ Value | D6: Units | E6: Reference/Designation
A7: Application rate, lb/acre | B7: ApRlb/ac | C7: ='A01'!ApRt_C -> 0.6 | D7: lb/acre | E7: Worksheet A01
A8: Conversion Factor for lbs/acre to mg/cm2 | B8: CnvF | C8: 0.01121 | D8: mg/cm2/lb/acre
A9: Application rate, mg/cm2 | B9: ApRmgcm | C9: ApRlb/a × CnvF
C10: =C7*C$8 -> 0.006726 | D10: lb/acre | E10: Eq
A11: Prey
A12: Body weight | B12: BWPrey | C12: =A02b!$C$71 -> 0.02 | D12: kg | E12: Default
A13: Allometric coefficients for surface area
B14: alpha | C14: =A02b!$C$77 -> 0.11 | E14: U.S. EPA/ORD 1993
B15: beta | C15: =A02b!$C$78 -> 0.65 | E15: U.S. EPA/ORD 1993
A16: Surface Area of Prey Species (m2) | B16: SAPreyM | C16: alpha x Bwbeta
C17: =C14 * C12^C15 -> 0.008650917739 | D17: meters
A18: Surface Area of Prey Species (cm2) | B18: SAPrey | C18: SAPreyM x 10,000 cm/m2
C19: =C17*10000 -> 86.50917739 | D19: cm2 | E19: Eq
A20: Proportion of body surface sprayed | B20: PrpSA | C20: 0.5 | D20: unitless | E20: Scenario parameter
A21: Amount Deposited on Skin | B21: AmntPrey | C21: ApRmgcm × SA × PrpSA
B22: Central | C22: =C$10*C$19*C$20 -> 0.2909303635 | D22: mg | E22: Eq
A23: Toxic Equivalency Factor for formulation: (See risk assessment if this has a value other than 1.) | B23: TEF
B24: Central | C24: ='A01'!C$17 -> 1 | D24: unitless | E24: Worksheet A01
B25: Lower | C25: ='A01'!C$18 -> 1 | E25: Worksheet A01
B26: Upper | C26: ='A01'!C$19 -> 1 | E26: Worksheet A01
A27: Concentration on prey item after direct spray | B27: DosePrey | C27: NPrey x Amnt x TEF ÷ BW
B28: Central | C28: =C$22*C24/C$12 -> 14.54651818 | D28: mg/kg bw | E28: Eq
B29: Lower | C29: =C$22*C25/C$12 -> 14.54651818 | E29: Eq
B30: Upper | C30: =C$22*C26/C$12 -> 14.54651818 | E30: Eq
A31: Predator
A32: Body weight | B32: BW | C32: =A02b!$C$10 -> 0.64 | D32: kg | E32: Dunning 1993
A33: Allometric coefficients for caloric requirement per day in kilocalories and BW in grams
B34: alpha | C34: =A02b!$C$11 -> 1.146 | E34: U.S. EPA/ORD 1993
B35: beta | C35: =A02b!$C$12 -> 0.749 | E35: U.S. EPA/ORD 1993
A36: Caloric requirement per day | B36: KR | C36: =C34*((C32*1000)^C35) -> 144.8816616 | D36: kcal/day | E36: Eq
A37: Caloric content of prey (wet weight) | B37: KCW | C37: =A02b!$C$72 -> 1.7 | D37: kcal/g | E37: U.S. EPA/ORD 1993
A38: Variability in caloric requirements not accounted for by allometric equation | B38: Error
B39: Central | C39: 1 | D39: Note 1
B40: Lower | C40: 0.3
B41: Upper | C41: 1.7
A42: Amount of food consumed per day, wet weight | B42: Amnt | C42: (KR ÷ KCW)/1000 g/kg
C43: =(C36/C37)/1000 -> 0.08522450683 | D43: kg | E43: Eq
A44: Dose | B44: Dose | C44: Error × Amnt × DosePrey / BW
B45: Central | C45: =C39* C$43 * C28/C$32 -> 1.937062247 | D45: mg/kg bw | E45: Eq
B46: Lower | C46: =C40* C$43 * C29/C$32 -> 0.581118674 | E46: Eq
B47: Upper | C47: 3.293005819 | E47: Eq

Sheet F11a
A1: Acute scenario for the consumption of Contaminated Fish (Peak) by Mammal, large carnivorous
A2: Short Title | B2: Fish consumption, accidental spill | E2: FishKcalV6
A3: Predator | B3: Mammal, large carnivorous
A4: Food Item (Prey) | B4: Fish
A5: Duration | B5: Acute | E5: Scenario parameter
A6: Parameter/Assumption | B6: Code / Range | C6: Equation/ Value | D6: Units | E6: Reference/Designation
A7: Water
A8: Concentration in water | B8: ConcWat
B9: Central | C9: =B04a!Acute_C -> 0.114 | D9: mg/L | E9: ='B04a'!Acute_C
B10: Lower | C10: =B04a!Acute_L -> 0.0066 | E10: ='B04a'!Acute_L
B11: Upper | C11: =B04a!Acute_U -> 0.6 | E11: ='B04a'!Acute_U
A12: Fish
A13: Bioconcentration factor | B13: BCF
B14: Central | C14: ='B01'!$C$6 -> 2.63 | D14: L/kg
B15: Lower | C15: ='B01'!$C$6 -> 2.63
B16: Upper | C16: ='B01'!$C$6 -> 2.63
A17: Concentration in fish | B17: ConcFish | C17: ConcWat × BCF
B18: Central | C18: =C9*C14 -> 0.29982 | D18: mg/kg | E18: Eq
B19: Lower | C19: =C10*C15 -> 0.017358 | E19: Eq
B20: Upper | C20: =C11*C16 -> 1.578 | E20: Eq
A21: Receptor
A22: Body weight | B22: BW | C22: =A02b!$C$52 -> 70 | D22: kg | E22: Reid 2006
A23: Allometric coefficients for caloric requirement per day in kilocalories and BW in grams
B24: alpha | C24: =A02b!$C$53 -> 0.6167 | E24: U.S. EPA/ORD 1993
B25: beta | C25: =A02b!$C$54 -> 0.862 | E25: U.S. EPA/ORD 1993
A26: Caloric requirement per day | B26: KR | C26: =C24*(C22*1000)^C25 -> 9258.666883 | D26: kcal/day | E26: Eq
A27: Caloric content of commodity (dry weight) | B27: KCD | C27: ='A03'!$E$59 -> 4.47 | D27: kcal/gdw [Note 1] | E27: U.S. EPA/ORD 1993
A28: Food consumed per day (dry weight) | B28: AmntDry | C28: = KR ÷ KCD
C29: =C26/C27 -> 2071.29013 | D29: gdry/day | E29: Eq
A30: Water content of vegetation as a proportion | B30: PropWater | C30: ='A03'!$E$60 -> 0.7 | D30: gwater/gfood | E30: Ali et al. 2005
A31: Dry weight content of vegetation as a proportion | B31: PropDry | C31: = 1-PropWater
C32: =1-C30 -> 0.3 | D32: gdry/gfood | E32: Eq
A33: Amount of fish consumed per day, wet weight | B33: AmntFish | C33: = (AmntDry ÷ PropDry) ÷ (1000g/kg)
B34: Central | C34: =(C29/C32)/1000 -> 6.904300435 | D34: kgfood/day | E34: Eq
B35: Lower | C35: =C34*0.3 -> 2.07129013 | D35: Note 1 | E35: Eq
B36: Upper | C36: =C34*1.7 -> 11.73731074 | D36: Note 1 | E36: Eq
A37: Proportion of diet that is contaminated | B37: Prop
B38: Central | C38: 0.3 | D38: Unitless | E38: Scenario parameter
B39: Lower | C39: 0.1 | E39: Scenario parameter
B40: Upper | C40: 1 | E40: Scenario parameter
A41: Dose
A42: Toxic Equivalency Factor for formulation: (See risk assessment if this has a value other than 1.) | B42: TEF
B43: Central | C43: ='A01'!C$17 -> 1 | D43: Unitless | E43: Worksheet A01
B44: Lower | C44: ='A01'!C$18 -> 1 | D44: Note 2 | E44: Worksheet A01
B45: Upper | C45: ='A01'!C$19 -> 1 | D45: Note 2 | E45: Worksheet A01
A46: Dose | B46: Dose | C46: = ConcFish × AmntFish × Prop ÷ BW
B47: Central | C47: =C18*C34*C38/C$22 -> 0.008871631527 | D47: mg/kg | E47: Eq
B48: Lower | C48: =C19*C35*C39/C$22 -> 5.136207726e-05 | D48: mg/kg | E48: Eq
B49: Upper | C49: 0.2645925192 | D49: mg/kg | E49: Eq
E50: FishKcalV6

Sheet F11b
A1: Acute scenario for the consumption of Contaminated Fish (Peak) by Mammal, carnivorous
A2: Short Title | B2: Fish consumption, accidental spill | E2: FishKcalV6
A3: Predator | B3: Mammal, carnivorous
A4: Food Item (Prey) | B4: Fish
A5: Duration | B5: Acute | E5: Scenario parameter
A6: Parameter/Assumption | B6: Code / Range | C6: Equation/ Value | D6: Units | E6: Reference/Designation
A7: Water
A8: Concentration in water | B8: ConcWat
B9: Central | C9: =B04a!Acute_C -> 0.114 | D9: mg/L | E9: ='B04a'!Acute_C
B10: Lower | C10: =B04a!Acute_L -> 0.0066 | E10: ='B04a'!Acute_L
B11: Upper | C11: =B04a!Acute_U -> 0.6 | E11: ='B04a'!Acute_U
A12: Fish
A13: Bioconcentration factor | B13: BCF
B14: Central | C14: ='B01'!$C$6 -> 2.63 | D14: L/kg
B15: Lower | C15: ='B01'!$C$6 -> 2.63
B16: Upper | C16: ='B01'!$C$6 -> 2.63
A17: Concentration in fish | B17: ConcFish | C17: ConcWat × BCF
B18: Central | C18: =C9*C14 -> 0.29982 | D18: mg/kg | E18: Eq
B19: Lower | C19: =C10*C15 -> 0.017358 | E19: Eq
B20: Upper | C20: =C11*C16 -> 1.578 | E20: Eq
A21: Receptor
A22: Body weight | B22: BW | C22: =A02b!$C$47 -> 5 | D22: kg | E22: U.S. EPA/ORD 1993
A23: Allometric coefficients for caloric requirement per day in kilocalories and BW in grams
B24: alpha | C24: =A02b!$C$48 -> 0.6167 | E24: U.S. EPA/ORD 1993
B25: beta | C25: =A02b!$C$49 -> 0.862 | E25: U.S. EPA/ORD 1993
A26: Caloric requirement per day | B26: KR | C26: =C24*(C22*1000)^C25 -> 951.8885266 | D26: kcal/day | E26: Eq
A27: Caloric content of commodity (dry weight) | B27: KCD | C27: ='A03'!$E$59 -> 4.47 | D27: kcal/gdw [Note 1] | E27: U.S. EPA/ORD 1993
A28: Food consumed per day (dry weight) | B28: AmntDry | C28: = KR ÷ KCD
C29: =C26/C27 -> 212.9504534 | D29: gdry/day | E29: Eq
A30: Water content of vegetation as a proportion | B30: PropWater | C30: ='A03'!$E$60 -> 0.7 | D30: gwater/gfood | E30: Ali et al. 2005
A31: Dry weight content of vegetation as a proportion | B31: PropDry | C31: = 1-PropWater
C32: =1-C30 -> 0.3 | D32: gdry/gfood | E32: Eq
A33: Amount of fish consumed per day, wet weight | B33: AmntFish | C33: = (AmntDry ÷ PropDry) ÷ (1000g/kg)
B34: Central | C34: =(C29/C32)/1000 -> 0.7098348446 | D34: kgfood/day | E34: Eq
B35: Lower | C35: =C34*0.3 -> 0.2129504534 | D35: Note 1 | E35: Eq
B36: Upper | C36: =C34*1.7 -> 1.206719236 | D36: Note 1 | E36: Eq
A37: Proportion of diet that is contaminated | B37: Prop
B38: Central | C38: 0.3 | D38: Unitless | E38: Scenario parameter
B39: Lower | C39: 0.1 | E39: Scenario parameter
B40: Upper | C40: 1 | E40: Scenario parameter
A41: Dose
A42: Toxic Equivalency Factor for formulation: (See risk assessment if this has a value other than 1.) | B42: TEF
B43: Central | C43: ='A01'!C$17 -> 1 | D43: Unitless | E43: Worksheet A01
B44: Lower | C44: ='A01'!C$18 -> 1 | D44: Note 2 | E44: Worksheet A01
B45: Upper | C45: ='A01'!C$19 -> 1 | D45: Note 2 | E45: Worksheet A01
A46: Dose | B46: Dose | C46: = ConcFish × AmntFish × Prop ÷ BW
B47: Central | C47: =C18*C34*C38/C$22 -> 0.01276936099 | D47: mg/kg | E47: Eq
B48: Lower | C48: =C19*C35*C39/C$22 -> 7.392787939e-05 | D48: mg/kg | E48: Eq
B49: Upper | C49: 0.3808405908 | D49: mg/kg | E49: Eq
E50: FishKcalV6

Sheet F11c
A1: Acute scenario for the consumption of Contaminated Fish (Peak) by Bird, piscivorous
A2: Short Title | B2: Fish consumption, accidental spill | E2: FishKcalV6
A3: Predator | B3: Bird, piscivorous
A4: Food Item (Prey) | B4: Fish
A5: Duration | B5: Acute | E5: Scenario parameter
A6: Parameter/Assumption | B6: Code / Range | C6: Equation/ Value | D6: Units | E6: Reference/Designation
A7: Water
A8: Concentration in water | B8: ConcWat
B9: Central | C9: =B04a!Acute_C -> 0.114 | D9: mg/L | E9: ='B04a'!Acute_C
B10: Lower | C10: =B04a!Acute_L -> 0.0066 | E10: ='B04a'!Acute_L
B11: Upper | C11: =B04a!Acute_U -> 0.6 | E11: ='B04a'!Acute_U
A12: Fish
A13: Bioconcentration factor | B13: BCF
B14: Central | C14: ='B01'!$C$6 -> 2.63 | D14: L/kg
B15: Lower | C15: ='B01'!$C$6 -> 2.63
B16: Upper | C16: ='B01'!$C$6 -> 2.63
A17: Concentration in fish | B17: ConcFish | C17: ConcWat × BCF
B18: Central | C18: =C9*C14 -> 0.29982 | D18: mg/kg | E18: Eq
B19: Lower | C19: =C10*C15 -> 0.017358 | E19: Eq
B20: Upper | C20: =C11*C16 -> 1.578 | E20: Eq
A21: Receptor
A22: Body weight | B22: BW | C22: =A02b!$C$24 -> 2.4 | D22: kg | E22: Sibley 2000
A23: Allometric coefficients for caloric requirement per day in kilocalories and BW in grams
B24: alpha | C24: =A02b!$C$27 -> 1.916 | E24: U.S. EPA/ORD 1993
B25: beta | C25: =A02b!$C$28 -> 0.704 | E25: U.S. EPA/ORD 1993
A26: Caloric requirement per day | B26: KR | C26: =C24*(C22*1000)^C25 -> 459.2659192 | D26: kcal/day | E26: Eq
A27: Caloric content of commodity (dry weight) | B27: KCD | C27: ='A03'!$E$36 -> 3.87 | D27: kcal/gdw [Note 1] | E27: U.S. EPA/ORD 1993
A28: Food consumed per day (dry weight) | B28: AmntDry | C28: = KR ÷ KCD
C29: =C26/C27 -> 118.6733641 | D29: gdry/day | E29: Eq
A30: Water content of vegetation as a proportion | B30: PropWater | C30: ='A03'!$E$37 -> 0.7 | D30: gwater/gfood | E30: Ali et al. 2005
A31: Dry weight content of vegetation as a proportion | B31: PropDry | C31: = 1-PropWater
C32: =1-C30 -> 0.3 | D32: gdry/gfood | E32: Eq
A33: Amount of fish consumed per day, wet weight | B33: AmntFish | C33: = (AmntDry ÷ PropDry) ÷ (1000g/kg)
B34: Central | C34: =(C29/C32)/1000 -> 0.3955778805 | D34: kgfood/day | E34: Eq
B35: Lower | C35: =C34*0.3 -> 0.1186733641 | D35: Note 1 | E35: Eq
B36: Upper | C36: =C34*1.7 -> 0.6724823968 | D36: Note 1 | E36: Eq
A37: Proportion of diet that is contaminated | B37: Prop
B38: Central | C38: 0.3 | D38: Unitless | E38: Scenario parameter
B39: Lower | C39: 0.1 | E39: Scenario parameter
B40: Upper | C40: 1 | E40: Scenario parameter
A41: Dose
A42: Toxic Equivalency Factor for formulation: (See risk assessment if this has a value other than 1.) | B42: TEF
B43: Central | C43: ='A01'!C$17 -> 1 | D43: Unitless | E43: Worksheet A01
B44: Lower | C44: ='A01'!C$18 -> 1 | D44: Note 2 | E44: Worksheet A01
B45: Upper | C45: ='A01'!C$19 -> 1 | D45: Note 2 | E45: Worksheet A01
A46: Dose | B46: Dose | C46: = ConcFish × AmntFish × Prop ÷ BW
B47: Central | C47: =C18*C34*C38/C$22 -> 0.01482527002 | D47: mg/kg | E47: Eq
B48: Lower | C48: =C19*C35*C39/C$22 -> 8.583051062e-05 | D48: mg/kg | E48: Eq
B49: Upper | C49: 0.4421571759 | D49: mg/kg | E49: Eq
E50: FishKcalV6

Sheet F12a
A1: Consumption of Fruit by a Mammal, small after Chronic exposure.
A2: Short Title | B2: Fruit | E2: FdKcalV6
A3: Receptor | B3: Mammal, small
A4: Duration | B4: Chronic | E4: Scenario parameter
A5: Material consumed | B5: Fruit
A6: Parameter/Assumption | B6: Code / Range | C6: Equation/ Value | D6: Units | E6: Reference/Designation
A7: Commodity
A8: Concentration on consumed commodity | B8: Conc
B9: Central | C9: =B05a!Chronic_C -> 0.070692057 | D9: mg/kg food wet weight | E9: ='B05a'!Chronic_C
B10: Lower | C10: =B05a!Chronic_L -> 0.03282131218 | E10: ='B05a'!Chronic_L
B11: Upper | C11: =B05a!Chronic_U -> 0.1514829793 | E11: ='B05a'!Chronic_U
A12: Receptor
A13: Body weight | B13: BW | C13: =A02b!$C$71 -> 0.02 | D13: kg | E13: Default
A14: Allometric coefficients for caloric requirement per day in kilocalories and BW in grams
B15: alpha | C15: =A02b!$C$75 -> 2.514 | E15: U.S. EPA/ORD 1993
B16: beta | C16: =A02b!$C$76 -> 0.507 | E16: U.S. EPA/ORD 1993
A17: Caloric requirement per day | B17: KR | C17: = alpha x (BW x 1kg/1000g)beta
C18: =C15*((C13*1000)^C16) -> 11.48120526 | D18: kcal/day | E18: Eq
A19: Caloric content of commodity (dry weight) | B19: KCD | C19: ='A03'!$E$61 -> 1.1 | D19: kcal/gdw [Note 1] | E19: U.S. EPA/ORD 1993
A20: Food consumed per day (dry weight) | B20: AmntDry | C20: = KR ÷ KCD
C21: =C18/C19 -> 10.43745932 | D21: gdry/day | E21: Eq
A22: Water content of food item as a proportion | B22: PropWater | C22: ='A03'!$E$62 -> 0.77 | D22: gwater/gfood | E22: U.S. EPA/ORD 1993
A23: Dry weight content of food item as a proportion | B23: PropDry | C23: = 1-PropWater
C24: =1-C22 -> 0.23 | D24: gdry/gfood | E24: Eq
A25: Variability in caloric requirements not accounted for by allometric equation | B25: Error
B26: Central | C26: 1 | D26: Note 2
B27: Lower | C27: 0.3
B28: Upper | C28: 1.7
A29: Amount of food consumed per day, wet weight | B29: AmntFood | C29: = Error x (AmntDry ÷ PropDry) ÷ (1000g/kg)
B30: Central | C30: =C26*(C$21/C$24)/1000 -> 0.04538025793 | D30: kgfood/day | E30: Eq
B31: Lower | C31: =C27*(C$21/C$24)/1000 -> 0.01361407738 | E31: Eq
B32: Upper | C32: 0.07714643848 | E32: Eq
A33: Estimate
A34: Dose | B34: Dose | C34: = AmntFood × Conc / BW
B35: Central | C35: =$C30 * C9/C$13 -> 0.160401189 | D35: mg/kg bw/day | E35: Eq
B36: Lower | C36: =$C31 * C10/C$13 -> 0.02234159419 | E36: Eq
B37: Upper | C37: =$C32 * C11/C$13 -> 0.5843186171 | E37: Eq

Sheet F12b
A1: Consumption of Fruit by a Mammal, 400 g after Chronic exposure.
A2: Short Title | B2: Fruit | E2: FdKcalV6
A3: Receptor | B3: Mammal, 400 g
A4: Duration | B4: Chronic | E4: Scenario parameter
A5: Material consumed | B5: Fruit
A6: Parameter/Assumption | B6: Code / Range | C6: Equation/ Value | D6: Units | E6: Reference/Designation
A7: Commodity
A8: Concentration on consumed commodity | B8: Conc
B9: Central | C9: =B05a!Chronic_C -> 0.070692057 | D9: mg/kg food wet weight | E9: ='B05a'!Chronic_C
B10: Lower | C10: =B05a!Chronic_L -> 0.03282131218 | E10: ='B05a'!Chronic_L
B11: Upper | C11: =B05a!Chronic_U -> 0.1514829793 | E11: ='B05a'!Chronic_U
A12: Receptor
A13: Body weight | B13: BW | C13: =A02b!$C$40 -> 0.4 | D13: kg | E13: Default
A14: Allometric coefficients for caloric requirement per day in kilocalories and BW in grams
B15: alpha | C15: =A02b!$C$43 -> 2.514 | E15: U.S. EPA/ORD 1993
B16: beta | C16: =A02b!$C$44 -> 0.507 | E16: U.S. EPA/ORD 1993
A17: Caloric requirement per day | B17: KR | C17: = alpha x (BW x 1kg/1000g)beta
C18: =C15*((C13*1000)^C16) -> 52.43360149 | D18: kcal/day | E18: Eq
A19: Caloric content of commodity (dry weight) | B19: KCD | C19: ='A03'!$E$61 -> 1.1 | D19: kcal/gdw [Note 1] | E19: U.S. EPA/ORD 1993
A20: Food consumed per day (dry weight) | B20: AmntDry | C20: = KR ÷ KCD
C21: =C18/C19 -> 47.66691044 | D21: gdry/day | E21: Eq
A22: Water content of food item as a proportion | B22: PropWater | C22: ='A03'!$E$62 -> 0.77 | D22: gwater/gfood | E22: U.S. EPA/ORD 1993
A23: Dry weight content of food item as a proportion | B23: PropDry | C23: = 1-PropWater
C24: =1-C22 -> 0.23 | D24: gdry/gfood | E24: Eq
A25: Variability in caloric requirements not accounted for by allometric equation | B25: Error
B26: Central | C26: 1 | D26: Note 2
B27: Lower | C27: 0.3
B28: Upper | C28: 1.7
A29: Amount of food consumed per day, wet weight | B29: AmntFood | C29: = Error x (AmntDry ÷ PropDry) ÷ (1000g/kg)
B30: Central | C30: =C26*(C$21/C$24)/1000 -> 0.2072474367 | D30: kgfood/day | E30: Eq
B31: Lower | C31: =C27*(C$21/C$24)/1000 -> 0.06217423101 | E31: Eq
B32: Upper | C32: 0.3523206424 | E32: Eq
A33: Estimate
A34: Dose | B34: Dose | C34: = AmntFood × Conc / BW
B35: Central | C35: =$C30 * C9/C$13 -> 0.03662686902 | D35: mg/kg bw/day | E35: Eq
B36: Lower | C36: =$C31 * C10/C$13 -> 0.005101599614 | E36: Eq
B37: Upper | C37: =$C32 * C11/C$13 -> 0.1334264514 | E37: Eq

Sheet F12c
A1: Consumption of Fruit by a Mammal, large after Chronic exposure.
A2: Short Title | B2: Fruit | E2: FdKcalV6
A3: Receptor | B3: Mammal, large
A4: Duration | B4: Chronic | E4: Scenario parameter
A5: Material consumed | B5: Fruit
A6: Parameter/Assumption | B6: Code / Range | C6: Equation/ Value | D6: Units | E6: Reference/Designation
A7: Commodity
A8: Concentration on consumed commodity | B8: Conc
B9: Central | C9: =B05a!Chronic_C -> 0.070692057 | D9: mg/kg food wet weight | E9: ='B05a'!Chronic_C
B10: Lower | C10: =B05a!Chronic_L -> 0.03282131218 | E10: ='B05a'!Chronic_L
B11: Upper | C11: =B05a!Chronic_U -> 0.1514829793 | E11: ='B05a'!Chronic_U
A12: Receptor
A13: Body weight | B13: BW | C13: =A02b!$C$61 -> 70 | D13: kg | E13: Default
A14: Allometric coefficients for caloric requirement per day in kilocalories and BW in grams
B15: alpha | C15: =A02b!$C$62 -> 1.518 | E15: U.S. EPA/ORD 1993
B16: beta | C16: =A02b!$C$63 -> 0.73 | E16: U.S. EPA/ORD 1993
A17: Caloric requirement per day | B17: KR | C17: = alpha x (BW x 1kg/1000g)beta
C18: =C15*((C13*1000)^C16) -> 5226.28803 | D18: kcal/day | E18: Eq
A19: Caloric content of commodity (dry weight) | B19: KCD | C19: ='A03'!$E$61 -> 1.1 | D19: kcal/gdw [Note 1] | E19: U.S. EPA/ORD 1993
A20: Food consumed per day (dry weight) | B20: AmntDry | C20: = KR ÷ KCD
C21: =C18/C19 -> 4751.170936 | D21: gdry/day | E21: Eq
A22: Water content of food item as a proportion | B22: PropWater | C22: ='A03'!$E$62 -> 0.77 | D22: gwater/gfood | E22: U.S. EPA/ORD 1993
A23: Dry weight content of food item as a proportion | B23: PropDry | C23: = 1-PropWater
C24: =1-C22 -> 0.23 | D24: gdry/gfood | E24: Eq
A25: Variability in caloric requirements not accounted for by allometric equation | B25: Error
B26: Central | C26: 1 | D26: Note 2
B27: Lower | C27: 0.3
B28: Upper | C28: 1.7
A29: Amount of food consumed per day, wet weight | B29: AmntFood | C29: = Error x (AmntDry ÷ PropDry) ÷ (1000g/kg)
B30: Central | C30: =C26*(C$21/C$24)/1000 -> 20.65726494 | D30: kgfood/day | E30: Eq
B31: Lower | C31: =C27*(C$21/C$24)/1000 -> 6.197179482 | E31: Eq
B32: Upper | C32: 35.1173504 | E32: Eq
A33: Estimate
A34: Dose | B34: Dose | C34: = AmntFood × Conc / BW
B35: Central | C35: =$C30 * C9/C$13 -> 0.02086149358 | D35: mg/kg bw/day | E35: Eq
B36: Lower | C36: =$C31 * C10/C$13 -> 0.002905708034 | E36: Eq
B37: Upper | C37: =$C32 * C11/C$13 -> 0.0759954409 | E37: Eq

Sheet F12d
A1: Consumption of Fruit by a Bird, small after Chronic exposure.
A2: Short Title | B2: Fruit | E2: FdKcalV6
A3: Receptor | B3: Bird, small
A4: Duration | B4: Chronic | E4: Scenario parameter
A5: Material consumed | B5: Fruit
A6: Parameter/Assumption | B6: Code / Range | C6: Equation/ Value | D6: Units | E6: Reference/Designation
A7: Commodity
A8: Concentration on consumed commodity | B8: Conc
B9: Central | C9: =B05a!Chronic_C -> 0.070692057 | D9: mg/kg food wet weight | E9: ='B05a'!Chronic_C
B10: Lower | C10: =B05a!Chronic_L -> 0.03282131218 | E10: ='B05a'!Chronic_L
B11: Upper | C11: =B05a!Chronic_U -> 0.1514829793 | E11: ='B05a'!Chronic_U
A12: Receptor
A13: Body weight | B13: BW | C13: =A02b!$C$31 -> 0.01 | D13: kg | E13: Default
A14: Allometric coefficients for caloric requirement per day in kilocalories and BW in grams
B15: alpha | C15: =A02b!$C$32 -> 3.12 | E15: U.S. EPA/ORD 1993
B16: beta | C16: =A02b!$C$33 -> 0.605 | E16: U.S. EPA/ORD 1993
A17: Caloric requirement per day | B17: KR | C17: = alpha x (BW x 1kg/1000g)beta
C18: =C15*((C13*1000)^C16) -> 12.56477147 | D18: kcal/day | E18: Eq
A19: Caloric content of commodity (dry weight) | B19: KCD | C19: ='A03'!$E$38 -> 1.1 | D19: kcal/gdw [Note 1] | E19: U.S. EPA/ORD 1993
A20: Food consumed per day (dry weight) | B20: AmntDry | C20: = KR ÷ KCD
C21: =C18/C19 -> 11.42251952 | D21: gdry/day | E21: Eq
A22: Water content of food item as a proportion | B22: PropWater | C22: ='A03'!$E$39 -> 0.77 | D22: gwater/gfood | E22: U.S. EPA/ORD 1993
A23: Dry weight content of food item as a proportion | B23: PropDry | C23: = 1-PropWater
C24: =1-C22 -> 0.23 | D24: gdry/gfood | E24: Eq
A25: Variability in caloric requirements not accounted for by allometric equation | B25: Error
B26: Central | C26: 1 | D26: Note 2
B27: Lower | C27: 0.3
B28: Upper | C28: 1.7
A29: Amount of food consumed per day, wet weight | B29: AmntFood | C29: = Error x (AmntDry ÷ PropDry) ÷ (1000g/kg)
B30: Central | C30: =C26*(C$21/C$24)/1000 -> 0.04966312834 | D30: kgfood/day | E30: Eq
B31: Lower | C31: =C27*(C$21/C$24)/1000 -> 0.0148989385 | E31: Eq
B32: Upper | C32: 0.08442731818 | E32: Eq
A33: Estimate
A34: Dose | B34: Dose | C34: = AmntFood × Conc / BW
B35: Central | C35: =$C30 * C9/C$13 -> 0.35107887 | D35: mg/kg bw/day | E35: Eq
B36: Lower | C36: =$C31 * C10/C$13 -> 0.04890027118 | E36: Eq
B37: Upper | C37: =$C32 * C11/C$13 -> 1.278930169 | E37: Eq

Sheet F12e
A1: Consumption of Fruit by a Bird, large after Chronic exposure.
A2: Short Title | B2: Fruit | E2: FdKcalV6
A3: Receptor | B3: Bird, large
A4: Duration | B4: Chronic | E4: Scenario parameter
A5: Material consumed | B5: Fruit
A6: Parameter/Assumption | B6: Code / Range | C6: Equation/ Value | D6: Units | E6: Reference/Designation
A7: Commodity
A8: Concentration on consumed commodity | B8: Conc
B9: Central | C9: =B05a!Chronic_C -> 0.070692057 | D9: mg/kg food wet weight | E9: ='B05a'!Chronic_C
B10: Lower | C10: =B05a!Chronic_L -> 0.03282131218 | E10: ='B05a'!Chronic_L
B11: Upper | C11: =B05a!Chronic_U -> 0.1514829793 | E11: ='B05a'!Chronic_U
A12: Receptor
A13: Body weight | B13: BW | C13: =A02b!$C$15 -> 4 | D13: kg | E13: Default
A14: Allometric coefficients for caloric requirement per day in kilocalories and BW in grams
B15: alpha | C15: =A02b!$C$16 -> 1.146 | E15: U.S. EPA/ORD 1993
B16: beta | C16: =A02b!$C$17 -> 0.749 | E16: U.S. EPA/ORD 1993
A17: Caloric requirement per day | B17: KR | C17: = alpha x (BW x 1kg/1000g)beta
C18: =C15*((C13*1000)^C16) -> 571.6465031 | D18: kcal/day | E18: Eq
A19: Caloric content of commodity (dry weight) | B19: KCD | C19: ='A03'!$E$38 -> 1.1 | D19: kcal/gdw [Note 1] | E19: U.S. EPA/ORD 1993
A20: Food consumed per day (dry weight) | B20: AmntDry | C20: = KR ÷ KCD
C21: =C18/C19 -> 519.6786392 | D21: gdry/day | E21: Eq
A22: Water content of food item as a proportion | B22: PropWater | C22: ='A03'!$E$39 -> 0.77 | D22: gwater/gfood | E22: U.S. EPA/ORD 1993
A23: Dry weight content of food item as a proportion | B23: PropDry | C23: = 1-PropWater
C24: =1-C22 -> 0.23 | D24: gdry/gfood | E24: Eq
A25: Variability in caloric requirements not accounted for by allometric equation | B25: Error
B26: Central | C26: 1 | D26: Note 2
B27: Lower | C27: 0.3
B28: Upper | C28: 1.7
A29: Amount of food consumed per day, wet weight | B29: AmntFood | C29: = Error x (AmntDry ÷ PropDry) ÷ (1000g/kg)
B30: Central | C30: =C26*(C$21/C$24)/1000 -> 2.259472344 | D30: kgfood/day | E30: Eq
B31: Lower | C31: =C27*(C$21/C$24)/1000 -> 0.6778417033 | E31: Eq
B32: Upper | C32: 3.841102985 | E32: Eq
A33: Estimate
A34: Dose | B34: Dose | C34: = AmntFood × Conc / BW
B35: Central | C35: =$C30 * C9/C$13 -> 0.03993168694 | D35: mg/kg bw/day | E35: Eq
B36: Lower | C36: =$C31 * C10/C$13 -> 0.005561913538 | E36: Eq
B37: Upper | C37: =$C32 * C11/C$13 -> 0.145465431 | E37: Eq

Sheet F13a
A1: Consumption of Broadleaf Vegetation by a Mammal, small after Chronic exposure.
A2: Short Title | B2: Broadleaf | E2: FdKcalV6
A3: Receptor | B3: Mammal, small
A4: Duration | B4: Chronic | E4: Scenario parameter
A5: Material consumed | B5: Broadleaf Vegetation
A6: Parameter/Assumption | B6: Code / Range | C6: Equation/ Value | D6: Units | E6: Reference/Designation
A7: Commodity
A8: Concentration on consumed commodity | B8: Conc
B9: Central | C9: =B05b!Chronic_C -> 0.4544489379 | D9: mg/kg food wet weight | E9: ='B05b'!Chronic_C
B10: Lower | C10: =B05b!Chronic_L -> 0.1514829793 | E10: ='B05b'!Chronic_L
B11: Upper | C11: =B05b!Chronic_U -> 1.363346814 | E11: ='B05b'!Chronic_U
A12: Receptor
A13: Body weight | B13: BW | C13: =A02b!$C$71 -> 0.02 | D13: kg | E13: Default
A14: Allometric coefficients for caloric requirement per day in kilocalories and BW in grams
B15: alpha | C15: =A02b!$C$75 -> 2.514 | E15: U.S. EPA/ORD 1993
B16: beta | C16: =A02b!$C$76 -> 0.507 | E16: U.S. EPA/ORD 1993
A17: Caloric requirement per day | B17: KR | C17: = alpha x (BW x 1kg/1000g)beta
C18: =C15*((C13*1000)^C16) -> 11.48120526 | D18: kcal/day | E18: Eq
A19: Caloric content of commodity (dry weight) | B19: KCD | C19: ='A03'!$E$65 -> 2.26 | D19: kcal/gdw [Note 1] | E19: U.S. EPA/ORD 1993
A20: Food consumed per day (dry weight) | B20: AmntDry | C20: = KR ÷ KCD
C21: =C18/C19 -> 5.080179317 | D21: gdry/day | E21: Eq
A22: Water content of food item as a proportion | B22: PropWater | C22: ='A03'!$E$66 -> 0.85 | D22: gwater/gfood | E22: U.S. EPA/ORD 1993
A23: Dry weight content of food item as a proportion | B23: PropDry | C23: = 1-PropWater
C24: =1-C22 -> 0.15 | D24: gdry/gfood | E24: Eq
A25: Variability in caloric requirements not accounted for by allometric equation | B25: Error
B26: Central | C26: 1 | D26: Note 2
B27: Lower | C27: 0.3
B28: Upper | C28: 1.7
A29: Amount of food consumed per day, wet weight | B29: AmntFood | C29: = Error x (AmntDry ÷ PropDry) ÷ (1000g/kg)
B30: Central | C30: =C26*(C$21/C$24)/1000 -> 0.03386786211 | D30: kgfood/day | E30: Eq
B31: Lower | C31: =C27*(C$21/C$24)/1000 -> 0.01016035863 | E31: Eq
B32: Upper | C32: 0.05757536559 | E32: Eq
A33: Estimate
A34: Dose | B34: Dose | C34: = AmntFood × Conc / BW
B35: Central | C35: =$C30 * C9/C$13 -> 0.7695606983 | D35: mg/kg bw/day | E35: Eq
B36: Lower | C36: =$C31 * C10/C$13 -> 0.07695606983 | E36: Eq
B37: Upper | C37: =$C32 * C11/C$13 -> 3.924759561 | E37: Eq

Sheet F13b
A1: Consumption of Broadleaf Vegetation by a Mammal, 400 g after Chronic exposure.
A2: Short Title | B2: Broadleaf | E2: FdKcalV6
A3: Receptor | B3: Mammal, 400 g
A4: Duration | B4: Chronic | E4: Scenario parameter
A5: Material consumed | B5: Broadleaf Vegetation
A6: Parameter/Assumption | B6: Code / Range | C6: Equation/ Value | D6: Units | E6: Reference/Designation
A7: Commodity
A8: Concentration on consumed commodity | B8: Conc
B9: Central | C9: =B05b!Chronic_C -> 0.4544489379 | D9: mg/kg food wet weight | E9: ='B05b'!Chronic_C
B10: Lower | C10: =B05b!Chronic_L -> 0.1514829793 | E10: ='B05b'!Chronic_L
B11: Upper | C11: =B05b!Chronic_U -> 1.363346814 | E11: ='B05b'!Chronic_U
A12: Receptor
A13: Body weight | B13: BW | C13: =A02b!$C$40 -> 0.4 | D13: kg | E13: Default
A14: Allometric coefficients for caloric requirement per day in kilocalories and BW in grams
B15: alpha | C15: =A02b!$C$43 -> 2.514 | E15: U.S. EPA/ORD 1993
B16: beta | C16: =A02b!$C$44 -> 0.507 | E16: U.S. EPA/ORD 1993
A17: Caloric requirement per day | B17: KR | C17: = alpha x (BW x 1kg/1000g)beta
C18: =C15*((C13*1000)^C16) -> 52.43360149 | D18: kcal/day | E18: Eq
A19: Caloric content of commodity (dry weight) | B19: KCD | C19: ='A03'!$E$65 -> 2.26 | D19: kcal/gdw [Note 1] | E19: U.S. EPA/ORD 1993
A20: Food consumed per day (dry weight) | B20: AmntDry | C20: = KR ÷ KCD
C21: =C18/C19 -> 23.20070862 | D21: gdry/day | E21: Eq
A22: Water content of food item as a proportion | B22: PropWater | C22: ='A03'!$E$66 -> 0.85 | D22: gwater/gfood | E22: U.S. EPA/ORD 1993
A23: Dry weight content of food item as a proportion | B23: PropDry | C23: = 1-PropWater
C24: =1-C22 -> 0.15 | D24: gdry/gfood | E24: Eq
A25: Variability in caloric requirements not accounted for by allometric equation | B25: Error
B26: Central | C26: 1 | D26: Note 2
B27: Lower | C27: 0.3
B28: Upper | C28: 1.7
A29: Amount of food consumed per day, wet weight | B29: AmntFood | C29: = Error x (AmntDry ÷ PropDry) ÷ (1000g/kg)
B30: Central | C30: =C26*(C$21/C$24)/1000 -> 0.1546713908 | D30: kgfood/day | E30: Eq
B31: Lower | C31: =C27*(C$21/C$24)/1000 -> 0.04640141724 | E31: Eq
B32: Upper | C32: 0.2629413644 | E32: Eq
A33: Estimate
A34: Dose | B34: Dose | C34: = AmntFood × Conc / BW
B35: Central | C35: =$C30 * C9/C$13 -> 0.1757256232 | D35: mg/kg bw/day | E35: Eq
B36: Lower | C36: =$C31 * C10/C$13 -> 0.01757256232 | E36: Eq
B37: Upper | C37: =$C32 * C11/C$13 -> 0.8962006783 | E37: Eq

Sheet F13c
A1: Consumption of Broadleaf Vegetation by a Mammal, large after Chronic exposure.
A2: Short Title | B2: Broadleaf | E2: FdKcalV6
A3: Receptor | B3: Mammal, large
A4: Duration | B4: Chronic | E4: Scenario parameter
A5: Material consumed | B5: Broadleaf Vegetation
A6: Parameter/Assumption | B6: Code / Range | C6: Equation/ Value | D6: Units | E6: Reference/Designation
A7: Commodity
A8: Concentration on consumed commodity | B8: Conc
B9: Central | C9: =B05b!Chronic_C -> 0.4544489379 | D9: mg/kg food wet weight | E9: ='B05b'!Chronic_C
B10: Lower | C10: =B05b!Chronic_L -> 0.1514829793 | E10: ='B05b'!Chronic_L
B11: Upper | C11: =B05b!Chronic_U -> 1.363346814 | E11: ='B05b'!Chronic_U
A12: Receptor
A13: Body weight | B13: BW | C13: =A02b!$C$61 -> 70 | D13: kg | E13: Default
A14: Allometric coefficients for caloric requirement per day in kilocalories and BW in grams
B15: alpha | C15: =A02b!$C$62 -> 1.518 | E15: U.S. EPA/ORD 1993
B16: beta | C16: =A02b!$C$63 -> 0.73 | E16: U.S. EPA/ORD 1993
A17: Caloric requirement per day | B17: KR | C17: = alpha x (BW x 1kg/1000g)beta
C18: =C15*((C13*1000)^C16) -> 5226.28803 | D18: kcal/day | E18: Eq
A19: Caloric content of commodity (dry weight) | B19: KCD | C19: ='A03'!$E$65 -> 2.26 | D19: kcal/gdw [Note 1] | E19: U.S. EPA/ORD 1993
A20: Food consumed per day (dry weight) | B20: AmntDry | C20: = KR ÷ KCD
C21: =C18/C19 -> 2312.516827 | D21: gdry/day | E21: Eq
A22: Water content of food item as a proportion | B22: PropWater | C22: ='A03'!$E$66 -> 0.85 | D22: gwater/gfood | E22: U.S. EPA/ORD 1993
A23: Dry weight content of food item as a proportion | B23: PropDry | C23: = 1-PropWater
C24: =1-C22 -> 0.15 | D24: gdry/gfood | E24: Eq
A25: Variability in caloric requirements not accounted for by allometric equation | B25: Error
B26: Central | C26: 1 | D26: Note 2
B27: Lower | C27: 0.3
B28: Upper | C28: 1.7
A29: Amount of food consumed per day, wet weight | B29: AmntFood | C29: = Error x (AmntDry ÷ PropDry) ÷ (1000g/kg)
B30: Central | C30: =C26*(C$21/C$24)/1000 -> 15.41677885 | D30: kgfood/day | E30: Eq
B31: Lower | C31: =C27*(C$21/C$24)/1000 -> 4.625033655 | E31: Eq
B32: Upper | C32: 26.20852404 | E32: Eq
A33: Estimate
A34: Dose | B34: Dose | C34: = AmntFood × Conc / BW
B35: Central | C35: =$C30 * C9/C$13 -> 0.1000876968 | D35: mg/kg bw/day | E35: Eq
B36: Lower | C36: =$C31 * C10/C$13 -> 0.01000876968 | E36: Eq
B37: Upper | C37: =$C32 * C11/C$13 -> 0.5104472535 | E37: Eq

Sheet F13d
A1: Consumption of Broadleaf Vegetation by a Bird, small after Chronic exposure.
A2: Short Title | B2: Broadleaf | E2: FdKcalV6
A3: Receptor | B3: Bird, small
A4: Duration | B4: Chronic | E4: Scenario parameter
A5: Material consumed | B5: Broadleaf Vegetation
A6: Parameter/Assumption | B6: Code / Range | C6: Equation/ Value | D6: Units | E6: Reference/Designation
A7: Commodity
A8: Concentration on consumed commodity | B8: Conc
B9: Central | C9: =B05b!Chronic_C -> 0.4544489379 | D9: mg/kg food wet weight | E9: ='B05b'!Chronic_C
B10: Lower | C10: =B05b!Chronic_L -> 0.1514829793 | E10: ='B05b'!Chronic_L
B11: Upper | C11: =B05b!Chronic_U -> 1.363346814 | E11: ='B05b'!Chronic_U
A12: Receptor
A13: Body weight | B13: BW | C13: =A02b!$C$31 -> 0.01 | D13: kg | E13: Default
A14: Allometric coefficients for caloric requirement per day in kilocalories and BW in grams
B15: alpha | C15: =A02b!$C$32 -> 3.12 | E15: U.S. EPA/ORD 1993
B16: beta | C16: =A02b!$C$33 -> 0.605 | E16: U.S. EPA/ORD 1993
A17: Caloric requirement per day | B17: KR | C17: = alpha x (BW x 1kg/1000g)beta
C18: =C15*((C13*1000)^C16) -> 12.56477147 | D18: kcal/day | E18: Eq
A19: Caloric content of commodity (dry weight) | B19: KCD | C19: ='A03'!$E$42 -> 2 | D19: kcal/gdw [Note 1] | E19: U.S. EPA/ORD 1993
A20: Food consumed per day (dry weight) | B20: AmntDry | C20: = KR ÷ KCD
C21: =C18/C19 -> 6.282385735 | D21: gdry/day | E21: Eq
A22: Water content of food item as a proportion | B22: PropWater | C22: ='A03'!$E$43 -> 0.85 | D22: gwater/gfood | E22: U.S. EPA/ORD 1993
A23: Dry weight content of food item as a proportion | B23: PropDry | C23: = 1-PropWater
C24: =1-C22 -> 0.15 | D24: gdry/gfood | E24: Eq
A25: Variability in caloric requirements not accounted for by allometric equation | B25: Error
B26: Central | C26: 1 | D26: Note 2
B27: Lower | C27: 0.3
B28: Upper | C28: 1.7
A29: Amount of food consumed per day, wet weight | B29: AmntFood | C29: = Error x (AmntDry ÷ PropDry) ÷ (1000g/kg)
B30: Central | C30: =C26*(C$21/C$24)/1000 -> 0.04188257157 | D30: kgfood/day | E30: Eq
B31: Lower | C31: =C27*(C$21/C$24)/1000 -> 0.01256477147 | E31: Eq
B32: Upper | C32: 0.07120037167 | E32: Eq
A33: Estimate
A34: Dose | B34: Dose | C34: = AmntFood × Conc / BW
B35: Central | C35: =$C30 * C9/C$13 -> 1.903349017 | D35: mg/kg bw/day | E35: Eq
B36: Lower | C36: =$C31 * C10/C$13 -> 0.1903349017 | E36: Eq
B37: Upper | C37: =$C32 * C11/C$13 -> 9.707079984 | E37: Eq

Sheet F13e
A1: Consumption of Broadleaf Vegetation by a Bird, large after Chronic exposure.
A2: Short Title | B2: Broadleaf | E2: FdKcalV6
A3: Receptor | B3: Bird, large
A4: Duration | B4: Chronic | E4: Scenario parameter
A5: Material consumed | B5: Broadleaf Vegetation
A6: Parameter/Assumption | B6: Code / Range | C6: Equation/ Value | D6: Units | E6: Reference/Designation
A7: Commodity
A8: Concentration on consumed commodity | B8: Conc
B9: Central | C9: =B05b!Chronic_C -> 0.4544489379 | D9: mg/kg food wet weight | E9: ='B05b'!Chronic_C
B10: Lower | C10: =B05b!Chronic_L -> 0.1514829793 | E10: ='B05b'!Chronic_L
B11: Upper | C11: =B05b!Chronic_U -> 1.363346814 | E11: ='B05b'!Chronic_U
A12: Receptor
A13: Body weight | B13: BW | C13: =A02b!$C$15 -> 4 | D13: kg | E13: Default
A14: Allometric coefficients for caloric requirement per day in kilocalories and BW in grams
B15: alpha | C15: =A02b!$C$16 -> 1.146 | E15: U.S. EPA/ORD 1993
B16: beta | C16: =A02b!$C$17 -> 0.749 | E16: U.S. EPA/ORD 1993
A17: Caloric requirement per day | B17: KR | C17: = alpha x (BW x 1kg/1000g)beta
C18: =C15*((C13*1000)^C16) -> 571.6465031 | D18: kcal/day | E18: Eq
A19: Caloric content of commodity (dry weight) | B19: KCD | C19: ='A03'!$E$42 -> 2 | D19: kcal/gdw [Note 1] | E19: U.S. EPA/ORD 1993
A20: Food consumed per day (dry weight) | B20: AmntDry | C20: = KR ÷ KCD
C21: =C18/C19 -> 285.8232515 | D21: gdry/day | E21: Eq
A22: Water content of food item as a proportion | B22: PropWater | C22: ='A03'!$E$43 -> 0.85 | D22: gwater/gfood | E22: U.S. EPA/ORD 1993
A23: Dry weight content of food item as a proportion | B23: PropDry | C23: = 1-PropWater
C24: =1-C22 -> 0.15 | D24: gdry/gfood | E24: Eq
A25: Variability in caloric requirements not accounted for by allometric equation | B25: Error
B26: Central | C26: 1 | D26: Note 2
B27: Lower | C27: 0.3
B28: Upper | C28: 1.7
A29: Amount of food consumed per day, wet weight | B29: AmntFood | C29: = Error x (AmntDry ÷ PropDry) ÷ (1000g/kg)
B30: Central | C30: =C26*(C$21/C$24)/1000 -> 1.905488344 | D30: kgfood/day | E30: Eq
B31: Lower | C31: =C27*(C$21/C$24)/1000 -> 0.5716465031 | E31: Eq
B32: Upper | C32: 3.239330184 | E32: Eq
A33: Estimate
A34: Dose | B34: Dose | C34: = AmntFood × Conc / BW
B35: Central | C35: =$C30 * C9/C$13 -> 0.2164867885 | D35: mg/kg bw/day | E35: Eq
B36: Lower | C36: =$C31 * C10/C$13 -> 0.02164867885 | E36: Eq
B37: Upper | C37: =$C32 * C11/C$13 -> 1.104082621 | E37: Eq

Sheet F14a
A1: Consumption of Tall grass by a Mammal, small after Chronic exposure.
A2: Short Title | B2: Tall Grass | E2: FdKcalV6
A3: Receptor | B3: Mammal, small
A4: Duration | B4: Chronic | E4: Scenario parameter
A5: Material consumed | B5: Tall grass
A6: Parameter/Assumption | B6: Code / Range | C6: Equation/ Value | D6: Units | E6: Reference/Designation
A7: Commodity
A8: Concentration on consumed commodity | B8: Conc
B9: Central | C9: =B05d!Chronic_C -> 0.3635591503 | D9: mg/kg food wet weight | E9: ='B05d'!Chronic_C
B10: Lower | C10: =B05d!Chronic_L -> 0.1211863834 | E10: ='B05d'!Chronic_L
B11: Upper | C11: =B05d!Chronic_U -> 1.110875181 | E11: ='B05d'!Chronic_U
A12: Receptor
A13: Body weight | B13: BW | C13: =A02b!$C$71 -> 0.02 | D13: kg | E13: Default
A14: Allometric coefficients for caloric requirement per day in kilocalories and BW in grams
B15: alpha | C15: =A02b!$C$75 -> 2.514 | E15: U.S. EPA/ORD 1993
B16: beta | C16: =A02b!$C$76 -> 0.507 | E16: U.S. EPA/ORD 1993
A17: Caloric requirement per day | B17: KR | C17: = alpha x (BW x 1kg/1000g)beta
C18: =C15*((C13*1000)^C16) -> 11.48120526 | D18: kcal/day | E18: Eq
A19: Caloric content of commodity (dry weight) | B19: KCD | C19: ='A03'!$E$65 -> 2.26 | D19: kcal/gdw [Note 1] | E19: U.S. EPA/ORD 1993
A20: Food consumed per day (dry weight) | B20: AmntDry | C20: = KR ÷ KCD
C21: =C18/C19 -> 5.080179317 | D21: gdry/day | E21: Eq
A22: Water content of food item as a proportion | B22: PropWater | C22: ='A03'!$E$66 -> 0.85 | D22: gwater/gfood | E22: U.S. EPA/ORD 1993
A23: Dry weight content of food item as a proportion | B23: PropDry | C23: = 1-PropWater
C24: =1-C22 -> 0.15 | D24: gdry/gfood | E24: Eq
A25: Variability in caloric requirements not accounted for by allometric equation | B25: Error
B26: Central | C26: 1 | D26: Note 2
B27: Lower | C27: 0.3
B28: Upper | C28: 1.7
A29: Amount of food consumed per day, wet weight | B29: AmntFood | C29: = Error x (AmntDry ÷ PropDry) ÷ (1000g/kg)
B30: Central | C30: =C26*(C$21/C$24)/1000 -> 0.03386786211 | D30: kgfood/day | E30: Eq
B31: Lower | C31: =C27*(C$21/C$24)/1000 -> 0.01016035863 | E31: Eq
B32: Upper | C32: 0.05757536559 | E32: Eq
A33: Estimate
A34: Dose | B34: Dose | C34: = AmntFood × Conc / BW
B35: Central | C35: =$C30 * C9/C$13 -> 0.6156485586 | D35: mg/kg bw/day | E35: Eq
B36: Lower | C36: =$C31 * C10/C$13 -> 0.06156485586 | E36: Eq
B37: Upper | C37: =$C32 * C11/C$13 -> 3.197952235 | E37: Eq

Sheet F14b
A1: Consumption of Tall grass by a Mammal, 400 g after Chronic exposure.
A2: Short Title | B2: Tall Grass | E2: FdKcalV6
A3: Receptor | B3: Mammal, 400 g
A4: Duration | B4: Chronic | E4: Scenario parameter
A5: Material consumed | B5: Tall grass
A6: Parameter/Assumption | B6: Code / Range | C6: Equation/ Value | D6: Units | E6: Reference/Designation
A7: Commodity
A8: Concentration on consumed commodity | B8: Conc
B9: Central | C9: =B05d!Chronic_C -> 0.3635591503 | D9: mg/kg food wet weight | E9: ='B05d'!Chronic_C
B10: Lower | C10: =B05d!Chronic_L -> 0.1211863834 | E10: ='B05d'!Chronic_L
B11: Upper | C11: =B05d!Chronic_U -> 1.110875181 | E11: ='B05d'!Chronic_U
A12: Receptor
A13: Body weight | B13: BW | C13: =A02b!$C$40 -> 0.4 | D13: kg | E13: Default
A14: Allometric coefficients for caloric requirement per day in kilocalories and BW in grams
B15: alpha | C15: =A02b!$C$43 -> 2.514 | E15: U.S. EPA/ORD 1993
B16: beta | C16: =A02b!$C$44 -> 0.507 | E16: U.S. EPA/ORD 1993
A17: Caloric requirement per day | B17: KR | C17: = alpha x (BW x 1kg/1000g)beta
C18: =C15*((C13*1000)^C16) -> 52.43360149 | D18: kcal/day | E18: Eq
A19: Caloric content of commodity (dry weight) | B19: KCD | C19: ='A03'!$E$65 -> 2.26 | D19: kcal/gdw [Note 1] | E19: U.S. EPA/ORD 1993
A20: Food consumed per day (dry weight) | B20: AmntDry | C20: = KR ÷ KCD
C21: =C18/C19 -> 23.20070862 | D21: gdry/day | E21: Eq
A22: Water content of food item as a proportion | B22: PropWater | C22: ='A03'!$E$66 -> 0.85 | D22: gwater/gfood | E22: U.S. EPA/ORD 1993
A23: Dry weight content of food item as a proportion | B23: PropDry | C23: = 1-PropWater
C24: =1-C22 -> 0.15 | D24: gdry/gfood | E24: Eq
A25: Variability in caloric requirements not accounted for by allometric equation | B25: Error
B26: Central | C26: 1 | D26: Note 2
B27: Lower | C27: 0.3
B28: Upper | C28: 1.7
A29: Amount of food consumed per day, wet weight | B29: AmntFood | C29: = Error x (AmntDry ÷ PropDry) ÷ (1000g/kg)
B30: Central | C30: =C26*(C$21/C$24)/1000 -> 0.1546713908 | D30: kgfood/day | E30: Eq
B31: Lower | C31: =C27*(C$21/C$24)/1000 -> 0.04640141724 | E31: Eq
B32: Upper | C32: 0.2629413644 | E32: Eq
A33: Estimate
A34: Dose | B34: Dose | C34: = AmntFood × Conc / BW
B35: Central | C35: =$C30 * C9/C$13 -> 0.1405804986 | D35: mg/kg bw/day | E35: Eq
B36: Lower | C36: =$C31 * C10/C$13 -> 0.01405804986 | E36: Eq
B37: Upper | C37: =$C32 * C11/C$13 -> 0.7302375897 | E37: Eq

Sheet F14c
A1: Consumption of Tall grass by a Mammal, large after Chronic exposure.
A2: Short Title | B2: Tall Grass | E2: FdKcalV6
A3: Receptor | B3: Mammal, large
A4: Duration | B4: Chronic | E4: Scenario parameter
A5: Material consumed | B5: Tall grass
A6: Parameter/Assumption | B6: Code / Range | C6: Equation/ Value | D6: Units | E6: Reference/Designation
A7: Commodity
A8: Concentration on consumed commodity | B8: Conc
B9: Central | C9: =B05d!Chronic_C -> 0.3635591503 | D9: mg/kg food wet weight | E9: ='B05d'!Chronic_C
B10: Lower | C10: =B05d!Chronic_L -> 0.1211863834 | E10: ='B05d'!Chronic_L
B11: Upper | C11: =B05d!Chronic_U -> 1.110875181 | E11: ='B05d'!Chronic_U
A12: Receptor
A13: Body weight | B13: BW | C13: =A02b!$C$61 -> 70 | D13: kg | E13: Default
A14: Allometric coefficients for caloric requirement per day in kilocalories and BW in grams
B15: alpha | C15: =A02b!$C$62 -> 1.518 | E15: U.S. EPA/ORD 1993
B16: beta | C16: =A02b!$C$63 -> 0.73 | E16: U.S. EPA/ORD 1993
A17: Caloric requirement per day | B17: KR | C17: = alpha x (BW x 1kg/1000g)beta
C18: =C15*((C13*1000)^C16) -> 5226.28803 | D18: kcal/day | E18: Eq
A19: Caloric content of commodity (dry weight) | B19: KCD | C19: ='A03'!$E$65 -> 2.26 | D19: kcal/gdw [Note 1] | E19: U.S. EPA/ORD 1993
A20: Food consumed per day (dry weight) | B20: AmntDry | C20: = KR ÷ KCD
C21: =C18/C19 -> 2312.516827 | D21: gdry/day | E21: Eq
A22: Water content of food item as a proportion | B22: PropWater | C22: ='A03'!$E$66 -> 0.85 | D22: gwater/gfood | E22: U.S. EPA/ORD 1993
A23: Dry weight content of food item as a proportion | B23: PropDry | C23: = 1-PropWater
C24: =1-C22 -> 0.15 | D24: gdry/gfood | E24: Eq
A25: Variability in caloric requirements not accounted for by allometric equation | B25: Error
B26: Central | C26: 1 | D26: Note 2
B27: Lower | C27: 0.3
B28: Upper | C28: 1.7
A29: Amount of food consumed per day, wet weight | B29: AmntFood | C29: = Error x (AmntDry ÷ PropDry) ÷ (1000g/kg)
B30: Central | C30: =C26*(C$21/C$24)/1000 -> 15.41677885 | D30: kgfood/day | E30: Eq
B31: Lower | C31: =C27*(C$21/C$24)/1000 -> 4.625033655 | E31: Eq
B32: Upper | C32: 26.20852404 | E32: Eq
A33: Estimate
A34: Dose | B34: Dose | C34: = AmntFood × Conc / BW
B35: Central | C35: =$C30 * C9/C$13 -> 0.08007015741 | D35: mg/kg bw/day | E35: Eq
B36: Lower | C36: =$C31 * C10/C$13 -> 0.008007015741 | E36: Eq
B37: Upper | C37: =$C32 * C11/C$13 -> 0.4159199843 | E37: Eq

Sheet F14d
A1: Consumption of Tall grass by a Bird, small after Chronic exposure.
A2: Short Title | B2: Tall Grass | E2: FdKcalV6
A3: Receptor | B3: Bird, small
A4: Duration | B4: Chronic | E4: Scenario parameter
A5: Material consumed | B5: Tall grass
A6: Parameter/Assumption | B6: Code / Range | C6: Equation/ Value | D6: Units | E6: Reference/Designation
A7: Commodity
A8: Concentration on consumed commodity | B8: Conc
B9: Central | C9: =B05d!Chronic_C -> 0.3635591503 | D9: mg/kg food wet weight | E9: ='B05d'!Chronic_C
B10: Lower | C10: =B05d!Chronic_L -> 0.1211863834 | E10: ='B05d'!Chronic_L
B11: Upper | C11: =B05d!Chronic_U -> 1.110875181 | E11: ='B05d'!Chronic_U
A12: Receptor
A13: Body weight | B13: BW | C13: =A02b!$C$31 -> 0.01 | D13: kg | E13: Default
A14: Allometric coefficients for caloric requirement per day in kilocalories and BW in grams
B15: alpha | C15: =A02b!$C$32 -> 3.12 | E15: U.S. EPA/ORD 1993
B16: beta | C16: =A02b!$C$33 -> 0.605 | E16: U.S. EPA/ORD 1993
A17: Caloric requirement per day | B17: KR | C17: = alpha x (BW x 1kg/1000g)beta
C18: =C15*((C13*1000)^C16) -> 12.56477147 | D18: kcal/day | E18: Eq
A19: Caloric content of commodity (dry weight) | B19: KCD | C19: ='A03'!$E$42 -> 2 | D19: kcal/gdw [Note 1] | E19: U.S. EPA/ORD 1993
A20: Food consumed per day (dry weight) | B20: AmntDry | C20: = KR ÷ KCD
C21: =C18/C19 -> 6.282385735 | D21: gdry/day | E21: Eq
A22: Water content of food item as a proportion | B22: PropWater | C22: ='A03'!$E$43 -> 0.85 | D22: gwater/gfood | E22: U.S. EPA/ORD 1993
A23: Dry weight content of food item as a proportion | B23: PropDry | C23: = 1-PropWater
C24: =1-C22 -> 0.15 | D24: gdry/gfood | E24: Eq
A25: Variability in caloric requirements not accounted for by allometric equation | B25: Error
B26: Central | C26: 1 | D26: Note 2
B27: Lower | C27: 0.3
B28: Upper | C28: 1.7
A29: Amount of food consumed per day, wet weight | B29: AmntFood | C29: = Error x (AmntDry ÷ PropDry) ÷ (1000g/kg)
B30: Central | C30: =C26*(C$21/C$24)/1000 -> 0.04188257157 | D30: kgfood/day | E30: Eq
B31: Lower | C31: =C27*(C$21/C$24)/1000 -> 0.01256477147 | E31: Eq
B32: Upper | C32: 0.07120037167 | E32: Eq
A33: Estimate
A34: Dose | B34: Dose | C34: = AmntFood × Conc / BW
B35: Central | C35: =$C30 * C9/C$13 -> 1.522679213 | D35: mg/kg bw/day | E35: Eq
B36: Lower | C36: =$C31 * C10/C$13 -> 0.1522679213 | E36: Eq
B37: Upper | C37: =$C32 * C11/C$13 -> 7.90947258 | E37: Eq

Sheet F14e
A1: Consumption of Tall grass by a Bird, large after Chronic exposure.
A2: Short Title | B2: Tall Grass | E2: FdKcalV6
A3: Receptor | B3: Bird, large
A4: Duration | B4: Chronic | E4: Scenario parameter
A5: Material consumed | B5: Tall grass
A6: Parameter/Assumption | B6: Code / Range | C6: Equation/ Value | D6: Units | E6: Reference/Designation
A7: Commodity
A8: Concentration on consumed commodity | B8: Conc
B9: Central | C9: =B05d!Chronic_C -> 0.3635591503 | D9: mg/kg food wet weight | E9: ='B05d'!Chronic_C
B10: Lower | C10: =B05d!Chronic_L -> 0.1211863834 | E10: ='B05d'!Chronic_L
B11: Upper | C11: =B05d!Chronic_U -> 1.110875181 | E11: ='B05d'!Chronic_U
A12: Receptor
A13: Body weight | B13: BW | C13: =A02b!$C$15 -> 4 | D13: kg | E13: Default
A14: Allometric coefficients for caloric requirement per day in kilocalories and BW in grams
B15: alpha | C15: =A02b!$C$16 -> 1.146 | E15: U.S. EPA/ORD 1993
B16: beta | C16: =A02b!$C$17 -> 0.749 | E16: U.S. EPA/ORD 1993
A17: Caloric requirement per day | B17: KR | C17: = alpha x (BW x 1kg/1000g)beta
C18: =C15*((C13*1000)^C16) -> 571.6465031 | D18: kcal/day | E18: Eq
A19: Caloric content of commodity (dry weight) | B19: KCD | C19: ='A03'!$E$42 -> 2 | D19: kcal/gdw [Note 1] | E19: U.S. EPA/ORD 1993
A20: Food consumed per day (dry weight) | B20: AmntDry | C20: = KR ÷ KCD
C21: =C18/C19 -> 285.8232515 | D21: gdry/day | E21: Eq
A22: Water content of food item as a proportion | B22: PropWater | C22: ='A03'!$E$43 -> 0.85 | D22: gwater/gfood | E22: U.S. EPA/ORD 1993
A23: Dry weight content of food item as a proportion | B23: PropDry | C23: = 1-PropWater
C24: =1-C22 -> 0.15 | D24: gdry/gfood | E24: Eq
A25: Variability in caloric requirements not accounted for by allometric equation | B25: Error
B26: Central | C26: 1 | D26: Note 2
B27: Lower | C27: 0.3
B28: Upper | C28: 1.7
A29: Amount of food consumed per day, wet weight | B29: AmntFood | C29: = Error x (AmntDry ÷ PropDry) ÷ (1000g/kg)
B30: Central | C30: =C26*(C$21/C$24)/1000 -> 1.905488344 | D30: kgfood/day | E30: Eq
B31: Lower | C31: =C27*(C$21/C$24)/1000 -> 0.5716465031 | E31: Eq
B32: Upper | C32: 3.239330184 | E32: Eq
A33: Estimate
A34: Dose | B34: Dose | C34: = AmntFood × Conc / BW
B35: Central | C35: =$C30 * C9/C$13 -> 0.1731894308 | D35: mg/kg bw/day | E35: Eq
B36: Lower | C36: =$C31 * C10/C$13 -> 0.01731894308 | E36: Eq
B37: Upper | C37: =$C32 * C11/C$13 -> 0.8996228765 | E37: Eq

Sheet F15a
A1: Consumption of Short grass by a Mammal, small after Chronic exposure.
A2: Short Title | B2: Short Grass | E2: FdKcalV6
A3: Receptor | B3: Mammal, small
A4: Duration | B4: Chronic | E4: Scenario parameter
A5: Material consumed | B5: Short grass
A6: Parameter/Assumption | B6: Code / Range | C6: Equation/ Value | D6: Units | E6: Reference/Designation
A7: Commodity
A8: Concentration on consumed commodity | B8: Conc
B9: Central | C9: =B05c!Chronic_C -> 0.8584035493 | D9: mg/kg food wet weight | E9: ='B05c'!Chronic_C
B10: Lower | C10: =B05c!Chronic_L -> 0.3029659586 | E10: ='B05c'!Chronic_L
B11: Upper | C11: =B05c!Chronic_U -> 2.423727669 | E11: ='B05c'!Chronic_U
A12: Receptor
A13: Body weight | B13: BW | C13: =A02b!$C$71 -> 0.02 | D13: kg | E13: Default
A14: Allometric coefficients for caloric requirement per day in kilocalories and BW in grams
B15: alpha | C15: =A02b!$C$75 -> 2.514 | E15: U.S. EPA/ORD 1993
B16: beta | C16: =A02b!$C$76 -> 0.507 | E16: U.S. EPA/ORD 1993
A17: Caloric requirement per day | B17: KR | C17: = alpha x (BW x 1kg/1000g)beta
C18: =C15*((C13*1000)^C16) -> 11.48120526 | D18: kcal/day | E18: Eq
A19: Caloric content of commodity (dry weight) | B19: KCD | C19: ='A03'!$E$65 -> 2.26 | D19: kcal/gdw [Note 1] | E19: U.S. EPA/ORD 1993
A20: Food consumed per day (dry weight) | B20: AmntDry | C20: = KR ÷ KCD
C21: =C18/C19 -> 5.080179317 | D21: gdry/day | E21: Eq
A22: Water content of food item as a proportion | B22: PropWater | C22: ='A03'!$E$66 -> 0.85 | D22: gwater/gfood | E22: U.S. EPA/ORD 1993
A23: Dry weight content of food item as a proportion | B23: PropDry | C23: = 1-PropWater
C24: =1-C22 -> 0.15 | D24: gdry/gfood | E24: Eq
A25: Variability in caloric requirements not accounted for by allometric equation | B25: Error
B26: Central | C26: 1 | D26: Note 2
B27: Lower | C27: 0.3
B28: Upper | C28: 1.7
A29: Amount of food consumed per day, wet weight | B29: AmntFood | C29: = Error x (AmntDry ÷ PropDry) ÷ (1000g/kg)
B30: Central | C30: =C26*(C$21/C$24)/1000 -> 0.03386786211 | D30: kgfood/day | E30: Eq
B31: Lower | C31: =C27*(C$21/C$24)/1000 -> 0.01016035863 | E31: Eq
B32: Upper | C32: 0.05757536559 | E32: Eq
A33: Estimate
A34: Dose | B34: Dose | C34: = AmntFood × Conc / BW
B35: Central | C35: =$C30 * C9/C$13 -> 1.453614652 | D35: mg/kg bw/day | E35: Eq
B36: Lower | C36: =$C31 * C10/C$13 -> 0.1539121397 | E36: Eq
B37: Upper | C37: =$C32 * C11/C$13 -> 6.977350331 | E37: Eq

Sheet F15b
A1: Consumption of Short grass by a Mammal, 400 g after Chronic exposure.
A2: Short Title | B2: Short Grass | E2: FdKcalV6
A3: Receptor | B3: Mammal, 400 g
A4: Duration | B4: Chronic | E4: Scenario parameter
A5: Material consumed | B5: Short grass
A6: Parameter/Assumption | B6: Code / Range | C6: Equation/ Value | D6: Units | E6: Reference/Designation
A7: Commodity
A8: Concentration on consumed commodity | B8: Conc
B9: Central | C9: =B05c!Chronic_C -> 0.8584035493 | D9: mg/kg food wet weight | E9: ='B05c'!Chronic_C
B10: Lower | C10: =B05c!Chronic_L -> 0.3029659586 | E10: ='B05c'!Chronic_L
B11: Upper | C11: =B05c!Chronic_U -> 2.423727669 | E11: ='B05c'!Chronic_U
A12: Receptor
A13: Body weight | B13: BW | C13: =A02b!$C$40 -> 0.4 | D13: kg | E13: Default
A14: Allometric coefficients for caloric requirement per day in kilocalories and BW in grams
B15: alpha | C15: =A02b!$C$43 -> 2.514 | E15: U.S. EPA/ORD 1993
B16: beta | C16: =A02b!$C$44 -> 0.507 | E16: U.S. EPA/ORD 1993
A17: Caloric requirement per day | B17: KR | C17: = alpha x (BW x 1kg/1000g)beta
C18: =C15*((C13*1000)^C16) -> 52.43360149 | D18: kcal/day | E18: Eq
A19: Caloric content of commodity (dry weight) | B19: KCD | C19: ='A03'!$E$65 -> 2.26 | D19: kcal/gdw [Note 1] | E19: U.S. EPA/ORD 1993
A20: Food consumed per day (dry weight) | B20: AmntDry | C20: = KR ÷ KCD
C21: =C18/C19 -> 23.20070862 | D21: gdry/day | E21: Eq
A22: Water content of food item as a proportion | B22: PropWater | C22: ='A03'!$E$66 -> 0.85 | D22: gwater/gfood | E22: U.S. EPA/ORD 1993
A23: Dry weight content of food item as a proportion | B23: PropDry | C23: = 1-PropWater
C24: =1-C22 -> 0.15 | D24: gdry/gfood | E24: Eq
A25: Variability in caloric requirements not accounted for by allometric equation | B25: Error
B26: Central | C26: 1 | D26: Note 2
B27: Lower | C27: 0.3
B28: Upper | C28: 1.7
A29: Amount of food consumed per day, wet weight | B29: AmntFood | C29: = Error x (AmntDry ÷ PropDry) ÷ (1000g/kg)
B30: Central | C30: =C26*(C$21/C$24)/1000 -> 0.1546713908 | D30: kgfood/day | E30: Eq
B31: Lower | C31: =C27*(C$21/C$24)/1000 -> 0.04640141724 | E31: Eq
B32: Upper | C32: 0.2629413644 | E32: Eq
A33: Estimate
A34: Dose | B34: Dose | C34: = AmntFood × Conc / BW
B35: Central | C35: =$C30 * C9/C$13 -> 0.3319261771 | D35: mg/kg bw/day | E35: Eq
B36: Lower | C36: =$C31 * C10/C$13 -> 0.03514512464 | E36: Eq
B37: Upper | C37: =$C32 * C11/C$13 -> 1.59324565 | E37: Eq

Sheet F15c
A1: Consumption of Short grass by a Mammal, large after Chronic exposure.
A2: Short Title | B2: Short Grass | E2: FdKcalV6
A3: Receptor | B3: Mammal, large
A4: Duration | B4: Chronic | E4: Scenario parameter
A5: Material consumed | B5: Short grass
A6: Parameter/Assumption | B6: Code / Range | C6: Equation/ Value | D6: Units | E6: Reference/Designation
A7: Commodity
A8: Concentration on consumed commodity | B8: Conc
B9: Central | C9: =B05c!Chronic_C -> 0.8584035493 | D9: mg/kg food wet weight | E9: ='B05c'!Chronic_C
B10: Lower | C10: =B05c!Chronic_L -> 0.3029659586 | E10: ='B05c'!Chronic_L
B11: Upper | C11: =B05c!Chronic_U -> 2.423727669 | E11: ='B05c'!Chronic_U
A12: Receptor
A13: Body weight | B13: BW | C13: =A02b!$C$61 -> 70 | D13: kg | E13: Default
A14: Allometric coefficients for caloric requirement per day in kilocalories and BW in grams
B15: alpha | C15: =A02b!$C$62 -> 1.518 | E15: U.S. EPA/ORD 1993
B16: beta | C16: =A02b!$C$63 -> 0.73 | E16: U.S. EPA/ORD 1993
A17: Caloric requirement per day | B17: KR | C17: = alpha x (BW x 1kg/1000g)beta
C18: =C15*((C13*1000)^C16) -> 5226.28803 | D18: kcal/day | E18: Eq
A19: Caloric content of commodity (dry weight) | B19: KCD | C19: ='A03'!$E$65 -> 2.26 | D19: kcal/gdw [Note 1] | E19: U.S. EPA/ORD 1993
A20: Food consumed per day (dry weight) | B20: AmntDry | C20: = KR ÷ KCD
C21: =C18/C19 -> 2312.516827 | D21: gdry/day | E21: Eq
A22: Water content of food item as a proportion | B22: PropWater | C22: ='A03'!$E$66 -> 0.85 | D22: gwater/gfood | E22: U.S. EPA/ORD 1993
A23: Dry weight content of food item as a proportion | B23: PropDry | C23: = 1-PropWater
C24: =1-C22 -> 0.15 | D24: gdry/gfood | E24: Eq
A25: Variability in caloric requirements not accounted for by allometric equation | B25: Error
B26: Central | C26: 1 | D26: Note 2
B27: Lower | C27: 0.3
B28: Upper | C28: 1.7
A29: Amount of food consumed per day, wet weight | B29: AmntFood | C29: = Error x (AmntDry ÷ PropDry) ÷ (1000g/kg)
B30: Central | C30: =C26*(C$21/C$24)/1000 -> 15.41677885 | D30: kgfood/day | E30: Eq
B31: Lower | C31: =C27*(C$21/C$24)/1000 -> 4.625033655 | E31: Eq
B32: Upper | C32: 26.20852404 | E32: Eq
A33: Estimate
A34: Dose | B34: Dose | C34: = AmntFood × Conc / BW
B35: Central | C35: =$C30 * C9/C$13 -> 0.1890545383 | D35: mg/kg bw/day | E35: Eq
B36: Lower | C36: =$C31 * C10/C$13 -> 0.02001753935 | E36: Eq
B37: Upper | C37: =$C32 * C11/C$13 -> 0.907461784 | E37: Eq

Sheet F15d
A1: Consumption of Short grass by a Bird, small after Chronic exposure.
A2: Short Title | B2: Short Grass | E2: FdKcalV6
A3: Receptor | B3: Bird, small
A4: Duration | B4: Chronic | E4: Scenario parameter
A5: Material consumed | B5: Short grass
A6: Parameter/Assumption | B6: Code / Range | C6: Equation/ Value | D6: Units | E6: Reference/Designation
A7: Commodity
A8: Concentration on consumed commodity | B8: Conc
B9: Central | C9: =B05c!Chronic_C -> 0.8584035493 | D9: mg/kg food wet weight | E9: ='B05c'!Chronic_C
B10: Lower | C10: =B05c!Chronic_L -> 0.3029659586 | E10: ='B05c'!Chronic_L
B11: Upper | C11: =B05c!Chronic_U -> 2.423727669 | E11: ='B05c'!Chronic_U
A12: Receptor
A13: Body weight | B13: BW | C13: =A02b!$C$31 -> 0.01 | D13: kg | E13: Default
A14: Allometric coefficients for caloric requirement per day in kilocalories and BW in grams
B15: alpha | C15: =A02b!$C$32 -> 3.12 | E15: U.S. EPA/ORD 1993
B16: beta | C16: =A02b!$C$33 -> 0.605 | E16: U.S. EPA/ORD 1993
A17: Caloric requirement per day | B17: KR | C17: = alpha x (BW x 1kg/1000g)beta
C18: =C15*((C13*1000)^C16) -> 12.56477147 | D18: kcal/day | E18: Eq
A19: Caloric content of commodity (dry weight) | B19: KCD | C19: ='A03'!$E$42 -> 2 | D19: kcal/gdw [Note 1] | E19: U.S. EPA/ORD 1993
A20: Food consumed per day (dry weight) | B20: AmntDry | C20: = KR ÷ KCD
C21: =C18/C19 -> 6.282385735 | D21: gdry/day | E21: Eq
A22: Water content of food item as a proportion | B22: PropWater | C22: ='A03'!$E$43 -> 0.85 | D22: gwater/gfood | E22: U.S. EPA/ORD 1993
A23: Dry weight content of food item as a proportion | B23: PropDry | C23: = 1-PropWater
C24: =1-C22 -> 0.15 | D24: gdry/gfood | E24: Eq
A25: Variability in caloric requirements not accounted for by allometric equation | B25: Error
B26: Central | C26: 1 | D26: Note 2
B27: Lower | C27: 0.3
B28: Upper | C28: 1.7
A29: Amount of food consumed per day, wet weight | B29: AmntFood | C29: = Error x (AmntDry ÷ PropDry) ÷ (1000g/kg)
B30: Central | C30: =C26*(C$21/C$24)/1000 -> 0.04188257157 | D30: kgfood/day | E30: Eq
B31: Lower | C31: =C27*(C$21/C$24)/1000 -> 0.01256477147 | E31: Eq
B32: Upper | C32: 0.07120037167 | E32: Eq
A33: Estimate
A34: Dose | B34: Dose | C34: = AmntFood × Conc / BW
B35: Central | C35: =$C30 * C9/C$13 -> 3.595214809 | D35: mg/kg bw/day | E35: Eq
B36: Lower | C36: =$C31 * C10/C$13 -> 0.3806698033 | E36: Eq
B37: Upper | C37: =$C32 * C11/C$13 -> 17.25703108 | E37: Eq

Sheet F15e
A1: Consumption of Short grass by a Bird, large after Chronic exposure.
A2: Short Title | B2: Grass Chronic | E2: FdKcalV6
A3: Receptor | B3: Bird, large
A4: Duration | B4: Chronic | E4: Scenario parameter
A5: Material consumed | B5: Short grass
A6: Parameter/Assumption | B6: Code / Range | C6: Equation/ Value | D6: Units | E6: Reference/Designation
A7: Commodity
A8: Concentration on consumed commodity | B8: Conc
B9: Central | C9: =B05c!Chronic_C -> 0.8584035493 | D9: mg/kg food wet weight | E9: ='B05c'!Chronic_C
B10: Lower | C10: =B05c!Chronic_L -> 0.3029659586 | E10: ='B05c'!Chronic_L
B11: Upper | C11: =B05c!Chronic_U -> 2.423727669 | E11: ='B05c'!Chronic_U
A12: Receptor
A13: Body weight | B13: BW | C13: =A02b!$C$15 -> 4 | D13: kg | E13: Default
A14: Allometric coefficients for caloric requirement per day in kilocalories and BW in grams
B15: alpha | C15: =A02b!$C$16 -> 1.146 | E15: U.S. EPA/ORD 1993
B16: beta | C16: =A02b!$C$17 -> 0.749 | E16: U.S. EPA/ORD 1993
A17: Caloric requirement per day | B17: KR | C17: = alpha x (BW x 1kg/1000g)beta
C18: =C15*((C13*1000)^C16) -> 571.6465031 | D18: kcal/day | E18: Eq
A19: Caloric content of commodity (dry weight) | B19: KCD | C19: ='A03'!$E$42 -> 2 | D19: kcal/gdw [Note 1] | E19: U.S. EPA/ORD 1993
A20: Food consumed per day (dry weight) | B20: AmntDry | C20: = KR ÷ KCD
C21: =C18/C19 -> 285.8232515 | D21: gdry/day | E21: Eq
A22: Water content of food item as a proportion | B22: PropWater | C22: ='A03'!$E$43 -> 0.85 | D22: gwater/gfood | E22: U.S. EPA/ORD 1993
A23: Dry weight content of food item as a proportion | B23: PropDry | C23: = 1-PropWater
C24: =1-C22 -> 0.15 | D24: gdry/gfood | E24: Eq
A25: Variability in caloric requirements not accounted for by allometric equation | B25: Error
B26: Central | C26: 1 | D26: Note 2
B27: Lower | C27: 0.3
B28: Upper | C28: 1.7
A29: Amount of food consumed per day, wet weight | B29: AmntFood | C29: = Error x (AmntDry ÷ PropDry) ÷ (1000g/kg)
B30: Central | C30: =C26*(C$21/C$24)/1000 -> 1.905488344 | D30: kgfood/day | E30: Eq
B31: Lower | C31: =C27*(C$21/C$24)/1000 -> 0.5716465031 | E31: Eq
B32: Upper | C32: 3.239330184 | E32: Eq
A33: Estimate
A34: Dose | B34: Dose | C34: = AmntFood × Conc / BW
B35: Central | C35: =$C30 * C9/C$13 -> 0.4089194893 | D35: mg/kg bw/day | E35: Eq
B36: Lower | C36: =$C31 * C10/C$13 -> 0.04329735769 | E36: Eq
B37: Upper | C37: =$C32 * C11/C$13 -> 1.962813549 | E37: Eq

Sheet F16a
A1: Consumption of contaminated water by Mammal, small, Longer-term Concentrations
A2: Short Title | B2: Longer-term Concentrations | E2: WatAlloV6
A3: Receptor | B3: Mammal, small
A4: Duration | B4: Chronic | E4: Scenario parameter
A5: Parameter/Assumption | B5: Code / Range | C5: Equation/ Value | D5: Units | E5: Reference/Designation
A6: Concentration in water | B6: ConcWat
B7: Central | C7: =B04a!Chronic_C -> 0.0546 | D7: mg/L | E7: ='B04a'!Chronic_C
B8: Lower | C8: =B04a!Chronic_L -> 0.00384 | E8: ='B04a'!Chronic_L
B9: Upper | C9: =B04a!Chronic_U -> 0.384 | E9: ='B04a'!Chronic_U
A10: Receptor
A11: Body weight | B11: BW | C11: =A02b!$C$71 -> 0.02 | D11: kg | E11: Default
A12: Allometric coefficients forwater consumption per day in liters and BW in kilograms
B13: alpha | C13: =A02b!$C$79 -> 0.099 | E13: U.S. EPA/ORD 1993
B14: beta | C14: =A02b!$C$80 -> 0.9 | E14: U.S. EPA/ORD 1993
A15: Amount of water consumed per day | C15: Amnt = alpha BW beta
B16: Amnt | C16: =C13*(C11^C14) -> 0.002927940121 | D16: liters | E16: Eq
A17: Absorbed Dose | B17: Dose | C17: ConcWat × Amnt ÷ BW
B18: Central | C18: =C7*C$16/C$11 -> 0.007993276529 | D18: mg/kg | E18: Eq
B19: Lower | C19: =C8*C$16/C$11 -> 0.0005621645031 | D19: mg/kg | E19: Eq
B20: Upper | C20: =C9*C$16/C$11 -> 0.05621645031 | D20: mg/kg | E20: Eq

Sheet F16b
A1: Consumption of contaminated water by Mammal, 400 g, Longer-term Concentrations
A2: Short Title | B2: Longer-term Concentrations | E2: WatAlloV6
A3: Receptor | B3: Mammal, 400 g
A4: Duration | B4: Chronic | E4: Scenario parameter
A5: Parameter/Assumption | B5: Code / Range | C5: Equation/ Value | D5: Units | E5: Reference/Designation
A6: Concentration in water | B6: ConcWat
B7: Central | C7: =B04a!Chronic_C -> 0.0546 | D7: mg/L | E7: ='B04a'!Chronic_C
B8: Lower | C8: =B04a!Chronic_L -> 0.00384 | E8: ='B04a'!Chronic_L
B9: Upper | C9: =B04a!Chronic_U -> 0.384 | E9: ='B04a'!Chronic_U
A10: Receptor
A11: Body weight | B11: BW | C11: =A02b!$C$40 -> 0.4 | D11: kg | E11: Default
A12: Allometric coefficients forwater consumption per day in liters and BW in kilograms
B13: alpha | C13: =A02b!$C$45 -> 0.099 | E13: U.S. EPA/ORD 1993
B14: beta | C14: =A02b!$C$46 -> 0.9 | E14: U.S. EPA/ORD 1993
A15: Amount of water consumed per day | C15: Amnt = alpha BW beta
B16: Amnt | C16: =C13*(C11^C14) -> 0.04339994576 | D16: liters | E16: Eq
A17: Absorbed Dose | B17: Dose | C17: ConcWat × Amnt ÷ BW
B18: Central | C18: =C7*C$16/C$11 -> 0.005924092597 | D18: mg/kg | E18: Eq
B19: Lower | C19: =C8*C$16/C$11 -> 0.0004166394793 | D19: mg/kg | E19: Eq
B20: Upper | C20: =C9*C$16/C$11 -> 0.04166394793 | D20: mg/kg | E20: Eq

Sheet F16c
A1: Consumption of contaminated water by Mammal, carnivorous, Longer-term Concentrations
A2: Short Title | B2: Longer-term Concentrations | E2: WatAlloV6
A3: Receptor | B3: Mammal, carnivorous
A4: Duration | B4: Chronic | E4: Scenario parameter
A5: Parameter/Assumption | B5: Code / Range | C5: Equation/ Value | D5: Units | E5: Reference/Designation
A6: Concentration in water | B6: ConcWat
B7: Central | C7: =B04a!Chronic_C -> 0.0546 | D7: mg/L | E7: ='B04a'!Chronic_C
B8: Lower | C8: =B04a!Chronic_L -> 0.00384 | E8: ='B04a'!Chronic_L
B9: Upper | C9: =B04a!Chronic_U -> 0.384 | E9: ='B04a'!Chronic_U
A10: Receptor
A11: Body weight | B11: BW | C11: =A02b!$C$47 -> 5 | D11: kg | E11: U.S. EPA/ORD 1993
A12: Allometric coefficients forwater consumption per day in liters and BW in kilograms
B13: alpha | C13: =A02b!$C$50 -> 0.099 | E13: U.S. EPA/ORD 1993
B14: beta | C14: =A02b!$C$51 -> 0.9 | E14: U.S. EPA/ORD 1993
A15: Amount of water consumed per day | C15: Amnt = alpha BW beta
B16: Amnt | C16: =C13*(C11^C14) -> 0.4214132616 | D16: liters | E16: Eq
A17: Absorbed Dose | B17: Dose | C17: ConcWat × Amnt ÷ BW
B18: Central | C18: =C7*C$16/C$11 -> 0.004601832817 | D18: mg/kg | E18: Eq
B19: Lower | C19: =C8*C$16/C$11 -> 0.0003236453849 | D19: mg/kg | E19: Eq
B20: Upper | C20: =C9*C$16/C$11 -> 0.03236453849 | D20: mg/kg | E20: Eq

Sheet F16d
A1: Consumption of contaminated water by Mammal, large, Longer-term Concentrations
A2: Short Title | B2: Longer-term Concentrations | E2: WatAlloV6
A3: Receptor | B3: Mammal, large
A4: Duration | B4: Chronic | E4: Scenario parameter
A5: Parameter/Assumption | B5: Code / Range | C5: Equation/ Value | D5: Units | E5: Reference/Designation
A6: Concentration in water | B6: ConcWat
B7: Central | C7: =B04a!Chronic_C -> 0.0546 | D7: mg/L | E7: ='B04a'!Chronic_C
B8: Lower | C8: =B04a!Chronic_L -> 0.00384 | E8: ='B04a'!Chronic_L
B9: Upper | C9: =B04a!Chronic_U -> 0.384 | E9: ='B04a'!Chronic_U
A10: Receptor
A11: Body weight | B11: BW | C11: =A02b!$C$61 -> 70 | D11: kg | E11: Default
A12: Allometric coefficients forwater consumption per day in liters and BW in kilograms
B13: alpha | C13: =A02b!$C$64 -> 0.099 | E13: U.S. EPA/ORD 1993
B14: beta | C14: =A02b!$C$65 -> 0.9 | E14: U.S. EPA/ORD 1993
A15: Amount of water consumed per day | C15: Amnt = alpha BW beta
B16: Amnt | C16: =C13*(C11^C14) -> 4.531306412 | D16: liters | E16: Eq
A17: Absorbed Dose | B17: Dose | C17: ConcWat × Amnt ÷ BW
B18: Central | C18: =C7*C$16/C$11 -> 0.003534419001 | D18: mg/kg | E18: Eq
B19: Lower | C19: =C8*C$16/C$11 -> 0.0002485745231 | D19: mg/kg | E19: Eq
B20: Upper | C20: =C9*C$16/C$11 -> 0.02485745231 | D20: mg/kg | E20: Eq

Sheet F16e
A1: Consumption of contaminated water by Bird, small, Longer-term Concentrations
A2: Short Title | B2: Longer-term Concentrations | E2: WatAlloV6
A3: Receptor | B3: Bird, small
A4: Duration | B4: Chronic | E4: Scenario parameter
A5: Parameter/Assumption | B5: Code / Range | C5: Equation/ Value | D5: Units | E5: Reference/Designation
A6: Concentration in water | B6: ConcWat
B7: Central | C7: =B04a!Chronic_C -> 0.0546 | D7: mg/L | E7: ='B04a'!Chronic_C
B8: Lower | C8: =B04a!Chronic_L -> 0.00384 | E8: ='B04a'!Chronic_L
B9: Upper | C9: =B04a!Chronic_U -> 0.384 | E9: ='B04a'!Chronic_U
A10: Receptor
A11: Body weight | B11: BW | C11: =A02b!$C$31 -> 0.01 | D11: kg | E11: Default
A12: Allometric coefficients forwater consumption per day in liters and BW in kilograms
B13: alpha | C13: =A02b!$C$34 -> 0.059 | E13: U.S. EPA/ORD 1993
B14: beta | C14: =A02b!$C$35 -> 0.67 | E14: U.S. EPA/ORD 1993
A15: Amount of water consumed per day | C15: Amnt = alpha BW beta
B16: Amnt | C16: =C13*(C11^C14) -> 0.002696820319 | D16: liters | E16: Eq
A17: Absorbed Dose | B17: Dose | C17: ConcWat × Amnt ÷ BW
B18: Central | C18: =C7*C$16/C$11 -> 0.01472463894 | D18: mg/kg | E18: Eq
B19: Lower | C19: =C8*C$16/C$11 -> 0.001035579002 | D19: mg/kg | E19: Eq
B20: Upper | C20: =C9*C$16/C$11 -> 0.1035579002 | D20: mg/kg | E20: Eq

Sheet F16f
A1: Consumption of contaminated water by Bird, large, Longer-term Concentrations
A2: Short Title | B2: Longer-term Concentrations | E2: WatAlloV6
A3: Receptor | B3: Bird, large
A4: Duration | B4: Chronic | E4: Scenario parameter
A5: Parameter/Assumption | B5: Code / Range | C5: Equation/ Value | D5: Units | E5: Reference/Designation
A6: Concentration in water | B6: ConcWat
B7: Central | C7: =B04a!Chronic_C -> 0.0546 | D7: mg/L | E7: ='B04a'!Chronic_C
B8: Lower | C8: =B04a!Chronic_L -> 0.00384 | E8: ='B04a'!Chronic_L
B9: Upper | C9: =B04a!Chronic_U -> 0.384 | E9: ='B04a'!Chronic_U
A10: Receptor
A11: Body weight | B11: BW | C11: =A02b!$C$15 -> 4 | D11: kg | E11: Default
A12: Allometric coefficients forwater consumption per day in liters and BW in kilograms
B13: alpha | C13: =A02b!$C$18 -> 0.059 | E13: U.S. EPA/ORD 1993
B14: beta | C14: =A02b!$C$19 -> 0.67 | E14: U.S. EPA/ORD 1993
A15: Amount of water consumed per day | C15: Amnt = alpha BW beta
B16: Amnt | C16: =C13*(C11^C14) -> 0.1493592781 | D16: liters | E16: Eq
A17: Absorbed Dose | B17: Dose | C17: ConcWat × Amnt ÷ BW
B18: Central | C18: =C7*C$16/C$11 -> 0.002038754146 | D18: mg/kg | E18: Eq
B19: Lower | C19: =C8*C$16/C$11 -> 0.000143384907 | D19: mg/kg | E19: Eq
B20: Upper | C20: =C9*C$16/C$11 -> 0.0143384907 | D20: mg/kg | E20: Eq

Sheet F17a
A1: Chronic scenario for the consumption of Contaminated Fish (Longer-term) by Mammal, large carnivorous
A2: Short Title | B2: Fish consumption, accidental spill | E2: FishKcalV6
A3: Predator | B3: Mammal, large carnivorous
A4: Food Item (Prey) | B4: Fish
A5: Duration | B5: Chronic | E5: Scenario parameter
A6: Parameter/Assumption | B6: Code / Range | C6: Equation/ Value | D6: Units | E6: Reference/Designation
A7: Water
A8: Concentration in water | B8: ConcWat
B9: Central | C9: =B04a!Chronic_C -> 0.0546 | D9: mg/L | E9: ='B04a'!Chronic_C
B10: Lower | C10: =B04a!Chronic_L -> 0.00384 | E10: ='B04a'!Chronic_L
B11: Upper | C11: =B04a!Chronic_U -> 0.384 | E11: ='B04a'!Chronic_U
A12: Fish
A13: Bioconcentration factor | B13: BCF
B14: Central | C14: ='B01'!$C$6 -> 2.63 | D14: L/kg
B15: Lower | C15: ='B01'!$C$6 -> 2.63
B16: Upper | C16: ='B01'!$C$6 -> 2.63
A17: Concentration in fish | B17: ConcFish | C17: ConcWat × BCF
B18: Central | C18: =C9*C14 -> 0.143598 | D18: mg/kg | E18: Eq
B19: Lower | C19: =C10*C15 -> 0.0100992 | E19: Eq
B20: Upper | C20: =C11*C16 -> 1.00992 | E20: Eq
A21: Receptor
A22: Body weight | B22: BW | C22: =A02b!$C$52 -> 70 | D22: kg | E22: Reid 2006
A23: Allometric coefficients for caloric requirement per day in kilocalories and BW in grams
B24: alpha | C24: =A02b!$C$53 -> 0.6167 | E24: U.S. EPA/ORD 1993
B25: beta | C25: =A02b!$C$54 -> 0.862 | E25: U.S. EPA/ORD 1993
A26: Caloric requirement per day | B26: KR | C26: =C24*(C22*1000)^C25 -> 9258.666883 | D26: kcal/day | E26: Eq
A27: Caloric content of commodity (dry weight) | B27: KCD | C27: ='A03'!$E$59 -> 4.47 | D27: kcal/gdw [Note 1] | E27: U.S. EPA/ORD 1993
A28: Food consumed per day (dry weight) | B28: AmntDry | C28: = KR ÷ KCD
C29: =C26/C27 -> 2071.29013 | D29: gdry/day | E29: Eq
A30: Water content of vegetation as a proportion | B30: PropWater | C30: ='A03'!$E$60 -> 0.7 | D30: gwater/gfood | E30: Ali et al. 2005
A31: Dry weight content of vegetation as a proportion | B31: PropDry | C31: = 1-PropWater
C32: =1-C30 -> 0.3 | D32: gdry/gfood | E32: Eq
A33: Amount of fish consumed per day, wet weight | B33: AmntFish | C33: = (AmntDry ÷ PropDry) ÷ (1000g/kg)
B34: Central | C34: =(C29/C32)/1000 -> 6.904300435 | D34: kgfood/day | E34: Eq
B35: Lower | C35: =C34*0.3 -> 2.07129013 | D35: Note 1 | E35: Eq
B36: Upper | C36: =C34*1.7 -> 11.73731074 | D36: Note 1 | E36: Eq
A37: Proportion of diet that is contaminated | B37: Prop
B38: Central | C38: 0.3 | D38: Unitless | E38: Scenario parameter
B39: Lower | C39: 0.1 | E39: Scenario parameter
B40: Upper | C40: 1 | E40: Scenario parameter
A41: Dose
A42: Toxic Equivalency Factor for formulation: (See risk assessment if this has a value other than 1.) | B42: TEF
B43: Central | C43: ='A01'!C$17 -> 1 | D43: Unitless | E43: Worksheet A01
B44: Lower | C44: ='A01'!C$18 -> 1 | D44: Note 2 | E44: Worksheet A01
B45: Upper | C45: ='A01'!C$19 -> 1 | D45: Note 2 | E45: Worksheet A01
A46: Dose | B46: Dose | C46: = ConcFish × AmntFish × Prop ÷ BW
B47: Central | C47: =C18*C34*C38/C$22 -> 0.004249044573 | D47: mg/kg | E47: Eq
B48: Lower | C48: =C19*C35*C39/C$22 -> 2.988339041e-05 | D48: mg/kg | E48: Eq
B49: Upper | C49: 0.1693392123 | D49: mg/kg | E49: Eq
E50: FishKcalV6

Sheet F17b
A1: Chronic scenario for the consumption of Contaminated Fish (Longer-term) by Mammal, carnivorous
A2: Short Title | B2: Fish consumption, accidental spill | E2: FishKcalV6
A3: Predator | B3: Mammal, carnivorous
A4: Food Item (Prey) | B4: Fish
A5: Duration | B5: Chronic | E5: Scenario parameter
A6: Parameter/Assumption | B6: Code / Range | C6: Equation/ Value | D6: Units | E6: Reference/Designation
A7: Water
A8: Concentration in water | B8: ConcWat
B9: Central | C9: =B04a!Chronic_C -> 0.0546 | D9: mg/L | E9: ='B04a'!Chronic_C
B10: Lower | C10: =B04a!Chronic_L -> 0.00384 | E10: ='B04a'!Chronic_L
B11: Upper | C11: =B04a!Chronic_U -> 0.384 | E11: ='B04a'!Chronic_U
A12: Fish
A13: Bioconcentration factor | B13: BCF
B14: Central | C14: ='B01'!$C$6 -> 2.63 | D14: L/kg
B15: Lower | C15: ='B01'!$C$6 -> 2.63
B16: Upper | C16: ='B01'!$C$6 -> 2.63
A17: Concentration in fish | B17: ConcFish | C17: ConcWat × BCF
B18: Central | C18: =C9*C14 -> 0.143598 | D18: mg/kg | E18: Eq
B19: Lower | C19: =C10*C15 -> 0.0100992 | E19: Eq
B20: Upper | C20: =C11*C16 -> 1.00992 | E20: Eq
A21: Receptor
A22: Body weight | B22: BW | C22: =A02b!$C$47 -> 5 | D22: kg | E22: U.S. EPA/ORD 1993
A23: Allometric coefficients for caloric requirement per day in kilocalories and BW in grams
B24: alpha | C24: =A02b!$C$48 -> 0.6167 | E24: U.S. EPA/ORD 1993
B25: beta | C25: =A02b!$C$49 -> 0.862 | E25: U.S. EPA/ORD 1993
A26: Caloric requirement per day | B26: KR | C26: =C24*(C22*1000)^C25 -> 951.8885266 | D26: kcal/day | E26: Eq
A27: Caloric content of commodity (dry weight) | B27: KCD | C27: ='A03'!$E$59 -> 4.47 | D27: kcal/gdw [Note 1] | E27: U.S. EPA/ORD 1993
A28: Food consumed per day (dry weight) | B28: AmntDry | C28: = KR ÷ KCD
C29: =C26/C27 -> 212.9504534 | D29: gdry/day | E29: Eq
A30: Water content of vegetation as a proportion | B30: PropWater | C30: ='A03'!$E$60 -> 0.7 | D30: gwater/gfood | E30: Ali et al. 2005
A31: Dry weight content of vegetation as a proportion | B31: PropDry | C31: = 1-PropWater
C32: =1-C30 -> 0.3 | D32: gdry/gfood | E32: Eq
A33: Amount of fish consumed per day, wet weight | B33: AmntFish | C33: = (AmntDry ÷ PropDry) ÷ (1000g/kg)
B34: Central | C34: =(C29/C32)/1000 -> 0.7098348446 | D34: kgfood/day | E34: Eq
B35: Lower | C35: =C34*0.3 -> 0.2129504534 | D35: Note 1 | E35: Eq
B36: Upper | C36: =C34*1.7 -> 1.206719236 | D36: Note 1 | E36: Eq
A37: Proportion of diet that is contaminated | B37: Prop
B38: Central | C38: 0.3 | D38: Unitless | E38: Scenario parameter
B39: Lower | C39: 0.1 | E39: Scenario parameter
B40: Upper | C40: 1 | E40: Scenario parameter
A41: Dose
A42: Toxic Equivalency Factor for formulation: (See risk assessment if this has a value other than 1.) | B42: TEF
B43: Central | C43: ='A01'!C$17 -> 1 | D43: Unitless | E43: Worksheet A01
B44: Lower | C44: ='A01'!C$18 -> 1 | D44: Note 2 | E44: Worksheet A01
B45: Upper | C45: ='A01'!C$19 -> 1 | D45: Note 2 | E45: Worksheet A01
A46: Dose | B46: Dose | C46: = ConcFish × AmntFish × Prop ÷ BW
B47: Central | C47: =C18*C34*C38/C$22 -> 0.006115851841 | D47: mg/kg | E47: Eq
B48: Lower | C48: =C19*C35*C39/C$22 -> 4.301258437e-05 | D48: mg/kg | E48: Eq
B49: Upper | C49: 0.2437379781 | D49: mg/kg | E49: Eq
E50: FishKcalV6

Sheet F17c
A1: Chronic scenario for the consumption of Contaminated Fish (Longer-term) by Bird, piscivorous
A2: Short Title | B2: Fish consumption, accidental spill | E2: FishKcalV6
A3: Predator | B3: Bird, piscivorous
A4: Food Item (Prey) | B4: Fish
A5: Duration | B5: Chronic | E5: Scenario parameter
A6: Parameter/Assumption | B6: Code / Range | C6: Equation/ Value | D6: Units | E6: Reference/Designation
A7: Water
A8: Concentration in water | B8: ConcWat
B9: Central | C9: =B04a!Chronic_C -> 0.0546 | D9: mg/L | E9: ='B04a'!Chronic_C
B10: Lower | C10: =B04a!Chronic_L -> 0.00384 | E10: ='B04a'!Chronic_L
B11: Upper | C11: =B04a!Chronic_U -> 0.384 | E11: ='B04a'!Chronic_U
A12: Fish
A13: Bioconcentration factor | B13: BCF
B14: Central | C14: ='B01'!$C$6 -> 2.63 | D14: L/kg
B15: Lower | C15: ='B01'!$C$6 -> 2.63
B16: Upper | C16: ='B01'!$C$6 -> 2.63
A17: Concentration in fish | B17: ConcFish | C17: ConcWat × BCF
B18: Central | C18: =C9*C14 -> 0.143598 | D18: mg/kg | E18: Eq
B19: Lower | C19: =C10*C15 -> 0.0100992 | E19: Eq
B20: Upper | C20: =C11*C16 -> 1.00992 | E20: Eq
A21: Receptor
A22: Body weight | B22: BW | C22: =A02b!$C$24 -> 2.4 | D22: kg | E22: Sibley 2000
A23: Allometric coefficients for caloric requirement per day in kilocalories and BW in grams
B24: alpha | C24: =A02b!$C$27 -> 1.916 | E24: U.S. EPA/ORD 1993
B25: beta | C25: =A02b!$C$28 -> 0.704 | E25: U.S. EPA/ORD 1993
A26: Caloric requirement per day | B26: KR | C26: =C24*(C22*1000)^C25 -> 459.2659192 | D26: kcal/day | E26: Eq
A27: Caloric content of commodity (dry weight) | B27: KCD | C27: ='A03'!$E$36 -> 3.87 | D27: kcal/gdw [Note 1] | E27: U.S. EPA/ORD 1993
A28: Food consumed per day (dry weight) | B28: AmntDry | C28: = KR ÷ KCD
C29: =C26/C27 -> 118.6733641 | D29: gdry/day | E29: Eq
A30: Water content of vegetation as a proportion | B30: PropWater | C30: ='A03'!$E$37 -> 0.7 | D30: gwater/gfood | E30: Ali et al. 2005
A31: Dry weight content of vegetation as a proportion | B31: PropDry | C31: = 1-PropWater
C32: =1-C30 -> 0.3 | D32: gdry/gfood | E32: Eq
A33: Amount of fish consumed per day, wet weight | B33: AmntFish | C33: = (AmntDry ÷ PropDry) ÷ (1000g/kg)
B34: Central | C34: =(C29/C32)/1000 -> 0.3955778805 | D34: kgfood/day | E34: Eq
B35: Lower | C35: =C34*0.3 -> 0.1186733641 | D35: Note 1 | E35: Eq
B36: Upper | C36: =C34*1.7 -> 0.6724823968 | D36: Note 1 | E36: Eq
A37: Proportion of diet that is contaminated | B37: Prop
B38: Central | C38: 0.3 | D38: Unitless | E38: Scenario parameter
B39: Lower | C39: 0.1 | E39: Scenario parameter
B40: Upper | C40: 1 | E40: Scenario parameter
A41: Dose
A42: Toxic Equivalency Factor for formulation: (See risk assessment if this has a value other than 1.) | B42: TEF
B43: Central | C43: ='A01'!C$17 -> 1 | D43: Unitless | E43: Worksheet A01
B44: Lower | C44: ='A01'!C$18 -> 1 | D44: Note 2 | E44: Worksheet A01
B45: Upper | C45: ='A01'!C$19 -> 1 | D45: Note 2 | E45: Worksheet A01
A46: Dose | B46: Dose | C46: = ConcFish × AmntFish × Prop ÷ BW
B47: Central | C47: =C18*C34*C38/C$22 -> 0.00710052406 | D47: mg/kg | E47: Eq
B48: Lower | C48: =C19*C35*C39/C$22 -> 4.993775163e-05 | D48: mg/kg | E48: Eq
B49: Upper | C49: 0.2829805926 | D49: mg/kg | E49: Eq
E50: FishKcalV6

Sheet G01a
A1: Summary of Exposure Assessments for the Mammals | F1: G01V6Mam
A2: Application Rate: | B2: ='A01'!ApRt_C -> 0.6 | C2: lb a.i./acre | F2: G01V6Mam
A3: Scenario | B3: Receptor | C3: mg/kg/day or mg/kg/event | F3: Detail Worksheet
C4: Central | D4: Lower | E4: Upper | K4: Lower | L4: Central | M4: Upper
A5: Accidental Acute Exposures
A6: Direct Spray | J6: SPRAY------------
A7: first-order absorption | B7: Small mammal (20g) | C7: No Exposure Assessment | J7: 1st-Order Abs | K7: =IF(D7>0, D7, "") ->  | L7: =IF(ISERROR(C7-K7), "", C7-K7) ->  | M7: =IF(ISERROR(E7-C7), "", E7-C7) ->  | N7: =E7-SUM(K7:M7) -> 0
A8: 100% absorption | B8: Small mammal (20g) | C8: No Exposure Assessment | J8: 100% Abs. | N8: =E8-SUM(K8:M8) -> 0
A9: Contaminated Water | J9: SPILL--------------
A10: Spill | B10: Small mammal (20g) | C10: =F02a!Dose_C -> 2.656227277 | D10: =F02a!Dose_L -> 1.062490911 | E10: =F02a!Dose_U -> 5.312454555 | F10: F02a | J10: Sm Mam | K10: =IF(D10>0, D10, "") -> 1.062490911 | L10: =IF(ISERROR(C10-K10), "", C10-K10) -> 1.593736366 | M10: =IF(ISERROR(E10-C10), "", E10-C10) -> 2.656227277 | N10: =E10-SUM(K10:M10) -> 0
A11: Spill | B11: Larger Mammal (400g) | C11: =F02b!Dose_C -> 1.96862154 | D11: =F02b!Dose_L -> 0.787448616 | E11: =F02b!Dose_U -> 3.93724308 | F11: F02b | J11: 400 g Mam | K11: 0.787448616 | L11: 1.181172924 | M11: 1.96862154 | N11: 0
A12: Spill | B12: Canid (5 kg) | C12: =F02c!Dose_C -> 1.529224444 | D12: =F02c!Dose_L -> 0.6116897775 | E12: =F02c!Dose_U -> 3.058448888 | F12: F02c | J12: Canid | K12: 0.6116897775 | L12: 0.9175346663 | M12: 1.529224444 | N12: 0
A13: Spill | B13: Large Mammal (70 kg) | C13: =F02d!Dose_C -> 1.174514622 | D13: =F02d!Dose_L -> 0.4698058488 | E13: =F02d!Dose_U -> 2.349029244 | F13: F02d | J13: Lrg Mam | K13: 0.4698058488 | L13: 0.7047087731 | M13: 1.174514622 | N13: 0
A14: Consumption of contaminated Fish | J14: FISH--------------
A15: Spill | B15: Large Mammalian Carnivore (70 kg) | C15: =F03a!Dose_C -> 1.411990197 | D15: =F03a!Dose_L -> 0.05647960787 | E15: =F03a!Dose_U -> 16.00255556 | F15: F03a | J15: Lrg Mam | K15: =IF(D15>0, D15, "") -> 0.05647960787 | L15: =IF(ISERROR(C15-K15), "", C15-K15) -> 1.355510589 | M15: =IF(ISERROR(E15-C15), "", E15-C15) -> 14.59056537 | N15: =E15-SUM(K15:M15) -> 0
A16: Spill | B16: Canid (5 kg) | C16: =F03b!Dose_C -> 2.032344612 | D16: =F03b!Dose_L -> 0.08129378447 | E16: =F03b!Dose_U -> 23.03323893 | F16: F03b | J16: Canid | K16: 0.08129378447 | L16: 1.951050827 | M16: 21.00089432 | N16: 0
A17: Non-Accidental Acute Exposures
A18: Contaminated Fruit [Lowest Residue Rates] | J18: FRUIT-------------
B19: Small mammal (20g) | C19: =F04a!Dose_C -> 0.3811941666 | D19: =F04a!Dose_L -> 0.05309490178 | E19: =F04a!Dose_U -> 1.388635893 | F19: F04a | J19: Sm Mam | K19: =IF(D19>0, D19, "") -> 0.05309490178 | L19: =IF(ISERROR(C19-K19), "", C19-K19) -> 0.3280992648 | M19: =IF(ISERROR(E19-C19), "", E19-C19) -> 1.007441726 | N19: =E19-SUM(K19:M19) -> 0
B20: Larger Mammal (400g) | C20: =F04b!Dose_C -> 0.08704392342 | D20: =F04b!Dose_L -> 0.01212397505 | E20: =F04b!Dose_U -> 0.3170885782 | F20: F04b | J20: 400g Mam | K20: 0.01212397505 | L20: 0.07491994837 | M20: 0.2300446547 | N20: 0
B21: Large Mammal (70 kg) | C21: =F04c!Dose_C -> 0.04957743586 | D21: =F04c!Dose_L -> 0.006905428566 | E21: =F04c!Dose_U -> 0.1806035163 | F21: F04c | J21: Lrg Mam | K21: 0.006905428566 | L21: 0.04267200729 | M21: 0.1310260805 | N21: 0
A22: Contaminated Broadleaf Foliage | J22: BROADLEAF-----
B23: Small mammal (20g) | C23: =F05a!Dose_C -> 1.828864554 | D23: =F05a!Dose_L -> 0.1828864554 | E23: =F05a!Dose_U -> 9.327209226 | F23: F05a | J23: Sm Mam | K23: =IF(D23>0, D23, "") -> 0.1828864554 | L23: =IF(ISERROR(C23-K23), "", C23-K23) -> 1.645978099 | M23: =IF(ISERROR(E23-C23), "", E23-C23) -> 7.498344672 | N23: =E23-SUM(K23:M23) -> 0
B24: Larger Mammal (400g) | C24: =F05b!Dose_C -> 0.4176127552 | D24: =F05b!Dose_L -> 0.04176127552 | E24: =F05b!Dose_U -> 2.129825052 | F24: F05b | J24: 400g Mam | K24: 0.04176127552 | L24: 0.3758514797 | M24: 1.712212296 | N24: 0
B25: Large Mammal (70 kg) | C25: =F05c!Dose_C -> 0.2378588737 | D25: =F05c!Dose_L -> 0.02378588737 | E25: =F05c!Dose_U -> 1.213080256 | F25: F05c | J25: Lrg Mam | K25: 0.02378588737 | L25: 0.2140729863 | M25: 0.975221382 | N25: 0
A26: Contaminated Tall Grass | J26: TALL GRASS -----
B27: Small mammal (20g) | C27: =F06a!Dose_C -> 1.463091643 | D27: =F06a!Dose_L -> 0.1463091643 | E27: =F06a!Dose_U -> 7.599948258 | F27: F06a | J27: Sm Mam | K27: =IF(D27>0, D27, "") -> 0.1463091643 | L27: =IF(ISERROR(C27-K27), "", C27-K27) -> 1.316782479 | M27: =IF(ISERROR(E27-C27), "", E27-C27) -> 6.136856615 | N27: =E27-SUM(K27:M27) -> 0
B28: Larger Mammal (400g) | C28: =F06b!Dose_C -> 0.3340902042 | D28: =F06b!Dose_L -> 0.03340902042 | E28: =F06b!Dose_U -> 1.735413005 | F28: F06b | J28: 400g Mam | K28: 0.03340902042 | L28: 0.3006811837 | M28: 1.401322801 | N28: 0
B29: Large Mammal (70 kg) | C29: =F06c!Dose_C -> 0.1902870989 | D29: =F06c!Dose_L -> 0.01902870989 | E29: =F06c!Dose_U -> 0.9884357639 | F29: F06c | J29: Lrg Mam | K29: 0.01902870989 | L29: 0.171258389 | M29: 0.798148665 | N29: 0
A30: Contaminated Short Grass [Highest Residue Rate] | J30: SHORT GRASS---
B31: Small mammal (20g) | C31: =F07a!Dose_C -> 3.454521936 | D31: =F07a!Dose_L -> 0.3657729108 | E31: =F07a!Dose_U -> 16.58170529 | F31: F07a | J31: Sm Mam | K31: =IF(D31>0, D31, "") -> 0.3657729108 | L31: =IF(ISERROR(C31-K31), "", C31-K31) -> 3.088749025 | M31: =IF(ISERROR(E31-C31), "", E31-C31) -> 13.12718335 | N31: =E31-SUM(K31:M31) -> 0
B32: Larger Mammal (400g) | C32: =F07b!Dose_C -> 0.7888240932 | D32: =F07b!Dose_L -> 0.08352255104 | E32: =F07b!Dose_U -> 3.786355647 | F32: F07b | J32: 400g Mam | K32: 0.08352255104 | L32: 0.7053015421 | M32: 2.997531554 | N32: 0
B33: Large Mammal (70 kg) | C33: =F07c!Dose_C -> 0.4492889836 | D33: =F07c!Dose_L -> 0.04757177473 | E33: =F07c!Dose_U -> 2.156587121 | F33: F07c | J33: Lrg Mam | K33: 0.04757177473 | L33: 0.4017172089 | M33: 1.707298138 | N33: 0
A34: Contaminated Water | J34: WATER------------
B35: Small mammal (20g) | C35: =F08a!Dose_C -> 0.01668925869 | D35: =F08a!Dose_L -> 0.0009662202398 | E35: =F08a!Dose_U -> 0.08783820362 | F35: F08a | J35: Sm Mam | K35: =IF(D35>0, D35, "") -> 0.0009662202398 | L35: =IF(ISERROR(C35-K35), "", C35-K35) -> 0.01572303845 | M35: =IF(ISERROR(E35-C35), "", E35-C35) -> 0.07114894493 | N35: =E35-SUM(K35:M35) -> 0
B36: Larger Mammal (400g) | C36: =F08b!Dose_C -> 0.01236898454 | D36: =F08b!Dose_L -> 0.0007160991051 | E36: =F08b!Dose_U -> 0.06509991865 | F36: F08b | J36: 400g Mam | K36: 0.0007160991051 | L36: 0.01165288544 | M36: 0.0527309341 | N36: 0
B37: Canid (5 kg) | C37: =F08c!Dose_C -> 0.009608222366 | D37: =F08c!Dose_L -> 0.0005562655054 | E37: =F08c!Dose_U -> 0.0505695914 | F37: F08c | J37: Canid | K37: 0.0005562655054 | L37: 0.00905195686 | M37: 0.04096136903 | N37: 0
B38: Large Mammal (70 kg) | C38: =F08d!Dose_C -> 0.007379556156 | D38: =F08d!Dose_L -> 0.0004272374617 | E38: =F08d!Dose_U -> 0.03883976924 | F38: F08d | J38: Lrg Mam | K38: 0.0004272374617 | L38: 0.006952318694 | M38: 0.03146021309 | N38: 0
A39: Contaminated Insects | J39: INSECTS------------
B40: Small mammal (20g) | C40: =F09a!Dose_C -> 0.462330413 | D40: =F09a!Dose_L -> 0.0462330413 | E40: =F09a!Dose_U -> 2.357885106 | F40: F09a | J40: Sm Mam | K40: =IF(D40>0, D40, "") -> 0.0462330413 | L40: =IF(ISERROR(C40-K40), "", C40-K40) -> 0.4160973717 | M40: =IF(ISERROR(E40-C40), "", E40-C40) -> 1.895554693 | N40: =E40-SUM(K40:M40) -> 0
B41: Larger Mammal (400g) | C41: =F09b!Dose_C -> 0.1055710097 | D41: =F09b!Dose_L -> 0.01055710097 | E41: =F09b!Dose_U -> 0.5384121495 | F41: F09b | J41: Lrg Mam | K41: 0.01055710097 | L41: 0.09501390873 | M41: 0.4328411398 | N41: 0
A42: Consumption of small mammal (after direct spray) by predator | J42: SMALL MAMMAL-
B43: Canid (5 kg) | C43: =F10a!Dose_C -> 1.629019265 | D43: =F10a!Dose_L -> 0.4887057796 | E43: =F10a!Dose_U -> 2.769332751 | F43: F10a | J43: Canid | K43: =IF(D43>0, D43, "") -> 0.4887057796 | L43: =IF(ISERROR(C43-K43), "", C43-K43) -> 1.140313486 | M43: =IF(ISERROR(E43-C43), "", E43-C43) -> 1.140313486 | N43: =E43-SUM(K43:M43) -> 0
A44: Consumption of contaminated Fish | J44: FISH----------------
B45: Large Mammalian Carnivore (70 kg) | C45: =F11a!Dose_C -> 0.008871631527 | D45: =F11a!Dose_L -> 5.136207726e-05 | E45: =F11a!Dose_U -> 0.2645925192 | F45: F11a | J45: Lrg Mam | K45: =IF(D45>0, D45, "") -> 5.136207726e-05 | L45: =IF(ISERROR(C45-K45), "", C45-K45) -> 0.00882026945 | M45: =IF(ISERROR(E45-C45), "", E45-C45) -> 0.2557208877 | N45: =E45-SUM(K45:M45) -> 0
B46: Canid (5 kg) | C46: =F11b!Dose_C -> 0.01276936099 | D46: =F11b!Dose_L -> 7.392787939e-05 | E46: =F11b!Dose_U -> 0.3808405908 | F46: F11b | J46: Canid | K46: 7.392787939e-05 | L46: 0.01269543311 | M46: 0.3680712298 | N46: 0
A47: Chronic/Longer Term Exposures
A48: Contaminated Fruit [Lowest Residue Rates] | J48: FRUIT-------------
B49: Small mammal (20g) | C49: =F12a!Dose_C -> 0.160401189 | D49: =F12a!Dose_L -> 0.02234159419 | E49: =F12a!Dose_U -> 0.5843186171 | F49: F12a | J49: Sm Mam | K49: =IF(D49>0, D49, "") -> 0.02234159419 | L49: =IF(ISERROR(C49-K49), "", C49-K49) -> 0.1380595948 | M49: =IF(ISERROR(E49-C49), "", E49-C49) -> 0.4239174281 | N49: =E49-SUM(K49:M49) -> 0
B50: Larger Mammal (400g) | C50: =F12b!Dose_C -> 0.03662686902 | D50: =F12b!Dose_L -> 0.005101599614 | E50: =F12b!Dose_U -> 0.1334264514 | F50: F12b | J50: 400g Mam | K50: 0.005101599614 | L50: 0.03152526941 | M50: 0.09679958242 | N50: 0
B51: Large Mammal (70 kg) | C51: =F12c!Dose_C -> 0.02086149358 | D51: =F12c!Dose_L -> 0.002905708034 | E51: =F12c!Dose_U -> 0.0759954409 | F51: F12c | J51: Lrg Mam | K51: 0.002905708034 | L51: 0.01795578555 | M51: 0.05513394732 | N51: 0
A52: Contaminated Broadleaf Foliage | J52: BROADLEAF-----
B53: Small mammal (20g) | C53: =F13a!Dose_C -> 0.7695606983 | D53: =F13a!Dose_L -> 0.07695606983 | E53: =F13a!Dose_U -> 3.924759561 | F53: F13a | J53: Sm Mam | K53: =IF(D53>0, D53, "") -> 0.07695606983 | L53: =IF(ISERROR(C53-K53), "", C53-K53) -> 0.6926046284 | M53: =IF(ISERROR(E53-C53), "", E53-C53) -> 3.155198863 | N53: =E53-SUM(K53:M53) -> 0
B54: Larger Mammal (400g) | C54: =F13b!Dose_C -> 0.1757256232 | D54: =F13b!Dose_L -> 0.01757256232 | E54: =F13b!Dose_U -> 0.8962006783 | F54: F13b | J54: 400g Mam | K54: 0.01757256232 | L54: 0.1581530609 | M54: 0.7204750551 | N54: 0
B55: Large Mammal (70 kg) | C55: =F13c!Dose_C -> 0.1000876968 | D55: =F13c!Dose_L -> 0.01000876968 | E55: =F13c!Dose_U -> 0.5104472535 | F55: F13c | J55: Lrg Mam | K55: 0.01000876968 | L55: 0.09007892709 | M55: 0.4103595567 | N55: 0
A56: Contaminated Tall Grass | J56: TALL GRASS -----
B57: Small mammal (20g) | C57: =F14a!Dose_C -> 0.6156485586 | D57: =F14a!Dose_L -> 0.06156485586 | E57: =F14a!Dose_U -> 3.197952235 | F57: F14a | J57: Sm Mam | K57: =IF(D57>0, D57, "") -> 0.06156485586 | L57: =IF(ISERROR(C57-K57), "", C57-K57) -> 0.5540837028 | M57: =IF(ISERROR(E57-C57), "", E57-C57) -> 2.582303676 | N57: =E57-SUM(K57:M57) -> 0
B58: Larger Mammal (400g) | C58: =F14b!Dose_C -> 0.1405804986 | D58: =F14b!Dose_L -> 0.01405804986 | E58: =F14b!Dose_U -> 0.7302375897 | F58: F14b | J58: 400g Mam | K58: 0.01405804986 | L58: 0.1265224487 | M58: 0.5896570912 | N58: 0
B59: Large Mammal (70 kg) | C59: =F14c!Dose_C -> 0.08007015741 | D59: =F14c!Dose_L -> 0.008007015741 | E59: =F14c!Dose_U -> 0.4159199843 | F59: F14c | J59: Lrg Mam | K59: 0.008007015741 | L59: 0.07206314167 | M59: 0.3358498269 | N59: 0
A60: Contaminated Short Grass [Highest Residue Rate] | J60: SHORT GRASS---
B61: Small mammal (20g) | C61: =F15a!Dose_C -> 1.453614652 | D61: =F15a!Dose_L -> 0.1539121397 | E61: =F15a!Dose_U -> 6.977350331 | F61: F15a | J61: Sm Mam | K61: =IF(D61>0, D61, "") -> 0.1539121397 | L61: =IF(ISERROR(C61-K61), "", C61-K61) -> 1.299702513 | M61: =IF(ISERROR(E61-C61), "", E61-C61) -> 5.523735679 | N61: =E61-SUM(K61:M61) -> 0
B62: Larger Mammal (400g) | C62: =F15b!Dose_C -> 0.3319261771 | D62: =F15b!Dose_L -> 0.03514512464 | E62: =F15b!Dose_U -> 1.59324565 | F62: F15b | J62: 400g Mam | K62: 0.03514512464 | L62: 0.2967810525 | M62: 1.261319473 | N62: 0
B63: Large Mammal (70 kg) | C63: =F15c!Dose_C -> 0.1890545383 | D63: =F15c!Dose_L -> 0.02001753935 | E63: =F15c!Dose_U -> 0.907461784 | F63: F15c | J63: Lrg Mam | K63: 0.02001753935 | L63: 0.169036999 | M63: 0.7184072457 | N63: 0
A64: Contaminated Water | J64: WATER------------
B65: Small mammal (20g) | C65: =F16a!Dose_C -> 0.007993276529 | D65: =F16a!Dose_L -> 0.0005621645031 | E65: =F16a!Dose_U -> 0.05621645031 | F65: F16a | J65: Sm Mam | K65: =IF(D65>0, D65, "") -> 0.0005621645031 | L65: =IF(ISERROR(C65-K65), "", C65-K65) -> 0.007431112026 | M65: =IF(ISERROR(E65-C65), "", E65-C65) -> 0.04822317379 | N65: =E65-SUM(K65:M65) -> 0
B66: Larger Mammal (400g) | C66: =F16b!Dose_C -> 0.005924092597 | D66: =F16b!Dose_L -> 0.0004166394793 | E66: =F16b!Dose_U -> 0.04166394793 | F66: F16b | J66: 400g Mam | K66: 0.0004166394793 | L66: 0.005507453118 | M66: 0.03573985534 | N66: 0
B67: Canid (5 kg) | C67: =F16c!Dose_C -> 0.004601832817 | D67: =F16c!Dose_L -> 0.0003236453849 | E67: =F16c!Dose_U -> 0.03236453849 | F67: F16c | J67: Canid | K67: 0.0003236453849 | L67: 0.004278187432 | M67: 0.02776270568 | N67: 0
B68: Large Mammal (70 kg) | C68: =F16d!Dose_C -> 0.003534419001 | D68: =F16d!Dose_L -> 0.0002485745231 | E68: =F16d!Dose_U -> 0.02485745231 | F68: F16d | J68: Lrg Mam | K68: 0.0002485745231 | L68: 0.003285844478 | M68: 0.02132303331 | N68: 0
A69: Consumption of contaminated Fish | J69: FISH----------------
B70: Large Mammalian Carnivore (70 kg) | C70: =F17a!Dose_C -> 0.004249044573 | D70: =F17a!Dose_L -> 2.988339041e-05 | E70: =F17a!Dose_U -> 0.1693392123 | F70: F17a | J70: Lrg Mam | K70: =IF(D70>0, D70, "") -> 2.988339041e-05 | L70: =IF(ISERROR(C70-K70), "", C70-K70) -> 0.004219161183 | M70: =IF(ISERROR(E70-C70), "", E70-C70) -> 0.1650901677 | N70: =E70-SUM(K70:M70) -> 0
B71: Canid (5 kg) | C71: =F17b!Dose_C -> 0.006115851841 | D71: =F17b!Dose_L -> 4.301258437e-05 | E71: =F17b!Dose_U -> 0.2437379781 | F71: F17b | J71: Canid | K71: =IF(D71>0, D71, "") -> 4.301258437e-05 | L71: =IF(ISERROR(C71-K71), "", C71-K71) -> 0.006072839256 | M71: =IF(ISERROR(E71-C71), "", E71-C71) -> 0.2376221263 | N71: 0

Sheet G01b
A1: Summary of Exposure Assessments for the Birds | F1: G01V6Brd
A2: Application Rate: | B2: ='A01'!ApRt_C -> 0.6 | C2: lb a.i./acre | F2: G01V6Brd
A3: Scenario | B3: Receptor | C3: mg/kg/day or mg/kg/event | F3: Detail Worksheet
C4: Central | D4: Lower | E4: Upper
A5: Accidental Acute Exposures | K5: Lower | L5: Central | M5: Upper | N5: Check
A6: Contaminated Water | J6: SPILL----
A7: Spill | B7: Small bird (10g) | C7: =F02e!Dose_C -> 4.893110786 | D7: =F02e!Dose_L -> 1.957244315 | E7: =F02e!Dose_U -> 9.786221573 | F7: F02e | J7: Sm Brd | K7: =IF(D7>0, D7, "") -> 1.957244315 | L7: =IF(ISERROR(C7-K7), "", C7-K7) -> 2.935866472 | M7: =IF(ISERROR(E7-C7), "", E7-C7) -> 4.893110786 | N7: =E7-SUM(K7:M7) -> 0
A8: Spill | B8: Large Bird (4 kg) | C8: =F02f!Dose_C -> 0.6774936854 | D8: =F02f!Dose_L -> 0.2709974742 | E8: =F02f!Dose_U -> 1.354987371 | F8: F02f | J8: Lrg Brd | K8: 0.2709974742 | L8: 0.4064962112 | M8: 0.6774936854 | N8: =E8-SUM(K8:M8) -> 0
A9: Consumption of contaminated Fish | J9: FISH------
A10: Spill | B10: Fish-eating bird (2.4 kg) | C10: =F03c!Dose_C -> 2.359558765 | D10: =F03c!Dose_L -> 0.09438235058 | E10: =F03c!Dose_U -> 26.741666 | F10: F03c | J10: Pisc Brd | K10: =IF(D10>0, D10, "") -> 0.09438235058 | L10: =IF(ISERROR(C10-K10), "", C10-K10) -> 2.265176414 | M10: =IF(ISERROR(E10-C10), "", E10-C10) -> 24.38210723 | N10: =E10-SUM(K10:M10) -> 0
A11: Non-Accidental Acute Exposures
A12: Contaminated Fruit [Lowest Residue Rates] | J12: FRUIT-------------
B13: Small bird (10g) | C13: =F04d!Dose_C -> 0.8343405562 | D13: =F04d!Dose_L -> 0.1162117203 | E13: =F04d!Dose_U -> 3.039383455 | F13: F04d | J13: Sm Brd | K13: =IF(D13>0, D13, "") -> 0.1162117203 | L13: =IF(ISERROR(C13-K13), "", C13-K13) -> 0.7181288358 | M13: =IF(ISERROR(E13-C13), "", E13-C13) -> 2.205042898 | N13: =E13-SUM(K13:M13) -> 0
B14: Large Bird (4 kg) | C14: =F04e!Dose_C -> 0.09489783846 | D14: =F04e!Dose_L -> 0.01321791321 | E14: =F04e!Dose_U -> 0.3456992687 | F14: F04e | J14: Lrg Brd | K14: 0.01321791321 | L14: 0.08167992524 | M14: 0.2508014302 | N14: 0
A15: Contaminated Broadleaf Foliage | J15: BROADLEAF-----
